Workbook

Sheet Introduction
C4: Joint Monitoring Programme for Water Supply, Sanitation and Hygiene
C6: Estimates on household water, sanitation and hygiene by wealth quintile and sub-national region in
C7: =+Water!B5 -> Indonesia
C9: Updated May 2021
C11: Follow the links below to find the following information:
C13: JMP Estimates
C14: WASH status and trends by wealth quintile (customized quintiles made without water and sanitation assets)
C15: Water
C16: Sanitation
C17: Hygiene
C19: Data inputs
C20: customized wealth quintiles and subnational data:
C21: =IF(INDIRECT(CONCATENATE("Water","!B105"))=0,"",INDIRECT(CONCATENATE("Water","!B105"))) -> DHS03
C22: =IF(INDIRECT(CONCATENATE("Water","!B106"))=0,"",INDIRECT(CONCATENATE("Water","!B106"))) -> DHS07
C23: =IF(INDIRECT(CONCATENATE("Water","!B107"))=0,"",INDIRECT(CONCATENATE("Water","!B107"))) -> DHS12
C24: =IF(INDIRECT(CONCATENATE("Water","!B108"))=0,"",INDIRECT(CONCATENATE("Water","!B108"))) -> DHS17
C25: =IF(INDIRECT(CONCATENATE("Water","!B109"))=0,"",INDIRECT(CONCATENATE("Water","!B109"))) -> 
C26: =IF(INDIRECT(CONCATENATE("Water","!B110"))=0,"",INDIRECT(CONCATENATE("Water","!B110"))) -> 
C27: =IF(INDIRECT(CONCATENATE("Water","!B111"))=0,"",INDIRECT(CONCATENATE("Water","!B111"))) -> 
C28: =IF(INDIRECT(CONCATENATE("Water","!B112"))=0,"",INDIRECT(CONCATENATE("Water","!B112"))) -> 
C29: =IF(INDIRECT(CONCATENATE("Water","!B113"))=0,"",INDIRECT(CONCATENATE("Water","!B113"))) -> 
C30: =IF(INDIRECT(CONCATENATE("Water","!B114"))=0,"",INDIRECT(CONCATENATE("Water","!B114"))) -> 
C31: =IF(INDIRECT(CONCATENATE("Water","!B115"))=0,"",INDIRECT(CONCATENATE("Water","!B115"))) -> 
C32: =IF(INDIRECT(CONCATENATE("Water","!B116"))=0,"",INDIRECT(CONCATENATE("Water","!B116"))) -> 
L55: =+IF(ISNUMBER(M48), "", "Insufficient data to estimate safely managed sanitation services at national level") -> Insufficient data to estimate safely managed sanitation services at national level

Sheet Water
A1: BGD
B4: Summary of trends in use of drinking water by wealth quintile (%)
B5: =IF(ISERROR(INDIRECT(CONCATENATE($B105,"!A2"))),"",INDIRECT(CONCATENATE($B105,"!A2"))) -> Indonesia
B7: =B118 -> National use of drinking water sources, 2000–2020 | J7: =B218 -> Urban use of drinking water sources, 2000–2020 | R7: =B318 -> Rural use of drinking water sources, 2000–2020
B31: =IF(ISERROR(INDIRECT(CONCATENATE($B105,"!A2"))),"",INDIRECT(CONCATENATE($B105,"!A2"))) -> Indonesia | F31: Poorest | J31: Poor | N31: Middle | R31: Rich | V31: Richest
F32: Basic | G32: Limited | H32: Unimproved | I32: Surface water | J32: Basic | K32: Limited | L32: Unimproved | M32: Surface water | N32: Basic | O32: Limited | P32: Unimproved | Q32: Surface water | R32: Basic | S32: Limited | T32: Unimproved | U32: Surface water | V32: Basic | W32: Limited | X32: Unimproved | Y32: Surface water
B33: NATIONAL | D33: Estimate | E33: =C99 -> 2000 | F33: =E99 -> 46.82691657 | G33: =F99 -> 1.70947293 | H33: 39.29800516 | I33: 12.16560534 | J33: =J99 -> 60.90192985 | K33: =K99 -> 0.9323505592 | L33: 34.10120793 | M33: 4.064511662 | N33: =O99 -> 70.39428631 | O33: =P99 -> 0.6732609079 | P33: 27.15653525 | Q33: 1.775917535 | R33: =T99 -> 78.71432922 | S33: =U99 -> 0.3170082991 | T33: 19.54980007 | U33: 1.41886241 | V33: =Y99 -> 87.89841752 | W33: =Z99 -> 0.2604517257 | X33: 11.53702281 | Y33: 0.3041079464
E34: =C100 -> 2020 | F34: =E100 -> 73.93910388 | G34: 2.699235948 | H34: 17.36837944 | I34: 5.993280727 | J34: =J100 -> 90.91336262 | K34: 1.39179702 | L34: 6.272413681 | M34: 1.422426682 | N34: =O100 -> 95.51930344 | O34: 0.9135601243 | P34: 3.016884909 | Q34: 0.5502515317 | R34: =T100 -> 98.98558022 | S34: 0.3986472442 | T34: 0.6157725344 | U34: 0 | V34: =Y100 -> 99.70456549 | W34: 0.2954345126 | X34: 0 | Y34: 0
B36: URBAN | D36: Estimate | E36: =C199 -> 2000 | F36: =E199 -> 72.36032652 | G36: =F199 -> 0.4300985969 | H36: 25.38610921 | I36: 1.82346567 | J36: =J199 -> 77.53550208 | K36: =K199 -> 0.1124419052 | L36: 21.78498964 | M36: 0.5670663712 | N36: =O199 -> 83.89142554 | O36: =P199 -> 0.2069589681 | P36: 15.4724613 | Q36: 0.4291541908 | R36: =T199 -> 86.93256683 | S36: =U199 -> 0.2221180853 | T36: 12.59683493 | U36: 0.2484801493 | V36: =Y199 -> 92.11737152 | W36: =Z199 -> 0.2470101837 | X36: 7.6356183 | Y36: 0
E37: =C200 -> 2020 | F37: =E200 -> 93.73067738 | G37: 0.5571206594 | H37: 4.703455349 | I37: 1.00874661 | J37: =J200 -> 99.45504515 | K37: 0.144229604 | L37: 0.2000421569 | M37: 0.2006830881 | N37: =O200 -> 99.75390851 | O37: 0.2460914907 | P37: 0 | Q37: 0 | R37: =T200 -> 99.73012537 | S37: 0.254816639 | T37: 0 | U37: 0.01505798781 | V37: =Y200 -> 99.68965008 | W37: 0.2673150393 | X37: 0.02351610669 | Y37: 0.01951877248
B39: RURAL | D39: Estimate | E39: =C299 -> 2000 | F39: =E299 -> 40.72429267 | G39: =F299 -> 2.140940641 | H39: 41.31952301 | I39: 15.81524368 | J39: =J299 -> 53.77702308 | K39: =K299 -> 1.012504634 | L39: 37.30482268 | M39: 7.905649603 | N39: =O299 -> 56.73403306 | O39: =P299 -> 1.259025094 | P39: 37.60541056 | Q39: 4.401531287 | R39: =T299 -> 65.62408081 | S39: =U299 -> 1.099530453 | T39: 30.64645082 | U39: 2.62993792 | V39: =Y299 -> 72.53761174 | W39: =Z299 -> 0.4691893337 | X39: 24.26334524 | Y39: 2.729853678
E40: =C300 -> 2020 | F40: =E300 -> 65.67786973 | G40: 3.452789755 | H40: 22.10639539 | I40: 8.76294513 | J40: =J300 -> 80.67591073 | K40: 1.518952311 | L40: 13.99176119 | M40: 3.813375773 | N40: =O300 -> 88.88687801 | O40: 1.97255164 | P40: 7.50362492 | Q40: 1.63694543 | R40: =T300 -> 91.8538909 | S40: 1.539010513 | T40: 5.68693981 | U40: 0.9201587717 | V40: =Y300 -> 97.63205424 | W40: 0.6315057441 | X40: 1.736440013 | Y40: 0
A97: NATIONAL | D97: Poorest | I97: Poor | N97: Middle | S97: Rich | X97: Richest
D98: Improved | E98: Basic | F98: Limited | G98: Unimproved | H98: Surface water | I98: Improved | J98: Basic | K98: Limited | L98: Unimproved | M98: Surface water | N98: Improved | O98: Basic | P98: Limited | Q98: Unimproved | R98: Surface water | S98: Improved | T98: Basic | U98: Limited | V98: Unimproved | W98: Surface water | X98: Improved | Y98: Basic | Z98: Limited | AA98: Unimproved | AB98: Surface water
A99: Forecast period: | C99: 2000 | D99: =IF((D101+H101)>100,D101*100/(D101+H101),D101) -> 48.5363895 | E99: =D99*AVERAGEIF(E105:E116,">0")/100 -> 46.82691657 | F99: =D99*(100-AVERAGEIF(E105:E116,">0"))/100 -> 1.70947293 | G99: =100-(E99+F99+H99) -> 39.29800516 | H99: =IF((D101+H101)>100,H101*100/(D101+H101),H101) -> 12.16560534 | I99: =IF((I101+M101)>100,I101*100/(I101+M101),I101) -> 61.83428041 | J99: =I99*AVERAGEIF(J105:J116,">0")/100 -> 60.90192985 | K99: =I99*(100-AVERAGEIF(J105:J116,">0"))/100 -> 0.9323505592 | L99: =100-(J99+K99+M99) -> 34.10120793 | M99: =IF((I101+M101)>100,M101*100/(I101+M101),M101) -> 4.064511662 | N99: =IF((N101+R101)>100,N101*100/(N101+R101),N101) -> 71.06754722 | O99: =N99*AVERAGEIF(O105:O116,">0")/100 -> 70.39428631 | P99: =N99*(100-AVERAGEIF(O105:O116,">0"))/100 -> 0.6732609079 | Q99: =100-(O99+P99+R99) -> 27.15653525 | R99: =IF((N101+R101)>100,R101*100/(N101+R101),R101) -> 1.775917535 | S99: =IF((S101+W101)>100,S101*100/(S101+W101),S101) -> 79.03133752 | T99: =S99*AVERAGEIF(T105:T116,">0")/100 -> 78.71432922 | U99: =S99*(100-AVERAGEIF(T105:T116,">0"))/100 -> 0.3170082991 | V99: =100-(T99+U99+W99) -> 19.54980007 | W99: =IF((S101+W101)>100,W101*100/(S101+W101),W101) -> 1.41886241 | X99: =IF((X101+AB101)>100,X101*100/(X101+AB101),X101) -> 88.15886925 | Y99: =X99*AVERAGEIF(Y105:Y116,">0")/100 -> 87.89841752 | Z99: =X99*(100-AVERAGEIF(Y105:Y116,">0"))/100 -> 0.2604517257 | AA99: =100-(Y99+Z99+AB99) -> 11.53702281 | AB99: =IF((X101+AB101)>100,AB101*100/(X101+AB101),AB101) -> 0.3041079464
C100: 2020 | D100: =IF((D102+H102)>100,D102*100/(D102+H102),D102) -> 76.63833983 | E100: =D100*AVERAGEIF(E105:E116,">0")/100 -> 73.93910388 | F100: =D100*(100-AVERAGEIF(E105:E116,">0"))/100 -> 2.699235948 | G100: =100-(E100+F100+H100) -> 17.36837944 | H100: =IF((D102+H102)>100,H102*100/(D102+H102),H102) -> 5.993280727 | I100: =IF((I102+M102)>100,I102*100/(I102+M102),I102) -> 92.30515964 | J100: =I100*AVERAGEIF(J105:J116,">0")/100 -> 90.91336262 | K100: =I100*(100-AVERAGEIF(J105:J116,">0"))/100 -> 1.39179702 | L100: =100-(J100+K100+M100) -> 6.272413681 | M100: =IF((I102+M102)>100,M102*100/(I102+M102),M102) -> 1.422426682 | N100: =IF((N102+R102)>100,N102*100/(N102+R102),N102) -> 96.43286356 | O100: =N100*AVERAGEIF(O105:O116,">0")/100 -> 95.51930344 | P100: =N100*(100-AVERAGEIF(O105:O116,">0"))/100 -> 0.9135601243 | Q100: =100-(O100+P100+R100) -> 3.016884909 | R100: =IF((N102+R102)>100,R102*100/(N102+R102),R102) -> 0.5502515317 | S100: =IF((S102+W102)>100,S102*100/(S102+W102),S102) -> 99.38422747 | T100: =S100*AVERAGEIF(T105:T116,">0")/100 -> 98.98558022 | U100: =S100*(100-AVERAGEIF(T105:T116,">0"))/100 -> 0.3986472442 | V100: =100-(T100+U100+W100) -> 0.6157725344 | W100: =IF((S102+W102)>100,W102*100/(S102+W102),W102) -> 0 | X100: =IF((X102+AB102)>100,X102*100/(X102+AB102),X102) -> 100 | Y100: =X100*AVERAGEIF(Y105:Y116,">0")/100 -> 99.70456549 | Z100: =X100*(100-AVERAGEIF(Y105:Y116,">0"))/100 -> 0.2954345126 | AA100: =100-(Y100+Z100+AB100) -> 0 | AB100: =IF((X102+AB102)>100,AB102*100/(X102+AB102),AB102) -> 0
A101: Regression period: | C101: =MinRegYear(C99,C105:C116) -> 2001 | D101: =IF(MAX(C105:C116)-MIN(C105:C116)<5,AVERAGEIF(C105:C116,">0",D105:D116), IF(FORECAST($C101,D$105:D$116,$C$105:$C$116)<0,0, IF(FORECAST($C101,D$105:D$116,$C$105:$C$116)>100,100, FORECAST($C101,D$105:D$116,$C$105:$C$116)))) -> 48.5363895 | H101: =IF(MAX(C105:C116)-MIN(C105:C116)<5,AVERAGEIF(C105:C116,">0",H105:H116), IF(FORECAST($C101,H$105:H$116,$C$105:$C$116)<0,0, IF(FORECAST($C101,H$105:H$116,$C$105:$C$116)>100,100, FORECAST($C101,H$105:H$116,$C$105:$C$116)))) -> 12.16560534 | I101: =IF(MAX(C105:C116)-MIN(C105:C116)<5,AVERAGEIF(C105:C116,">0",I105:I116), IF(FORECAST($C101,I$105:I$116,$C$105:$C$116)<0,0, IF(FORECAST($C101,I$105:I$116,$C$105:$C$116)>100,100, FORECAST($C101,I$105:I$116,$C$105:$C$116)))) -> 61.83428041 | M101: =IF(MAX(C105:C116)-MIN(C105:C116)<5,AVERAGEIF(C105:C116,">0",M105:M116), IF(FORECAST($C101,M$105:M$116,$C$105:$C$116)<0,0, IF(FORECAST($C101,M$105:M$116,$C$105:$C$116)>100,100, FORECAST($C101,M$105:M$116,$C$105:$C$116)))) -> 4.064511662 | N101: =IF(MAX(C105:C116)-MIN(C105:C116)<5,AVERAGEIF(C105:C116,">0",N105:N116), IF(FORECAST($C101,N$105:N$116,$C$105:$C$116)<0,0, IF(FORECAST($C101,N$105:N$116,$C$105:$C$116)>100,100, FORECAST($C101,N$105:N$116,$C$105:$C$116)))) -> 71.06754722 | R101: =IF(MAX(C105:C116)-MIN(C105:C116)<5,AVERAGEIF(C105:C116,">0",R105:R116), IF(FORECAST($C101,R$105:R$116,$C$105:$C$116)<0,0, IF(FORECAST($C101,R$105:R$116,$C$105:$C$116)>100,100, FORECAST($C101,R$105:R$116,$C$105:$C$116)))) -> 1.775917535 | S101: =IF(MAX(C105:C116)-MIN(C105:C116)<5,AVERAGEIF(C105:C116,">0",S105:S116), IF(FORECAST($C101,S$105:S$116,$C$105:$C$116)<0,0, IF(FORECAST($C101,S$105:S$116,$C$105:$C$116)>100,100, FORECAST($C101,S$105:S$116,$C$105:$C$116)))) -> 79.03133752 | W101: =IF(MAX(C105:C116)-MIN(C105:C116)<5,AVERAGEIF(C105:C116,">0",W105:W116), IF(FORECAST($C101,W$105:W$116,$C$105:$C$116)<0,0, IF(FORECAST($C101,W$105:W$116,$C$105:$C$116)>100,100, FORECAST($C101,W$105:W$116,$C$105:$C$116)))) -> 1.41886241 | X101: =IF(MAX(C105:C116)-MIN(C105:C116)<5,AVERAGEIF(C105:C116,">0",X105:X116), IF(FORECAST($C101,X$105:X$116,$C$105:$C$116)<0,0, IF(FORECAST($C101,X$105:X$116,$C$105:$C$116)>100,100, FORECAST($C101,X$105:X$116,$C$105:$C$116)))) -> 88.15886925 | AB101: =IF(MAX(C105:C116)-MIN(C105:C116)<5,AVERAGEIF(C105:C116,">0",AB105:AB116), IF(FORECAST($C101,AB$105:AB$116,$C$105:$C$116)<0,0, IF(FORECAST($C101,AB$105:AB$116,$C$105:$C$116)>100,100, FORECAST($C101,AB$105:AB$116,$C$105:$C$116)))) -> 0.3041079464
C102: =MaxRegYear(C100,C105:C116) -> 2019 | D102: =IF(MAX(C105:C116)-MIN(C105:C116)<5,AVERAGEIF(C105:C116,">0",D105:D116), IF(FORECAST($C102,D$105:D$116,$C$105:$C$116)<0,0, IF(FORECAST($C102,D$105:D$116,$C$105:$C$116)>100,100, FORECAST($C102,D$105:D$116,$C$105:$C$116)))) -> 76.63833983 | H102: =IF(MAX(C105:C116)-MIN(C105:C116)<5,AVERAGEIF(C105:C116,">0",H105:H116), IF(FORECAST($C102,H$105:H$116,$C$105:$C$116)<0,0, IF(FORECAST($C102,H$105:H$116,$C$105:$C$116)>100,100, FORECAST($C102,H$105:H$116,$C$105:$C$116)))) -> 5.993280727 | I102: =IF(MAX(C105:C116)-MIN(C105:C116)<5,AVERAGEIF(C105:C116,">0",I105:I116), IF(FORECAST($C102,I$105:I$116,$C$105:$C$116)<0,0, IF(FORECAST($C102,I$105:I$116,$C$105:$C$116)>100,100, FORECAST($C102,I$105:I$116,$C$105:$C$116)))) -> 92.30515964 | M102: =IF(MAX(C105:C116)-MIN(C105:C116)<5,AVERAGEIF(C105:C116,">0",M105:M116), IF(FORECAST($C102,M$105:M$116,$C$105:$C$116)<0,0, IF(FORECAST($C102,M$105:M$116,$C$105:$C$116)>100,100, FORECAST($C102,M$105:M$116,$C$105:$C$116)))) -> 1.422426682 | N102: =IF(MAX(C105:C116)-MIN(C105:C116)<5,AVERAGEIF(C105:C116,">0",N105:N116), IF(FORECAST($C102,N$105:N$116,$C$105:$C$116)<0,0, IF(FORECAST($C102,N$105:N$116,$C$105:$C$116)>100,100, FORECAST($C102,N$105:N$116,$C$105:$C$116)))) -> 96.43286356 | R102: =IF(MAX(C105:C116)-MIN(C105:C116)<5,AVERAGEIF(C105:C116,">0",R105:R116), IF(FORECAST($C102,R$105:R$116,$C$105:$C$116)<0,0, IF(FORECAST($C102,R$105:R$116,$C$105:$C$116)>100,100, FORECAST($C102,R$105:R$116,$C$105:$C$116)))) -> 0.5502515317 | S102: =IF(MAX(C105:C116)-MIN(C105:C116)<5,AVERAGEIF(C105:C116,">0",S105:S116), IF(FORECAST($C102,S$105:S$116,$C$105:$C$116)<0,0, IF(FORECAST($C102,S$105:S$116,$C$105:$C$116)>100,100, FORECAST($C102,S$105:S$116,$C$105:$C$116)))) -> 99.38422747 | W102: =IF(MAX(C105:C116)-MIN(C105:C116)<5,AVERAGEIF(C105:C116,">0",W105:W116), IF(FORECAST($C102,W$105:W$116,$C$105:$C$116)<0,0, IF(FORECAST($C102,W$105:W$116,$C$105:$C$116)>100,100, FORECAST($C102,W$105:W$116,$C$105:$C$116)))) -> 0 | X102: =IF(MAX(C105:C116)-MIN(C105:C116)<5,AVERAGEIF(C105:C116,">0",X105:X116), IF(FORECAST($C102,X$105:X$116,$C$105:$C$116)<0,0, IF(FORECAST($C102,X$105:X$116,$C$105:$C$116)>100,100, FORECAST($C102,X$105:X$116,$C$105:$C$116)))) -> 100 | AB102: =IF(MAX(C105:C116)-MIN(C105:C116)<5,AVERAGEIF(C105:C116,">0",AB105:AB116), IF(FORECAST($C102,AB$105:AB$116,$C$105:$C$116)<0,0, IF(FORECAST($C102,AB$105:AB$116,$C$105:$C$116)>100,100, FORECAST($C102,AB$105:AB$116,$C$105:$C$116)))) -> 0
B104: Survey | C104: Year | D104: Improved | E104: % Improved < = 30min | H104: Surface water | I104: Improved | J104: % Improved < = 30min | M104: Surface water | N104: Improved | O104: % Improved < = 30min | R104: Surface water | S104: Improved | T104: % Improved < = 30min | W104: Surface water | X104: Improved | Y104: % Improved < = 30min | AB104: Surface water
B105: DHS03 | C105: 2003 | D105: =IF(ISERROR(INDIRECT(CONCATENATE($B105,"!C16"))),"",INDIRECT(CONCATENATE($B105,"!C16"))) -> 53.78536609 | E105: =IF(ISERROR(INDIRECT(CONCATENATE($B105,"!C23"))),"",INDIRECT(CONCATENATE($B105,"!C23"))) -> 95.46129245 | H105: =IF(ISERROR(INDIRECT(CONCATENATE($B105,"!C21"))),"",INDIRECT(CONCATENATE($B105,"!C21"))) -> 10.61360125 | I105: =IF(ISERROR(INDIRECT(CONCATENATE($B105,"!D16"))),"",INDIRECT(CONCATENATE($B105,"!D16"))) -> 66.77981948 | J105: =IF(ISERROR(INDIRECT(CONCATENATE($B105,"!D23"))),"",INDIRECT(CONCATENATE($B105,"!D23"))) -> 97.36684675 | M105: =IF(ISERROR(INDIRECT(CONCATENATE($B105,"!D21"))),"",INDIRECT(CONCATENATE($B105,"!D21"))) -> 3.501798535 | N105: =IF(ISERROR(INDIRECT(CONCATENATE($B105,"!E16"))),"",INDIRECT(CONCATENATE($B105,"!E16"))) -> 74.37268648 | O105: =IF(ISERROR(INDIRECT(CONCATENATE($B105,"!E23"))),"",INDIRECT(CONCATENATE($B105,"!E23"))) -> 97.54829098 | R105: =IF(ISERROR(INDIRECT(CONCATENATE($B105,"!E21"))),"",INDIRECT(CONCATENATE($B105,"!E21"))) -> 1.524610805 | S105: =IF(ISERROR(INDIRECT(CONCATENATE($B105,"!F16"))),"",INDIRECT(CONCATENATE($B105,"!F16"))) -> 80.79841677 | T105: =IF(ISERROR(INDIRECT(CONCATENATE($B105,"!F23"))),"",INDIRECT(CONCATENATE($B105,"!F23"))) -> 99.39499503 | W105: =IF(ISERROR(INDIRECT(CONCATENATE($B105,"!F21"))),"",INDIRECT(CONCATENATE($B105,"!F21"))) -> 1.392878729 | X105: =IF(ISERROR(INDIRECT(CONCATENATE($B105,"!G16"))),"",INDIRECT(CONCATENATE($B105,"!G16"))) -> 89.79468103 | Y105: =IF(ISERROR(INDIRECT(CONCATENATE($B105,"!G23"))),"",INDIRECT(CONCATENATE($B105,"!G23"))) -> 99.66912286 | AB105: =IF(ISERROR(INDIRECT(CONCATENATE($B105,"!G221"))),"",INDIRECT(CONCATENATE($B105,"!G21"))) -> 0.1973780159
B106: DHS07 | C106: 2007 | D106: 55.72639747 | E106: 94.58443488 | H106: 11.04959135 | I106: 70.04029399 | J106: 97.44411211 | M106: 3.880520533 | N106: 79.03752918 | O106: 99.00124718 | R106: 1.548897382 | S106: 86.49368066 | T106: 99.48617391 | W106: 0.7704868837 | X106: 91.71101772 | Y106: 99.46580937 | AB106: 0.3421173918
B107: DHS12 | C107: 2012 | D107: 64.11011577 | E107: 96.8 | H107: 8.936106756 | I107: 79.98958527 | J107: 99.4 | M107: 1.810111208 | N107: 86.17586265 | O107: 99.8 | R107: 0.9861695917 | S107: 91.49731002 | T107: 99.7 | W107: 0.2608388758 | X107: 95.36666348 | Y107: 99.8 | AB107: 0.0233128047
B108: DHS17 | C108: 2017 | D108: 75.16635988 | E108: 99.06609721 | H108: 6.061379691 | I108: 89.77635472 | J108: 99.75775524 | M108: 1.928228912 | N108: 94.005559 | O108: 99.86104778 | R108: 0.6607529109 | S108: 96.91100641 | T108: 99.8143622 | W108: 0.158115387 | X108: 98.88314084 | Y108: 99.88332972 | AB108: 0.03730532269
D111: =IF(ISERROR(INDIRECT(CONCATENATE($B111,"!C16"))),"",INDIRECT(CONCATENATE($B111,"!C16"))) ->  | E111: =IF(ISERROR(INDIRECT(CONCATENATE($B111,"!C23"))),"",INDIRECT(CONCATENATE($B111,"!C23"))) ->  | H111: =IF(ISERROR(INDIRECT(CONCATENATE($B111,"!C21"))),"",INDIRECT(CONCATENATE($B111,"!C21"))) ->  | I111: =IF(ISERROR(INDIRECT(CONCATENATE($B111,"!D16"))),"",INDIRECT(CONCATENATE($B111,"!D16"))) ->  | J111: =IF(ISERROR(INDIRECT(CONCATENATE($B111,"!D23"))),"",INDIRECT(CONCATENATE($B111,"!D23"))) ->  | M111: =IF(ISERROR(INDIRECT(CONCATENATE($B111,"!D21"))),"",INDIRECT(CONCATENATE($B111,"!D21"))) ->  | N111: =IF(ISERROR(INDIRECT(CONCATENATE($B111,"!E16"))),"",INDIRECT(CONCATENATE($B111,"!E16"))) ->  | O111: =IF(ISERROR(INDIRECT(CONCATENATE($B111,"!E23"))),"",INDIRECT(CONCATENATE($B111,"!E23"))) ->  | R111: =IF(ISERROR(INDIRECT(CONCATENATE($B111,"!E21"))),"",INDIRECT(CONCATENATE($B111,"!E21"))) ->  | S111: =IF(ISERROR(INDIRECT(CONCATENATE($B111,"!F16"))),"",INDIRECT(CONCATENATE($B111,"!F16"))) ->  | T111: =IF(ISERROR(INDIRECT(CONCATENATE($B111,"!F23"))),"",INDIRECT(CONCATENATE($B111,"!F23"))) ->  | W111: =IF(ISERROR(INDIRECT(CONCATENATE($B111,"!F21"))),"",INDIRECT(CONCATENATE($B111,"!F21"))) ->  | X111: =IF(ISERROR(INDIRECT(CONCATENATE($B111,"!G16"))),"",INDIRECT(CONCATENATE($B111,"!G16"))) ->  | Y111: =IF(ISERROR(INDIRECT(CONCATENATE($B111,"!G23"))),"",INDIRECT(CONCATENATE($B111,"!G23"))) ->  | AB111: =IF(ISERROR(INDIRECT(CONCATENATE($B111,"!G221"))),"",INDIRECT(CONCATENATE($B111,"!G21"))) -> 
D112: =IF(ISERROR(INDIRECT(CONCATENATE($B112,"!C16"))),"",INDIRECT(CONCATENATE($B112,"!C16"))) ->  | E112: =IF(ISERROR(INDIRECT(CONCATENATE($B112,"!C23"))),"",INDIRECT(CONCATENATE($B112,"!C23"))) ->  | H112: =IF(ISERROR(INDIRECT(CONCATENATE($B112,"!C21"))),"",INDIRECT(CONCATENATE($B112,"!C21"))) ->  | I112: =IF(ISERROR(INDIRECT(CONCATENATE($B112,"!D16"))),"",INDIRECT(CONCATENATE($B112,"!D16"))) ->  | J112: =IF(ISERROR(INDIRECT(CONCATENATE($B112,"!D23"))),"",INDIRECT(CONCATENATE($B112,"!D23"))) ->  | M112: =IF(ISERROR(INDIRECT(CONCATENATE($B112,"!D21"))),"",INDIRECT(CONCATENATE($B112,"!D21"))) ->  | N112: =IF(ISERROR(INDIRECT(CONCATENATE($B112,"!E16"))),"",INDIRECT(CONCATENATE($B112,"!E16"))) ->  | O112: =IF(ISERROR(INDIRECT(CONCATENATE($B112,"!E23"))),"",INDIRECT(CONCATENATE($B112,"!E23"))) ->  | R112: =IF(ISERROR(INDIRECT(CONCATENATE($B112,"!E21"))),"",INDIRECT(CONCATENATE($B112,"!E21"))) ->  | S112: =IF(ISERROR(INDIRECT(CONCATENATE($B112,"!F16"))),"",INDIRECT(CONCATENATE($B112,"!F16"))) ->  | T112: =IF(ISERROR(INDIRECT(CONCATENATE($B112,"!F23"))),"",INDIRECT(CONCATENATE($B112,"!F23"))) ->  | W112: =IF(ISERROR(INDIRECT(CONCATENATE($B112,"!F21"))),"",INDIRECT(CONCATENATE($B112,"!F21"))) ->  | X112: =IF(ISERROR(INDIRECT(CONCATENATE($B112,"!G16"))),"",INDIRECT(CONCATENATE($B112,"!G16"))) ->  | Y112: =IF(ISERROR(INDIRECT(CONCATENATE($B112,"!G23"))),"",INDIRECT(CONCATENATE($B112,"!G23"))) ->  | AB112: =IF(ISERROR(INDIRECT(CONCATENATE($B112,"!G221"))),"",INDIRECT(CONCATENATE($B112,"!G21"))) -> 
B118: =CONCATENATE("National use of drinking water sources, ",C99,"–",C100) -> National use of drinking water sources, 2000–2020 | S118: Data points used for regression
E153: =IF(ISERROR(INDIRECT(CONCATENATE($B153,"!M18"))),"",INDIRECT(CONCATENATE($B153,"!M18"))) ->  | F153: =IF(ISERROR(INDIRECT(CONCATENATE($B153,"!M19"))),"",INDIRECT(CONCATENATE($B153,"!M19"))) ->  | G153: =IF(ISERROR(INDIRECT(CONCATENATE($B153,"!M20"))),"",INDIRECT(CONCATENATE($B153,"!M20"))) ->  | H153: =IF(ISERROR(INDIRECT(CONCATENATE($B153,"!M21"))),"",INDIRECT(CONCATENATE($B153,"!M21"))) ->  | J153: =IF(ISERROR(INDIRECT(CONCATENATE($B153,"!N18"))),"",INDIRECT(CONCATENATE($B153,"!N18"))) ->  | K153: =IF(ISERROR(INDIRECT(CONCATENATE($B153,"!N19"))),"",INDIRECT(CONCATENATE($B153,"!N19"))) ->  | L153: =IF(ISERROR(INDIRECT(CONCATENATE($B153,"!N20"))),"",INDIRECT(CONCATENATE($B153,"!N20"))) ->  | M153: =IF(ISERROR(INDIRECT(CONCATENATE($B153,"!N21"))),"",INDIRECT(CONCATENATE($B153,"!N21"))) ->  | O153: =IF(ISERROR(INDIRECT(CONCATENATE($B153,"!O18"))),"",INDIRECT(CONCATENATE($B153,"!O18"))) ->  | P153: =IF(ISERROR(INDIRECT(CONCATENATE($B153,"!O19"))),"",INDIRECT(CONCATENATE($B153,"!O19"))) ->  | Q153: =IF(ISERROR(INDIRECT(CONCATENATE($B153,"!O20"))),"",INDIRECT(CONCATENATE($B153,"!O20"))) ->  | R153: =IF(ISERROR(INDIRECT(CONCATENATE($B153,"!O21"))),"",INDIRECT(CONCATENATE($B153,"!O21"))) ->  | T153: =IF(ISERROR(INDIRECT(CONCATENATE($B153,"!P18"))),"",INDIRECT(CONCATENATE($B153,"!P18"))) ->  | U153: =IF(ISERROR(INDIRECT(CONCATENATE($B153,"!P19"))),"",INDIRECT(CONCATENATE($B153,"!P19"))) ->  | V153: =IF(ISERROR(INDIRECT(CONCATENATE($B153,"!P20"))),"",INDIRECT(CONCATENATE($B153,"!P20"))) ->  | W153: =IF(ISERROR(INDIRECT(CONCATENATE($B153,"!P21"))),"",INDIRECT(CONCATENATE($B153,"!P21"))) ->  | Y153: =IF(ISERROR(INDIRECT(CONCATENATE($B153,"!Q18"))),"",INDIRECT(CONCATENATE($B153,"!Q18"))) ->  | Z153: =IF(ISERROR(INDIRECT(CONCATENATE($B153,"!Q19"))),"",INDIRECT(CONCATENATE($B153,"!Q19"))) ->  | AA153: =IF(ISERROR(INDIRECT(CONCATENATE($B153,"!Q20"))),"",INDIRECT(CONCATENATE($B153,"!Q20"))) ->  | AB153: =IF(ISERROR(INDIRECT(CONCATENATE($B153,"!Q21"))),"",INDIRECT(CONCATENATE($B153,"!Q1"))) -> 
A197: URBAN | D197: Poorest | I197: Poor | N197: Middle | S197: Rich | X197: Richest
D198: Improved | E198: Basic | F198: Limited | G198: Unimproved | H198: Surface water | I198: Improved | J198: Basic | K198: Limited | L198: Unimproved | M198: Surface water | N198: Improved | O198: Basic | P198: Limited | Q198: Unimproved | R198: Surface water | S198: Improved | T198: Basic | U198: Limited | V198: Unimproved | W198: Surface water | X198: Improved | Y198: Basic | Z198: Limited | AA198: Unimproved | AB198: Surface water
A199: Forecast period: | C199: 2000 | D199: =IF((D201+H201)>100,D201*100/(D201+H201),D201) -> 72.79042512 | E199: =D199*AVERAGEIF(E205:E216,">0")/100 -> 72.36032652 | F199: =D199*(100-AVERAGEIF(E205:E216,">0"))/100 -> 0.4300985969 | G199: =100-(E199+F199+H199) -> 25.38610921 | H199: =IF((D201+H201)>100,H201*100/(D201+H201),H201) -> 1.82346567 | I199: =IF((I201+M201)>100,I201*100/(I201+M201),I201) -> 77.64794399 | J199: =I199*AVERAGEIF(J205:J216,">0")/100 -> 77.53550208 | K199: =I199*(100-AVERAGEIF(J205:J216,">0"))/100 -> 0.1124419052 | L199: =100-(J199+K199+M199) -> 21.78498964 | M199: =IF((I201+M201)>100,M201*100/(I201+M201),M201) -> 0.5670663712 | N199: =IF((N201+R201)>100,N201*100/(N201+R201),N201) -> 84.09838451 | O199: =N199*AVERAGEIF(O205:O216,">0")/100 -> 83.89142554 | P199: =N199*(100-AVERAGEIF(O205:O216,">0"))/100 -> 0.2069589681 | Q199: =100-(O199+P199+R199) -> 15.4724613 | R199: =IF((N201+R201)>100,R201*100/(N201+R201),R201) -> 0.4291541908 | S199: =IF((S201+W201)>100,S201*100/(S201+W201),S201) -> 87.15468492 | T199: =S199*AVERAGEIF(T205:T216,">0")/100 -> 86.93256683 | U199: =S199*(100-AVERAGEIF(T205:T216,">0"))/100 -> 0.2221180853 | V199: =100-(T199+U199+W199) -> 12.59683493 | W199: =IF((S201+W201)>100,W201*100/(S201+W201),W201) -> 0.2484801493 | X199: =IF((X201+AB201)>100,X201*100/(X201+AB201),X201) -> 92.3643817 | Y199: =X199*AVERAGEIF(Y205:Y216,">0")/100 -> 92.11737152 | Z199: =X199*(100-AVERAGEIF(Y205:Y216,">0"))/100 -> 0.2470101837 | AA199: =100-(Y199+Z199+AB199) -> 7.6356183 | AB199: =IF((X201+AB201)>100,AB201*100/(X201+AB201),AB201) -> 0
C200: 2020 | D200: =IF((D202+H202)>100,D202*100/(D202+H202),D202) -> 94.28779804 | E200: =D200*AVERAGEIF(E205:E216,">0")/100 -> 93.73067738 | F200: =D200*(100-AVERAGEIF(E205:E216,">0"))/100 -> 0.5571206594 | G200: =100-(E200+F200+H200) -> 4.703455349 | H200: =IF((D202+H202)>100,H202*100/(D202+H202),H202) -> 1.00874661 | I200: =IF((I202+M202)>100,I202*100/(I202+M202),I202) -> 99.59927475 | J200: =I200*AVERAGEIF(J205:J216,">0")/100 -> 99.45504515 | K200: =I200*(100-AVERAGEIF(J205:J216,">0"))/100 -> 0.144229604 | L200: =100-(J200+K200+M200) -> 0.2000421569 | M200: =IF((I202+M202)>100,M202*100/(I202+M202),M202) -> 0.2006830881 | N200: =IF((N202+R202)>100,N202*100/(N202+R202),N202) -> 100 | O200: =N200*AVERAGEIF(O205:O216,">0")/100 -> 99.75390851 | P200: =N200*(100-AVERAGEIF(O205:O216,">0"))/100 -> 0.2460914907 | Q200: =100-(O200+P200+R200) -> 0 | R200: =IF((N202+R202)>100,R202*100/(N202+R202),R202) -> 0 | S200: =IF((S202+W202)>100,S202*100/(S202+W202),S202) -> 99.98494201 | T200: =S200*AVERAGEIF(T205:T216,">0")/100 -> 99.73012537 | U200: =S200*(100-AVERAGEIF(T205:T216,">0"))/100 -> 0.254816639 | V200: =100-(T200+U200+W200) -> 0 | W200: =IF((S202+W202)>100,W202*100/(S202+W202),W202) -> 0.01505798781 | X200: =IF((X202+AB202)>100,X202*100/(X202+AB202),X202) -> 99.95696512 | Y200: =X200*AVERAGEIF(Y205:Y216,">0")/100 -> 99.68965008 | Z200: =X200*(100-AVERAGEIF(Y205:Y216,">0"))/100 -> 0.2673150393 | AA200: =100-(Y200+Z200+AB200) -> 0.02351610669 | AB200: =IF((X202+AB202)>100,AB202*100/(X202+AB202),AB202) -> 0.01951877248
A201: Regression period: | C201: =MinRegYear(C199,C205:C216) -> 2001 | D201: =IF(MAX(C205:C216)-MIN(C205:C216)<5,AVERAGEIF(C205:C216,">0",D205:D216), IF(FORECAST($C201,D$205:D$216,$C$205:$C$216)<0,0, IF(FORECAST($C201,D$205:D$216,$C$205:$C$216)>100,100, FORECAST($C201,D$205:D$216,$C$205:$C$216)))) -> 72.79042512 | H201: =IF(MAX(C205:C216)-MIN(C205:C216)<5,AVERAGEIF(C205:C216,">0",H205:H216), IF(FORECAST($C201,H$205:H$216,$C$205:$C$216)<0,0, IF(FORECAST($C201,H$205:H$216,$C$205:$C$216)>100,100, FORECAST($C201,H$205:H$216,$C$205:$C$216)))) -> 1.82346567 | I201: =IF(MAX(C205:C216)-MIN(C205:C216)<5,AVERAGEIF(C205:C216,">0",I205:I216), IF(FORECAST($C201,I$205:I$216,$C$205:$C$216)<0,0, IF(FORECAST($C201,I$205:I$216,$C$205:$C$216)>100,100, FORECAST($C201,I$205:I$216,$C$205:$C$216)))) -> 77.64794399 | M201: =IF(MAX(C205:C216)-MIN(C205:C216)<5,AVERAGEIF(C205:C216,">0",M205:M216), IF(FORECAST($C201,M$205:M$216,$C$205:$C$216)<0,0, IF(FORECAST($C201,M$205:M$216,$C$205:$C$216)>100,100, FORECAST($C201,M$205:M$216,$C$205:$C$216)))) -> 0.5670663712 | N201: =IF(MAX(C205:C216)-MIN(C205:C216)<5,AVERAGEIF(C205:C216,">0",N205:N216), IF(FORECAST($C201,N$205:N$216,$C$205:$C$216)<0,0, IF(FORECAST($C201,N$205:N$216,$C$205:$C$216)>100,100, FORECAST($C201,N$205:N$216,$C$205:$C$216)))) -> 84.09838451 | R201: =IF(MAX(C205:C216)-MIN(C205:C216)<5,AVERAGEIF(C205:C216,">0",R205:R216), IF(FORECAST($C201,R$205:R$216,$C$205:$C$216)<0,0, IF(FORECAST($C201,R$205:R$216,$C$205:$C$216)>100,100, FORECAST($C201,R$205:R$216,$C$205:$C$216)))) -> 0.4291541908 | S201: =IF(MAX(C205:C216)-MIN(C205:C216)<5,AVERAGEIF(C205:C216,">0",S205:S216), IF(FORECAST($C201,S$205:S$216,$C$205:$C$216)<0,0, IF(FORECAST($C201,S$205:S$216,$C$205:$C$216)>100,100, FORECAST($C201,S$205:S$216,$C$205:$C$216)))) -> 87.15468492 | W201: =IF(MAX(C205:C216)-MIN(C205:C216)<5,AVERAGEIF(C205:C216,">0",W205:W216), IF(FORECAST($C201,W$205:W$216,$C$205:$C$216)<0,0, IF(FORECAST($C201,W$205:W$216,$C$205:$C$216)>100,100, FORECAST($C201,W$205:W$216,$C$205:$C$216)))) -> 0.2484801493 | X201: =IF(MAX(C205:C216)-MIN(C205:C216)<5,AVERAGEIF(C205:C216,">0",X205:X216), IF(FORECAST($C201,X$205:X$216,$C$205:$C$216)<0,0, IF(FORECAST($C201,X$205:X$216,$C$205:$C$216)>100,100, FORECAST($C201,X$205:X$216,$C$205:$C$216)))) -> 92.3643817 | AB201: =IF(MAX(C205:C216)-MIN(C205:C216)<5,AVERAGEIF(C205:C216,">0",AB205:AB216), IF(FORECAST($C201,AB$205:AB$216,$C$205:$C$216)<0,0, IF(FORECAST($C201,AB$205:AB$216,$C$205:$C$216)>100,100, FORECAST($C201,AB$205:AB$216,$C$205:$C$216)))) -> 0
C202: =MaxRegYear(C200,C205:C216) -> 2019 | D202: =IF(MAX(C205:C216)-MIN(C205:C216)<5,AVERAGEIF(C205:C216,">0",D205:D216), IF(FORECAST($C202,D$205:D$216,$C$205:$C$216)<0,0, IF(FORECAST($C202,D$205:D$216,$C$205:$C$216)>100,100, FORECAST($C202,D$205:D$216,$C$205:$C$216)))) -> 94.28779804 | H202: =IF(MAX(C205:C216)-MIN(C205:C216)<5,AVERAGEIF(C205:C216,">0",H205:H216), IF(FORECAST($C202,H$205:H$216,$C$205:$C$216)<0,0, IF(FORECAST($C202,H$205:H$216,$C$205:$C$216)>100,100, FORECAST($C202,H$205:H$216,$C$205:$C$216)))) -> 1.00874661 | I202: =IF(MAX(C205:C216)-MIN(C205:C216)<5,AVERAGEIF(C205:C216,">0",I205:I216), IF(FORECAST($C202,I$205:I$216,$C$205:$C$216)<0,0, IF(FORECAST($C202,I$205:I$216,$C$205:$C$216)>100,100, FORECAST($C202,I$205:I$216,$C$205:$C$216)))) -> 99.59927475 | M202: =IF(MAX(C205:C216)-MIN(C205:C216)<5,AVERAGEIF(C205:C216,">0",M205:M216), IF(FORECAST($C202,M$205:M$216,$C$205:$C$216)<0,0, IF(FORECAST($C202,M$205:M$216,$C$205:$C$216)>100,100, FORECAST($C202,M$205:M$216,$C$205:$C$216)))) -> 0.2006830881 | N202: =IF(MAX(C205:C216)-MIN(C205:C216)<5,AVERAGEIF(C205:C216,">0",N205:N216), IF(FORECAST($C202,N$205:N$216,$C$205:$C$216)<0,0, IF(FORECAST($C202,N$205:N$216,$C$205:$C$216)>100,100, FORECAST($C202,N$205:N$216,$C$205:$C$216)))) -> 100 | R202: =IF(MAX(C205:C216)-MIN(C205:C216)<5,AVERAGEIF(C205:C216,">0",R205:R216), IF(FORECAST($C202,R$205:R$216,$C$205:$C$216)<0,0, IF(FORECAST($C202,R$205:R$216,$C$205:$C$216)>100,100, FORECAST($C202,R$205:R$216,$C$205:$C$216)))) -> 0 | S202: =IF(MAX(C205:C216)-MIN(C205:C216)<5,AVERAGEIF(C205:C216,">0",S205:S216), IF(FORECAST($C202,S$205:S$216,$C$205:$C$216)<0,0, IF(FORECAST($C202,S$205:S$216,$C$205:$C$216)>100,100, FORECAST($C202,S$205:S$216,$C$205:$C$216)))) -> 100 | W202: =IF(MAX(C205:C216)-MIN(C205:C216)<5,AVERAGEIF(C205:C216,">0",W205:W216), IF(FORECAST($C202,W$205:W$216,$C$205:$C$216)<0,0, IF(FORECAST($C202,W$205:W$216,$C$205:$C$216)>100,100, FORECAST($C202,W$205:W$216,$C$205:$C$216)))) -> 0.01506025559 | X202: =IF(MAX(C205:C216)-MIN(C205:C216)<5,AVERAGEIF(C205:C216,">0",X205:X216), IF(FORECAST($C202,X$205:X$216,$C$205:$C$216)<0,0, IF(FORECAST($C202,X$205:X$216,$C$205:$C$216)>100,100, FORECAST($C202,X$205:X$216,$C$205:$C$216)))) -> 99.95696512 | AB202: =IF(MAX(C205:C216)-MIN(C205:C216)<5,AVERAGEIF(C205:C216,">0",AB205:AB216), IF(FORECAST($C202,AB$205:AB$216,$C$205:$C$216)<0,0, IF(FORECAST($C202,AB$205:AB$216,$C$205:$C$216)>100,100, FORECAST($C202,AB$205:AB$216,$C$205:$C$216)))) -> 0.01951877248
B204: Survey | C204: Year | D204: Improved | E204: % Improved < = 30min | H204: Surface water | I204: Improved | J204: % Improved < = 30min | M204: Surface water | N204: Improved | O204: % Improved < = 30min | R204: Surface water | S204: Improved | T204: % Improved < = 30min | W204: Surface water | X204: Improved | Y204: % Improved < = 30min | AB204: Surface water
B205: DHS03 | C205: 2003 | D205: =IF(ISERROR(INDIRECT(CONCATENATE($B205,"!H16"))),"",INDIRECT(CONCATENATE($B205,"!H16"))) -> 74.52363867 | E205: =IF(ISERROR(INDIRECT(CONCATENATE($B205,"!H23"))),"",INDIRECT(CONCATENATE($B205,"!H23"))) -> 99.89215225 | H205: =IF(ISERROR(INDIRECT(CONCATENATE($B205,"!H21"))),"",INDIRECT(CONCATENATE($B205,"!H21"))) -> 0.9597266807 | I205: =IF(ISERROR(INDIRECT(CONCATENATE($B205,"!I16"))),"",INDIRECT(CONCATENATE($B205,"!I16"))) -> 79.81893715 | J205: =IF(ISERROR(INDIRECT(CONCATENATE($B205,"!I23"))),"",INDIRECT(CONCATENATE($B205,"!I23"))) -> 99.99376399 | M205: =IF(ISERROR(INDIRECT(CONCATENATE($B205,"!I21"))),"",INDIRECT(CONCATENATE($B205,"!I21"))) -> 0.1174863884 | N205: =IF(ISERROR(INDIRECT(CONCATENATE($B205,"!J16"))),"",INDIRECT(CONCATENATE($B205,"!J16"))) -> 84.7292792 | O205: =IF(ISERROR(INDIRECT(CONCATENATE($B205,"!J23"))),"",INDIRECT(CONCATENATE($B205,"!J23"))) -> 99.90797728 | R205: =IF(ISERROR(INDIRECT(CONCATENATE($B205,"!J21"))),"",INDIRECT(CONCATENATE($B205,"!J21"))) -> 0.2912996573 | S205: =IF(ISERROR(INDIRECT(CONCATENATE($B205,"!K16"))),"",INDIRECT(CONCATENATE($B205,"!K16"))) -> 88.46672454 | T205: =IF(ISERROR(INDIRECT(CONCATENATE($B205,"!K23"))),"",INDIRECT(CONCATENATE($B205,"!K23"))) -> 99.88140939 | W205: =IF(ISERROR(INDIRECT(CONCATENATE($B205,"!K21"))),"",INDIRECT(CONCATENATE($B205,"!K21"))) -> 0.06244677135 | X205: =IF(ISERROR(INDIRECT(CONCATENATE($B205,"!L16"))),"",INDIRECT(CONCATENATE($B205,"!L16"))) -> 94.13793771 | Y205: =IF(ISERROR(INDIRECT(CONCATENATE($B205,"!L23"))),"",INDIRECT(CONCATENATE($B205,"!L23"))) -> 99.75035574 | AB205: =IF(ISERROR(INDIRECT(CONCATENATE($B205,"!L221"))),"",INDIRECT(CONCATENATE($B205,"!L21"))) -> 0.006433605585
B206: DHS07 | C206: 2007 | D206: 81.49136267 | E206: 98.55742246 | H206: 2.73242225 | I206: 85.58869448 | J206: 99.58437458 | M206: 1.126195361 | N206: 91.3706586 | O206: 99.61050398 | R206: 0.4405740835 | S206: 92.01945065 | T206: 99.25680078 | W206: 0.4399461542 | X206: 93.75476217 | Y206: 99.58173802 | AB206: 0
B207: DHS12 | C207: 2012 | D207: 84.69248904 | E207: 99.3 | H207: 1.129523619 | I207: 90.56588772 | J207: 99.9 | M207: 0.1254900168 | N207: 93.64933211 | O207: 99.8 | R207: 0.01954407816 | S207: 95.02261965 | T207: 99.9 | W207: 0.01556332225 | X207: 96.68143536 | Y207: 99.7 | AB207: 0.008800382973
B208: DHS17 | C208: 2017 | D208: 92.25465744 | E208: 99.88693533 | H208: 0.8880141802 | I208: 97.30139977 | J208: 99.94262185 | M208: 0.1866817797 | N208: 98.29356994 | O208: 99.69715278 | R208: 0.01950993238 | S208: 99.14110566 | T208: 99.94236976 | W208: 0.02209233387 | X208: 99.64674821 | Y208: 99.89818573 | AB208: 0.02066969152
B218: =CONCATENATE("Urban use of drinking water sources, ",C199,"–",C200) -> Urban use of drinking water sources, 2000–2020 | S218: Data points used for regression
E253: =IF(ISERROR(INDIRECT(CONCATENATE($B253,"!M18"))),"",INDIRECT(CONCATENATE($B253,"!M18"))) ->  | F253: =IF(ISERROR(INDIRECT(CONCATENATE($B253,"!M19"))),"",INDIRECT(CONCATENATE($B253,"!M19"))) ->  | G253: =IF(ISERROR(INDIRECT(CONCATENATE($B253,"!M20"))),"",INDIRECT(CONCATENATE($B253,"!M20"))) ->  | H253: =IF(ISERROR(INDIRECT(CONCATENATE($B253,"!M21"))),"",INDIRECT(CONCATENATE($B253,"!M21"))) ->  | J253: =IF(ISERROR(INDIRECT(CONCATENATE($B253,"!N18"))),"",INDIRECT(CONCATENATE($B253,"!N18"))) ->  | K253: =IF(ISERROR(INDIRECT(CONCATENATE($B253,"!N19"))),"",INDIRECT(CONCATENATE($B253,"!N19"))) ->  | L253: =IF(ISERROR(INDIRECT(CONCATENATE($B253,"!N20"))),"",INDIRECT(CONCATENATE($B253,"!N20"))) ->  | M253: =IF(ISERROR(INDIRECT(CONCATENATE($B253,"!N21"))),"",INDIRECT(CONCATENATE($B253,"!N21"))) ->  | O253: =IF(ISERROR(INDIRECT(CONCATENATE($B253,"!O18"))),"",INDIRECT(CONCATENATE($B253,"!O18"))) ->  | P253: =IF(ISERROR(INDIRECT(CONCATENATE($B253,"!O19"))),"",INDIRECT(CONCATENATE($B253,"!O19"))) ->  | Q253: =IF(ISERROR(INDIRECT(CONCATENATE($B253,"!O20"))),"",INDIRECT(CONCATENATE($B253,"!O20"))) ->  | R253: =IF(ISERROR(INDIRECT(CONCATENATE($B253,"!O21"))),"",INDIRECT(CONCATENATE($B253,"!O21"))) ->  | T253: =IF(ISERROR(INDIRECT(CONCATENATE($B253,"!P18"))),"",INDIRECT(CONCATENATE($B253,"!P18"))) ->  | U253: =IF(ISERROR(INDIRECT(CONCATENATE($B253,"!P19"))),"",INDIRECT(CONCATENATE($B253,"!P19"))) ->  | V253: =IF(ISERROR(INDIRECT(CONCATENATE($B253,"!P20"))),"",INDIRECT(CONCATENATE($B253,"!P20"))) ->  | W253: =IF(ISERROR(INDIRECT(CONCATENATE($B253,"!P21"))),"",INDIRECT(CONCATENATE($B253,"!P21"))) ->  | Y253: =IF(ISERROR(INDIRECT(CONCATENATE($B253,"!Q18"))),"",INDIRECT(CONCATENATE($B253,"!Q18"))) ->  | Z253: =IF(ISERROR(INDIRECT(CONCATENATE($B253,"!Q19"))),"",INDIRECT(CONCATENATE($B253,"!Q19"))) ->  | AA253: =IF(ISERROR(INDIRECT(CONCATENATE($B253,"!Q20"))),"",INDIRECT(CONCATENATE($B253,"!Q20"))) ->  | AB253: =IF(ISERROR(INDIRECT(CONCATENATE($B253,"!Q21"))),"",INDIRECT(CONCATENATE($B253,"!Q1"))) -> 
E254: =IF(ISERROR(INDIRECT(CONCATENATE($B254,"!M18"))),"",INDIRECT(CONCATENATE($B254,"!M18"))) ->  | F254: =IF(ISERROR(INDIRECT(CONCATENATE($B254,"!M19"))),"",INDIRECT(CONCATENATE($B254,"!M19"))) ->  | G254: =IF(ISERROR(INDIRECT(CONCATENATE($B254,"!M20"))),"",INDIRECT(CONCATENATE($B254,"!M20"))) ->  | H254: =IF(ISERROR(INDIRECT(CONCATENATE($B254,"!M21"))),"",INDIRECT(CONCATENATE($B254,"!M21"))) ->  | J254: =IF(ISERROR(INDIRECT(CONCATENATE($B254,"!N18"))),"",INDIRECT(CONCATENATE($B254,"!N18"))) ->  | K254: =IF(ISERROR(INDIRECT(CONCATENATE($B254,"!N19"))),"",INDIRECT(CONCATENATE($B254,"!N19"))) ->  | L254: =IF(ISERROR(INDIRECT(CONCATENATE($B254,"!N20"))),"",INDIRECT(CONCATENATE($B254,"!N20"))) ->  | M254: =IF(ISERROR(INDIRECT(CONCATENATE($B254,"!N21"))),"",INDIRECT(CONCATENATE($B254,"!N21"))) ->  | O254: =IF(ISERROR(INDIRECT(CONCATENATE($B254,"!O18"))),"",INDIRECT(CONCATENATE($B254,"!O18"))) ->  | P254: =IF(ISERROR(INDIRECT(CONCATENATE($B254,"!O19"))),"",INDIRECT(CONCATENATE($B254,"!O19"))) ->  | Q254: =IF(ISERROR(INDIRECT(CONCATENATE($B254,"!O20"))),"",INDIRECT(CONCATENATE($B254,"!O20"))) ->  | R254: =IF(ISERROR(INDIRECT(CONCATENATE($B254,"!O21"))),"",INDIRECT(CONCATENATE($B254,"!O21"))) ->  | T254: =IF(ISERROR(INDIRECT(CONCATENATE($B254,"!P18"))),"",INDIRECT(CONCATENATE($B254,"!P18"))) ->  | U254: =IF(ISERROR(INDIRECT(CONCATENATE($B254,"!P19"))),"",INDIRECT(CONCATENATE($B254,"!P19"))) ->  | V254: =IF(ISERROR(INDIRECT(CONCATENATE($B254,"!P20"))),"",INDIRECT(CONCATENATE($B254,"!P20"))) ->  | W254: =IF(ISERROR(INDIRECT(CONCATENATE($B254,"!P21"))),"",INDIRECT(CONCATENATE($B254,"!P21"))) ->  | Y254: =IF(ISERROR(INDIRECT(CONCATENATE($B254,"!Q18"))),"",INDIRECT(CONCATENATE($B254,"!Q18"))) ->  | Z254: =IF(ISERROR(INDIRECT(CONCATENATE($B254,"!Q19"))),"",INDIRECT(CONCATENATE($B254,"!Q19"))) ->  | AA254: =IF(ISERROR(INDIRECT(CONCATENATE($B254,"!Q20"))),"",INDIRECT(CONCATENATE($B254,"!Q20"))) ->  | AB254: =IF(ISERROR(INDIRECT(CONCATENATE($B254,"!Q21"))),"",INDIRECT(CONCATENATE($B254,"!Q1"))) -> 
E255: =IF(ISERROR(INDIRECT(CONCATENATE($B255,"!M18"))),"",INDIRECT(CONCATENATE($B255,"!M18"))) ->  | F255: =IF(ISERROR(INDIRECT(CONCATENATE($B255,"!M19"))),"",INDIRECT(CONCATENATE($B255,"!M19"))) ->  | G255: =IF(ISERROR(INDIRECT(CONCATENATE($B255,"!M20"))),"",INDIRECT(CONCATENATE($B255,"!M20"))) ->  | H255: =IF(ISERROR(INDIRECT(CONCATENATE($B255,"!M21"))),"",INDIRECT(CONCATENATE($B255,"!M21"))) ->  | J255: =IF(ISERROR(INDIRECT(CONCATENATE($B255,"!N18"))),"",INDIRECT(CONCATENATE($B255,"!N18"))) ->  | K255: =IF(ISERROR(INDIRECT(CONCATENATE($B255,"!N19"))),"",INDIRECT(CONCATENATE($B255,"!N19"))) ->  | L255: =IF(ISERROR(INDIRECT(CONCATENATE($B255,"!N20"))),"",INDIRECT(CONCATENATE($B255,"!N20"))) ->  | M255: =IF(ISERROR(INDIRECT(CONCATENATE($B255,"!N21"))),"",INDIRECT(CONCATENATE($B255,"!N21"))) ->  | O255: =IF(ISERROR(INDIRECT(CONCATENATE($B255,"!O18"))),"",INDIRECT(CONCATENATE($B255,"!O18"))) ->  | P255: =IF(ISERROR(INDIRECT(CONCATENATE($B255,"!O19"))),"",INDIRECT(CONCATENATE($B255,"!O19"))) ->  | Q255: =IF(ISERROR(INDIRECT(CONCATENATE($B255,"!O20"))),"",INDIRECT(CONCATENATE($B255,"!O20"))) ->  | R255: =IF(ISERROR(INDIRECT(CONCATENATE($B255,"!O21"))),"",INDIRECT(CONCATENATE($B255,"!O21"))) ->  | T255: =IF(ISERROR(INDIRECT(CONCATENATE($B255,"!P18"))),"",INDIRECT(CONCATENATE($B255,"!P18"))) ->  | U255: =IF(ISERROR(INDIRECT(CONCATENATE($B255,"!P19"))),"",INDIRECT(CONCATENATE($B255,"!P19"))) ->  | V255: =IF(ISERROR(INDIRECT(CONCATENATE($B255,"!P20"))),"",INDIRECT(CONCATENATE($B255,"!P20"))) ->  | W255: =IF(ISERROR(INDIRECT(CONCATENATE($B255,"!P21"))),"",INDIRECT(CONCATENATE($B255,"!P21"))) ->  | Y255: =IF(ISERROR(INDIRECT(CONCATENATE($B255,"!Q18"))),"",INDIRECT(CONCATENATE($B255,"!Q18"))) ->  | Z255: =IF(ISERROR(INDIRECT(CONCATENATE($B255,"!Q19"))),"",INDIRECT(CONCATENATE($B255,"!Q19"))) ->  | AA255: =IF(ISERROR(INDIRECT(CONCATENATE($B255,"!Q20"))),"",INDIRECT(CONCATENATE($B255,"!Q20"))) ->  | AB255: =IF(ISERROR(INDIRECT(CONCATENATE($B255,"!Q21"))),"",INDIRECT(CONCATENATE($B255,"!Q1"))) -> 
E256: =IF(ISERROR(INDIRECT(CONCATENATE($B256,"!M18"))),"",INDIRECT(CONCATENATE($B256,"!M18"))) ->  | F256: =IF(ISERROR(INDIRECT(CONCATENATE($B256,"!M19"))),"",INDIRECT(CONCATENATE($B256,"!M19"))) ->  | G256: =IF(ISERROR(INDIRECT(CONCATENATE($B256,"!M20"))),"",INDIRECT(CONCATENATE($B256,"!M20"))) ->  | H256: =IF(ISERROR(INDIRECT(CONCATENATE($B256,"!M21"))),"",INDIRECT(CONCATENATE($B256,"!M21"))) ->  | J256: =IF(ISERROR(INDIRECT(CONCATENATE($B256,"!N18"))),"",INDIRECT(CONCATENATE($B256,"!N18"))) ->  | K256: =IF(ISERROR(INDIRECT(CONCATENATE($B256,"!N19"))),"",INDIRECT(CONCATENATE($B256,"!N19"))) ->  | L256: =IF(ISERROR(INDIRECT(CONCATENATE($B256,"!N20"))),"",INDIRECT(CONCATENATE($B256,"!N20"))) ->  | M256: =IF(ISERROR(INDIRECT(CONCATENATE($B256,"!N21"))),"",INDIRECT(CONCATENATE($B256,"!N21"))) ->  | O256: =IF(ISERROR(INDIRECT(CONCATENATE($B256,"!O18"))),"",INDIRECT(CONCATENATE($B256,"!O18"))) ->  | P256: =IF(ISERROR(INDIRECT(CONCATENATE($B256,"!O19"))),"",INDIRECT(CONCATENATE($B256,"!O19"))) ->  | Q256: =IF(ISERROR(INDIRECT(CONCATENATE($B256,"!O20"))),"",INDIRECT(CONCATENATE($B256,"!O20"))) ->  | R256: =IF(ISERROR(INDIRECT(CONCATENATE($B256,"!O21"))),"",INDIRECT(CONCATENATE($B256,"!O21"))) ->  | T256: =IF(ISERROR(INDIRECT(CONCATENATE($B256,"!P18"))),"",INDIRECT(CONCATENATE($B256,"!P18"))) ->  | U256: =IF(ISERROR(INDIRECT(CONCATENATE($B256,"!P19"))),"",INDIRECT(CONCATENATE($B256,"!P19"))) ->  | V256: =IF(ISERROR(INDIRECT(CONCATENATE($B256,"!P20"))),"",INDIRECT(CONCATENATE($B256,"!P20"))) ->  | W256: =IF(ISERROR(INDIRECT(CONCATENATE($B256,"!P21"))),"",INDIRECT(CONCATENATE($B256,"!P21"))) ->  | Y256: =IF(ISERROR(INDIRECT(CONCATENATE($B256,"!Q18"))),"",INDIRECT(CONCATENATE($B256,"!Q18"))) ->  | Z256: =IF(ISERROR(INDIRECT(CONCATENATE($B256,"!Q19"))),"",INDIRECT(CONCATENATE($B256,"!Q19"))) ->  | AA256: =IF(ISERROR(INDIRECT(CONCATENATE($B256,"!Q20"))),"",INDIRECT(CONCATENATE($B256,"!Q20"))) ->  | AB256: =IF(ISERROR(INDIRECT(CONCATENATE($B256,"!Q21"))),"",INDIRECT(CONCATENATE($B256,"!Q1"))) -> 
E257: =IF(ISERROR(INDIRECT(CONCATENATE($B257,"!M18"))),"",INDIRECT(CONCATENATE($B257,"!M18"))) ->  | F257: =IF(ISERROR(INDIRECT(CONCATENATE($B257,"!M19"))),"",INDIRECT(CONCATENATE($B257,"!M19"))) ->  | G257: =IF(ISERROR(INDIRECT(CONCATENATE($B257,"!M20"))),"",INDIRECT(CONCATENATE($B257,"!M20"))) ->  | H257: =IF(ISERROR(INDIRECT(CONCATENATE($B257,"!M21"))),"",INDIRECT(CONCATENATE($B257,"!M21"))) ->  | J257: =IF(ISERROR(INDIRECT(CONCATENATE($B257,"!N18"))),"",INDIRECT(CONCATENATE($B257,"!N18"))) ->  | K257: =IF(ISERROR(INDIRECT(CONCATENATE($B257,"!N19"))),"",INDIRECT(CONCATENATE($B257,"!N19"))) ->  | L257: =IF(ISERROR(INDIRECT(CONCATENATE($B257,"!N20"))),"",INDIRECT(CONCATENATE($B257,"!N20"))) ->  | M257: =IF(ISERROR(INDIRECT(CONCATENATE($B257,"!N21"))),"",INDIRECT(CONCATENATE($B257,"!N21"))) ->  | O257: =IF(ISERROR(INDIRECT(CONCATENATE($B257,"!O18"))),"",INDIRECT(CONCATENATE($B257,"!O18"))) ->  | P257: =IF(ISERROR(INDIRECT(CONCATENATE($B257,"!O19"))),"",INDIRECT(CONCATENATE($B257,"!O19"))) ->  | Q257: =IF(ISERROR(INDIRECT(CONCATENATE($B257,"!O20"))),"",INDIRECT(CONCATENATE($B257,"!O20"))) ->  | R257: =IF(ISERROR(INDIRECT(CONCATENATE($B257,"!O21"))),"",INDIRECT(CONCATENATE($B257,"!O21"))) ->  | T257: =IF(ISERROR(INDIRECT(CONCATENATE($B257,"!P18"))),"",INDIRECT(CONCATENATE($B257,"!P18"))) ->  | U257: =IF(ISERROR(INDIRECT(CONCATENATE($B257,"!P19"))),"",INDIRECT(CONCATENATE($B257,"!P19"))) ->  | V257: =IF(ISERROR(INDIRECT(CONCATENATE($B257,"!P20"))),"",INDIRECT(CONCATENATE($B257,"!P20"))) ->  | W257: =IF(ISERROR(INDIRECT(CONCATENATE($B257,"!P21"))),"",INDIRECT(CONCATENATE($B257,"!P21"))) ->  | Y257: =IF(ISERROR(INDIRECT(CONCATENATE($B257,"!Q18"))),"",INDIRECT(CONCATENATE($B257,"!Q18"))) ->  | Z257: =IF(ISERROR(INDIRECT(CONCATENATE($B257,"!Q19"))),"",INDIRECT(CONCATENATE($B257,"!Q19"))) ->  | AA257: =IF(ISERROR(INDIRECT(CONCATENATE($B257,"!Q20"))),"",INDIRECT(CONCATENATE($B257,"!Q20"))) ->  | AB257: =IF(ISERROR(INDIRECT(CONCATENATE($B257,"!Q21"))),"",INDIRECT(CONCATENATE($B257,"!Q1"))) -> 
A297: RURAL | D297: Poorest | I297: Poor | N297: Middle | S297: Rich | X297: Richest
D298: Improved | E298: Basic | F298: Limited | G298: Unimproved | H298: Surface water | I298: Improved | J298: Basic | K298: Limited | L298: Unimproved | M298: Surface water | N298: Improved | O298: Basic | P298: Limited | Q298: Unimproved | R298: Surface water | S298: Improved | T298: Basic | U298: Limited | V298: Unimproved | W298: Surface water | X298: Improved | Y298: Basic | Z298: Limited | AA298: Unimproved | AB298: Surface water
A299: Forecast period: | C299: 2000 | D299: =IF((D301+H301)>100,D301*100/(D301+H301),D301) -> 42.86523331 | E299: =D299*AVERAGEIF(E305:E316,">0")/100 -> 40.72429267 | F299: =D299*(100-AVERAGEIF(E305:E316,">0"))/100 -> 2.140940641 | G299: =100-(E299+F299+H299) -> 41.31952301 | H299: =IF((D301+H301)>100,H301*100/(D301+H301),H301) -> 15.81524368 | I299: =IF((I301+M301)>100,I301*100/(I301+M301),I301) -> 54.78952771 | J299: =I299*AVERAGEIF(J305:J316,">0")/100 -> 53.77702308 | K299: =I299*(100-AVERAGEIF(J305:J316,">0"))/100 -> 1.012504634 | L299: =100-(J299+K299+M299) -> 37.30482268 | M299: =IF((I301+M301)>100,M301*100/(I301+M301),M301) -> 7.905649603 | N299: =IF((N301+R301)>100,N301*100/(N301+R301),N301) -> 57.99305815 | O299: =N299*AVERAGEIF(O305:O316,">0")/100 -> 56.73403306 | P299: =N299*(100-AVERAGEIF(O305:O316,">0"))/100 -> 1.259025094 | Q299: =100-(O299+P299+R299) -> 37.60541056 | R299: =IF((N301+R301)>100,R301*100/(N301+R301),R301) -> 4.401531287 | S299: =IF((S301+W301)>100,S301*100/(S301+W301),S301) -> 66.72361126 | T299: =S299*AVERAGEIF(T305:T316,">0")/100 -> 65.62408081 | U299: =S299*(100-AVERAGEIF(T305:T316,">0"))/100 -> 1.099530453 | V299: =100-(T299+U299+W299) -> 30.64645082 | W299: =IF((S301+W301)>100,W301*100/(S301+W301),W301) -> 2.62993792 | X299: =IF((X301+AB301)>100,X301*100/(X301+AB301),X301) -> 73.00680108 | Y299: =X299*AVERAGEIF(Y305:Y316,">0")/100 -> 72.53761174 | Z299: =X299*(100-AVERAGEIF(Y305:Y316,">0"))/100 -> 0.4691893337 | AA299: =100-(Y299+Z299+AB299) -> 24.26334524 | AB299: =IF((X301+AB301)>100,AB301*100/(X301+AB301),AB301) -> 2.729853678
C300: 2020 | D300: =IF((D302+H302)>100,D302*100/(D302+H302),D302) -> 69.13065948 | E300: =D300*AVERAGEIF(E305:E316,">0")/100 -> 65.67786973 | F300: =D300*(100-AVERAGEIF(E305:E316,">0"))/100 -> 3.452789755 | G300: =100-(E300+F300+H300) -> 22.10639539 | H300: =IF((D302+H302)>100,H302*100/(D302+H302),H302) -> 8.76294513 | I300: =IF((I302+M302)>100,I302*100/(I302+M302),I302) -> 82.19486304 | J300: =I300*AVERAGEIF(J305:J316,">0")/100 -> 80.67591073 | K300: =I300*(100-AVERAGEIF(J305:J316,">0"))/100 -> 1.518952311 | L300: =100-(J300+K300+M300) -> 13.99176119 | M300: =IF((I302+M302)>100,M302*100/(I302+M302),M302) -> 3.813375773 | N300: =IF((N302+R302)>100,N302*100/(N302+R302),N302) -> 90.85942965 | O300: =N300*AVERAGEIF(O305:O316,">0")/100 -> 88.88687801 | P300: =N300*(100-AVERAGEIF(O305:O316,">0"))/100 -> 1.97255164 | Q300: =100-(O300+P300+R300) -> 7.50362492 | R300: =IF((N302+R302)>100,R302*100/(N302+R302),R302) -> 1.63694543 | S300: =IF((S302+W302)>100,S302*100/(S302+W302),S302) -> 93.39290142 | T300: =S300*AVERAGEIF(T305:T316,">0")/100 -> 91.8538909 | U300: =S300*(100-AVERAGEIF(T305:T316,">0"))/100 -> 1.539010513 | V300: =100-(T300+U300+W300) -> 5.68693981 | W300: =IF((S302+W302)>100,W302*100/(S302+W302),W302) -> 0.9201587717 | X300: =IF((X302+AB302)>100,X302*100/(X302+AB302),X302) -> 98.26355999 | Y300: =X300*AVERAGEIF(Y305:Y316,">0")/100 -> 97.63205424 | Z300: =X300*(100-AVERAGEIF(Y305:Y316,">0"))/100 -> 0.6315057441 | AA300: =100-(Y300+Z300+AB300) -> 1.736440013 | AB300: =IF((X302+AB302)>100,AB302*100/(X302+AB302),AB302) -> 0
A301: Regression period: | C301: =MinRegYear(C299,C305:C316) -> 2001 | D301: =IF(MAX(C305:C316)-MIN(C305:C316)<5,AVERAGEIF(C305:C316,">0",D305:D316), IF(FORECAST($C301,D$305:D$316,$C$305:$C$316)<0,0, IF(FORECAST($C301,D$305:D$316,$C$305:$C$316)>100,100, FORECAST($C301,D$305:D$316,$C$305:$C$316)))) -> 42.86523331 | H301: =IF(MAX(C305:C316)-MIN(C305:C316)<5,AVERAGEIF(C305:C316,">0",H305:H316), IF(FORECAST($C301,H$305:H$316,$C$305:$C$316)<0,0, IF(FORECAST($C301,H$305:H$316,$C$305:$C$316)>100,100, FORECAST($C301,H$305:H$316,$C$305:$C$316)))) -> 15.81524368 | I301: =IF(MAX(C305:C316)-MIN(C305:C316)<5,AVERAGEIF(C305:C316,">0",I305:I316), IF(FORECAST($C301,I$305:I$316,$C$305:$C$316)<0,0, IF(FORECAST($C301,I$305:I$316,$C$305:$C$316)>100,100, FORECAST($C301,I$305:I$316,$C$305:$C$316)))) -> 54.78952771 | M301: =IF(MAX(C305:C316)-MIN(C305:C316)<5,AVERAGEIF(C305:C316,">0",M305:M316), IF(FORECAST($C301,M$305:M$316,$C$305:$C$316)<0,0, IF(FORECAST($C301,M$305:M$316,$C$305:$C$316)>100,100, FORECAST($C301,M$305:M$316,$C$305:$C$316)))) -> 7.905649603 | N301: =IF(MAX(C305:C316)-MIN(C305:C316)<5,AVERAGEIF(C305:C316,">0",N305:N316), IF(FORECAST($C301,N$305:N$316,$C$305:$C$316)<0,0, IF(FORECAST($C301,N$305:N$316,$C$305:$C$316)>100,100, FORECAST($C301,N$305:N$316,$C$305:$C$316)))) -> 57.99305815 | R301: =IF(MAX(C305:C316)-MIN(C305:C316)<5,AVERAGEIF(C305:C316,">0",R305:R316), IF(FORECAST($C301,R$305:R$316,$C$305:$C$316)<0,0, IF(FORECAST($C301,R$305:R$316,$C$305:$C$316)>100,100, FORECAST($C301,R$305:R$316,$C$305:$C$316)))) -> 4.401531287 | S301: =IF(MAX(C305:C316)-MIN(C305:C316)<5,AVERAGEIF(C305:C316,">0",S305:S316), IF(FORECAST($C301,S$305:S$316,$C$305:$C$316)<0,0, IF(FORECAST($C301,S$305:S$316,$C$305:$C$316)>100,100, FORECAST($C301,S$305:S$316,$C$305:$C$316)))) -> 66.72361126 | W301: =IF(MAX(C305:C316)-MIN(C305:C316)<5,AVERAGEIF(C305:C316,">0",W305:W316), IF(FORECAST($C301,W$305:W$316,$C$305:$C$316)<0,0, IF(FORECAST($C301,W$305:W$316,$C$305:$C$316)>100,100, FORECAST($C301,W$305:W$316,$C$305:$C$316)))) -> 2.62993792 | X301: =IF(MAX(C305:C316)-MIN(C305:C316)<5,AVERAGEIF(C305:C316,">0",X305:X316), IF(FORECAST($C301,X$305:X$316,$C$305:$C$316)<0,0, IF(FORECAST($C301,X$305:X$316,$C$305:$C$316)>100,100, FORECAST($C301,X$305:X$316,$C$305:$C$316)))) -> 73.00680108 | AB301: =IF(MAX(C305:C316)-MIN(C305:C316)<5,AVERAGEIF(C305:C316,">0",AB305:AB316), IF(FORECAST($C301,AB$305:AB$316,$C$305:$C$316)<0,0, IF(FORECAST($C301,AB$305:AB$316,$C$305:$C$316)>100,100, FORECAST($C301,AB$305:AB$316,$C$305:$C$316)))) -> 2.729853678
C302: =MaxRegYear(C300,C305:C316) -> 2019 | D302: =IF(MAX(C305:C316)-MIN(C305:C316)<5,AVERAGEIF(C305:C316,">0",D305:D316), IF(FORECAST($C302,D$305:D$316,$C$305:$C$316)<0,0, IF(FORECAST($C302,D$305:D$316,$C$305:$C$316)>100,100, FORECAST($C302,D$305:D$316,$C$305:$C$316)))) -> 69.13065948 | H302: =IF(MAX(C305:C316)-MIN(C305:C316)<5,AVERAGEIF(C305:C316,">0",H305:H316), IF(FORECAST($C302,H$305:H$316,$C$305:$C$316)<0,0, IF(FORECAST($C302,H$305:H$316,$C$305:$C$316)>100,100, FORECAST($C302,H$305:H$316,$C$305:$C$316)))) -> 8.76294513 | I302: =IF(MAX(C305:C316)-MIN(C305:C316)<5,AVERAGEIF(C305:C316,">0",I305:I316), IF(FORECAST($C302,I$305:I$316,$C$305:$C$316)<0,0, IF(FORECAST($C302,I$305:I$316,$C$305:$C$316)>100,100, FORECAST($C302,I$305:I$316,$C$305:$C$316)))) -> 82.19486304 | M302: =IF(MAX(C305:C316)-MIN(C305:C316)<5,AVERAGEIF(C305:C316,">0",M305:M316), IF(FORECAST($C302,M$305:M$316,$C$305:$C$316)<0,0, IF(FORECAST($C302,M$305:M$316,$C$305:$C$316)>100,100, FORECAST($C302,M$305:M$316,$C$305:$C$316)))) -> 3.813375773 | N302: =IF(MAX(C305:C316)-MIN(C305:C316)<5,AVERAGEIF(C305:C316,">0",N305:N316), IF(FORECAST($C302,N$305:N$316,$C$305:$C$316)<0,0, IF(FORECAST($C302,N$305:N$316,$C$305:$C$316)>100,100, FORECAST($C302,N$305:N$316,$C$305:$C$316)))) -> 90.85942965 | R302: =IF(MAX(C305:C316)-MIN(C305:C316)<5,AVERAGEIF(C305:C316,">0",R305:R316), IF(FORECAST($C302,R$305:R$316,$C$305:$C$316)<0,0, IF(FORECAST($C302,R$305:R$316,$C$305:$C$316)>100,100, FORECAST($C302,R$305:R$316,$C$305:$C$316)))) -> 1.63694543 | S302: =IF(MAX(C305:C316)-MIN(C305:C316)<5,AVERAGEIF(C305:C316,">0",S305:S316), IF(FORECAST($C302,S$305:S$316,$C$305:$C$316)<0,0, IF(FORECAST($C302,S$305:S$316,$C$305:$C$316)>100,100, FORECAST($C302,S$305:S$316,$C$305:$C$316)))) -> 93.39290142 | W302: =IF(MAX(C305:C316)-MIN(C305:C316)<5,AVERAGEIF(C305:C316,">0",W305:W316), IF(FORECAST($C302,W$305:W$316,$C$305:$C$316)<0,0, IF(FORECAST($C302,W$305:W$316,$C$305:$C$316)>100,100, FORECAST($C302,W$305:W$316,$C$305:$C$316)))) -> 0.9201587717 | X302: =IF(MAX(C305:C316)-MIN(C305:C316)<5,AVERAGEIF(C305:C316,">0",X305:X316), IF(FORECAST($C302,X$305:X$316,$C$305:$C$316)<0,0, IF(FORECAST($C302,X$305:X$316,$C$305:$C$316)>100,100, FORECAST($C302,X$305:X$316,$C$305:$C$316)))) -> 98.26355999 | AB302: =IF(MAX(C305:C316)-MIN(C305:C316)<5,AVERAGEIF(C305:C316,">0",AB305:AB316), IF(FORECAST($C302,AB$305:AB$316,$C$305:$C$316)<0,0, IF(FORECAST($C302,AB$305:AB$316,$C$305:$C$316)>100,100, FORECAST($C302,AB$305:AB$316,$C$305:$C$316)))) -> 0
B304: Survey | C304: Year | D304: Improved | E304: % Improved < = 30min | H304: Surface water | I304: Improved | J304: % Improved < = 30min | M304: Surface water | N304: Improved | O304: % Improved < = 30min | R304: Surface water | S304: Improved | T304: % Improved < = 30min | W304: Surface water | X304: Improved | Y304: % Improved < = 30min | AB304: Surface water
B305: DHS03 | C305: 2003 | D305: =IF(ISERROR(INDIRECT(CONCATENATE($B305,"!M16"))),"",INDIRECT(CONCATENATE($B305,"!M16"))) -> 47.87434743 | E305: =IF(ISERROR(INDIRECT(CONCATENATE($B305,"!M23"))),"",INDIRECT(CONCATENATE($B305,"!M23"))) -> 94.21805075 | H305: =IF(ISERROR(INDIRECT(CONCATENATE($B305,"!M21"))),"",INDIRECT(CONCATENATE($B305,"!M21"))) -> 13.93456818 | I305: =IF(ISERROR(INDIRECT(CONCATENATE($B305,"!N16"))),"",INDIRECT(CONCATENATE($B305,"!N16"))) -> 60.09207224 | J305: =IF(ISERROR(INDIRECT(CONCATENATE($B305,"!N23"))),"",INDIRECT(CONCATENATE($B305,"!N23"))) -> 97.1464859 | M305: =IF(ISERROR(INDIRECT(CONCATENATE($B305,"!N21"))),"",INDIRECT(CONCATENATE($B305,"!N21"))) -> 7.573686325 | N305: =IF(ISERROR(INDIRECT(CONCATENATE($B305,"!O16"))),"",INDIRECT(CONCATENATE($B305,"!O16"))) -> 62.76899946 | O305: =IF(ISERROR(INDIRECT(CONCATENATE($B305,"!O23"))),"",INDIRECT(CONCATENATE($B305,"!O23"))) -> 95.2642068 | R305: =IF(ISERROR(INDIRECT(CONCATENATE($B305,"!O21"))),"",INDIRECT(CONCATENATE($B305,"!O21"))) -> 4.203226482 | S305: =IF(ISERROR(INDIRECT(CONCATENATE($B305,"!P16"))),"",INDIRECT(CONCATENATE($B305,"!P16"))) -> 70.1044298 | T305: =IF(ISERROR(INDIRECT(CONCATENATE($B305,"!P23"))),"",INDIRECT(CONCATENATE($B305,"!P23"))) -> 95.12759751 | W305: =IF(ISERROR(INDIRECT(CONCATENATE($B305,"!P21"))),"",INDIRECT(CONCATENATE($B305,"!P21"))) -> 2.68799929 | X305: =IF(ISERROR(INDIRECT(CONCATENATE($B305,"!Q16"))),"",INDIRECT(CONCATENATE($B305,"!Q16"))) -> 74.99031589 | Y305: =IF(ISERROR(INDIRECT(CONCATENATE($B305,"!Q23"))),"",INDIRECT(CONCATENATE($B305,"!Q23"))) -> 98.50631276 | AB305: =IF(ISERROR(INDIRECT(CONCATENATE($B305,"!Q221"))),"",INDIRECT(CONCATENATE($B305,"!Q21"))) -> 2.809072472
B306: DHS07 | C306: 2007 | D306: 50.02021651 | E306: 93.09461145 | H306: 14.23461612 | I306: 61.61955091 | J306: 96.57633306 | M306: 6.504702822 | N306: 67.65485209 | O306: 97.01073143 | R306: 3.63073298 | S306: 75.54679337 | T306: 98.90476744 | W306: 1.592417535 | X306: 82.56161514 | Y306: 99.46744612 | AB306: 1.212903131
B307: DHS12 | C307: 2012 | D307: 56.26259118 | E307: 94.4 | H307: 13.03707138 | I307: 69.82638942 | J307: 99.3 | M307: 5.134871925 | N307: 77.51784712 | O307: 99.3 | R307: 2.105761605 | S307: 81.98549395 | T307: 99.6 | W307: 1.825757763 | X307: 88.47351507 | Y307: 99.6 | AB307: 0.5348465038
B308: DHS17 | C308: 2017 | D308: 68.37544012 | E308: 98.3089966 | H308: 8.341916299 | I308: 80.9082503 | J308: 99.58522366 | M308: 4.452138226 | N308: 87.93736741 | O308: 99.74109073 | R308: 2.290820471 | S308: 91.11468101 | T308: 99.77608263 | W308: 1.089006526 | X308: 95.11212276 | Y308: 99.85558016 | AB308: 0.2350280065
B318: =CONCATENATE("Rural use of drinking water sources, ",C299,"–",C300) -> Rural use of drinking water sources, 2000–2020 | S318: Data points used for regression

Sheet Sanitation
B4: Summary of trends in use of sanitation facilities by wealth quintile (%)
B5: =IF(ISERROR(INDIRECT(CONCATENATE($B105,"!A2"))),"",INDIRECT(CONCATENATE($B105,"!A2"))) -> Indonesia
B7: =B118 -> National use of sanitation facilities, 2000–2020 | J7: =B218 -> Urban use of sanitation facilities, 2000–2020 | R7: =B318 -> Rural use of sanitation facilities, 2000–2020
B31: =IF(ISERROR(INDIRECT(CONCATENATE($B105,"!A2"))),"",INDIRECT(CONCATENATE($B105,"!A2"))) -> Indonesia | F31: Poorest | J31: Poor | N31: Middle | R31: Rich | V31: Richest
F32: Basic | G32: Limited | H32: Unimproved | I32: Open defecation | J32: Basic | K32: Limited | L32: Unimproved | M32: Open defecation | N32: Basic | O32: Limited | P32: Unimproved | Q32: Open defecation | R32: Basic | S32: Limited | T32: Unimproved | U32: Open defecation | V32: Basic | W32: Limited | X32: Unimproved | Y32: Open defecation
B33: NATIONAL | D33: Estimate | E33: =C99 -> 2000 | F33: =E99 -> 15.95006607 | G33: =F99 -> 8.285631631 | H33: 22.69129005 | I33: 53.07301225 | J33: =J99 -> 34.77999207 | K33: =K99 -> 8.232770523 | L33: 21.90607178 | M33: 35.08116562 | N33: =O99 -> 48.47383668 | O33: =P99 -> 7.420673603 | P33: 17.64222267 | Q33: 26.46326705 | R33: =T99 -> 65.65793531 | S33: =U99 -> 6.635322708 | T33: 12.2874785 | U33: 15.41926348 | V33: =Y99 -> 87.36722551 | W33: =Z99 -> 2.208349256 | X33: 6.659474953 | Y33: 3.764950285
E34: =C100 -> 2020 | F34: =E100 -> 45.16926108 | G34: 23.46421994 | H34: 6.483815014 | I34: 24.88270397 | J34: =J100 -> 70.91413719 | K34: 16.78608256 | L34: 2.838862679 | M34: 9.460917575 | N34: =O100 -> 83.23833247 | O34: 12.74263683 | P34: 0.6895352342 | Q34: 3.32949546 | R34: =T100 -> 89.27224797 | S34: 9.021760603 | T34: 0.3973720249 | U34: 1.308619401 | V34: =Y100 -> 97.0749945 | W34: 2.453728965 | X34: 0.249862903 | Y34: 0.2214136292
B36: URBAN | D36: Estimate | E36: =C199 -> 2000 | F36: =E199 -> 46.45997772 | G36: =F199 -> 15.21230476 | H36: 14.3365995 | I36: 23.99111801 | J36: =J199 -> 57.80672417 | K36: =K199 -> 11.07797447 | L36: 11.15099105 | M36: 19.96431031 | N36: =O199 -> 69.83728438 | O36: =P199 -> 6.517843585 | P36: 9.730583175 | Q36: 13.91428886 | R36: =T199 -> 82.76244619 | S36: =U199 -> 4.141724746 | T36: 7.550774496 | U36: 5.545054564 | V36: =Y199 -> 93.81322944 | W36: =Z199 -> 0.744665255 | X36: 4.67857325 | Y36: 0.7635320504
E37: =C200 -> 2020 | F37: =E200 -> 60.14932392 | G37: 19.69458213 | H37: 6.071602035 | I37: 14.08449192 | J37: =J200 -> 78.68484258 | K37: 15.07901874 | L37: 2.502795274 | M37: 3.733343396 | N37: =O200 -> 88.03704883 | O37: 8.216409315 | P37: 1.55366847 | Q37: 2.192873384 | R37: =T200 -> 93.09548864 | S37: 4.658826639 | T37: 0.9574758527 | U37: 1.288208864 | V37: =Y200 -> 98.26821544 | W37: 0.7800277865 | X37: 0.4007538665 | Y37: 0.5510029056
B39: RURAL | D39: Estimate | E39: =C299 -> 2000 | F39: =E299 -> 10.79158717 | G39: =F299 -> 7.326946121 | H39: 22.53516824 | I39: 59.34629847 | J39: =J299 -> 21.99348486 | K39: =K299 -> 6.719820519 | L39: 24.18143936 | M39: 47.10525526 | N39: =O299 -> 30.28077301 | O39: =P299 -> 5.968070578 | P39: 25.59925105 | Q39: 38.15190537 | R39: =T299 -> 42.4801396 | S39: =U299 -> 5.088525395 | T39: 21.75914129 | U39: 30.67219371 | V39: =Y299 -> 65.38277318 | W39: =Z299 -> 3.188453211 | X39: 15.79565137 | Y39: 15.63312224
E40: =C300 -> 2020 | F40: =E300 -> 36.79073614 | G40: 24.97906353 | H40: 7.309531335 | I40: 30.920669 | J40: =J300 -> 61.26746149 | K40: 18.7194684 | L40: 4.24936244 | M40: 15.76370766 | N40: =O300 -> 74.64064762 | O40: 14.71100665 | P40: 1.444261262 | Q40: 9.204084471 | R40: =T300 -> 86.68292193 | S40: 10.38339925 | T40: 0 | U40: 2.933678828 | V40: =Y300 -> 95.35015869 | W40: 4.64984131 | X40: 0 | Y40: 0
A97: NATIONAL | D97: Poorest | I97: Poor | N97: Middle | S97: Rich | X97: Richest
D98: Improved | E98: Basic | F98: Limited | G98: Unimproved | H98: Open defecation | I98: Improved | J98: Basic | K98: Limited | L98: Unimproved | M98: Open defecation | N98: Improved | O98: Basic | P98: Limited | Q98: Unimproved | R98: Open defecation | S98: Improved | T98: Basic | U98: Limited | V98: Unimproved | W98: Open defecation | X98: Improved | Y98: Basic | Z98: Limited | AA98: Unimproved | AB98: Open defecation
A99: Forecast period: | C99: 2000 | D99: =IF((D101+H101)>100,D101*100/(D101+H101),D101) -> 24.2356977 | E99: =D99*AVERAGEIF(E105:E116,">0")/100 -> 15.95006607 | F99: =D99*(100-AVERAGEIF(E105:E116,">0"))/100 -> 8.285631631 | G99: =100-(E99+F99+H99) -> 22.69129005 | H99: =IF((D101+H101)>100,H101*100/(D101+H101),H101) -> 53.07301225 | I99: =IF((I101+M101)>100,I101*100/(I101+M101),I101) -> 43.0127626 | J99: =I99*AVERAGEIF(J105:J116,">0")/100 -> 34.77999207 | K99: =I99*(100-AVERAGEIF(J105:J116,">0"))/100 -> 8.232770523 | L99: =100-(J99+K99+M99) -> 21.90607178 | M99: =IF((I101+M101)>100,M101*100/(I101+M101),M101) -> 35.08116562 | N99: =IF((N101+R101)>100,N101*100/(N101+R101),N101) -> 55.89451028 | O99: =N99*AVERAGEIF(O105:O116,">0")/100 -> 48.47383668 | P99: =N99*(100-AVERAGEIF(O105:O116,">0"))/100 -> 7.420673603 | Q99: =100-(O99+P99+R99) -> 17.64222267 | R99: =IF((N101+R101)>100,R101*100/(N101+R101),R101) -> 26.46326705 | S99: =IF((S101+W101)>100,S101*100/(S101+W101),S101) -> 72.29325802 | T99: =S99*AVERAGEIF(T105:T116,">0")/100 -> 65.65793531 | U99: =S99*(100-AVERAGEIF(T105:T116,">0"))/100 -> 6.635322708 | V99: =100-(T99+U99+W99) -> 12.2874785 | W99: =IF((S101+W101)>100,W101*100/(S101+W101),W101) -> 15.41926348 | X99: =IF((X101+AB101)>100,X101*100/(X101+AB101),X101) -> 89.57557476 | Y99: =X99*AVERAGEIF(Y105:Y116,">0")/100 -> 87.36722551 | Z99: =X99*(100-AVERAGEIF(Y105:Y116,">0"))/100 -> 2.208349256 | AA99: =100-(Y99+Z99+AB99) -> 6.659474953 | AB99: =IF((X101+AB101)>100,AB101*100/(X101+AB101),AB101) -> 3.764950285
C100: 2020 | D100: =IF((D102+H102)>100,D102*100/(D102+H102),D102) -> 68.63348102 | E100: =D100*AVERAGEIF(E105:E116,">0")/100 -> 45.16926108 | F100: =D100*(100-AVERAGEIF(E105:E116,">0"))/100 -> 23.46421994 | G100: =100-(E100+F100+H100) -> 6.483815014 | H100: =IF((D102+H102)>100,H102*100/(D102+H102),H102) -> 24.88270397 | I100: =IF((I102+M102)>100,I102*100/(I102+M102),I102) -> 87.70021975 | J100: =I100*AVERAGEIF(J105:J116,">0")/100 -> 70.91413719 | K100: =I100*(100-AVERAGEIF(J105:J116,">0"))/100 -> 16.78608256 | L100: =100-(J100+K100+M100) -> 2.838862679 | M100: =IF((I102+M102)>100,M102*100/(I102+M102),M102) -> 9.460917575 | N100: =IF((N102+R102)>100,N102*100/(N102+R102),N102) -> 95.98096931 | O100: =N100*AVERAGEIF(O105:O116,">0")/100 -> 83.23833247 | P100: =N100*(100-AVERAGEIF(O105:O116,">0"))/100 -> 12.74263683 | Q100: =100-(O100+P100+R100) -> 0.6895352342 | R100: =IF((N102+R102)>100,R102*100/(N102+R102),R102) -> 3.32949546 | S100: =IF((S102+W102)>100,S102*100/(S102+W102),S102) -> 98.29400857 | T100: =S100*AVERAGEIF(T105:T116,">0")/100 -> 89.27224797 | U100: =S100*(100-AVERAGEIF(T105:T116,">0"))/100 -> 9.021760603 | V100: =100-(T100+U100+W100) -> 0.3973720249 | W100: =IF((S102+W102)>100,W102*100/(S102+W102),W102) -> 1.308619401 | X100: =IF((X102+AB102)>100,X102*100/(X102+AB102),X102) -> 99.52872347 | Y100: =X100*AVERAGEIF(Y105:Y116,">0")/100 -> 97.0749945 | Z100: =X100*(100-AVERAGEIF(Y105:Y116,">0"))/100 -> 2.453728965 | AA100: =100-(Y100+Z100+AB100) -> 0.249862903 | AB100: =IF((X102+AB102)>100,AB102*100/(X102+AB102),AB102) -> 0.2214136292
A101: Regression period: | C101: =MinRegYear(C99,C105:C116) -> 2001 | D101: =IF(MAX(C105:C116)-MIN(C105:C116)<5,AVERAGEIF(C105:C116,">0",D105:D116), IF(FORECAST($C101,D$105:D$116,$C$105:$C$116)<0,0, IF(FORECAST($C101,D$105:D$116,$C$105:$C$116)>100,100, FORECAST($C101,D$105:D$116,$C$105:$C$116)))) -> 24.2356977 | H101: =IF(MAX(C105:C116)-MIN(C105:C116)<5,AVERAGEIF(C105:C116,">0",H105:H116), IF(FORECAST($C101,H$105:H$116,$C$105:$C$116)<0,0, IF(FORECAST($C101,H$105:H$116,$C$105:$C$116)>100,100, FORECAST($C101,H$105:H$116,$C$105:$C$116)))) -> 53.07301225 | I101: =IF(MAX(C105:C116)-MIN(C105:C116)<5,AVERAGEIF(C105:C116,">0",I105:I116), IF(FORECAST($C101,I$105:I$116,$C$105:$C$116)<0,0, IF(FORECAST($C101,I$105:I$116,$C$105:$C$116)>100,100, FORECAST($C101,I$105:I$116,$C$105:$C$116)))) -> 43.0127626 | M101: =IF(MAX(C105:C116)-MIN(C105:C116)<5,AVERAGEIF(C105:C116,">0",M105:M116), IF(FORECAST($C101,M$105:M$116,$C$105:$C$116)<0,0, IF(FORECAST($C101,M$105:M$116,$C$105:$C$116)>100,100, FORECAST($C101,M$105:M$116,$C$105:$C$116)))) -> 35.08116562 | N101: =IF(MAX(C105:C116)-MIN(C105:C116)<5,AVERAGEIF(C105:C116,">0",N105:N116), IF(FORECAST($C101,N$105:N$116,$C$105:$C$116)<0,0, IF(FORECAST($C101,N$105:N$116,$C$105:$C$116)>100,100, FORECAST($C101,N$105:N$116,$C$105:$C$116)))) -> 55.89451028 | R101: =IF(MAX(C105:C116)-MIN(C105:C116)<5,AVERAGEIF(C105:C116,">0",R105:R116), IF(FORECAST($C101,R$105:R$116,$C$105:$C$116)<0,0, IF(FORECAST($C101,R$105:R$116,$C$105:$C$116)>100,100, FORECAST($C101,R$105:R$116,$C$105:$C$116)))) -> 26.46326705 | S101: =IF(MAX(C105:C116)-MIN(C105:C116)<5,AVERAGEIF(C105:C116,">0",S105:S116), IF(FORECAST($C101,S$105:S$116,$C$105:$C$116)<0,0, IF(FORECAST($C101,S$105:S$116,$C$105:$C$116)>100,100, FORECAST($C101,S$105:S$116,$C$105:$C$116)))) -> 72.29325802 | W101: =IF(MAX(C105:C116)-MIN(C105:C116)<5,AVERAGEIF(C105:C116,">0",W105:W116), IF(FORECAST($C101,W$105:W$116,$C$105:$C$116)<0,0, IF(FORECAST($C101,W$105:W$116,$C$105:$C$116)>100,100, FORECAST($C101,W$105:W$116,$C$105:$C$116)))) -> 15.41926348 | X101: =IF(MAX(C105:C116)-MIN(C105:C116)<5,AVERAGEIF(C105:C116,">0",X105:X116), IF(FORECAST($C101,X$105:X$116,$C$105:$C$116)<0,0, IF(FORECAST($C101,X$105:X$116,$C$105:$C$116)>100,100, FORECAST($C101,X$105:X$116,$C$105:$C$116)))) -> 89.57557476 | AB101: =IF(MAX(C105:C116)-MIN(C105:C116)<5,AVERAGEIF(C105:C116,">0",AB105:AB116), IF(FORECAST($C101,AB$105:AB$116,$C$105:$C$116)<0,0, IF(FORECAST($C101,AB$105:AB$116,$C$105:$C$116)>100,100, FORECAST($C101,AB$105:AB$116,$C$105:$C$116)))) -> 3.764950285
C102: =MaxRegYear(C100,C105:C116) -> 2019 | D102: =IF(MAX(C105:C116)-MIN(C105:C116)<5,AVERAGEIF(C105:C116,">0",D105:D116), IF(FORECAST($C102,D$105:D$116,$C$105:$C$116)<0,0, IF(FORECAST($C102,D$105:D$116,$C$105:$C$116)>100,100, FORECAST($C102,D$105:D$116,$C$105:$C$116)))) -> 68.63348102 | H102: =IF(MAX(C105:C116)-MIN(C105:C116)<5,AVERAGEIF(C105:C116,">0",H105:H116), IF(FORECAST($C102,H$105:H$116,$C$105:$C$116)<0,0, IF(FORECAST($C102,H$105:H$116,$C$105:$C$116)>100,100, FORECAST($C102,H$105:H$116,$C$105:$C$116)))) -> 24.88270397 | I102: =IF(MAX(C105:C116)-MIN(C105:C116)<5,AVERAGEIF(C105:C116,">0",I105:I116), IF(FORECAST($C102,I$105:I$116,$C$105:$C$116)<0,0, IF(FORECAST($C102,I$105:I$116,$C$105:$C$116)>100,100, FORECAST($C102,I$105:I$116,$C$105:$C$116)))) -> 87.70021975 | M102: =IF(MAX(C105:C116)-MIN(C105:C116)<5,AVERAGEIF(C105:C116,">0",M105:M116), IF(FORECAST($C102,M$105:M$116,$C$105:$C$116)<0,0, IF(FORECAST($C102,M$105:M$116,$C$105:$C$116)>100,100, FORECAST($C102,M$105:M$116,$C$105:$C$116)))) -> 9.460917575 | N102: =IF(MAX(C105:C116)-MIN(C105:C116)<5,AVERAGEIF(C105:C116,">0",N105:N116), IF(FORECAST($C102,N$105:N$116,$C$105:$C$116)<0,0, IF(FORECAST($C102,N$105:N$116,$C$105:$C$116)>100,100, FORECAST($C102,N$105:N$116,$C$105:$C$116)))) -> 95.98096931 | R102: =IF(MAX(C105:C116)-MIN(C105:C116)<5,AVERAGEIF(C105:C116,">0",R105:R116), IF(FORECAST($C102,R$105:R$116,$C$105:$C$116)<0,0, IF(FORECAST($C102,R$105:R$116,$C$105:$C$116)>100,100, FORECAST($C102,R$105:R$116,$C$105:$C$116)))) -> 3.32949546 | S102: =IF(MAX(C105:C116)-MIN(C105:C116)<5,AVERAGEIF(C105:C116,">0",S105:S116), IF(FORECAST($C102,S$105:S$116,$C$105:$C$116)<0,0, IF(FORECAST($C102,S$105:S$116,$C$105:$C$116)>100,100, FORECAST($C102,S$105:S$116,$C$105:$C$116)))) -> 98.29400857 | W102: =IF(MAX(C105:C116)-MIN(C105:C116)<5,AVERAGEIF(C105:C116,">0",W105:W116), IF(FORECAST($C102,W$105:W$116,$C$105:$C$116)<0,0, IF(FORECAST($C102,W$105:W$116,$C$105:$C$116)>100,100, FORECAST($C102,W$105:W$116,$C$105:$C$116)))) -> 1.308619401 | X102: =IF(MAX(C105:C116)-MIN(C105:C116)<5,AVERAGEIF(C105:C116,">0",X105:X116), IF(FORECAST($C102,X$105:X$116,$C$105:$C$116)<0,0, IF(FORECAST($C102,X$105:X$116,$C$105:$C$116)>100,100, FORECAST($C102,X$105:X$116,$C$105:$C$116)))) -> 99.52872347 | AB102: =IF(MAX(C105:C116)-MIN(C105:C116)<5,AVERAGEIF(C105:C116,">0",AB105:AB116), IF(FORECAST($C102,AB$105:AB$116,$C$105:$C$116)<0,0, IF(FORECAST($C102,AB$105:AB$116,$C$105:$C$116)>100,100, FORECAST($C102,AB$105:AB$116,$C$105:$C$116)))) -> 0.2214136292
B104: Survey | C104: Year | D104: Improved | E104: Not shared | H104: Open defecation | I104: Improved | J104: Not shared | M104: Open defecation | N104: Improved | O104: Not shared | R104: Open defecation | S104: Improved | T104: Not shared | W104: Open defecation | X104: Improved | Y104: Not shared | AB104: Open defecation
B105: DHS03 | C105: 2003 | D105: =IF(ISERROR(INDIRECT(CONCATENATE($B105,"!C122"))),"",INDIRECT(CONCATENATE($B105,"!C122"))) -> 31.72764835 | E105: =IF(ISERROR(INDIRECT(CONCATENATE($B105,"!C129"))),"",INDIRECT(CONCATENATE($B105,"!C129"))) -> N/A | H105: =IF(ISERROR(INDIRECT(CONCATENATE($B105,"!C127"))),"",INDIRECT(CONCATENATE($B105,"!C127"))) -> 46.27873825 | I105: =IF(ISERROR(INDIRECT(CONCATENATE($B105,"!D122"))),"",INDIRECT(CONCATENATE($B105,"!D122"))) -> 50.6485143 | J105: =IF(ISERROR(INDIRECT(CONCATENATE($B105,"!D129"))),"",INDIRECT(CONCATENATE($B105,"!D129"))) -> N/A | M105: =IF(ISERROR(INDIRECT(CONCATENATE($B105,"!D127"))),"",INDIRECT(CONCATENATE($B105,"!D127"))) -> 29.3400231 | N105: =IF(ISERROR(INDIRECT(CONCATENATE($B105,"!E122"))),"",INDIRECT(CONCATENATE($B105,"!E122"))) -> 61.55240731 | O105: =IF(ISERROR(INDIRECT(CONCATENATE($B105,"!E129"))),"",INDIRECT(CONCATENATE($B105,"!E129"))) -> N/A | R105: =IF(ISERROR(INDIRECT(CONCATENATE($B105,"!E127"))),"",INDIRECT(CONCATENATE($B105,"!E127"))) -> 22.3006609 | S105: =IF(ISERROR(INDIRECT(CONCATENATE($B105,"!F122"))),"",INDIRECT(CONCATENATE($B105,"!F122"))) -> 75.65656867 | T105: =IF(ISERROR(INDIRECT(CONCATENATE($B105,"!F129"))),"",INDIRECT(CONCATENATE($B105,"!F129"))) -> N/A | W105: =IF(ISERROR(INDIRECT(CONCATENATE($B105,"!F127"))),"",INDIRECT(CONCATENATE($B105,"!F127"))) -> 13.35189521 | X105: =IF(ISERROR(INDIRECT(CONCATENATE($B105,"!G122"))),"",INDIRECT(CONCATENATE($B105,"!G122"))) -> 91.54566618 | Y105: =IF(ISERROR(INDIRECT(CONCATENATE($B105,"!G129"))),"",INDIRECT(CONCATENATE($B105,"!G129"))) -> N/A | AB105: =IF(ISERROR(INDIRECT(CONCATENATE($B105,"!G2127"))),"",INDIRECT(CONCATENATE($B105,"!G127"))) -> 3.534924991
B106: DHS07 | C106: 2007 | D106: 37.24091337 | E106: 65.81228346 | H106: 48.29603297 | I106: 54.80894927 | J106: 80.85970297 | M106: 30.69183039 | N106: 67.11387945 | O106: 86.72378814 | R106: 21.63897788 | S106: 80.62071989 | T106: 90.82165766 | W106: 11.62308619 | X106: 92.01598772 | Y106: 97.53465243 | AB106: 2.397349754
B107: DHS12 | C107: 2012 | D107: 47.79094914 | E107: N/A | H107: 36.85967043 | I107: 69.04368863 | J107: N/A | M107: 19.22730769 | N107: 81.30658959 | O107: N/A | R107: 11.01014995 | S107: 87.53336813 | T107: N/A | W107: 6.380003635 | X107: 94.99294026 | Y107: N/A | AB107: 1.513936151
B108: DHS17 | C108: 2017 | D108: 66.51230305 | E108: N/A | H108: 26.04311903 | I108: 84.44217598 | J108: N/A | M108: 11.24835232 | N108: 91.55105732 | O108: N/A | R108: 5.920945811 | S108: 95.91939036 | T108: N/A | W108: 2.884705404 | X108: 99.10104959 | Y108: N/A | AB108: 0.7233800803
B118: =CONCATENATE("National use of sanitation facilities, ",C99,"–",C100) -> National use of sanitation facilities, 2000–2020 | S118: Data points used for regression
A197: URBAN | D197: Poorest | I197: Poor | N197: Middle | S197: Rich | X197: Richest
D198: Improved | E198: Basic | F198: Limited | G198: Unimproved | H198: Open defecation | I198: Improved | J198: Basic | K198: Limited | L198: Unimproved | M198: Open defecation | N198: Improved | O198: Basic | P198: Limited | Q198: Unimproved | R198: Open defecation | S198: Improved | T198: Basic | U198: Limited | V198: Unimproved | W198: Open defecation | X198: Improved | Y198: Basic | Z198: Limited | AA198: Unimproved | AB198: Open defecation
A199: Forecast period: | C199: 2000 | D199: =IF((D201+H201)>100,D201*100/(D201+H201),D201) -> 61.67228248 | E199: =D199*AVERAGEIF(E205:E216,">0")/100 -> 46.45997772 | F199: =D199*(100-AVERAGEIF(E205:E216,">0"))/100 -> 15.21230476 | G199: =100-(E199+F199+H199) -> 14.3365995 | H199: =IF((D201+H201)>100,H201*100/(D201+H201),H201) -> 23.99111801 | I199: =IF((I201+M201)>100,I201*100/(I201+M201),I201) -> 68.88469864 | J199: =I199*AVERAGEIF(J205:J216,">0")/100 -> 57.80672417 | K199: =I199*(100-AVERAGEIF(J205:J216,">0"))/100 -> 11.07797447 | L199: =100-(J199+K199+M199) -> 11.15099105 | M199: =IF((I201+M201)>100,M201*100/(I201+M201),M201) -> 19.96431031 | N199: =IF((N201+R201)>100,N201*100/(N201+R201),N201) -> 76.35512797 | O199: =N199*AVERAGEIF(O205:O216,">0")/100 -> 69.83728438 | P199: =N199*(100-AVERAGEIF(O205:O216,">0"))/100 -> 6.517843585 | Q199: =100-(O199+P199+R199) -> 9.730583175 | R199: =IF((N201+R201)>100,R201*100/(N201+R201),R201) -> 13.91428886 | S199: =IF((S201+W201)>100,S201*100/(S201+W201),S201) -> 86.90417094 | T199: =S199*AVERAGEIF(T205:T216,">0")/100 -> 82.76244619 | U199: =S199*(100-AVERAGEIF(T205:T216,">0"))/100 -> 4.141724746 | V199: =100-(T199+U199+W199) -> 7.550774496 | W199: =IF((S201+W201)>100,W201*100/(S201+W201),W201) -> 5.545054564 | X199: =IF((X201+AB201)>100,X201*100/(X201+AB201),X201) -> 94.5578947 | Y199: =X199*AVERAGEIF(Y205:Y216,">0")/100 -> 93.81322944 | Z199: =X199*(100-AVERAGEIF(Y205:Y216,">0"))/100 -> 0.744665255 | AA199: =100-(Y199+Z199+AB199) -> 4.67857325 | AB199: =IF((X201+AB201)>100,AB201*100/(X201+AB201),AB201) -> 0.7635320504
C200: 2020 | D200: =IF((D202+H202)>100,D202*100/(D202+H202),D202) -> 79.84390605 | E200: =D200*AVERAGEIF(E205:E216,">0")/100 -> 60.14932392 | F200: =D200*(100-AVERAGEIF(E205:E216,">0"))/100 -> 19.69458213 | G200: =100-(E200+F200+H200) -> 6.071602035 | H200: =IF((D202+H202)>100,H202*100/(D202+H202),H202) -> 14.08449192 | I200: =IF((I202+M202)>100,I202*100/(I202+M202),I202) -> 93.76386133 | J200: =I200*AVERAGEIF(J205:J216,">0")/100 -> 78.68484258 | K200: =I200*(100-AVERAGEIF(J205:J216,">0"))/100 -> 15.07901874 | L200: =100-(J200+K200+M200) -> 2.502795274 | M200: =IF((I202+M202)>100,M202*100/(I202+M202),M202) -> 3.733343396 | N200: =IF((N202+R202)>100,N202*100/(N202+R202),N202) -> 96.25345815 | O200: =N200*AVERAGEIF(O205:O216,">0")/100 -> 88.03704883 | P200: =N200*(100-AVERAGEIF(O205:O216,">0"))/100 -> 8.216409315 | Q200: =100-(O200+P200+R200) -> 1.55366847 | R200: =IF((N202+R202)>100,R202*100/(N202+R202),R202) -> 2.192873384 | S200: =IF((S202+W202)>100,S202*100/(S202+W202),S202) -> 97.75431528 | T200: =S200*AVERAGEIF(T205:T216,">0")/100 -> 93.09548864 | U200: =S200*(100-AVERAGEIF(T205:T216,">0"))/100 -> 4.658826639 | V200: =100-(T200+U200+W200) -> 0.9574758527 | W200: =IF((S202+W202)>100,W202*100/(S202+W202),W202) -> 1.288208864 | X200: =IF((X202+AB202)>100,X202*100/(X202+AB202),X202) -> 99.04824323 | Y200: =X200*AVERAGEIF(Y205:Y216,">0")/100 -> 98.26821544 | Z200: =X200*(100-AVERAGEIF(Y205:Y216,">0"))/100 -> 0.7800277865 | AA200: =100-(Y200+Z200+AB200) -> 0.4007538665 | AB200: =IF((X202+AB202)>100,AB202*100/(X202+AB202),AB202) -> 0.5510029056
A201: Regression period: | C201: =MinRegYear(C199,C205:C216) -> 2001 | D201: =IF(MAX(C205:C216)-MIN(C205:C216)<5,AVERAGEIF(C205:C216,">0",D205:D216), IF(FORECAST($C201,D$205:D$216,$C$205:$C$216)<0,0, IF(FORECAST($C201,D$205:D$216,$C$205:$C$216)>100,100, FORECAST($C201,D$205:D$216,$C$205:$C$216)))) -> 61.67228248 | H201: =IF(MAX(C205:C216)-MIN(C205:C216)<5,AVERAGEIF(C205:C216,">0",H205:H216), IF(FORECAST($C201,H$205:H$216,$C$205:$C$216)<0,0, IF(FORECAST($C201,H$205:H$216,$C$205:$C$216)>100,100, FORECAST($C201,H$205:H$216,$C$205:$C$216)))) -> 23.99111801 | I201: =IF(MAX(C205:C216)-MIN(C205:C216)<5,AVERAGEIF(C205:C216,">0",I205:I216), IF(FORECAST($C201,I$205:I$216,$C$205:$C$216)<0,0, IF(FORECAST($C201,I$205:I$216,$C$205:$C$216)>100,100, FORECAST($C201,I$205:I$216,$C$205:$C$216)))) -> 68.88469864 | M201: =IF(MAX(C205:C216)-MIN(C205:C216)<5,AVERAGEIF(C205:C216,">0",M205:M216), IF(FORECAST($C201,M$205:M$216,$C$205:$C$216)<0,0, IF(FORECAST($C201,M$205:M$216,$C$205:$C$216)>100,100, FORECAST($C201,M$205:M$216,$C$205:$C$216)))) -> 19.96431031 | N201: =IF(MAX(C205:C216)-MIN(C205:C216)<5,AVERAGEIF(C205:C216,">0",N205:N216), IF(FORECAST($C201,N$205:N$216,$C$205:$C$216)<0,0, IF(FORECAST($C201,N$205:N$216,$C$205:$C$216)>100,100, FORECAST($C201,N$205:N$216,$C$205:$C$216)))) -> 76.35512797 | R201: =IF(MAX(C205:C216)-MIN(C205:C216)<5,AVERAGEIF(C205:C216,">0",R205:R216), IF(FORECAST($C201,R$205:R$216,$C$205:$C$216)<0,0, IF(FORECAST($C201,R$205:R$216,$C$205:$C$216)>100,100, FORECAST($C201,R$205:R$216,$C$205:$C$216)))) -> 13.91428886 | S201: =IF(MAX(C205:C216)-MIN(C205:C216)<5,AVERAGEIF(C205:C216,">0",S205:S216), IF(FORECAST($C201,S$205:S$216,$C$205:$C$216)<0,0, IF(FORECAST($C201,S$205:S$216,$C$205:$C$216)>100,100, FORECAST($C201,S$205:S$216,$C$205:$C$216)))) -> 86.90417094 | W201: =IF(MAX(C205:C216)-MIN(C205:C216)<5,AVERAGEIF(C205:C216,">0",W205:W216), IF(FORECAST($C201,W$205:W$216,$C$205:$C$216)<0,0, IF(FORECAST($C201,W$205:W$216,$C$205:$C$216)>100,100, FORECAST($C201,W$205:W$216,$C$205:$C$216)))) -> 5.545054564 | X201: =IF(MAX(C205:C216)-MIN(C205:C216)<5,AVERAGEIF(C205:C216,">0",X205:X216), IF(FORECAST($C201,X$205:X$216,$C$205:$C$216)<0,0, IF(FORECAST($C201,X$205:X$216,$C$205:$C$216)>100,100, FORECAST($C201,X$205:X$216,$C$205:$C$216)))) -> 94.5578947 | AB201: =IF(MAX(C205:C216)-MIN(C205:C216)<5,AVERAGEIF(C205:C216,">0",AB205:AB216), IF(FORECAST($C201,AB$205:AB$216,$C$205:$C$216)<0,0, IF(FORECAST($C201,AB$205:AB$216,$C$205:$C$216)>100,100, FORECAST($C201,AB$205:AB$216,$C$205:$C$216)))) -> 0.7635320504
C202: =MaxRegYear(C200,C205:C216) -> 2019 | D202: =IF(MAX(C205:C216)-MIN(C205:C216)<5,AVERAGEIF(C205:C216,">0",D205:D216), IF(FORECAST($C202,D$205:D$216,$C$205:$C$216)<0,0, IF(FORECAST($C202,D$205:D$216,$C$205:$C$216)>100,100, FORECAST($C202,D$205:D$216,$C$205:$C$216)))) -> 79.84390605 | H202: =IF(MAX(C205:C216)-MIN(C205:C216)<5,AVERAGEIF(C205:C216,">0",H205:H216), IF(FORECAST($C202,H$205:H$216,$C$205:$C$216)<0,0, IF(FORECAST($C202,H$205:H$216,$C$205:$C$216)>100,100, FORECAST($C202,H$205:H$216,$C$205:$C$216)))) -> 14.08449192 | I202: =IF(MAX(C205:C216)-MIN(C205:C216)<5,AVERAGEIF(C205:C216,">0",I205:I216), IF(FORECAST($C202,I$205:I$216,$C$205:$C$216)<0,0, IF(FORECAST($C202,I$205:I$216,$C$205:$C$216)>100,100, FORECAST($C202,I$205:I$216,$C$205:$C$216)))) -> 93.76386133 | M202: =IF(MAX(C205:C216)-MIN(C205:C216)<5,AVERAGEIF(C205:C216,">0",M205:M216), IF(FORECAST($C202,M$205:M$216,$C$205:$C$216)<0,0, IF(FORECAST($C202,M$205:M$216,$C$205:$C$216)>100,100, FORECAST($C202,M$205:M$216,$C$205:$C$216)))) -> 3.733343396 | N202: =IF(MAX(C205:C216)-MIN(C205:C216)<5,AVERAGEIF(C205:C216,">0",N205:N216), IF(FORECAST($C202,N$205:N$216,$C$205:$C$216)<0,0, IF(FORECAST($C202,N$205:N$216,$C$205:$C$216)>100,100, FORECAST($C202,N$205:N$216,$C$205:$C$216)))) -> 96.25345815 | R202: =IF(MAX(C205:C216)-MIN(C205:C216)<5,AVERAGEIF(C205:C216,">0",R205:R216), IF(FORECAST($C202,R$205:R$216,$C$205:$C$216)<0,0, IF(FORECAST($C202,R$205:R$216,$C$205:$C$216)>100,100, FORECAST($C202,R$205:R$216,$C$205:$C$216)))) -> 2.192873384 | S202: =IF(MAX(C205:C216)-MIN(C205:C216)<5,AVERAGEIF(C205:C216,">0",S205:S216), IF(FORECAST($C202,S$205:S$216,$C$205:$C$216)<0,0, IF(FORECAST($C202,S$205:S$216,$C$205:$C$216)>100,100, FORECAST($C202,S$205:S$216,$C$205:$C$216)))) -> 97.75431528 | W202: =IF(MAX(C205:C216)-MIN(C205:C216)<5,AVERAGEIF(C205:C216,">0",W205:W216), IF(FORECAST($C202,W$205:W$216,$C$205:$C$216)<0,0, IF(FORECAST($C202,W$205:W$216,$C$205:$C$216)>100,100, FORECAST($C202,W$205:W$216,$C$205:$C$216)))) -> 1.288208864 | X202: =IF(MAX(C205:C216)-MIN(C205:C216)<5,AVERAGEIF(C205:C216,">0",X205:X216), IF(FORECAST($C202,X$205:X$216,$C$205:$C$216)<0,0, IF(FORECAST($C202,X$205:X$216,$C$205:$C$216)>100,100, FORECAST($C202,X$205:X$216,$C$205:$C$216)))) -> 99.04824323 | AB202: =IF(MAX(C205:C216)-MIN(C205:C216)<5,AVERAGEIF(C205:C216,">0",AB205:AB216), IF(FORECAST($C202,AB$205:AB$216,$C$205:$C$216)<0,0, IF(FORECAST($C202,AB$205:AB$216,$C$205:$C$216)>100,100, FORECAST($C202,AB$205:AB$216,$C$205:$C$216)))) -> 0.5510029056
B204: Survey | C204: Year | D204: Improved | E204: Not shared | H204: Open defecation | I204: Improved | J204: Not shared | M204: Open defecation | N204: Improved | O204: Not shared | R204: Open defecation | S204: Improved | T204: Not shared | W204: Open defecation | X204: Improved | Y204: Not shared | AB204: Open defecation
B205: DHS03 | C205: 2003 | D205: =IF(ISERROR(INDIRECT(CONCATENATE($B205,"!H122"))),"",INDIRECT(CONCATENATE($B205,"!H122"))) -> 65.15525563 | E205: =IF(ISERROR(INDIRECT(CONCATENATE($B205,"!H129"))),"",INDIRECT(CONCATENATE($B205,"!H129"))) -> N/A | H205: =IF(ISERROR(INDIRECT(CONCATENATE($B205,"!H127"))),"",INDIRECT(CONCATENATE($B205,"!H127"))) -> 20.23230134 | I205: =IF(ISERROR(INDIRECT(CONCATENATE($B205,"!I122"))),"",INDIRECT(CONCATENATE($B205,"!I122"))) -> 71.64675098 | J205: =IF(ISERROR(INDIRECT(CONCATENATE($B205,"!I129"))),"",INDIRECT(CONCATENATE($B205,"!I129"))) -> N/A | M205: =IF(ISERROR(INDIRECT(CONCATENATE($B205,"!I127"))),"",INDIRECT(CONCATENATE($B205,"!I127"))) -> 17.74264396 | N205: =IF(ISERROR(INDIRECT(CONCATENATE($B205,"!J122"))),"",INDIRECT(CONCATENATE($B205,"!J122"))) -> 79.16768997 | O205: =IF(ISERROR(INDIRECT(CONCATENATE($B205,"!J129"))),"",INDIRECT(CONCATENATE($B205,"!J129"))) -> N/A | R205: =IF(ISERROR(INDIRECT(CONCATENATE($B205,"!J127"))),"",INDIRECT(CONCATENATE($B205,"!J127"))) -> 12.34831621 | S205: =IF(ISERROR(INDIRECT(CONCATENATE($B205,"!K122"))),"",INDIRECT(CONCATENATE($B205,"!K122"))) -> 89.57383002 | T205: =IF(ISERROR(INDIRECT(CONCATENATE($B205,"!K129"))),"",INDIRECT(CONCATENATE($B205,"!K129"))) -> N/A | W205: =IF(ISERROR(INDIRECT(CONCATENATE($B205,"!K127"))),"",INDIRECT(CONCATENATE($B205,"!K127"))) -> 5.18581834 | X205: =IF(ISERROR(INDIRECT(CONCATENATE($B205,"!L122"))),"",INDIRECT(CONCATENATE($B205,"!L122"))) -> 96.01262108 | Y205: =IF(ISERROR(INDIRECT(CONCATENATE($B205,"!L129"))),"",INDIRECT(CONCATENATE($B205,"!L129"))) -> N/A | AB205: =IF(ISERROR(INDIRECT(CONCATENATE($B205,"!L2127"))),"",INDIRECT(CONCATENATE($B205,"!L127"))) -> 0.7126259759
B206: DHS07 | C206: 2007 | D206: 66.26749166 | E206: 75.33364398 | H206: 23.70017954 | I206: 77.65362826 | J206: 83.91809112 | M206: 15.09940463 | N206: 82.85687788 | O206: 91.46377754 | R206: 10.36986778 | S206: 89.34577154 | T206: 95.23414734 | W206: 3.814548633 | X206: 95.30366737 | Y206: 99.21247691 | AB206: 0.5338004951
B207: DHS12 | C207: 2012 | D207: 71.60223008 | E207: N/A | H207: 19.35715351 | I207: 83.14331802 | J207: N/A | M207: 10.12558446 | N207: 87.09269028 | O207: N/A | R207: 6.763827592 | S207: 91.7855981 | T207: N/A | W207: 3.248273019 | X207: 96.12778038 | Y207: N/A | AB207: 1.027846973
B208: DHS17 | C208: 2017 | D208: 78.99786504 | E208: N/A | H208: 13.41195359 | I208: 91.47124698 | J208: N/A | M208: 5.329394747 | N208: 94.99445132 | O208: N/A | R208: 3.383502639 | S208: 98.00898699 | T208: N/A | W208: 1.654378292 | X208: 99.51874322 | Y208: N/A | AB208: 0.366603643
B218: =CONCATENATE("Urban use of sanitation facilities, ",C199,"–",C200) -> Urban use of sanitation facilities, 2000–2020 | S218: Data points used for regression
A297: RURAL | D297: Poorest | I297: Poor | N297: Middle | S297: Rich | X297: Richest
D298: Improved | E298: Basic | F298: Limited | G298: Unimproved | H298: Open defecation | I298: Improved | J298: Basic | K298: Limited | L298: Unimproved | M298: Open defecation | N298: Improved | O298: Basic | P298: Limited | Q298: Unimproved | R298: Open defecation | S298: Improved | T298: Basic | U298: Limited | V298: Unimproved | W298: Open defecation | X298: Improved | Y298: Basic | Z298: Limited | AA298: Unimproved | AB298: Open defecation
A299: Forecast period: | C299: 2000 | D299: =IF((D301+H301)>100,D301*100/(D301+H301),D301) -> 18.11853329 | E299: =D299*AVERAGEIF(E305:E316,">0")/100 -> 10.79158717 | F299: =D299*(100-AVERAGEIF(E305:E316,">0"))/100 -> 7.326946121 | G299: =100-(E299+F299+H299) -> 22.53516824 | H299: =IF((D301+H301)>100,H301*100/(D301+H301),H301) -> 59.34629847 | I299: =IF((I301+M301)>100,I301*100/(I301+M301),I301) -> 28.71330538 | J299: =I299*AVERAGEIF(J305:J316,">0")/100 -> 21.99348486 | K299: =I299*(100-AVERAGEIF(J305:J316,">0"))/100 -> 6.719820519 | L299: =100-(J299+K299+M299) -> 24.18143936 | M299: =IF((I301+M301)>100,M301*100/(I301+M301),M301) -> 47.10525526 | N299: =IF((N301+R301)>100,N301*100/(N301+R301),N301) -> 36.24884358 | O299: =N299*AVERAGEIF(O305:O316,">0")/100 -> 30.28077301 | P299: =N299*(100-AVERAGEIF(O305:O316,">0"))/100 -> 5.968070578 | Q299: =100-(O299+P299+R299) -> 25.59925105 | R299: =IF((N301+R301)>100,R301*100/(N301+R301),R301) -> 38.15190537 | S299: =IF((S301+W301)>100,S301*100/(S301+W301),S301) -> 47.568665 | T299: =S299*AVERAGEIF(T305:T316,">0")/100 -> 42.4801396 | U299: =S299*(100-AVERAGEIF(T305:T316,">0"))/100 -> 5.088525395 | V299: =100-(T299+U299+W299) -> 21.75914129 | W299: =IF((S301+W301)>100,W301*100/(S301+W301),W301) -> 30.67219371 | X299: =IF((X301+AB301)>100,X301*100/(X301+AB301),X301) -> 68.57122639 | Y299: =X299*AVERAGEIF(Y305:Y316,">0")/100 -> 65.38277318 | Z299: =X299*(100-AVERAGEIF(Y305:Y316,">0"))/100 -> 3.188453211 | AA299: =100-(Y299+Z299+AB299) -> 15.79565137 | AB299: =IF((X301+AB301)>100,AB301*100/(X301+AB301),AB301) -> 15.63312224
C300: 2020 | D300: =IF((D302+H302)>100,D302*100/(D302+H302),D302) -> 61.76979967 | E300: =D300*AVERAGEIF(E305:E316,">0")/100 -> 36.79073614 | F300: =D300*(100-AVERAGEIF(E305:E316,">0"))/100 -> 24.97906353 | G300: =100-(E300+F300+H300) -> 7.309531335 | H300: =IF((D302+H302)>100,H302*100/(D302+H302),H302) -> 30.920669 | I300: =IF((I302+M302)>100,I302*100/(I302+M302),I302) -> 79.9869299 | J300: =I300*AVERAGEIF(J305:J316,">0")/100 -> 61.26746149 | K300: =I300*(100-AVERAGEIF(J305:J316,">0"))/100 -> 18.7194684 | L300: =100-(J300+K300+M300) -> 4.24936244 | M300: =IF((I302+M302)>100,M302*100/(I302+M302),M302) -> 15.76370766 | N300: =IF((N302+R302)>100,N302*100/(N302+R302),N302) -> 89.35165427 | O300: =N300*AVERAGEIF(O305:O316,">0")/100 -> 74.64064762 | P300: =N300*(100-AVERAGEIF(O305:O316,">0"))/100 -> 14.71100665 | Q300: =100-(O300+P300+R300) -> 1.444261262 | R300: =IF((N302+R302)>100,R302*100/(N302+R302),R302) -> 9.204084471 | S300: =IF((S302+W302)>100,S302*100/(S302+W302),S302) -> 97.06632117 | T300: =S300*AVERAGEIF(T305:T316,">0")/100 -> 86.68292193 | U300: =S300*(100-AVERAGEIF(T305:T316,">0"))/100 -> 10.38339925 | V300: =100-(T300+U300+W300) -> 0 | W300: =IF((S302+W302)>100,W302*100/(S302+W302),W302) -> 2.933678828 | X300: =IF((X302+AB302)>100,X302*100/(X302+AB302),X302) -> 100 | Y300: =X300*AVERAGEIF(Y305:Y316,">0")/100 -> 95.35015869 | Z300: =X300*(100-AVERAGEIF(Y305:Y316,">0"))/100 -> 4.64984131 | AA300: =100-(Y300+Z300+AB300) -> 0 | AB300: =IF((X302+AB302)>100,AB302*100/(X302+AB302),AB302) -> 0
A301: Regression period: | C301: =MinRegYear(C299,C305:C316) -> 2001 | D301: =IF(MAX(C305:C316)-MIN(C305:C316)<5,AVERAGEIF(C305:C316,">0",D305:D316), IF(FORECAST($C301,D$305:D$316,$C$305:$C$316)<0,0, IF(FORECAST($C301,D$305:D$316,$C$305:$C$316)>100,100, FORECAST($C301,D$305:D$316,$C$305:$C$316)))) -> 18.11853329 | H301: =IF(MAX(C305:C316)-MIN(C305:C316)<5,AVERAGEIF(C305:C316,">0",H305:H316), IF(FORECAST($C301,H$305:H$316,$C$305:$C$316)<0,0, IF(FORECAST($C301,H$305:H$316,$C$305:$C$316)>100,100, FORECAST($C301,H$305:H$316,$C$305:$C$316)))) -> 59.34629847 | I301: =IF(MAX(C305:C316)-MIN(C305:C316)<5,AVERAGEIF(C305:C316,">0",I305:I316), IF(FORECAST($C301,I$305:I$316,$C$305:$C$316)<0,0, IF(FORECAST($C301,I$305:I$316,$C$305:$C$316)>100,100, FORECAST($C301,I$305:I$316,$C$305:$C$316)))) -> 28.71330538 | M301: =IF(MAX(C305:C316)-MIN(C305:C316)<5,AVERAGEIF(C305:C316,">0",M305:M316), IF(FORECAST($C301,M$305:M$316,$C$305:$C$316)<0,0, IF(FORECAST($C301,M$305:M$316,$C$305:$C$316)>100,100, FORECAST($C301,M$305:M$316,$C$305:$C$316)))) -> 47.10525526 | N301: =IF(MAX(C305:C316)-MIN(C305:C316)<5,AVERAGEIF(C305:C316,">0",N305:N316), IF(FORECAST($C301,N$305:N$316,$C$305:$C$316)<0,0, IF(FORECAST($C301,N$305:N$316,$C$305:$C$316)>100,100, FORECAST($C301,N$305:N$316,$C$305:$C$316)))) -> 36.24884358 | R301: =IF(MAX(C305:C316)-MIN(C305:C316)<5,AVERAGEIF(C305:C316,">0",R305:R316), IF(FORECAST($C301,R$305:R$316,$C$305:$C$316)<0,0, IF(FORECAST($C301,R$305:R$316,$C$305:$C$316)>100,100, FORECAST($C301,R$305:R$316,$C$305:$C$316)))) -> 38.15190537 | S301: =IF(MAX(C305:C316)-MIN(C305:C316)<5,AVERAGEIF(C305:C316,">0",S305:S316), IF(FORECAST($C301,S$305:S$316,$C$305:$C$316)<0,0, IF(FORECAST($C301,S$305:S$316,$C$305:$C$316)>100,100, FORECAST($C301,S$305:S$316,$C$305:$C$316)))) -> 47.568665 | W301: =IF(MAX(C305:C316)-MIN(C305:C316)<5,AVERAGEIF(C305:C316,">0",W305:W316), IF(FORECAST($C301,W$305:W$316,$C$305:$C$316)<0,0, IF(FORECAST($C301,W$305:W$316,$C$305:$C$316)>100,100, FORECAST($C301,W$305:W$316,$C$305:$C$316)))) -> 30.67219371 | X301: =IF(MAX(C305:C316)-MIN(C305:C316)<5,AVERAGEIF(C305:C316,">0",X305:X316), IF(FORECAST($C301,X$305:X$316,$C$305:$C$316)<0,0, IF(FORECAST($C301,X$305:X$316,$C$305:$C$316)>100,100, FORECAST($C301,X$305:X$316,$C$305:$C$316)))) -> 68.57122639 | AB301: =IF(MAX(C305:C316)-MIN(C305:C316)<5,AVERAGEIF(C305:C316,">0",AB305:AB316), IF(FORECAST($C301,AB$305:AB$316,$C$305:$C$316)<0,0, IF(FORECAST($C301,AB$305:AB$316,$C$305:$C$316)>100,100, FORECAST($C301,AB$305:AB$316,$C$305:$C$316)))) -> 15.63312224
C302: =MaxRegYear(C300,C305:C316) -> 2019 | D302: =IF(MAX(C305:C316)-MIN(C305:C316)<5,AVERAGEIF(C305:C316,">0",D305:D316), IF(FORECAST($C302,D$305:D$316,$C$305:$C$316)<0,0, IF(FORECAST($C302,D$305:D$316,$C$305:$C$316)>100,100, FORECAST($C302,D$305:D$316,$C$305:$C$316)))) -> 61.76979967 | H302: =IF(MAX(C305:C316)-MIN(C305:C316)<5,AVERAGEIF(C305:C316,">0",H305:H316), IF(FORECAST($C302,H$305:H$316,$C$305:$C$316)<0,0, IF(FORECAST($C302,H$305:H$316,$C$305:$C$316)>100,100, FORECAST($C302,H$305:H$316,$C$305:$C$316)))) -> 30.920669 | I302: =IF(MAX(C305:C316)-MIN(C305:C316)<5,AVERAGEIF(C305:C316,">0",I305:I316), IF(FORECAST($C302,I$305:I$316,$C$305:$C$316)<0,0, IF(FORECAST($C302,I$305:I$316,$C$305:$C$316)>100,100, FORECAST($C302,I$305:I$316,$C$305:$C$316)))) -> 79.9869299 | M302: =IF(MAX(C305:C316)-MIN(C305:C316)<5,AVERAGEIF(C305:C316,">0",M305:M316), IF(FORECAST($C302,M$305:M$316,$C$305:$C$316)<0,0, IF(FORECAST($C302,M$305:M$316,$C$305:$C$316)>100,100, FORECAST($C302,M$305:M$316,$C$305:$C$316)))) -> 15.76370766 | N302: =IF(MAX(C305:C316)-MIN(C305:C316)<5,AVERAGEIF(C305:C316,">0",N305:N316), IF(FORECAST($C302,N$305:N$316,$C$305:$C$316)<0,0, IF(FORECAST($C302,N$305:N$316,$C$305:$C$316)>100,100, FORECAST($C302,N$305:N$316,$C$305:$C$316)))) -> 89.35165427 | R302: =IF(MAX(C305:C316)-MIN(C305:C316)<5,AVERAGEIF(C305:C316,">0",R305:R316), IF(FORECAST($C302,R$305:R$316,$C$305:$C$316)<0,0, IF(FORECAST($C302,R$305:R$316,$C$305:$C$316)>100,100, FORECAST($C302,R$305:R$316,$C$305:$C$316)))) -> 9.204084471 | S302: =IF(MAX(C305:C316)-MIN(C305:C316)<5,AVERAGEIF(C305:C316,">0",S305:S316), IF(FORECAST($C302,S$305:S$316,$C$305:$C$316)<0,0, IF(FORECAST($C302,S$305:S$316,$C$305:$C$316)>100,100, FORECAST($C302,S$305:S$316,$C$305:$C$316)))) -> 97.56419892 | W302: =IF(MAX(C305:C316)-MIN(C305:C316)<5,AVERAGEIF(C305:C316,">0",W305:W316), IF(FORECAST($C302,W$305:W$316,$C$305:$C$316)<0,0, IF(FORECAST($C302,W$305:W$316,$C$305:$C$316)>100,100, FORECAST($C302,W$305:W$316,$C$305:$C$316)))) -> 2.94872641 | X302: =IF(MAX(C305:C316)-MIN(C305:C316)<5,AVERAGEIF(C305:C316,">0",X305:X316), IF(FORECAST($C302,X$305:X$316,$C$305:$C$316)<0,0, IF(FORECAST($C302,X$305:X$316,$C$305:$C$316)>100,100, FORECAST($C302,X$305:X$316,$C$305:$C$316)))) -> 100 | AB302: =IF(MAX(C305:C316)-MIN(C305:C316)<5,AVERAGEIF(C305:C316,">0",AB305:AB316), IF(FORECAST($C302,AB$305:AB$316,$C$305:$C$316)<0,0, IF(FORECAST($C302,AB$305:AB$316,$C$305:$C$316)>100,100, FORECAST($C302,AB$305:AB$316,$C$305:$C$316)))) -> 0
B304: Survey | C304: Year | D304: Improved | E304: Not shared | H304: Open defecation | I304: Improved | J304: Not shared | M304: Open defecation | N304: Improved | O304: Not shared | R304: Open defecation | S304: Improved | T304: Not shared | W304: Open defecation | X304: Improved | Y304: Not shared | AB304: Open defecation
B305: DHS03 | C305: 2003 | D305: =IF(ISERROR(INDIRECT(CONCATENATE($B305,"!M122"))),"",INDIRECT(CONCATENATE($B305,"!M122"))) -> 25.42537294 | E305: =IF(ISERROR(INDIRECT(CONCATENATE($B305,"!M129"))),"",INDIRECT(CONCATENATE($B305,"!M129"))) -> N/A | H305: =IF(ISERROR(INDIRECT(CONCATENATE($B305,"!M127"))),"",INDIRECT(CONCATENATE($B305,"!M127"))) -> 52.49493522 | I305: =IF(ISERROR(INDIRECT(CONCATENATE($B305,"!N122"))),"",INDIRECT(CONCATENATE($B305,"!N122"))) -> 36.64094341 | J305: =IF(ISERROR(INDIRECT(CONCATENATE($B305,"!N129"))),"",INDIRECT(CONCATENATE($B305,"!N129"))) -> N/A | M305: =IF(ISERROR(INDIRECT(CONCATENATE($B305,"!N127"))),"",INDIRECT(CONCATENATE($B305,"!N127"))) -> 41.30242653 | N305: =IF(ISERROR(INDIRECT(CONCATENATE($B305,"!O122"))),"",INDIRECT(CONCATENATE($B305,"!O122"))) -> 44.53265226 | O305: =IF(ISERROR(INDIRECT(CONCATENATE($B305,"!O129"))),"",INDIRECT(CONCATENATE($B305,"!O129"))) -> N/A | R305: =IF(ISERROR(INDIRECT(CONCATENATE($B305,"!O127"))),"",INDIRECT(CONCATENATE($B305,"!O127"))) -> 32.06702061 | S305: =IF(ISERROR(INDIRECT(CONCATENATE($B305,"!P122"))),"",INDIRECT(CONCATENATE($B305,"!P122"))) -> 53.28648992 | T305: =IF(ISERROR(INDIRECT(CONCATENATE($B305,"!P129"))),"",INDIRECT(CONCATENATE($B305,"!P129"))) -> N/A | W305: =IF(ISERROR(INDIRECT(CONCATENATE($B305,"!P127"))),"",INDIRECT(CONCATENATE($B305,"!P127"))) -> 26.59739895 | X305: =IF(ISERROR(INDIRECT(CONCATENATE($B305,"!Q122"))),"",INDIRECT(CONCATENATE($B305,"!Q122"))) -> 71.25932857 | Y305: =IF(ISERROR(INDIRECT(CONCATENATE($B305,"!Q129"))),"",INDIRECT(CONCATENATE($B305,"!Q129"))) -> N/A | AB305: =IF(ISERROR(INDIRECT(CONCATENATE($B305,"!Q2127"))),"",INDIRECT(CONCATENATE($B305,"!Q127"))) -> 14.12866553
B306: DHS07 | C306: 2007 | D306: 31.85243107 | E306: 59.5610417 | H306: 54.00871121 | I306: 44.38474252 | J306: 76.59684097 | M306: 39.96927797 | N306: 51.84876378 | O306: 83.5358318 | R306: 32.39272383 | S306: 63.31157208 | T306: 89.30277864 | W306: 23.77451187 | X306: 81.13870876 | Y306: 95.35015869 | AB306: 10.00169088
B307: DHS12 | C307: 2012 | D307: 39.54859885 | E307: N/A | H307: 44.04012326 | I307: 56.64113689 | J307: N/A | M307: 27.82689354 | N307: 66.22880474 | O307: N/A | R307: 20.71307479 | S307: 79.51028939 | T307: N/A | W307: 11.82747356 | X307: 90.08540117 | Y307: N/A | AB307: 4.750593142
B308: DHS17 | C308: 2017 | D308: 60.52519271 | E308: N/A | H308: 31.56936688 | I308: 76.88511303 | J308: N/A | M308: 18.3805249 | N308: 85.64061876 | O308: N/A | R308: 11.14737272 | S308: 91.37984679 | T308: N/A | W308: 6.582648489 | X308: 98.10055438 | Y308: N/A | AB308: 1.395404044
B318: =CONCATENATE("Rural use of sanitation facilities, ",C299,"–",C300) -> Rural use of sanitation facilities, 2000–2020 | S318: Data points used for regression

Sheet Hygiene
B4: Access to hygiene facilities by wealth quintile (%)
B5: =IF(ISERROR(INDIRECT(CONCATENATE($E$32,"!A2"))),"",INDIRECT(CONCATENATE($E$32,"!A2"))) -> Indonesia
B7: =CONCATENATE("National ",IF(ISERROR(INDIRECT(CONCATENATE($E$32,"!A2"))),"",INDIRECT(CONCATENATE($E$32,"!A210")))) -> National Access to hygiene facilities | K7: =CONCATENATE("Urban ",IF(ISERROR(INDIRECT(CONCATENATE($E$32,"!A2"))),"",INDIRECT(CONCATENATE($E$32,"!A210")))) -> Urban Access to hygiene facilities | S7: =CONCATENATE("Rural ",IF(ISERROR(INDIRECT(CONCATENATE($E$32,"!A2"))),"",INDIRECT(CONCATENATE($E$32,"!A210")))) -> Rural Access to hygiene facilities
E32: =INDEX(B88:B100,A88) -> DHS12 | G32: =IF(ISERROR(INDIRECT(CONCATENATE($E$32,"!A2"))),"",INDIRECT(CONCATENATE($E$32,"!A2"))) -> Indonesia | K32: Poorest | N32: Poor | Q32: Middle | T32: Rich | W32: Richest
K33: Basic | L33: Limited | M33: No facility | N33: Basic | O33: Limited | P33: No facility | Q33: Basic | R33: Limited | S33: No facility | T33: Basic | U33: Limited | V33: No facility | W33: Basic | X33: Limited | Y33: No facility
B34: >>> Select Survey : | G34: NATIONAL | J34: =IF(ISERROR(INDIRECT(CONCATENATE(#REF!,"!A2"))),"",INDIRECT(CONCATENATE(#REF!,"!A210"))) ->  | K34: =IF(ISERROR(INDIRECT(CONCATENATE($E$32,"!C222"))),"",INDIRECT(CONCATENATE($E$32,"!C222"))) -> 45.43539054 | L34: =IF(ISERROR(INDIRECT(CONCATENATE($E$32,"!C223"))),"",INDIRECT(CONCATENATE($E$32,"!C223"))) -> 12.19675776 | M34: =IF(ISERROR(INDIRECT(CONCATENATE($E$32,"!C224"))),"",INDIRECT(CONCATENATE($E$32,"!C224"))) -> 42.3678517 | N34: =IF(ISERROR(INDIRECT(CONCATENATE($E$32,"!D222"))),"",INDIRECT(CONCATENATE($E$32,"!D222"))) -> 67.44631027 | O34: =IF(ISERROR(INDIRECT(CONCATENATE($E$32,"!D223"))),"",INDIRECT(CONCATENATE($E$32,"!D223"))) -> 8.0147994 | P34: =IF(ISERROR(INDIRECT(CONCATENATE($E$32,"!D224"))),"",INDIRECT(CONCATENATE($E$32,"!D224"))) -> 24.53889032 | Q34: =IF(ISERROR(INDIRECT(CONCATENATE($E$32,"!E222"))),"",INDIRECT(CONCATENATE($E$32,"!E222"))) -> 79.96032075 | R34: =IF(ISERROR(INDIRECT(CONCATENATE($E$32,"!E223"))),"",INDIRECT(CONCATENATE($E$32,"!E223"))) -> 5.0100306 | S34: =IF(ISERROR(INDIRECT(CONCATENATE($E$32,"!E224"))),"",INDIRECT(CONCATENATE($E$32,"!E224"))) -> 15.02964865 | T34: =IF(ISERROR(INDIRECT(CONCATENATE($E$32,"!F222"))),"",INDIRECT(CONCATENATE($E$32,"!F222"))) -> 89.88633148 | U34: =IF(ISERROR(INDIRECT(CONCATENATE($E$32,"!F223"))),"",INDIRECT(CONCATENATE($E$32,"!F223"))) -> 3.21775016 | V34: =IF(ISERROR(INDIRECT(CONCATENATE($E$32,"!F224"))),"",INDIRECT(CONCATENATE($E$32,"!F224"))) -> 6.895918355 | W34: =IF(ISERROR(INDIRECT(CONCATENATE($E$32,"!G222"))),"",INDIRECT(CONCATENATE($E$32,"!G222"))) -> 95.76692232 | X34: =IF(ISERROR(INDIRECT(CONCATENATE($E$32,"!G223"))),"",INDIRECT(CONCATENATE($E$32,"!G223"))) -> 1.468723234 | Y34: =IF(ISERROR(INDIRECT(CONCATENATE($E$32,"!G224"))),"",INDIRECT(CONCATENATE($E$32,"!G224"))) -> 2.764354447
G37: URBAN | J37: =IF(ISERROR(INDIRECT(CONCATENATE(#REF!,"!A2"))),"",INDIRECT(CONCATENATE(#REF!,"!A210"))) ->  | K37: =IF(ISERROR(INDIRECT(CONCATENATE($E$32,"!H222"))),"",INDIRECT(CONCATENATE($E$32,"!H222"))) -> 64.73192634 | L37: =IF(ISERROR(INDIRECT(CONCATENATE($E$32,"!H223"))),"",INDIRECT(CONCATENATE($E$32,"!H223"))) -> 8.601242221 | M37: =IF(ISERROR(INDIRECT(CONCATENATE($E$32,"!H224"))),"",INDIRECT(CONCATENATE($E$32,"!H224"))) -> 26.66683144 | N37: =IF(ISERROR(INDIRECT(CONCATENATE($E$32,"!I222"))),"",INDIRECT(CONCATENATE($E$32,"!I222"))) -> 82.42909116 | O37: =IF(ISERROR(INDIRECT(CONCATENATE($E$32,"!I223"))),"",INDIRECT(CONCATENATE($E$32,"!I223"))) -> 4.047946076 | P37: =IF(ISERROR(INDIRECT(CONCATENATE($E$32,"!I224"))),"",INDIRECT(CONCATENATE($E$32,"!I224"))) -> 13.52296277 | Q37: =IF(ISERROR(INDIRECT(CONCATENATE($E$32,"!J222"))),"",INDIRECT(CONCATENATE($E$32,"!J222"))) -> 90.28068577 | R37: =IF(ISERROR(INDIRECT(CONCATENATE($E$32,"!J223"))),"",INDIRECT(CONCATENATE($E$32,"!J223"))) -> 2.654026105 | S37: =IF(ISERROR(INDIRECT(CONCATENATE($E$32,"!J224"))),"",INDIRECT(CONCATENATE($E$32,"!J224"))) -> 7.065288125 | T37: =IF(ISERROR(INDIRECT(CONCATENATE($E$32,"!K222"))),"",INDIRECT(CONCATENATE($E$32,"!K222"))) -> 93.89255623 | U37: =IF(ISERROR(INDIRECT(CONCATENATE($E$32,"!K223"))),"",INDIRECT(CONCATENATE($E$32,"!K223"))) -> 1.998241831 | V37: =IF(ISERROR(INDIRECT(CONCATENATE($E$32,"!K224"))),"",INDIRECT(CONCATENATE($E$32,"!K224"))) -> 4.109201941 | W37: =IF(ISERROR(INDIRECT(CONCATENATE($E$32,"!L222"))),"",INDIRECT(CONCATENATE($E$32,"!L222"))) -> 96.7217348 | X37: =IF(ISERROR(INDIRECT(CONCATENATE($E$32,"!L223"))),"",INDIRECT(CONCATENATE($E$32,"!L223"))) -> 1.196476309 | Y37: =IF(ISERROR(INDIRECT(CONCATENATE($E$32,"!L224"))),"",INDIRECT(CONCATENATE($E$32,"!L224"))) -> 2.081788887
G40: RURAL | J40: =IF(ISERROR(INDIRECT(CONCATENATE(#REF!,"!A2"))),"",INDIRECT(CONCATENATE(#REF!,"!A210"))) ->  | K40: =IF(ISERROR(INDIRECT(CONCATENATE($E$32,"!M222"))),"",INDIRECT(CONCATENATE($E$32,"!M222"))) -> 36.73095792 | L40: =IF(ISERROR(INDIRECT(CONCATENATE($E$32,"!M223"))),"",INDIRECT(CONCATENATE($E$32,"!M223"))) -> 13.59042477 | M40: =IF(ISERROR(INDIRECT(CONCATENATE($E$32,"!M224"))),"",INDIRECT(CONCATENATE($E$32,"!M224"))) -> 49.67861731 | N40: =IF(ISERROR(INDIRECT(CONCATENATE($E$32,"!N222"))),"",INDIRECT(CONCATENATE($E$32,"!N222"))) -> 57.95694295 | O40: =IF(ISERROR(INDIRECT(CONCATENATE($E$32,"!N223"))),"",INDIRECT(CONCATENATE($E$32,"!N223"))) -> 10.02423549 | P40: =IF(ISERROR(INDIRECT(CONCATENATE($E$32,"!N224"))),"",INDIRECT(CONCATENATE($E$32,"!N224"))) -> 32.01882156 | Q40: =IF(ISERROR(INDIRECT(CONCATENATE($E$32,"!O222"))),"",INDIRECT(CONCATENATE($E$32,"!O222"))) -> 66.72620397 | R40: =IF(ISERROR(INDIRECT(CONCATENATE($E$32,"!O223"))),"",INDIRECT(CONCATENATE($E$32,"!O223"))) -> 8.161884435 | S40: =IF(ISERROR(INDIRECT(CONCATENATE($E$32,"!O224"))),"",INDIRECT(CONCATENATE($E$32,"!O224"))) -> 25.11191159 | T40: =IF(ISERROR(INDIRECT(CONCATENATE($E$32,"!P222"))),"",INDIRECT(CONCATENATE($E$32,"!P222"))) -> 77.75995375 | U40: =IF(ISERROR(INDIRECT(CONCATENATE($E$32,"!P223"))),"",INDIRECT(CONCATENATE($E$32,"!P223"))) -> 5.82903451 | V40: =IF(ISERROR(INDIRECT(CONCATENATE($E$32,"!P224"))),"",INDIRECT(CONCATENATE($E$32,"!P224"))) -> 16.41101175 | W40: =IF(ISERROR(INDIRECT(CONCATENATE($E$32,"!Q222"))),"",INDIRECT(CONCATENATE($E$32,"!Q222"))) -> 90.23986217 | X40: =IF(ISERROR(INDIRECT(CONCATENATE($E$32,"!Q223"))),"",INDIRECT(CONCATENATE($E$32,"!Q223"))) -> 3.60797076 | Y40: =IF(ISERROR(INDIRECT(CONCATENATE($E$32,"!Q224"))),"",INDIRECT(CONCATENATE($E$32,"!Q224"))) -> 6.152167074
A88: 3 | B88: DHS03
B89: DHS07
B90: DHS12
B91: DHS17
B92: Template

Sheet DHS03
A2: =A1026 -> Indonesia
A3: =A1034 -> 2003
A4: Use of drinking water sources
A5: by wealth quintile and sub-national region
A6: Notes:
A7: WHO/UNICEF JMP customised wealth index excludes water,
A8: sanitation and hygiene assets.
A9: Survey used for analysis: | B9: =A1025 -> DHS03
A10: Time to improved water based on: | B10: Water point at more than 30 min.
A11: Improved springs based on: | B11: 50% Rule
A14: Use of drinking water sources | C14: NATIONAL wealth index quintile | H14: URBAN wealth index quintile | M14: RURAL wealth index quintile | R14: REGIONS | BA14: Raw numbers of respondents: | BB14: Use of drinking water sources | BC14: NATIONAL wealth index quintile | BH14: URBAN wealth index quintile | BM14: RURAL wealth index quintile | BR14: SUB-REGIONS:
A15: Weighted percentage (used in graphs) | C15: Poorest | D15: Poor | E15: Middle | F15: Rich | G15: Richest | H15: Poorest | I15: Poor | J15: Middle | K15: Rich | L15: Richest | M15: Poorest | N15: Poor | O15: Middle | P15: Rich | Q15: Richest | R15: Bali | S15: Bangka Belitung | T15: Banten | U15: Bengkulu | V15: Cenrtal Sulawesi | W15: Central Java | X15: Central Kalimantan | Y15: DI Aceh | Z15: DI Yogyakarta | AA15: DKI Jakarta | AB15: East Java | AC15: East Kalimantan | AD15: East Nusa Tenggara | AE15: East Timor | AF15: Gorontalo | AG15: Irian Jaya | AH15: Jambi | AI15: Lampung | AJ15: Maluku | AK15: North Sulawesi | AL15: North Sumatra | AM15: Riau | AN15: South Kalimantan | AO15: South Sulawesi | AP15: South Sumatra | AQ15: Southeast Sulawesi | AR15: West Java | AS15: West Kalimantan | AT15: West Nusa Tenggara | AU15: West Sumatra | BA15: Water data, raw numbers (weighted) | BC15: Poorest | BD15: Poor | BE15: Middle | BF15: Rich | BG15: Richest | BH15: Poorest | BI15: Poor | BJ15: Middle | BK15: Rich | BL15: Richest | BM15: Poorest | BN15: Poor | BO15: Middle | BP15: Rich | BQ15: Richest
A16: Water | B16: Improved | C16: =C58+C59+C60+C64+C65+C66+C71+C72+C73+C67*0.5 -> 53.78536609 | D16: 66.77981948 | E16: 74.37268648 | F16: 80.79841677 | G16: 89.79468103 | H16: 74.52363867 | I16: 79.81893715 | J16: 84.7292792 | K16: 88.46672454 | L16: 94.13793771 | M16: 47.87434743 | N16: 60.09207224 | O16: 62.76899946 | P16: 70.1044298 | Q16: 74.99031589 | R16: 85.68025017 | S16: 61.30974604 | T16: 83.59393124 | U16: 56.95000165 | V16: 65.7941637 | W16: 77.17819653 | X16: 49.54231833 | Y16: N/A | Z16: =Z58+Z59+Z60+Z64+Z65+Z66+Z71+Z72+Z73+Z67*0.5 -> 81.7469975 | AA16: =AA58+AA59+AA60+AA64+AA65+AA66+AA71+AA72+AA73+AA67*0.5 -> 89.28562592 | AB16: =AB58+AB59+AB60+AB64+AB65+AB66+AB71+AB72+AB73+AB67*0.5 -> 81.84872924 | AC16: =AC58+AC59+AC60+AC64+AC65+AC66+AC71+AC72+AC73+AC67*0.5 -> 75.76784955 | AD16: =AD58+AD59+AD60+AD64+AD65+AD66+AD71+AD72+AD73+AD67*0.5 -> 60.44268048 | AE16: N/A | AF16: =AF58+AF59+AF60+AF64+AF65+AF66+AF71+AF72+AF73+AF67*0.5 -> 70.5308316 | AG16: N/A | AH16: =AH58+AH59+AH60+AH64+AH65+AH66+AH71+AH72+AH73+AH67*0.5 -> 66.89682277 | AI16: =AI58+AI59+AI60+AI64+AI65+AI66+AI71+AI72+AI73+AI67*0.5 -> 65.00235334 | AJ16: N/A | AK16: =AK58+AK59+AK60+AK64+AK65+AK66+AK71+AK72+AK73+AK67*0.5 -> 61.3522182 | AL16: 61.73874539 | AM16: 73.20187915 | AN16: 58.1318522 | AO16: 79.09982161 | AP16: 56.50216982 | AQ16: 65.10406897 | AR16: 69.69166384 | AS16: 68.61893385 | AT16: 71.17510312 | AU16: 69.06510291 | BA16: Water | BB16: Improved | BC16: N/A | BD16: N/A | BE16: N/A | BF16: N/A | BG16: N/A | BH16: N/A | BI16: N/A | BJ16: N/A | BK16: N/A | BL16: N/A | BM16: N/A | BN16: N/A | BO16: N/A | BP16: N/A | BQ16: N/A | BR16: N/A | BS16: N/A | BT16: N/A | BU16: N/A | BV16: N/A | BW16: N/A | BX16: N/A | BY16: N/A | BZ16: N/A | CA16: N/A | CB16: N/A | CC16: N/A | CD16: N/A | CE16: N/A | CF16: N/A | CG16: N/A | CH16: N/A | CI16: N/A | CJ16: N/A | CK16: N/A | CL16: N/A | CM16: N/A | CN16: N/A | CO16: N/A | CP16: N/A | CQ16: N/A | CR16: N/A | CS16: N/A | CT16: N/A | CU16: N/A | CV16: N/A | CW16: N/A | CX16: N/A | CY16: N/A | CZ16: N/A
B17: Not Improved | C17: =100-C16 -> 46.21463391 | D17: =100-D16 -> 33.22018052 | E17: 25.62731352 | F17: 19.20158323 | G17: 10.20531897 | H17: 25.47636133 | I17: 20.18106285 | J17: 15.2707208 | K17: 11.53327546 | L17: 5.86206229 | M17: 52.12565257 | N17: 39.90792776 | O17: 37.23100054 | P17: 29.8955702 | Q17: 25.00968411 | R17: 14.31974983 | S17: 38.69025396 | T17: 16.40606876 | U17: 43.04999835 | V17: 34.2058363 | W17: 22.82180347 | X17: 50.45768167 | Y17: N/A | Z17: 18.2530025 | AA17: 10.71437408 | AB17: 18.15127076 | AC17: 24.23215045 | AD17: 39.55731952 | AE17: N/A | AF17: 29.4691684 | AG17: N/A | AH17: 33.10317723 | AI17: 34.99764666 | AJ17: N/A | AK17: 38.6477818 | AL17: 38.26125461 | AM17: 26.79812085 | AN17: 41.8681478 | AO17: 20.90017839 | AP17: 43.49783018 | AQ17: 34.89593103 | AR17: 30.30833616 | AS17: 31.38106615 | AT17: 28.82489688 | AU17: 30.93489709 | BB17: Not Improved | BC17: N/A | BD17: N/A | BE17: N/A | BF17: N/A | BG17: N/A | BH17: N/A | BI17: N/A | BJ17: N/A | BK17: N/A | BL17: N/A | BM17: N/A | BN17: N/A | BO17: N/A | BP17: N/A | BQ17: N/A | BR17: N/A | BS17: N/A | BT17: N/A | BU17: N/A | BV17: N/A | BW17: N/A | BX17: N/A | BY17: N/A | BZ17: N/A | CA17: N/A | CB17: N/A | CC17: N/A | CD17: N/A | CE17: N/A | CF17: N/A | CG17: N/A | CH17: N/A | CI17: N/A | CJ17: N/A | CK17: N/A | CL17: N/A | CM17: N/A | CN17: N/A | CO17: N/A | CP17: N/A | CQ17: N/A | CR17: N/A | CS17: N/A | CT17: N/A | CU17: N/A | CV17: N/A | CW17: N/A | CX17: N/A | CY17: N/A | CZ17: N/A
A18: Water ladder | B18: Basic | C18: =C16*C42/100 -> 51.34420562 | D18: 65.0214045 | E18: 72.54928462 | F18: 80.30958233 | G18: 89.49757095 | H18: 74.4432666 | I18: 79.81395963 | J18: 84.65130901 | K18: 88.36181131 | L18: 93.90292775 | M18: 45.10627696 | N18: 58.37733649 | O18: 59.79638945 | P18: 66.68865981 | Q18: 73.87019511 | R18: 84.11452117 | S18: 60.59630115 | T18: 83.59393124 | U18: 56.43562579 | V18: 61.98168553 | W18: 76.8937016 | X18: 49.35907081 | Y18: N/A | Z18: =Z16*Z42/100 -> 75.5515094 | AA18: =AA16*AA42/100 -> 89.28562592 | AB18: =AB16*AB42/100 -> 79.50811634 | AC18: =AC16*AC42/100 -> 74.5944894 | AD18: =AD16*AD42/100 -> 48.52011308 | AE18: N/A | AF18: =AF16*AF42/100 -> 64.21658444 | AG18: N/A | AH18: =AH16*AH42/100 -> 66.79636778 | AI18: =AI16*AI42/100 -> 64.36039275 | AJ18: N/A | AK18: =AK16*AK42/100 -> 60.20621242 | AL18: 61.09612936 | AM18: 72.67322038 | AN18: 57.79353911 | AO18: 78.75997897 | AP18: 56.50216982 | AQ18: 61.70495239 | AR18: 67.63163799 | AS18: 67.96995061 | AT18: 70.0766277 | AU18: 69.00440075 | BA18: Water ladder | BB18: Basic | BC18: N/A | BD18: N/A | BE18: N/A | BF18: N/A | BG18: N/A | BH18: N/A | BI18: N/A | BJ18: N/A | BK18: N/A | BL18: N/A | BM18: N/A | BN18: N/A | BO18: N/A | BP18: N/A | BQ18: N/A | BR18: N/A | BS18: N/A | BT18: N/A | BU18: N/A | BV18: N/A | BW18: N/A | BX18: N/A | BY18: N/A | BZ18: N/A | CA18: N/A | CB18: N/A | CC18: N/A | CD18: N/A | CE18: N/A | CF18: N/A | CG18: N/A | CH18: N/A | CI18: N/A | CJ18: N/A | CK18: N/A | CL18: N/A | CM18: N/A | CN18: N/A | CO18: N/A | CP18: N/A | CQ18: N/A | CR18: N/A | CS18: N/A | CT18: N/A | CU18: N/A | CV18: N/A | CW18: N/A | CX18: N/A | CY18: N/A | CZ18: N/A
B19: Limited | C19: =C16*C41/100 -> 2.441160472 | D19: 1.758414986 | E19: 1.823401865 | F19: 0.4888344357 | G19: 0.2971100723 | H19: 0.08037206934 | I19: 0.004977513937 | J19: 0.07797018593 | K19: 0.1049132239 | L19: 0.2350099568 | M19: 2.768070471 | N19: 1.714735753 | O19: 2.97261001 | P19: 3.415769983 | Q19: 1.120120781 | R19: 1.565729 | S19: 0.7134448959 | T19: 0 | U19: 0.5143758532 | V19: 3.81247817 | W19: 0.2844949285 | X19: 0.1832475219 | Y19: N/A | Z19: =Z16*Z41/100 -> 6.195488109 | AA19: =AA16*AA41/100 -> 0 | AB19: =AB16*AB41/100 -> 2.3406129 | AC19: =AC16*AC41/100 -> 1.17336015 | AD19: =AD16*AD41/100 -> 11.9225674 | AE19: N/A | AF19: =AF16*AF41/100 -> 6.314247159 | AG19: N/A | AH19: =AH16*AH41/100 -> 0.1004549888 | AI19: =AI16*AI41/100 -> 0.6419605964 | AJ19: N/A | AK19: =AK16*AK41/100 -> 1.146005776 | AL19: 0.642616035 | AM19: 0.5286587681 | AN19: 0.3383130855 | AO19: 0.3398426393 | AP19: 0 | AQ19: 3.399116582 | AR19: 2.060025853 | AS19: 0.648983238 | AT19: 1.098475414 | AU19: 0.06070215926 | BB19: Limited | BC19: N/A | BD19: N/A | BE19: N/A | BF19: N/A | BG19: N/A | BH19: N/A | BI19: N/A | BJ19: N/A | BK19: N/A | BL19: N/A | BM19: N/A | BN19: N/A | BO19: N/A | BP19: N/A | BQ19: N/A | BR19: N/A | BS19: N/A | BT19: N/A | BU19: N/A | BV19: N/A | BW19: N/A | BX19: N/A | BY19: N/A | BZ19: N/A | CA19: N/A | CB19: N/A | CC19: N/A | CD19: N/A | CE19: N/A | CF19: N/A | CG19: N/A | CH19: N/A | CI19: N/A | CJ19: N/A | CK19: N/A | CL19: N/A | CM19: N/A | CN19: N/A | CO19: N/A | CP19: N/A | CQ19: N/A | CR19: N/A | CS19: N/A | CT19: N/A | CU19: N/A | CV19: N/A | CW19: N/A | CX19: N/A | CY19: N/A | CZ19: N/A
B20: Unimproved | C20: =100-(C18+C19+C21) -> 35.60103266 | D20: =100-(D18+D19+D21) -> 29.71838198 | E20: 24.10270271 | F20: 17.8087045 | G20: 10.00794096 | H20: 24.51663465 | I20: 20.06357647 | J20: 14.97942114 | K20: 11.47082869 | L20: 5.855628684 | M20: 38.19108439 | N20: 32.33424143 | O20: 33.02777406 | P20: 27.20757091 | Q20: 22.20061163 | R20: 12.68510179 | S20: 37.44626858 | T20: 14.05842875 | U20: 41.59920545 | V20: 26.97105456 | W20: 22.2899024 | X20: 14.90103419 | Y20: N/A | Z20: 18.2530025 | AA20: 10.71437408 | AB20: 15.83690007 | AC20: 9.608611633 | AD20: 35.62284964 | AE20: N/A | AF20: 20.23402048 | AG20: N/A | AH20: 22.81762962 | AI20: 34.06974102 | AJ20: N/A | AK20: 38.49300681 | AL20: 31.68125251 | AM20: 26.41591159 | AN20: 20.99451172 | AO20: 18.6424086 | AP20: 31.24040255 | AQ20: 29.68075077 | AR20: 29.3096625 | AS20: 11.49220864 | AT20: 28.4914691 | AU20: 28.95155432 | BB20: Unimproved | BC20: N/A | BD20: N/A | BE20: N/A | BF20: N/A | BG20: N/A | BH20: N/A | BI20: N/A | BJ20: N/A | BK20: N/A | BL20: N/A | BM20: N/A | BN20: N/A | BO20: N/A | BP20: N/A | BQ20: N/A | BR20: N/A | BS20: N/A | BT20: N/A | BU20: N/A | BV20: N/A | BW20: N/A | BX20: N/A | BY20: N/A | BZ20: N/A | CA20: N/A | CB20: N/A | CC20: N/A | CD20: N/A | CE20: N/A | CF20: N/A | CG20: N/A | CH20: N/A | CI20: N/A | CJ20: N/A | CK20: N/A | CL20: N/A | CM20: N/A | CN20: N/A | CO20: N/A | CP20: N/A | CQ20: N/A | CR20: N/A | CS20: N/A | CT20: N/A | CU20: N/A | CV20: N/A | CW20: N/A | CX20: N/A | CY20: N/A | CZ20: N/A
B21: Surface water | C21: =C68+C69+C70 -> 10.61360125 | D21: 3.501798535 | E21: 1.524610805 | F21: 1.392878729 | G21: 0.1973780159 | H21: 0.9597266807 | I21: 0.1174863884 | J21: 0.2912996573 | K21: 0.06244677135 | L21: 0.006433605585 | M21: 13.93456818 | N21: 7.573686325 | O21: 4.203226482 | P21: 2.68799929 | Q21: 2.809072472 | R21: 1.634648042 | S21: 1.243985377 | T21: 2.347640004 | U21: 1.450792905 | V21: 7.234781739 | W21: 0.5319010706 | X21: 35.55664747 | Y21: N/A | Z21: =Z68+Z69+Z70 -> 0 | AA21: =AA68+AA69+AA70 -> 0 | AB21: =AB68+AB69+AB70 -> 2.314370698 | AC21: =AC68+AC69+AC70 -> 14.62353881 | AD21: =AD68+AD69+AD70 -> 3.934469888 | AE21: N/A | AF21: =AF68+AF69+AF70 -> 9.235147927 | AG21: N/A | AH21: =AH68+AH69+AH70 -> 10.2855476 | AI21: =AI68+AI69+AI70 -> 0.9279056398 | AJ21: N/A | AK21: =AK68+AK69+AK70 -> 0.154774999 | AL21: 6.580002099 | AM21: 0.3822092614 | AN21: 20.87363608 | AO21: 2.257769787 | AP21: 12.25742764 | AQ21: 5.215180256 | AR21: 0.998673663 | AS21: 19.8888575 | AT21: 0.3334277854 | AU21: 1.983342776 | BB21: Surface water | BC21: N/A | BD21: N/A | BE21: N/A | BF21: N/A | BG21: N/A | BH21: N/A | BI21: N/A | BJ21: N/A | BK21: N/A | BL21: N/A | BM21: N/A | BN21: N/A | BO21: N/A | BP21: N/A | BQ21: N/A | BR21: N/A | BS21: N/A | BT21: N/A | BU21: N/A | BV21: N/A | BW21: N/A | BX21: N/A | BY21: N/A | BZ21: N/A | CA21: N/A | CB21: N/A | CC21: N/A | CD21: N/A | CE21: N/A | CF21: N/A | CG21: N/A | CH21: N/A | CI21: N/A | CJ21: N/A | CK21: N/A | CL21: N/A | CM21: N/A | CN21: N/A | CO21: N/A | CP21: N/A | CQ21: N/A | CR21: N/A | CS21: N/A | CT21: N/A | CU21: N/A | CV21: N/A | CW21: N/A | CX21: N/A | CY21: N/A | CZ21: N/A
A22: Water point at more than 30 minutes | B22: Yes | C22: =C41 -> 4.53870755 | D22: 2.633153248 | E22: 2.451709022 | F22: 0.6050049682 | G22: 0.3308771399 | H22: 0.1078477524 | I22: 0.006236006285 | J22: 0.09202271832 | K22: 0.118590605 | L22: 0.2496442588 | M22: 5.781949248 | N22: 2.853514097 | O22: 4.735793203 | P22: 4.87240249 | Q22: 1.493687242 | R22: 1.827409464 | S22: 1.163672894 | T22: 0 | U22: 0.9032060374 | V22: 5.794553735 | W22: 0.3686208558 | X22: 0.3698807971 | Y22: N/A | Z22: 7.578857081 | AA22: 0 | AB22: 2.859681417 | AC22: 1.548625382 | AD22: 19.72541142 | AE22: N/A | AF22: 8.952463789 | AG22: 0 | AH22: 0.1501640656 | AI22: 0.9875959306 | AJ22: N/A | AK22: 1.867912538 | AL22: 1.04086345 | AM22: 0.7221928921 | AN22: 0.5819754106 | AO22: 0.4296376811 | AP22: 0 | AQ22: 5.221050904 | AR22: 2.955914294 | AS22: 0.9457786672 | AT22: 1.543342217 | AU22: 0.0878912167 | BA22: Improved water point at more than 30 minutes | BB22: Yes | BC22: N/A | BD22: N/A | BE22: N/A | BF22: N/A | BG22: N/A | BH22: N/A | BI22: N/A | BJ22: N/A | BK22: N/A | BL22: N/A | BM22: N/A | BN22: N/A | BO22: N/A | BP22: N/A | BQ22: N/A | BR22: N/A | BS22: N/A | BT22: N/A | BU22: N/A | BV22: N/A | BW22: N/A | BX22: N/A | BY22: N/A | BZ22: N/A | CA22: N/A | CB22: N/A | CC22: N/A | CD22: N/A | CE22: N/A | CF22: N/A | CG22: N/A | CH22: N/A | CI22: N/A | CJ22: N/A | CK22: N/A | CL22: N/A | CM22: N/A | CN22: N/A | CO22: N/A | CP22: N/A | CQ22: N/A | CR22: N/A | CS22: N/A | CT22: N/A | CU22: N/A | CV22: N/A | CW22: N/A | CX22: N/A | CY22: N/A | CZ22: N/A
B23: No | C23: =C42 -> 95.46129245 | D23: 97.36684675 | E23: 97.54829098 | F23: 99.39499503 | G23: 99.66912286 | H23: 99.89215225 | I23: 99.99376399 | J23: 99.90797728 | K23: 99.88140939 | L23: 99.75035574 | M23: 94.21805075 | N23: 97.1464859 | O23: 95.2642068 | P23: 95.12759751 | Q23: 98.50631276 | R23: 98.17259054 | S23: 98.83632711 | T23: 100 | U23: 99.09679396 | V23: 94.20544627 | W23: 99.63137914 | X23: 99.6301192 | Y23: N/A | Z23: 92.42114292 | AA23: 100 | AB23: 97.14031858 | AC23: 98.45137462 | AD23: 80.27458858 | AE23: N/A | AF23: 91.04753621 | AG23: 0 | AH23: 99.84983593 | AI23: 99.01240407 | AJ23: N/A | AK23: 98.13208746 | AL23: 98.95913655 | AM23: 99.27780711 | AN23: 99.41802459 | AO23: 99.57036232 | AP23: 100 | AQ23: 94.7789491 | AR23: 97.04408571 | AS23: 99.05422133 | AT23: 98.45665778 | AU23: 99.91210878 | BB23: No | BC23: N/A | BD23: N/A | BE23: N/A | BF23: N/A | BG23: N/A | BH23: N/A | BI23: N/A | BJ23: N/A | BK23: N/A | BL23: N/A | BM23: N/A | BN23: N/A | BO23: N/A | BP23: N/A | BQ23: N/A | BR23: N/A | BS23: N/A | BT23: N/A | BU23: N/A | BV23: N/A | BW23: N/A | BX23: N/A | BY23: N/A | BZ23: N/A | CA23: N/A | CB23: N/A | CC23: N/A | CD23: N/A | CE23: N/A | CF23: N/A | CG23: N/A | CH23: N/A | CI23: N/A | CJ23: N/A | CK23: N/A | CL23: N/A | CM23: N/A | CN23: N/A | CO23: N/A | CP23: N/A | CQ23: N/A | CR23: N/A | CS23: N/A | CT23: N/A | CU23: N/A | CV23: N/A | CW23: N/A | CX23: N/A | CY23: N/A | CZ23: N/A
A24: Manually calculated ratios | B24: Improved wells
B25: Improved springs
B26: Other
C27: NATIONAL wealth index quintile | H27: URBAN wealth index quintile | M27: RURAL wealth index quintile | R27: REGIONS | BA27: Raw numbers of respondents: | BB27: Use of drinking water sources | BC27: NATIONAL wealth index quintile | BH27: URBAN wealth index quintile | BM27: RURAL wealth index quintile | BR27: SUB-REGIONS:
A28: Percentage based on weighted population | C28: Poorest | D28: Poor | E28: Middle | F28: Rich | G28: Richest | H28: Poorest | I28: Poor | J28: Middle | K28: Rich | L28: Richest | M28: Poorest | N28: Poor | O28: Middle | P28: Rich | Q28: Richest | R28: Bali | S28: Bangka Belitung | T28: Banten | U28: Bengkulu | V28: Cenrtal Sulawesi | W28: Central Java | X28: Central Kalimantan | Y28: DI Aceh | Z28: DI Yogyakarta | AA28: DKI Jakarta | AB28: East Java | AC28: East Kalimantan | AD28: East Nusa Tenggara | AE28: East Timor | AF28: Gorontalo | AG28: Irian Jaya | AH28: Jambi | AI28: Lampung | AJ28: Maluku | AK28: North Sulawesi | AL28: North Sumatra | AM28: Riau | AN28: South Kalimantan | AO28: South Sulawesi | AP28: South Sumatra | AQ28: Southeast Sulawesi | AR28: West Java | AS28: West Kalimantan | AT28: West Nusa Tenggara | AU28: West Sumatra | BA28: Water data, raw numbers (weighted) | BC28: Poorest | BD28: Poor | BE28: Middle | BF28: Rich | BG28: Richest | BH28: Poorest | BI28: Poor | BJ28: Middle | BK28: Rich | BL28: Richest | BM28: Poorest | BN28: Poor | BO28: Middle | BP28: Rich | BQ28: Richest
A29: Piped water | B29: Yes | C29: 6.086623088 | D29: 13.95735782 | E29: 14.71411494 | F29: 19.53839215 | G29: 34.39746556 | H29: 25.97794625 | I29: 23.47291783 | J29: 22.8970404 | K29: 29.54300204 | L29: 44.64747435 | M29: 4.428249376 | N29: 5.718879407 | O29: 7.762606319 | P29: 7.677348871 | Q29: 11.83081615 | R29: 50.68158799 | S29: 4.285930607 | T29: 7.664546795 | U29: 16.1113723 | V29: 20.34455609 | W29: 10.78916154 | X29: 19.08666868 | Y29: N/A | Z29: 10.20731222 | AA29: 40.27492094 | AB29: 15.37854101 | AC29: 58.26319829 | AD29: 17.29271157 | AE29: N/A | AF29: 10.14433141 | AG29: 0 | AH29: 31.09137461 | AI29: 5.665120689 | AJ29: N/A | AK29: 39.05009281 | AL29: 19.48594272 | AM29: 7.01868713 | AN29: 33.33655864 | AO29: 39.02156522 | AP29: 21.42384218 | AQ29: 21.36632193 | AR29: 13.45749981 | AS29: 7.100820949 | AT29: 9.40374197 | AU29: 27.02379924 | BA29: Piped water | BB29: Yes | BC29: N/A | BD29: N/A | BE29: N/A | BF29: N/A | BG29: N/A | BH29: N/A | BI29: N/A | BJ29: N/A | BK29: N/A | BL29: N/A | BM29: N/A | BN29: N/A | BO29: N/A | BP29: N/A | BQ29: N/A | BR29: N/A | BS29: N/A | BT29: N/A | BU29: N/A | BV29: N/A | BW29: N/A | BX29: N/A | BY29: N/A | BZ29: N/A | CA29: N/A | CB29: N/A | CC29: N/A | CD29: N/A | CE29: N/A | CF29: N/A | CG29: N/A | CH29: N/A | CI29: N/A | CJ29: N/A | CK29: N/A | CL29: N/A | CM29: N/A | CN29: N/A | CO29: N/A | CP29: N/A | CQ29: N/A | CR29: N/A | CS29: N/A | CT29: N/A | CU29: N/A | CV29: N/A | CW29: N/A | CX29: N/A | CY29: N/A | CZ29: N/A
B30: No | C30: 93.91337691 | D30: 86.04264218 | E30: 85.28588506 | F30: 80.46160785 | G30: 65.60253444 | H30: 74.02205375 | I30: 76.52708217 | J30: 77.1029596 | K30: 70.45699796 | L30: 55.35252565 | M30: 95.57175062 | N30: 94.28112059 | O30: 92.23739368 | P30: 92.32265113 | Q30: 88.16918385 | R30: 49.31841201 | S30: 95.71406939 | T30: 92.33545321 | U30: 83.8886277 | V30: 79.65544391 | W30: 89.21083846 | X30: 80.91333132 | Y30: N/A | Z30: 89.79268778 | AA30: 59.72507906 | AB30: 84.62145899 | AC30: 41.73680171 | AD30: 82.70728843 | AE30: N/A | AF30: 89.85566859 | AG30: 0 | AH30: 68.90862539 | AI30: 94.33487931 | AJ30: N/A | AK30: 60.94990719 | AL30: 80.51405728 | AM30: 92.98131287 | AN30: 66.66344136 | AO30: 60.97843478 | AP30: 78.57615782 | AQ30: 78.63367807 | AR30: 86.54250019 | AS30: 92.89917905 | AT30: 90.59625803 | AU30: 72.97620076 | BB30: No | BC30: N/A | BD30: N/A | BE30: N/A | BF30: N/A | BG30: N/A | BH30: N/A | BI30: N/A | BJ30: N/A | BK30: N/A | BL30: N/A | BM30: N/A | BN30: N/A | BO30: N/A | BP30: N/A | BQ30: N/A | BR30: N/A | BS30: N/A | BT30: N/A | BU30: N/A | BV30: N/A | BW30: N/A | BX30: N/A | BY30: N/A | BZ30: N/A | CA30: N/A | CB30: N/A | CC30: N/A | CD30: N/A | CE30: N/A | CF30: N/A | CG30: N/A | CH30: N/A | CI30: N/A | CJ30: N/A | CK30: N/A | CL30: N/A | CM30: N/A | CN30: N/A | CO30: N/A | CP30: N/A | CQ30: N/A | CR30: N/A | CS30: N/A | CT30: N/A | CU30: N/A | CV30: N/A | CW30: N/A | CX30: N/A | CY30: N/A | CZ30: N/A
A31: Piped water on premises | B31: Yes | C31: 3.945204714 | D31: 10.95224521 | E31: 11.86792016 | F31: 16.44372648 | G31: 32.6096631 | H31: 20.13329192 | I31: 18.50802003 | J31: 19.97153394 | K31: 26.64863477 | L31: 43.34009826 | M31: 2.244431034 | N31: 4.291510899 | O31: 6.071969777 | P31: 5.961534496 | Q31: 10.49141454 | R31: 45.99419771 | S31: 4.024162548 | T31: 7.439296125 | U31: 12.27071767 | V31: 16.7529411 | W31: 8.137184899 | X31: 17.16722846 | Y31: N/A | Z31: 9.904490035 | AA31: 32.35682949 | AB31: 14.43363357 | AC31: 57.6599879 | AD31: 11.4991188 | AE31: N/A | AF31: 9.336567362 | AG31: 0 | AH31: 29.61886385 | AI31: 4.938176519 | AJ31: N/A | AK31: 36.69787178 | AL31: 18.46212292 | AM31: 5.026746669 | AN31: 26.40054345 | AO31: 26.11706358 | AP31: 20.3366839 | AQ31: 17.53126374 | AR31: 10.9815224 | AS31: 6.867799956 | AT31: 7.476290905 | AU31: 25.51490386 | BA31: Piped water on premises | BB31: Yes | BC31: N/A | BD31: N/A | BE31: N/A | BF31: N/A | BG31: N/A | BH31: N/A | BI31: N/A | BJ31: N/A | BK31: N/A | BL31: N/A | BM31: N/A | BN31: N/A | BO31: N/A | BP31: N/A | BQ31: N/A | BR31: N/A | BS31: N/A | BT31: N/A | BU31: N/A | BV31: N/A | BW31: N/A | BX31: N/A | BY31: N/A | BZ31: N/A | CA31: N/A | CB31: N/A | CC31: N/A | CD31: N/A | CE31: N/A | CF31: N/A | CG31: N/A | CH31: N/A | CI31: N/A | CJ31: N/A | CK31: N/A | CL31: N/A | CM31: N/A | CN31: N/A | CO31: N/A | CP31: N/A | CQ31: N/A | CR31: N/A | CS31: N/A | CT31: N/A | CU31: N/A | CV31: N/A | CW31: N/A | CX31: N/A | CY31: N/A | CZ31: N/A
B32: No | C32: 96.05479529 | D32: 89.04775479 | E32: 88.13207984 | F32: 83.55627352 | G32: 67.3903369 | H32: 79.86670808 | I32: 81.49197997 | J32: 80.02846606 | K32: 73.35136523 | L32: 56.65990174 | M32: 97.75556897 | N32: 95.7084891 | O32: 93.92803022 | P32: 94.0384655 | Q32: 89.50858546 | R32: 54.00580229 | S32: 95.97583745 | T32: 92.56070388 | U32: 87.72928233 | V32: 83.2470589 | W32: 91.8628151 | X32: 82.83277154 | Y32: N/A | Z32: 90.09550996 | AA32: 67.64317051 | AB32: 85.56636643 | AC32: 42.3400121 | AD32: 88.5008812 | AE32: N/A | AF32: 90.66343264 | AG32: 0 | AH32: 70.38113615 | AI32: 95.06182348 | AJ32: N/A | AK32: 63.30212822 | AL32: 81.53787708 | AM32: 94.97325333 | AN32: 73.59945655 | AO32: 73.88293642 | AP32: 79.6633161 | AQ32: 82.46873626 | AR32: 89.0184776 | AS32: 93.13220004 | AT32: 92.52370909 | AU32: 74.48509614 | BB32: No | BC32: N/A | BD32: N/A | BE32: N/A | BF32: N/A | BG32: N/A | BH32: N/A | BI32: N/A | BJ32: N/A | BK32: N/A | BL32: N/A | BM32: N/A | BN32: N/A | BO32: N/A | BP32: N/A | BQ32: N/A | BR32: N/A | BS32: N/A | BT32: N/A | BU32: N/A | BV32: N/A | BW32: N/A | BX32: N/A | BY32: N/A | BZ32: N/A | CA32: N/A | CB32: N/A | CC32: N/A | CD32: N/A | CE32: N/A | CF32: N/A | CG32: N/A | CH32: N/A | CI32: N/A | CJ32: N/A | CK32: N/A | CL32: N/A | CM32: N/A | CN32: N/A | CO32: N/A | CP32: N/A | CQ32: N/A | CR32: N/A | CS32: N/A | CT32: N/A | CU32: N/A | CV32: N/A | CW32: N/A | CX32: N/A | CY32: N/A | CZ32: N/A
A33: Piped water into dwelling | B33: Yes | C33: N/A | D33: N/A | E33: N/A | F33: N/A | G33: N/A | H33: N/A | I33: N/A | J33: N/A | K33: N/A | L33: N/A | M33: N/A | N33: N/A | O33: N/A | P33: N/A | Q33: N/A | R33: N/A | S33: N/A | T33: N/A | U33: N/A | V33: N/A | W33: N/A | X33: N/A | Y33: N/A | Z33: N/A | AA33: N/A | AB33: N/A | AC33: N/A | AD33: N/A | AE33: N/A | AF33: N/A | AG33: N/A | AH33: N/A | AI33: N/A | AJ33: N/A | AK33: N/A | AL33: N/A | AM33: N/A | AN33: N/A | AO33: N/A | AP33: N/A | AQ33: N/A | AR33: N/A | AS33: N/A | AT33: N/A | AU33: N/A | AV33: N/A | AW33: N/A | AX33: N/A | AY33: N/A | BA33: Piped water into dwelling | BB33: Yes | BC33: N/A | BD33: N/A | BE33: N/A | BF33: N/A | BG33: N/A | BH33: N/A | BI33: N/A | BJ33: N/A | BK33: N/A | BL33: N/A | BM33: N/A | BN33: N/A | BO33: N/A | BP33: N/A | BQ33: N/A | BR33: N/A | BS33: N/A | BT33: N/A | BU33: N/A | BV33: N/A | BW33: N/A | BX33: N/A | BY33: N/A | BZ33: N/A | CA33: N/A | CB33: N/A | CC33: N/A | CD33: N/A | CE33: N/A | CF33: N/A | CG33: N/A | CH33: N/A | CI33: N/A | CJ33: N/A | CK33: N/A | CL33: N/A | CM33: N/A | CN33: N/A | CO33: N/A | CP33: N/A | CQ33: N/A | CR33: N/A | CS33: N/A | CT33: N/A | CU33: N/A | CV33: N/A | CW33: N/A | CX33: N/A | CY33: N/A | CZ33: N/A
B34: No | C34: N/A | D34: N/A | E34: N/A | F34: N/A | G34: N/A | H34: N/A | I34: N/A | J34: N/A | K34: N/A | L34: N/A | M34: N/A | N34: N/A | O34: N/A | P34: N/A | Q34: N/A | R34: N/A | S34: N/A | T34: N/A | U34: N/A | V34: N/A | W34: N/A | X34: N/A | Y34: N/A | Z34: N/A | AA34: N/A | AB34: N/A | AC34: N/A | AD34: N/A | AE34: N/A | AF34: N/A | AG34: N/A | AH34: N/A | AI34: N/A | AJ34: N/A | AK34: N/A | AL34: N/A | AM34: N/A | AN34: N/A | AO34: N/A | AP34: N/A | AQ34: N/A | AR34: N/A | AS34: N/A | AT34: N/A | AU34: N/A | AV34: N/A | AW34: N/A | AX34: N/A | AY34: N/A | BB34: No | BC34: N/A | BD34: N/A | BE34: N/A | BF34: N/A | BG34: N/A | BH34: N/A | BI34: N/A | BJ34: N/A | BK34: N/A | BL34: N/A | BM34: N/A | BN34: N/A | BO34: N/A | BP34: N/A | BQ34: N/A | BR34: N/A | BS34: N/A | BT34: N/A | BU34: N/A | BV34: N/A | BW34: N/A | BX34: N/A | BY34: N/A | BZ34: N/A | CA34: N/A | CB34: N/A | CC34: N/A | CD34: N/A | CE34: N/A | CF34: N/A | CG34: N/A | CH34: N/A | CI34: N/A | CJ34: N/A | CK34: N/A | CL34: N/A | CM34: N/A | CN34: N/A | CO34: N/A | CP34: N/A | CQ34: N/A | CR34: N/A | CS34: N/A | CT34: N/A | CU34: N/A | CV34: N/A | CW34: N/A | CX34: N/A | CY34: N/A | CZ34: N/A
A35: Water source on premises | B35: Yes | C35: 13.14647051 | D35: 20.03837056 | E35: 19.24982895 | F35: 22.83634808 | G35: 35.94186381 | H35: 25.78904854 | I35: 25.67688298 | J35: 25.70388744 | K35: 30.91045024 | L35: 45.74802486 | M35: 10.65163954 | N35: 15.57787841 | O35: 16.60127693 | P35: 13.55035134 | Q35: 17.08939884 | R35: 50.87068371 | S35: 6.19611971 | T35: 8.928573053 | U35: 17.48786268 | V35: 21.06646343 | W35: 23.23383021 | X35: 19.98564907 | Y35: N/A | Z35: 17.92951851 | AA35: 37.51084929 | AB35: 24.1708772 | AC35: 60.04189159 | AD35: 19.03427253 | AE35: N/A | AF35: 12.51406358 | AG35: 0 | AH35: 30.85047165 | AI35: 9.604225279 | AJ35: N/A | AK35: 39.13665306 | AL35: 20.34876927 | AM35: 9.223386927 | AN35: 35.19832104 | AO35: 34.31268643 | AP35: 24.48606914 | AQ35: 28.01183019 | AR35: 16.12393851 | AS35: 8.82787377 | AT35: 13.63427573 | AU35: 36.44407547 | BA35: Water source on premises | BB35: Yes | BC35: N/A | BD35: N/A | BE35: N/A | BF35: N/A | BG35: N/A | BH35: N/A | BI35: N/A | BJ35: N/A | BK35: N/A | BL35: N/A | BM35: N/A | BN35: N/A | BO35: N/A | BP35: N/A | BQ35: N/A | BR35: N/A | BS35: N/A | BT35: N/A | BU35: N/A | BV35: N/A | BW35: N/A | BX35: N/A | BY35: N/A | BZ35: N/A | CA35: N/A | CB35: N/A | CC35: N/A | CD35: N/A | CE35: N/A | CF35: N/A | CG35: N/A | CH35: N/A | CI35: N/A | CJ35: N/A | CK35: N/A | CL35: N/A | CM35: N/A | CN35: N/A | CO35: N/A | CP35: N/A | CQ35: N/A | CR35: N/A | CS35: N/A | CT35: N/A | CU35: N/A | CV35: N/A | CW35: N/A | CX35: N/A | CY35: N/A | CZ35: N/A
B36: No | C36: 86.85352949 | D36: 79.96162944 | E36: 80.75017105 | F36: 77.16365192 | G36: 64.05813619 | H36: 74.21095146 | I36: 74.32311702 | J36: 74.29611256 | K36: 69.08954976 | L36: 54.25197514 | M36: 89.34836046 | N36: 84.42212159 | O36: 83.39872307 | P36: 86.44964866 | Q36: 82.91060116 | R36: 49.12931629 | S36: 93.80388029 | T36: 91.07142695 | U36: 82.51213732 | V36: 78.93353657 | W36: 76.76616979 | X36: 80.01435093 | Y36: N/A | Z36: 82.07048149 | AA36: 62.48915071 | AB36: 75.8291228 | AC36: 39.95810841 | AD36: 80.96572747 | AE36: N/A | AF36: 87.48593642 | AG36: 0 | AH36: 69.14952835 | AI36: 90.39577472 | AJ36: N/A | AK36: 60.86334694 | AL36: 79.65123073 | AM36: 90.77661307 | AN36: 64.80167896 | AO36: 65.68731357 | AP36: 75.51393086 | AQ36: 71.98816981 | AR36: 83.87606149 | AS36: 91.17212623 | AT36: 86.36572427 | AU36: 63.55592453 | BB36: No | BC36: N/A | BD36: N/A | BE36: N/A | BF36: N/A | BG36: N/A | BH36: N/A | BI36: N/A | BJ36: N/A | BK36: N/A | BL36: N/A | BM36: N/A | BN36: N/A | BO36: N/A | BP36: N/A | BQ36: N/A | BR36: N/A | BS36: N/A | BT36: N/A | BU36: N/A | BV36: N/A | BW36: N/A | BX36: N/A | BY36: N/A | BZ36: N/A | CA36: N/A | CB36: N/A | CC36: N/A | CD36: N/A | CE36: N/A | CF36: N/A | CG36: N/A | CH36: N/A | CI36: N/A | CJ36: N/A | CK36: N/A | CL36: N/A | CM36: N/A | CN36: N/A | CO36: N/A | CP36: N/A | CQ36: N/A | CR36: N/A | CS36: N/A | CT36: N/A | CU36: N/A | CV36: N/A | CW36: N/A | CX36: N/A | CY36: N/A | CZ36: N/A
A37: Improved Water source on premises | B37: Yes | C37: N/A | D37: N/A | E37: N/A | F37: N/A | G37: N/A | H37: N/A | I37: N/A | J37: N/A | K37: N/A | L37: N/A | M37: N/A | N37: N/A | O37: N/A | P37: N/A | Q37: N/A | R37: N/A | S37: N/A | T37: N/A | U37: N/A | V37: N/A | W37: N/A | X37: N/A | Y37: N/A | Z37: N/A | AA37: N/A | AB37: N/A | AC37: N/A | AD37: N/A | AE37: N/A | AF37: N/A | AG37: N/A | AH37: N/A | AI37: N/A | AJ37: N/A | AK37: N/A | AL37: N/A | AM37: N/A | AN37: N/A | AO37: N/A | AP37: N/A | AQ37: N/A | AR37: N/A | AS37: N/A | AT37: N/A | AU37: N/A | BA37: Improved water source on premises | BB37: Yes | BC37: N/A | BD37: N/A | BE37: N/A | BF37: N/A | BG37: N/A | BH37: N/A | BI37: N/A | BJ37: N/A | BK37: N/A | BL37: N/A | BM37: N/A | BN37: N/A | BO37: N/A | BP37: N/A | BQ37: N/A | BR37: N/A | BS37: N/A | BT37: N/A | BU37: N/A | BV37: N/A | BW37: N/A | BX37: N/A | BY37: N/A | BZ37: N/A | CA37: N/A | CB37: N/A | CC37: N/A | CD37: N/A | CE37: N/A | CF37: N/A | CG37: N/A | CH37: N/A | CI37: N/A | CJ37: N/A | CK37: N/A | CL37: N/A | CM37: N/A | CN37: N/A | CO37: N/A | CP37: N/A | CQ37: N/A | CR37: N/A | CS37: N/A | CT37: N/A | CU37: N/A | CV37: N/A | CW37: N/A | CX37: N/A | CY37: N/A | CZ37: N/A
B38: No | C38: N/A | D38: N/A | E38: N/A | F38: N/A | G38: N/A | H38: N/A | I38: N/A | J38: N/A | K38: N/A | L38: N/A | M38: N/A | N38: N/A | O38: N/A | P38: N/A | Q38: N/A | R38: N/A | S38: N/A | T38: N/A | U38: N/A | V38: N/A | W38: N/A | X38: N/A | Y38: N/A | Z38: N/A | AA38: N/A | AB38: N/A | AC38: N/A | AD38: N/A | AE38: N/A | AF38: N/A | AG38: N/A | AH38: N/A | AI38: N/A | AJ38: N/A | AK38: N/A | AL38: N/A | AM38: N/A | AN38: N/A | AO38: N/A | AP38: N/A | AQ38: N/A | AR38: N/A | AS38: N/A | AT38: N/A | AU38: N/A | BB38: No | BC38: N/A | BD38: N/A | BE38: N/A | BF38: N/A | BG38: N/A | BH38: N/A | BI38: N/A | BJ38: N/A | BK38: N/A | BL38: N/A | BM38: N/A | BN38: N/A | BO38: N/A | BP38: N/A | BQ38: N/A | BR38: N/A | BS38: N/A | BT38: N/A | BU38: N/A | BV38: N/A | BW38: N/A | BX38: N/A | BY38: N/A | BZ38: N/A | CA38: N/A | CB38: N/A | CC38: N/A | CD38: N/A | CE38: N/A | CF38: N/A | CG38: N/A | CH38: N/A | CI38: N/A | CJ38: N/A | CK38: N/A | CL38: N/A | CM38: N/A | CN38: N/A | CO38: N/A | CP38: N/A | CQ38: N/A | CR38: N/A | CS38: N/A | CT38: N/A | CU38: N/A | CV38: N/A | CW38: N/A | CX38: N/A | CY38: N/A | CZ38: N/A
A39: Piped water on premises available when needed | B39: Yes | C39: N/A | D39: N/A | E39: N/A | F39: N/A | G39: N/A | H39: N/A | I39: N/A | J39: N/A | K39: N/A | L39: N/A | M39: N/A | N39: N/A | O39: N/A | P39: N/A | Q39: N/A | R39: N/A | S39: N/A | T39: N/A | U39: N/A | V39: N/A | W39: N/A | X39: N/A | Y39: N/A | Z39: N/A | AA39: N/A | AB39: N/A | AC39: N/A | AD39: N/A | AE39: N/A | AF39: N/A | AG39: N/A | AH39: N/A | AI39: N/A | AJ39: N/A | AK39: N/A | AL39: N/A | AM39: N/A | AN39: N/A | AO39: N/A | AP39: N/A | AQ39: N/A | AR39: N/A | AS39: N/A | AT39: N/A | AU39: N/A | AV39: N/A | AW39: N/A | AX39: N/A | AY39: N/A | BA39: Piped water on premises available when needed | BB39: Yes | BC39: N/A | BD39: N/A | BE39: N/A | BF39: N/A | BG39: N/A | BH39: N/A | BI39: N/A | BJ39: N/A | BK39: N/A | BL39: N/A | BM39: N/A | BN39: N/A | BO39: N/A | BP39: N/A | BQ39: N/A | BR39: N/A | BS39: N/A | BT39: N/A | BU39: N/A | BV39: N/A | BW39: N/A | BX39: N/A | BY39: N/A | BZ39: N/A | CA39: N/A | CB39: N/A | CC39: N/A | CD39: N/A | CE39: N/A | CF39: N/A | CG39: N/A | CH39: N/A | CI39: N/A | CJ39: N/A | CK39: N/A | CL39: N/A | CM39: N/A | CN39: N/A | CO39: N/A | CP39: N/A | CQ39: N/A | CR39: N/A | CS39: N/A | CT39: N/A | CU39: N/A | CV39: N/A | CW39: N/A | CX39: N/A | CY39: N/A | CZ39: N/A
B40: No | C40: N/A | D40: N/A | E40: N/A | F40: N/A | G40: N/A | H40: N/A | I40: N/A | J40: N/A | K40: N/A | L40: N/A | M40: N/A | N40: N/A | O40: N/A | P40: N/A | Q40: N/A | R40: N/A | S40: N/A | T40: N/A | U40: N/A | V40: N/A | W40: N/A | X40: N/A | Y40: N/A | Z40: N/A | AA40: N/A | AB40: N/A | AC40: N/A | AD40: N/A | AE40: N/A | AF40: N/A | AG40: N/A | AH40: N/A | AI40: N/A | AJ40: N/A | AK40: N/A | AL40: N/A | AM40: N/A | AN40: N/A | AO40: N/A | AP40: N/A | AQ40: N/A | AR40: N/A | AS40: N/A | AT40: N/A | AU40: N/A | AV40: N/A | AW40: N/A | AX40: N/A | AY40: N/A | BB40: No | BC40: N/A | BD40: N/A | BE40: N/A | BF40: N/A | BG40: N/A | BH40: N/A | BI40: N/A | BJ40: N/A | BK40: N/A | BL40: N/A | BM40: N/A | BN40: N/A | BO40: N/A | BP40: N/A | BQ40: N/A | BR40: N/A | BS40: N/A | BT40: N/A | BU40: N/A | BV40: N/A | BW40: N/A | BX40: N/A | BY40: N/A | BZ40: N/A | CA40: N/A | CB40: N/A | CC40: N/A | CD40: N/A | CE40: N/A | CF40: N/A | CG40: N/A | CH40: N/A | CI40: N/A | CJ40: N/A | CK40: N/A | CL40: N/A | CM40: N/A | CN40: N/A | CO40: N/A | CP40: N/A | CQ40: N/A | CR40: N/A | CS40: N/A | CT40: N/A | CU40: N/A | CV40: N/A | CW40: N/A | CX40: N/A | CY40: N/A | CZ40: N/A
A41: Water point at more than 30 minutes | B41: Yes | C41: 4.53870755 | D41: 2.633153248 | E41: 2.451709022 | F41: 0.6050049682 | G41: 0.3308771399 | H41: 0.1078477524 | I41: 0.006236006285 | J41: 0.09202271832 | K41: 0.118590605 | L41: 0.2496442588 | M41: 5.781949248 | N41: 2.853514097 | O41: 4.735793203 | P41: 4.87240249 | Q41: 1.493687242 | R41: 1.827409464 | S41: 1.163672894 | T41: 0 | U41: 0.9032060374 | V41: 5.794553735 | W41: 0.3686208558 | X41: 0.3698807971 | Y41: N/A | Z41: 7.578857081 | AA41: 0 | AB41: 2.859681417 | AC41: 1.548625382 | AD41: 19.72541142 | AE41: N/A | AF41: 8.952463789 | AG41: 0 | AH41: 0.1501640656 | AI41: 0.9875959306 | AJ41: N/A | AK41: 1.867912538 | AL41: 1.04086345 | AM41: 0.7221928921 | AN41: 0.5819754106 | AO41: 0.4296376811 | AP41: 0 | AQ41: 5.221050904 | AR41: 2.955914294 | AS41: 0.9457786672 | AT41: 1.543342217 | AU41: 0.0878912167 | BA41: Water point at more than 30 minutes | BB41: Yes | BC41: N/A | BD41: N/A | BE41: N/A | BF41: N/A | BG41: N/A | BH41: N/A | BI41: N/A | BJ41: N/A | BK41: N/A | BL41: N/A | BM41: N/A | BN41: N/A | BO41: N/A | BP41: N/A | BQ41: N/A | BR41: N/A | BS41: N/A | BT41: N/A | BU41: N/A | BV41: N/A | BW41: N/A | BX41: N/A | BY41: N/A | BZ41: N/A | CA41: N/A | CB41: N/A | CC41: N/A | CD41: N/A | CE41: N/A | CF41: N/A | CG41: N/A | CH41: N/A | CI41: N/A | CJ41: N/A | CK41: N/A | CL41: N/A | CM41: N/A | CN41: N/A | CO41: N/A | CP41: N/A | CQ41: N/A | CR41: N/A | CS41: N/A | CT41: N/A | CU41: N/A | CV41: N/A | CW41: N/A | CX41: N/A | CY41: N/A | CZ41: N/A
B42: No | C42: 95.46129245 | D42: 97.36684675 | E42: 97.54829098 | F42: 99.39499503 | G42: 99.66912286 | H42: 99.89215225 | I42: 99.99376399 | J42: 99.90797728 | K42: 99.88140939 | L42: 99.75035574 | M42: 94.21805075 | N42: 97.1464859 | O42: 95.2642068 | P42: 95.12759751 | Q42: 98.50631276 | R42: 98.17259054 | S42: 98.83632711 | T42: 100 | U42: 99.09679396 | V42: 94.20544627 | W42: 99.63137914 | X42: 99.6301192 | Y42: N/A | Z42: 92.42114292 | AA42: 100 | AB42: 97.14031858 | AC42: 98.45137462 | AD42: 80.27458858 | AE42: N/A | AF42: 91.04753621 | AG42: 0 | AH42: 99.84983593 | AI42: 99.01240407 | AJ42: N/A | AK42: 98.13208746 | AL42: 98.95913655 | AM42: 99.27780711 | AN42: 99.41802459 | AO42: 99.57036232 | AP42: 100 | AQ42: 94.7789491 | AR42: 97.04408571 | AS42: 99.05422133 | AT42: 98.45665778 | AU42: 99.91210878 | BB42: No | BC42: N/A | BD42: N/A | BE42: N/A | BF42: N/A | BG42: N/A | BH42: N/A | BI42: N/A | BJ42: N/A | BK42: N/A | BL42: N/A | BM42: N/A | BN42: N/A | BO42: N/A | BP42: N/A | BQ42: N/A | BR42: N/A | BS42: N/A | BT42: N/A | BU42: N/A | BV42: N/A | BW42: N/A | BX42: N/A | BY42: N/A | BZ42: N/A | CA42: N/A | CB42: N/A | CC42: N/A | CD42: N/A | CE42: N/A | CF42: N/A | CG42: N/A | CH42: N/A | CI42: N/A | CJ42: N/A | CK42: N/A | CL42: N/A | CM42: N/A | CN42: N/A | CO42: N/A | CP42: N/A | CQ42: N/A | CR42: N/A | CS42: N/A | CT42: N/A | CU42: N/A | CV42: N/A | CW42: N/A | CX42: N/A | CY42: N/A | CZ42: N/A
A43: Water source available when needed | B43: Yes | C43: N/A | D43: N/A | E43: N/A | F43: N/A | G43: N/A | H43: N/A | I43: N/A | J43: N/A | K43: N/A | L43: N/A | M43: N/A | N43: N/A | O43: N/A | P43: N/A | Q43: N/A | R43: N/A | S43: N/A | T43: N/A | U43: N/A | V43: N/A | W43: N/A | X43: N/A | Y43: N/A | Z43: N/A | AA43: N/A | AB43: N/A | AC43: N/A | AD43: N/A | AE43: N/A | AF43: N/A | AG43: N/A | AH43: N/A | AI43: N/A | AJ43: N/A | AK43: N/A | AL43: N/A | AM43: N/A | AN43: N/A | AO43: N/A | AP43: N/A | AQ43: N/A | AR43: N/A | AS43: N/A | AT43: N/A | AU43: N/A | BA43: Water source available when needed | BB43: Yes | BC43: N/A | BD43: N/A | BE43: N/A | BF43: N/A | BG43: N/A | BH43: N/A | BI43: N/A | BJ43: N/A | BK43: N/A | BL43: N/A | BM43: N/A | BN43: N/A | BO43: N/A | BP43: N/A | BQ43: N/A | BR43: N/A | BS43: N/A | BT43: N/A | BU43: N/A | BV43: N/A | BW43: N/A | BX43: N/A | BY43: N/A | BZ43: N/A | CA43: N/A | CB43: N/A | CC43: N/A | CD43: N/A | CE43: N/A | CF43: N/A | CG43: N/A | CH43: N/A | CI43: N/A | CJ43: N/A | CK43: N/A | CL43: N/A | CM43: N/A | CN43: N/A | CO43: N/A | CP43: N/A | CQ43: N/A | CR43: N/A | CS43: N/A | CT43: N/A | CU43: N/A | CV43: N/A | CW43: N/A | CX43: N/A | CY43: N/A | CZ43: N/A
B44: No | C44: N/A | D44: N/A | E44: N/A | F44: N/A | G44: N/A | H44: N/A | I44: N/A | J44: N/A | K44: N/A | L44: N/A | M44: N/A | N44: N/A | O44: N/A | P44: N/A | Q44: N/A | R44: N/A | S44: N/A | T44: N/A | U44: N/A | V44: N/A | W44: N/A | X44: N/A | Y44: N/A | Z44: N/A | AA44: N/A | AB44: N/A | AC44: N/A | AD44: N/A | AE44: N/A | AF44: N/A | AG44: N/A | AH44: N/A | AI44: N/A | AJ44: N/A | AK44: N/A | AL44: N/A | AM44: N/A | AN44: N/A | AO44: N/A | AP44: N/A | AQ44: N/A | AR44: N/A | AS44: N/A | AT44: N/A | AU44: N/A | BB44: No | BC44: N/A | BD44: N/A | BE44: N/A | BF44: N/A | BG44: N/A | BH44: N/A | BI44: N/A | BJ44: N/A | BK44: N/A | BL44: N/A | BM44: N/A | BN44: N/A | BO44: N/A | BP44: N/A | BQ44: N/A | BR44: N/A | BS44: N/A | BT44: N/A | BU44: N/A | BV44: N/A | BW44: N/A | BX44: N/A | BY44: N/A | BZ44: N/A | CA44: N/A | CB44: N/A | CC44: N/A | CD44: N/A | CE44: N/A | CF44: N/A | CG44: N/A | CH44: N/A | CI44: N/A | CJ44: N/A | CK44: N/A | CL44: N/A | CM44: N/A | CN44: N/A | CO44: N/A | CP44: N/A | CQ44: N/A | CR44: N/A | CS44: N/A | CT44: N/A | CU44: N/A | CV44: N/A | CW44: N/A | CX44: N/A | CY44: N/A | CZ44: N/A
A45: Improved water source available when needed | B45: Yes | C45: N/A | D45: N/A | E45: N/A | F45: N/A | G45: N/A | H45: N/A | I45: N/A | J45: N/A | K45: N/A | L45: N/A | M45: N/A | N45: N/A | O45: N/A | P45: N/A | Q45: N/A | R45: N/A | S45: N/A | T45: N/A | U45: N/A | V45: N/A | W45: N/A | X45: N/A | Y45: N/A | Z45: N/A | AA45: N/A | AB45: N/A | AC45: N/A | AD45: N/A | AE45: N/A | AF45: N/A | AG45: N/A | AH45: N/A | AI45: N/A | AJ45: N/A | AK45: N/A | AL45: N/A | AM45: N/A | AN45: N/A | AO45: N/A | AP45: N/A | AQ45: N/A | AR45: N/A | AS45: N/A | AT45: N/A | AU45: N/A | BA45: Improved water source available when needed | BB45: Yes | BC45: N/A | BD45: N/A | BE45: N/A | BF45: N/A | BG45: N/A | BH45: N/A | BI45: N/A | BJ45: N/A | BK45: N/A | BL45: N/A | BM45: N/A | BN45: N/A | BO45: N/A | BP45: N/A | BQ45: N/A | BR45: N/A | BS45: N/A | BT45: N/A | BU45: N/A | BV45: N/A | BW45: N/A | BX45: N/A | BY45: N/A | BZ45: N/A | CA45: N/A | CB45: N/A | CC45: N/A | CD45: N/A | CE45: N/A | CF45: N/A | CG45: N/A | CH45: N/A | CI45: N/A | CJ45: N/A | CK45: N/A | CL45: N/A | CM45: N/A | CN45: N/A | CO45: N/A | CP45: N/A | CQ45: N/A | CR45: N/A | CS45: N/A | CT45: N/A | CU45: N/A | CV45: N/A | CW45: N/A | CX45: N/A | CY45: N/A | CZ45: N/A
B46: No | C46: N/A | D46: N/A | E46: N/A | F46: N/A | G46: N/A | H46: N/A | I46: N/A | J46: N/A | K46: N/A | L46: N/A | M46: N/A | N46: N/A | O46: N/A | P46: N/A | Q46: N/A | R46: N/A | S46: N/A | T46: N/A | U46: N/A | V46: N/A | W46: N/A | X46: N/A | Y46: N/A | Z46: N/A | AA46: N/A | AB46: N/A | AC46: N/A | AD46: N/A | AE46: N/A | AF46: N/A | AG46: N/A | AH46: N/A | AI46: N/A | AJ46: N/A | AK46: N/A | AL46: N/A | AM46: N/A | AN46: N/A | AO46: N/A | AP46: N/A | AQ46: N/A | AR46: N/A | AS46: N/A | AT46: N/A | AU46: N/A | BB46: No | BC46: N/A | BD46: N/A | BE46: N/A | BF46: N/A | BG46: N/A | BH46: N/A | BI46: N/A | BJ46: N/A | BK46: N/A | BL46: N/A | BM46: N/A | BN46: N/A | BO46: N/A | BP46: N/A | BQ46: N/A | BR46: N/A | BS46: N/A | BT46: N/A | BU46: N/A | BV46: N/A | BW46: N/A | BX46: N/A | BY46: N/A | BZ46: N/A | CA46: N/A | CB46: N/A | CC46: N/A | CD46: N/A | CE46: N/A | CF46: N/A | CG46: N/A | CH46: N/A | CI46: N/A | CJ46: N/A | CK46: N/A | CL46: N/A | CM46: N/A | CN46: N/A | CO46: N/A | CP46: N/A | CQ46: N/A | CR46: N/A | CS46: N/A | CT46: N/A | CU46: N/A | CV46: N/A | CW46: N/A | CX46: N/A | CY46: N/A | CZ46: N/A
A47: Microbiological quality at point of collection | B47: Not contaminated (No E. coli in 100 mL) | C47: N/A | D47: N/A | E47: N/A | F47: N/A | G47: N/A | H47: N/A | I47: N/A | J47: N/A | K47: N/A | L47: N/A | M47: N/A | N47: N/A | O47: N/A | P47: N/A | Q47: N/A | R47: N/A | S47: N/A | T47: N/A | U47: N/A | V47: N/A | W47: N/A | X47: N/A | Y47: N/A | Z47: N/A | AA47: N/A | AB47: N/A | AC47: N/A | AD47: N/A | AE47: N/A | AF47: N/A | AG47: N/A | AH47: N/A | AI47: N/A | AJ47: N/A | AK47: N/A | AL47: N/A | AM47: N/A | AN47: N/A | AO47: N/A | AP47: N/A | AQ47: N/A | AR47: N/A | AS47: N/A | AT47: N/A | AU47: N/A | AV47: N/A | AW47: N/A | AX47: N/A | AY47: N/A | BA47: Microbiological quality at point of collection | BB47: Not contaminated (No E. coli in 100 mL) | BC47: N/A | BD47: N/A | BE47: N/A | BF47: N/A | BG47: N/A | BH47: N/A | BI47: N/A | BJ47: N/A | BK47: N/A | BL47: N/A | BM47: N/A | BN47: N/A | BO47: N/A | BP47: N/A | BQ47: N/A | BR47: N/A | BS47: N/A | BT47: N/A | BU47: N/A | BV47: N/A | BW47: N/A | BX47: N/A | BY47: N/A | BZ47: N/A | CA47: N/A | CB47: N/A | CC47: N/A | CD47: N/A | CE47: N/A | CF47: N/A | CG47: N/A | CH47: N/A | CI47: N/A | CJ47: N/A | CK47: N/A | CL47: N/A | CM47: N/A | CN47: N/A | CO47: N/A | CP47: N/A | CQ47: N/A | CR47: N/A | CS47: N/A | CT47: N/A | CU47: N/A | CV47: N/A | CW47: N/A | CX47: N/A | CY47: N/A | CZ47: N/A
B48: Contaminated (E. coli detected in 100 mL) | C48: N/A | D48: N/A | E48: N/A | F48: N/A | G48: N/A | H48: N/A | I48: N/A | J48: N/A | K48: N/A | L48: N/A | M48: N/A | N48: N/A | O48: N/A | P48: N/A | Q48: N/A | R48: N/A | S48: N/A | T48: N/A | U48: N/A | V48: N/A | W48: N/A | X48: N/A | Y48: N/A | Z48: N/A | AA48: N/A | AB48: N/A | AC48: N/A | AD48: N/A | AE48: N/A | AF48: N/A | AG48: N/A | AH48: N/A | AI48: N/A | AJ48: N/A | AK48: N/A | AL48: N/A | AM48: N/A | AN48: N/A | AO48: N/A | AP48: N/A | AQ48: N/A | AR48: N/A | AS48: N/A | AT48: N/A | AU48: N/A | AV48: N/A | AW48: N/A | AX48: N/A | AY48: N/A | BB48: Contaminated (E. coli detected in 100 mL) | BC48: N/A | BD48: N/A | BE48: N/A | BF48: N/A | BG48: N/A | BH48: N/A | BI48: N/A | BJ48: N/A | BK48: N/A | BL48: N/A | BM48: N/A | BN48: N/A | BO48: N/A | BP48: N/A | BQ48: N/A | BR48: N/A | BS48: N/A | BT48: N/A | BU48: N/A | BV48: N/A | BW48: N/A | BX48: N/A | BY48: N/A | BZ48: N/A | CA48: N/A | CB48: N/A | CC48: N/A | CD48: N/A | CE48: N/A | CF48: N/A | CG48: N/A | CH48: N/A | CI48: N/A | CJ48: N/A | CK48: N/A | CL48: N/A | CM48: N/A | CN48: N/A | CO48: N/A | CP48: N/A | CQ48: N/A | CR48: N/A | CS48: N/A | CT48: N/A | CU48: N/A | CV48: N/A | CW48: N/A | CX48: N/A | CY48: N/A | CZ48: N/A
B49: Highly contaminated (>100 CFU/100 mL) | C49: N/A | D49: N/A | E49: N/A | F49: N/A | G49: N/A | H49: N/A | I49: N/A | J49: N/A | K49: N/A | L49: N/A | M49: N/A | N49: N/A | O49: N/A | P49: N/A | Q49: N/A | R49: N/A | S49: N/A | T49: N/A | U49: N/A | V49: N/A | W49: N/A | X49: N/A | Y49: N/A | Z49: N/A | AA49: N/A | AB49: N/A | AC49: N/A | AD49: N/A | AE49: N/A | AF49: N/A | AG49: N/A | AH49: N/A | AI49: N/A | AJ49: N/A | AK49: N/A | AL49: N/A | AM49: N/A | AN49: N/A | AO49: N/A | AP49: N/A | AQ49: N/A | AR49: N/A | AS49: N/A | AT49: N/A | AU49: N/A | AV49: N/A | AW49: N/A | AX49: N/A | AY49: N/A | BB49: Highly contaminated (>100 CFU/100 mL) | BC49: N/A | BD49: N/A | BE49: N/A | BF49: N/A | BG49: N/A | BH49: N/A | BI49: N/A | BJ49: N/A | BK49: N/A | BL49: N/A | BM49: N/A | BN49: N/A | BO49: N/A | BP49: N/A | BQ49: N/A | BR49: N/A | BS49: N/A | BT49: N/A | BU49: N/A | BV49: N/A | BW49: N/A | BX49: N/A | BY49: N/A | BZ49: N/A | CA49: N/A | CB49: N/A | CC49: N/A | CD49: N/A | CE49: N/A | CF49: N/A | CG49: N/A | CH49: N/A | CI49: N/A | CJ49: N/A | CK49: N/A | CL49: N/A | CM49: N/A | CN49: N/A | CO49: N/A | CP49: N/A | CQ49: N/A | CR49: N/A | CS49: N/A | CT49: N/A | CU49: N/A | CV49: N/A | CW49: N/A | CX49: N/A | CY49: N/A | CZ49: N/A
A50: Microbiological quality of improved water sources at point of collection | B50: Not contaminated (No E. coli in 100 mL) | C50: N/A | D50: N/A | E50: N/A | F50: N/A | G50: N/A | H50: N/A | I50: N/A | J50: N/A | K50: N/A | L50: N/A | M50: N/A | N50: N/A | O50: N/A | P50: N/A | Q50: N/A | R50: N/A | S50: N/A | T50: N/A | U50: N/A | V50: N/A | W50: N/A | X50: N/A | Y50: N/A | Z50: N/A | AA50: N/A | AB50: N/A | AC50: N/A | AD50: N/A | AE50: N/A | AF50: N/A | AG50: N/A | AH50: N/A | AI50: N/A | AJ50: N/A | AK50: N/A | AL50: N/A | AM50: N/A | AN50: N/A | AO50: N/A | AP50: N/A | AQ50: N/A | AR50: N/A | AS50: N/A | AT50: N/A | AU50: N/A | AV50: N/A | AW50: N/A | AX50: N/A | AY50: N/A | BA50: Microbiological quality of improved water sources at point of collection | BB50: Not contaminated (No E. coli in 100 mL) | BC50: N/A | BD50: N/A | BE50: N/A | BF50: N/A | BG50: N/A | BH50: N/A | BI50: N/A | BJ50: N/A | BK50: N/A | BL50: N/A | BM50: N/A | BN50: N/A | BO50: N/A | BP50: N/A | BQ50: N/A | BR50: N/A | BS50: N/A | BT50: N/A | BU50: N/A | BV50: N/A | BW50: N/A | BX50: N/A | BY50: N/A | BZ50: N/A | CA50: N/A | CB50: N/A | CC50: N/A | CD50: N/A | CE50: N/A | CF50: N/A | CG50: N/A | CH50: N/A | CI50: N/A | CJ50: N/A | CK50: N/A | CL50: N/A | CM50: N/A | CN50: N/A | CO50: N/A | CP50: N/A | CQ50: N/A | CR50: N/A | CS50: N/A | CT50: N/A | CU50: N/A | CV50: N/A | CW50: N/A | CX50: N/A | CY50: N/A | CZ50: N/A
B51: Contaminated (E. coli detected in 100 mL) | C51: N/A | D51: N/A | E51: N/A | F51: N/A | G51: N/A | H51: N/A | I51: N/A | J51: N/A | K51: N/A | L51: N/A | M51: N/A | N51: N/A | O51: N/A | P51: N/A | Q51: N/A | R51: N/A | S51: N/A | T51: N/A | U51: N/A | V51: N/A | W51: N/A | X51: N/A | Y51: N/A | Z51: N/A | AA51: N/A | AB51: N/A | AC51: N/A | AD51: N/A | AE51: N/A | AF51: N/A | AG51: N/A | AH51: N/A | AI51: N/A | AJ51: N/A | AK51: N/A | AL51: N/A | AM51: N/A | AN51: N/A | AO51: N/A | AP51: N/A | AQ51: N/A | AR51: N/A | AS51: N/A | AT51: N/A | AU51: N/A | AV51: N/A | AW51: N/A | AX51: N/A | AY51: N/A | BB51: Contaminated (E. coli detected in 100 mL) | BC51: N/A | BD51: N/A | BE51: N/A | BF51: N/A | BG51: N/A | BH51: N/A | BI51: N/A | BJ51: N/A | BK51: N/A | BL51: N/A | BM51: N/A | BN51: N/A | BO51: N/A | BP51: N/A | BQ51: N/A | BR51: N/A | BS51: N/A | BT51: N/A | BU51: N/A | BV51: N/A | BW51: N/A | BX51: N/A | BY51: N/A | BZ51: N/A | CA51: N/A | CB51: N/A | CC51: N/A | CD51: N/A | CE51: N/A | CF51: N/A | CG51: N/A | CH51: N/A | CI51: N/A | CJ51: N/A | CK51: N/A | CL51: N/A | CM51: N/A | CN51: N/A | CO51: N/A | CP51: N/A | CQ51: N/A | CR51: N/A | CS51: N/A | CT51: N/A | CU51: N/A | CV51: N/A | CW51: N/A | CX51: N/A | CY51: N/A | CZ51: N/A
B52: Highly contaminated (>100 CFU/100 mL) | C52: N/A | D52: N/A | E52: N/A | F52: N/A | G52: N/A | H52: N/A | I52: N/A | J52: N/A | K52: N/A | L52: N/A | M52: N/A | N52: N/A | O52: N/A | P52: N/A | Q52: N/A | R52: N/A | S52: N/A | T52: N/A | U52: N/A | V52: N/A | W52: N/A | X52: N/A | Y52: N/A | Z52: N/A | AA52: N/A | AB52: N/A | AC52: N/A | AD52: N/A | AE52: N/A | AF52: N/A | AG52: N/A | AH52: N/A | AI52: N/A | AJ52: N/A | AK52: N/A | AL52: N/A | AM52: N/A | AN52: N/A | AO52: N/A | AP52: N/A | AQ52: N/A | AR52: N/A | AS52: N/A | AT52: N/A | AU52: N/A | AV52: N/A | AW52: N/A | AX52: N/A | AY52: N/A | BB52: Highly contaminated (>100 CFU/100 mL) | BC52: N/A | BD52: N/A | BE52: N/A | BF52: N/A | BG52: N/A | BH52: N/A | BI52: N/A | BJ52: N/A | BK52: N/A | BL52: N/A | BM52: N/A | BN52: N/A | BO52: N/A | BP52: N/A | BQ52: N/A | BR52: N/A | BS52: N/A | BT52: N/A | BU52: N/A | BV52: N/A | BW52: N/A | BX52: N/A | BY52: N/A | BZ52: N/A | CA52: N/A | CB52: N/A | CC52: N/A | CD52: N/A | CE52: N/A | CF52: N/A | CG52: N/A | CH52: N/A | CI52: N/A | CJ52: N/A | CK52: N/A | CL52: N/A | CM52: N/A | CN52: N/A | CO52: N/A | CP52: N/A | CQ52: N/A | CR52: N/A | CS52: N/A | CT52: N/A | CU52: N/A | CV52: N/A | CW52: N/A | CX52: N/A | CY52: N/A | CZ52: N/A
A53: Microbiological quality of piped on premises at point of collection | B53: Not contaminated (No E. coli in 100 mL) | C53: N/A | D53: N/A | E53: N/A | F53: N/A | G53: N/A | H53: N/A | I53: N/A | J53: N/A | K53: N/A | L53: N/A | M53: N/A | N53: N/A | O53: N/A | P53: N/A | Q53: N/A | R53: N/A | S53: N/A | T53: N/A | U53: N/A | V53: N/A | W53: N/A | X53: N/A | Y53: N/A | Z53: N/A | AA53: N/A | AB53: N/A | AC53: N/A | AD53: N/A | AE53: N/A | AF53: N/A | AG53: N/A | AH53: N/A | AI53: N/A | AJ53: N/A | AK53: N/A | AL53: N/A | AM53: N/A | AN53: N/A | AO53: N/A | AP53: N/A | AQ53: N/A | AR53: N/A | AS53: N/A | AT53: N/A | AU53: N/A | AV53: N/A | AW53: N/A | AX53: N/A | AY53: N/A | BA53: Microbiological quality of piped on premises at point of collection | BB53: Not contaminated (No E. coli in 100 mL) | BC53: N/A | BD53: N/A | BE53: N/A | BF53: N/A | BG53: N/A | BH53: N/A | BI53: N/A | BJ53: N/A | BK53: N/A | BL53: N/A | BM53: N/A | BN53: N/A | BO53: N/A | BP53: N/A | BQ53: N/A | BR53: N/A | BS53: N/A | BT53: N/A | BU53: N/A | BV53: N/A | BW53: N/A | BX53: N/A | BY53: N/A | BZ53: N/A | CA53: N/A | CB53: N/A | CC53: N/A | CD53: N/A | CE53: N/A | CF53: N/A | CG53: N/A | CH53: N/A | CI53: N/A | CJ53: N/A | CK53: N/A | CL53: N/A | CM53: N/A | CN53: N/A | CO53: N/A | CP53: N/A | CQ53: N/A | CR53: N/A | CS53: N/A | CT53: N/A | CU53: N/A | CV53: N/A | CW53: N/A | CX53: N/A | CY53: N/A | CZ53: N/A
B54: Contaminated (E. coli detected in 100 mL) | C54: N/A | D54: N/A | E54: N/A | F54: N/A | G54: N/A | H54: N/A | I54: N/A | J54: N/A | K54: N/A | L54: N/A | M54: N/A | N54: N/A | O54: N/A | P54: N/A | Q54: N/A | R54: N/A | S54: N/A | T54: N/A | U54: N/A | V54: N/A | W54: N/A | X54: N/A | Y54: N/A | Z54: N/A | AA54: N/A | AB54: N/A | AC54: N/A | AD54: N/A | AE54: N/A | AF54: N/A | AG54: N/A | AH54: N/A | AI54: N/A | AJ54: N/A | AK54: N/A | AL54: N/A | AM54: N/A | AN54: N/A | AO54: N/A | AP54: N/A | AQ54: N/A | AR54: N/A | AS54: N/A | AT54: N/A | AU54: N/A | AV54: N/A | AW54: N/A | AX54: N/A | AY54: N/A | BB54: Contaminated (E. coli detected in 100 mL) | BC54: N/A | BD54: N/A | BE54: N/A | BF54: N/A | BG54: N/A | BH54: N/A | BI54: N/A | BJ54: N/A | BK54: N/A | BL54: N/A | BM54: N/A | BN54: N/A | BO54: N/A | BP54: N/A | BQ54: N/A | BR54: N/A | BS54: N/A | BT54: N/A | BU54: N/A | BV54: N/A | BW54: N/A | BX54: N/A | BY54: N/A | BZ54: N/A | CA54: N/A | CB54: N/A | CC54: N/A | CD54: N/A | CE54: N/A | CF54: N/A | CG54: N/A | CH54: N/A | CI54: N/A | CJ54: N/A | CK54: N/A | CL54: N/A | CM54: N/A | CN54: N/A | CO54: N/A | CP54: N/A | CQ54: N/A | CR54: N/A | CS54: N/A | CT54: N/A | CU54: N/A | CV54: N/A | CW54: N/A | CX54: N/A | CY54: N/A | CZ54: N/A
B55: Highly contaminated (>100 CFU/100 mL) | C55: N/A | D55: N/A | E55: N/A | F55: N/A | G55: N/A | H55: N/A | I55: N/A | J55: N/A | K55: N/A | L55: N/A | M55: N/A | N55: N/A | O55: N/A | P55: N/A | Q55: N/A | R55: N/A | S55: N/A | T55: N/A | U55: N/A | V55: N/A | W55: N/A | X55: N/A | Y55: N/A | Z55: N/A | AA55: N/A | AB55: N/A | AC55: N/A | AD55: N/A | AE55: N/A | AF55: N/A | AG55: N/A | AH55: N/A | AI55: N/A | AJ55: N/A | AK55: N/A | AL55: N/A | AM55: N/A | AN55: N/A | AO55: N/A | AP55: N/A | AQ55: N/A | AR55: N/A | AS55: N/A | AT55: N/A | AU55: N/A | AV55: N/A | AW55: N/A | AX55: N/A | AY55: N/A | BB55: Highly contaminated (>100 CFU/100 mL) | BC55: N/A | BD55: N/A | BE55: N/A | BF55: N/A | BG55: N/A | BH55: N/A | BI55: N/A | BJ55: N/A | BK55: N/A | BL55: N/A | BM55: N/A | BN55: N/A | BO55: N/A | BP55: N/A | BQ55: N/A | BR55: N/A | BS55: N/A | BT55: N/A | BU55: N/A | BV55: N/A | BW55: N/A | BX55: N/A | BY55: N/A | BZ55: N/A | CA55: N/A | CB55: N/A | CC55: N/A | CD55: N/A | CE55: N/A | CF55: N/A | CG55: N/A | CH55: N/A | CI55: N/A | CJ55: N/A | CK55: N/A | CL55: N/A | CM55: N/A | CN55: N/A | CO55: N/A | CP55: N/A | CQ55: N/A | CR55: N/A | CS55: N/A | CT55: N/A | CU55: N/A | CV55: N/A | CW55: N/A | CX55: N/A | CY55: N/A | CZ55: N/A
C56: NATIONAL wealth index quintile | H56: URBAN wealth index quintile | M56: RURAL wealth index quintile | R56: REGIONS | BA56: Raw numbers of respondents: | BB56: Use of drinking water sources | BC56: NATIONAL wealth index quintile | BH56: URBAN wealth index quintile | BM56: RURAL wealth index quintile | BR56: SUB-REGIONS:
A57: Percentage based on weighted population | C57: Poorest | D57: Poor | E57: Middle | F57: Rich | G57: Richest | H57: Poorest | I57: Poor | J57: Middle | K57: Rich | L57: Richest | M57: Poorest | N57: Poor | O57: Middle | P57: Rich | Q57: Richest | R57: Bali | S57: Bangka Belitung | T57: Banten | U57: Bengkulu | V57: Cenrtal Sulawesi | W57: Central Java | X57: Central Kalimantan | Y57: DI Aceh | Z57: DI Yogyakarta | AA57: DKI Jakarta | AB57: East Java | AC57: East Kalimantan | AD57: East Nusa Tenggara | AE57: East Timor | AF57: Gorontalo | AG57: Irian Jaya | AH57: Jambi | AI57: Lampung | AJ57: Maluku | AK57: North Sulawesi | AL57: North Sumatra | AM57: Riau | AN57: South Kalimantan | AO57: South Sulawesi | AP57: South Sumatra | AQ57: Southeast Sulawesi | AR57: West Java | AS57: West Kalimantan | AT57: West Nusa Tenggara | AU57: West Sumatra | BA57: Water data, raw numbers (weighted) | BC57: Poorest | BD57: Poor | BE57: Middle | BF57: Rich | BG57: Richest | BH57: Poorest | BI57: Poor | BJ57: Middle | BK57: Rich | BL57: Richest | BM57: Poorest | BN57: Poor | BO57: Middle | BP57: Rich | BQ57: Richest
A58: Source of drinking water | B58: Piped into dwelling | C58: 2.167805611 | D58: 8.448848685 | E58: 10.15609229 | F58: 14.56579809 | G58: 30.1100244 | H58: 16.31171357 | I58: 16.62078884 | J58: 17.56869215 | K58: 23.47717555 | L58: 40.97050816 | M58: 1.028938382 | N58: 2.2669621 | O58: 4.301358576 | P58: 4.613051165 | Q58: 9.376407212 | R58: 40.07690909 | S58: 3.339216346 | T58: 7.338834805 | U58: 9.408871067 | V58: 14.94726665 | W58: 6.925283893 | X58: 9.227821277 | Y58: N/A | Z58: 7.102520759 | AA58: 29.6520045 | AB58: 12.4854788 | AC58: 54.2603786 | AD58: 3.427625873 | AE58: N/A | AF58: 8.245665071 | AG58: 0 | AH58: 26.44264987 | AI58: 3.428010092 | AJ58: N/A | AK58: 30.38981789 | AL58: 18.18996418 | AM58: 4.288117614 | AN58: 21.7577437 | AO58: 19.55102067 | AP58: 18.87706009 | AQ58: 11.30933846 | AR58: 9.553298652 | AS58: 6.064411535 | AT58: 5.130306364 | AU58: 23.5596356
B59: Piped into yard/plot | C59: 1.777399103 | D59: 2.505171799 | E59: 1.713516837 | F59: 1.889208465 | G59: 2.499638706 | H59: 3.822787267 | I59: 1.910195563 | J59: 2.406978814 | K59: 3.171459223 | L59: 2.369590099 | M59: 1.215492651 | N59: 2.024548799 | O59: 1.772137476 | P59: 1.350095659 | Q59: 1.115007324 | R59: 5.917288625 | S59: 0.686386111 | T59: 0.1004613199 | U59: 2.861846603 | V59: 1.805674444 | W59: 1.211901006 | X59: 7.939407184 | Y59: N/A | Z59: 2.801969276 | AA59: 2.707014412 | AB59: 1.948154774 | AC59: 3.506457922 | AD59: 8.078674171 | AE59: N/A | AF59: 1.090902291 | AG59: 0 | AH59: 3.182659968 | AI59: 1.510166427 | AJ59: N/A | AK59: 6.388754278 | AL59: 0.2721587318 | AM59: 0.7386290552 | AN59: 4.642799744 | AO59: 6.566042915 | AP59: 1.469155943 | AQ59: 6.221925281 | AR59: 1.434698787 | AS59: 0.8033884219 | AT59: 2.345984541 | AU59: 1.955268264
B60: Public tap | C60: 2.141418374 | D60: 3.005599712 | E60: 2.846599826 | F60: 3.096788549 | G60: 1.787802454 | H60: 5.845005278 | I60: 4.971058149 | J60: 2.926112469 | K60: 2.89436727 | L60: 1.307376096 | M60: 2.183818342 | N60: 1.427368509 | O60: 1.691061507 | P60: 1.716278426 | Q60: 1.33940161 | R60: 4.687390277 | S60: 0.2618617239 | T60: 0.2252506699 | U60: 3.840654628 | V60: 3.591614998 | W60: 2.651976637 | X60: 1.919440217 | Y60: N/A | Z60: 0.3028221825 | AA60: 7.918627216 | AB60: 0.9449074315 | AC60: 0.604328188 | AD60: 5.797210888 | AE60: N/A | AF60: 0.8077640453 | AG60: 0 | AH60: 1.472831225 | AI60: 0.7269441701 | AJ60: N/A | AK60: 2.357393681 | AL60: 1.023819805 | AM60: 1.991940461 | AN60: 6.936015189 | AO60: 12.90450164 | AP60: 1.087667851 | AQ60: 3.835058188 | AR60: 2.47743732 | AS60: 0.2330209929 | AT60: 1.927451065 | AU60: 1.508895376
B61: Open well in dwelling | C61: 2.234956442 | D61: 4.219219559 | E61: 5.765562219 | F61: 6.839722425 | G61: 5.16365285 | H61: 5.178037251 | I61: 7.49556069 | J61: 7.385659571 | K61: 5.63625289 | L61: 4.014464212 | M61: 1.887973865 | N61: 2.103141061 | O61: 4.400083744 | P61: 4.849416546 | Q61: 6.057727837 | R61: 3.078973678 | S61: 3.659764737 | T61: 5.974941363 | U61: 8.942704448 | V61: 4.057030643 | W61: 4.439306251 | X61: 0.4047577965 | Y61: N/A | Z61: 3.103917397 | AA61: 9.549772228 | AB61: 2.112766446 | AC61: 0.1150618438 | AD61: 1.043612767 | AE61: N/A | AF61: 1.601497264 | AG61: 0 | AH61: 5.764216394 | AI61: 5.769452119 | AJ61: N/A | AK61: 5.21992381 | AL61: 11.65859108 | AM61: 7.17551376 | AN61: 2.285064993 | AO61: 1.823526212 | AP61: 3.770870663 | AQ61: 2.162455018 | AR61: 5.917420941 | AS61: 0 | AT61: 3.043406062 | AU61: 6.794587727
B62: Open well in yard/plot | C62: 14.57716254 | D62: 12.29531248 | E62: 9.658887508 | F62: 6.092916668 | G62: 3.118128397 | H62: 11.01533483 | I62: 8.16944933 | J62: 4.616307321 | K62: 3.745912315 | L62: 1.290908752 | M62: 14.93539561 | N62: 13.44755692 | O62: 13.52925001 | P62: 10.66875583 | Q62: 8.149362717 | R62: 3.409455229 | S62: 16.91672903 | T62: 3.844822437 | U62: 26.81244001 | V62: 15.24130383 | W62: 8.051521194 | X62: 12.14731536 | Y62: N/A | Z62: 9.190433853 | AA62: 0.6971695669 | AB62: 5.614431614 | AC62: 5.57535832 | AD62: 1.357651347 | AE62: N/A | AF62: 10.42504074 | AG62: 0 | AH62: 13.87087891 | AI62: 22.55684273 | AJ62: N/A | AK62: 21.46614084 | AL62: 12.89074382 | AM62: 13.70634887 | AN62: 7.834894772 | AO62: 5.882811743 | AP62: 20.24245937 | AQ62: 8.738629298 | AR62: 10.82933396 | AS62: 5.390969625 | AT62: 6.078927622 | AU62: 7.97753225
B63: Open public well | C63: 6.796356927 | D63: 4.755023828 | E63: 2.684348342 | F63: 1.444640988 | G63: 0.4210739738 | H63: 4.322620854 | I63: 1.412508436 | J63: 1.040215606 | K63: 0.7057275194 | L63: 0.03102124474 | M63: 8.113149876 | N63: 5.228626344 | O63: 4.291079513 | P63: 3.723406172 | Q63: 2.348322103 | R63: 1.281204724 | S63: 4.83237874 | T63: 3.496650948 | U63: 3.71341758 | V63: 3.238851713 | W63: 1.34204138 | X63: 2.333805556 | Y63: N/A | Z63: 2.468197413 | AA63: 0.4674322845 | AB63: 1.007354685 | AC63: 3.325663659 | AD63: 7.65569673 | AE63: N/A | AF63: 4.27658831 | AG63: 0 | AH63: 1.387869391 | AI63: 2.096333504 | AJ63: N/A | AK63: 3.406346368 | AL63: 1.494912163 | AM63: 2.748225684 | AN63: 6.875064084 | AO63: 5.607059247 | AP63: 4.663286912 | AQ63: 9.961635064 | AR63: 5.508382429 | AS63: 1.420888118 | AT63: 13.20269911 | AU63: 2.791369565
B64: Protected well in dwelling | C64: 4.122632626 | D64: 11.34953963 | E64: 21.07883805 | F64: 30.89238982 | G64: 31.0800624 | H64: 13.2779218 | I64: 24.48868019 | J64: 33.2630702 | K64: 34.94945703 | L64: 26.95448604 | M64: 3.399541675 | N64: 5.31194986 | O64: 11.24738395 | P64: 19.01173749 | Q64: 29.02805667 | R64: 7.112920887 | S64: 12.479455 | T64: 45.6392464 | U64: 20.39850581 | V64: 19.43207308 | W64: 23.45691277 | X64: 7.502232646 | Y64: N/A | Z64: 26.27354647 | AA64: 19.42938522 | AB64: 19.62809373 | AC64: 0.9262014476 | AD64: 3.279840881 | AE64: N/A | AF64: 7.983012126 | AG64: 0 | AH64: 8.627088185 | AI64: 14.98573038 | AJ64: N/A | AK64: 5.040357562 | AL64: 21.32654633 | AM64: 16.46057428 | AN64: 3.971149021 | AO64: 7.996613712 | AP64: 6.248794208 | AQ64: 4.729285346 | AR64: 26.51426424 | AS64: 0.5527870262 | AT64: 7.012243575 | AU64: 20.32283885
B65: Protected well in yard/plot | C65: 12.54039052 | D65: 17.20702947 | E65: 20.41285652 | F65: 15.2046482 | G65: 7.764885811 | H65: 13.1081448 | I65: 14.9788833 | J65: 14.12199623 | K65: 9.359956198 | L65: 4.592895152 | M65: 8.141171588 | N65: 18.3549089 | O65: 19.44888565 | P65: 25.18067121 | Q65: 17.09833376 | R65: 8.743337069 | S65: 29.96741139 | T65: 9.834345514 | U65: 13.98857423 | V65: 14.68435743 | W65: 21.71532402 | X65: 9.526246063 | Y65: N/A | Z65: 25.30914489 | AA65: 0.7861934291 | AB65: 22.80466929 | AC65: 6.366531294 | AD65: 3.194306398 | AE65: N/A | AF65: 25.47506496 | AG65: 0 | AH65: 13.62373351 | AI65: 33.78014832 | AJ65: N/A | AK65: 6.959364397 | AL65: 8.757824419 | AM65: 11.22865155 | AN65: 5.594189949 | AO65: 11.00455817 | AP65: 19.15471861 | AQ65: 10.33184513 | AR65: 9.866311263 | AS65: 4.706766402 | AT65: 16.1418369 | AU65: 6.447457035
B66: Protected public well | C66: 13.16658669 | D66: 10.16114207 | E66: 7.052032012 | F66: 4.545419779 | G66: 1.704526932 | H66: 10.7429999 | I66: 6.430718095 | J66: 5.519433333 | K66: 2.476445146 | L66: 0.9146566372 | M66: 12.13052897 | N66: 14.34207597 | O66: 9.139413225 | P66: 6.718375621 | Q66: 3.617246459 | R66: 1.059594515 | S66: 12.53921048 | T66: 10.51533298 | U66: 3.951328121 | V66: 5.281924501 | W66: 8.289667121 | X66: 1.359445882 | Y66: N/A | Z66: 10.35397112 | AA66: 2.374857279 | AB66: 6.224896146 | AC66: 1.700144366 | AD66: 8.995817712 | AE66: N/A | AF66: 20.16143813 | AG66: 0 | AH66: 3.267544802 | AI66: 5.059438655 | AJ66: N/A | AK66: 2.004135552 | AL66: 3.391876935 | AM66: 3.875606415 | AN66: 4.450705456 | AO66: 14.13082853 | AP66: 4.702533719 | AQ66: 18.68485801 | AR66: 8.62107046 | AS66: 1.048754303 | AT66: 28.67585763 | AU66: 3.074685988
B67: Spring | C67: 23.20150046 | D67: 15.42851841 | E67: 10.55091456 | F67: 5.998528029 | G67: 1.903807314 | H67: 5.572695638 | I67: 4.371330609 | J67: 3.25579025 | K67: 1.36471036 | L67: 0.7367432583 | M67: 25.8063006 | N67: 22.20649117 | O67: 20.56061224 | P67: 14.69162423 | Q67: 10.88005239 | R67: 9.642589815 | S67: 0.774649272 | T67: 1.398107437 | U67: 4.261286827 | V67: 8.867736751 | W67: 16.66994354 | X67: 0.0303109588 | Y67: N/A | Z67: 6.643446805 | AA67: 0 | AB67: 14.20469464 | AC67: 0.2769277861 | AD67: 50.83174569 | AE67: N/A | AF67: 7.699241677 | AG67: 0 | AH67: 3.192821433 | AI67: 5.6800647 | AJ67: N/A | AK67: 13.47733445 | AL67: 10.47460261 | AM67: 3.380513198 | AN67: 6.936506926 | AO67: 10.5334461 | AP67: 4.893212936 | AQ67: 17.63606278 | AR67: 11.45219768 | AS67: 3.472545931 | AT67: 12.00703976 | AU67: 22.77612955
B68: River, stream | C68: 10.42904689 | D68: 3.362095363 | E68: 1.448949102 | F68: 1.11208304 | G68: 0.05506517432 | H68: 0.9597266807 | I68: 0.09560049261 | J68: 0.2912996573 | K68: 0.06244677135 | L68: 0.006433605585 | M68: 13.5902152 | N68: 7.452911085 | O68: 4.058441823 | P68: 2.563773272 | Q68: 2.010001493 | R68: 1.634648042 | S68: 1.082883176 | T68: 2.23948261 | U68: 1.450792905 | V68: 7.234781739 | W68: 0.5319010706 | X68: 35.2437255 | Y68: N/A | Z68: 0 | AA68: 0 | AB68: 1.720170266 | AC68: 14.04558158 | AD68: 3.934469888 | AE68: N/A | AF68: 9.235147927 | AG68: 0 | AH68: 10.23713263 | AI68: 0.9279056398 | AJ68: N/A | AK68: 0.09044133874 | AL68: 6.365979449 | AM68: 0.3822092614 | AN68: 20.73879585 | AO68: 2.109398272 | AP68: 11.79515329 | AQ68: 5.215180256 | AR68: 0.998673663 | AS68: 19.45371498 | AT68: 0.3334277854 | AU68: 1.983342776
B69: Pond, lake | C69: 0.06983233924 | D69: 0.1365426908 | E69: 0.04297778259 | F69: 0.2807956887 | G69: 0.09885470714 | H69: 0 | I69: 0.02188589576 | J69: 0 | K69: 0 | L69: 0 | M69: 0.1307470942 | N69: 0.1195635067 | O69: 0.1388476172 | P69: 0.06211300885 | Q69: 0.7166540948 | R69: 0 | S69: 0.1358035536 | T69: 0.1081573943 | U69: 0 | V69: 0 | W69: 0 | X69: 0.3129219699 | Y69: N/A | Z69: 0 | AA69: 0 | AB69: 0.5037786264 | AC69: 0.5779572301 | AD69: 0 | AE69: N/A | AF69: 0 | AG69: 0 | AH69: 0.0484149772 | AI69: 0 | AJ69: N/A | AK69: 0 | AL69: 0.07870771125 | AM69: 0 | AN69: 0.1348402341 | AO69: 0.1483715145 | AP69: 0 | AQ69: 0 | AR69: 0 | AS69: 0.4351425283 | AT69: 0 | AU69: 0
B70: Dam | C70: 0.1147220234 | D70: 0.003160481107 | E70: 0.0326839205 | F70: 0 | G70: 0.04345813448 | H70: 0 | I70: 0 | J70: 0 | K70: 0 | L70: 0 | M70: 0.2136058909 | N70: 0.001211733483 | O70: 0.005937042005 | P70: 0.06211300885 | Q70: 0.08241688418 | R70: 0 | S70: 0.02529864764 | T70: 0 | U70: 0 | V70: 0 | W70: 0 | X70: 0 | Y70: N/A | Z70: 0 | AA70: 0 | AB70: 0.09042180474 | AC70: 0 | AD70: 0 | AE70: N/A | AF70: 0 | AG70: 0 | AH70: 0 | AI70: 0 | AJ70: N/A | AK70: 0.06433366023 | AL70: 0.1353149384 | AM70: 0 | AN70: 0 | AO70: 0 | AP70: 0.4622743499 | AQ70: 0 | AR70: 0 | AS70: 0 | AT70: 0 | AU70: 0
B71: Rainwater | C71: 5.438928523 | D71: 3.536294457 | E71: 1.456873324 | F71: 1.103394078 | G71: 0.7032228253 | H71: 4.153649309 | I71: 1.178646944 | J71: 0.6255417161 | K71: 0.9628832387 | L71: 0.3575086098 | M71: 6.131214501 | N71: 4.15237362 | O71: 3.193706632 | P71: 1.503577911 | Q71: 1.651805488 | R71: 1.457474277 | S71: 1.050615181 | T71: 1.286337347 | U71: 0.110780385 | V71: 0.046675153 | W71: 0.2672072405 | X71: 11.77797049 | Y71: N/A | Z71: 0.6923779894 | AA71: 0 | AB71: 0.2405375868 | AC71: 5.895451673 | AD71: 2.026111813 | AE71: N/A | AF71: 0 | AG71: 0 | AH71: 8.418114256 | AI71: 0 | AJ71: N/A | AK71: 1.159849815 | AL71: 3.04157975 | AM71: 29.83275527 | AN71: 0.9127279976 | AO71: 0.2671043338 | AP71: 1.85047825 | AQ71: 0 | AR71: 0 | AS71: 51.59816298 | AT71: 0.05766526663 | AU71: 0.7169417933
B72: Tanker truck | C72: 0.8079505571 | D72: 2.265625086 | E72: 3.350589149 | F72: 3.27208408 | G72: 2.521052619 | H72: 3.349430376 | I72: 4.671506429 | J72: 3.314297631 | K72: 3.579708974 | L72: 1.540723432 | M72: 0.7385560515 | N72: 1.012176185 | O72: 1.408080402 | P72: 2.352889717 | Q72: 2.947052213 | R72: 2.750875564 | S72: 0.0701995824 | T72: 1.307495732 | U72: 0.2587973911 | V72: 0.7162319815 | W72: 3.102304555 | X72: 0 | Y72: N/A | Z72: 3.718315948 | AA72: 7.099209444 | AB72: 4.82160791 | AC72: 1.803216477 | AD72: 0.2272198966 | AE72: N/A | AF72: 2.874841512 | AG72: 0 | AH72: 0.08490385011 | AI72: 1.709301911 | AJ72: N/A | AK72: 0.07739867951 | AL72: 0.1455465642 | AM72: 0.8842793539 | AN72: 6.321414101 | AO72: 0.7773262539 | AP72: 0.5904589301 | AQ72: 1.173727171 | AR72: 2.19293497 | AS72: 0.1428078302 | AT72: 3.285706309 | AU72: 0
B73: Bottled water | C73: 0.02150385314 | D73: 0.5863093602 | E73: 1.029831186 | F73: 3.229421697 | G73: 10.67156123 | H73: 1.125638545 | I73: 2.38279432 | J73: 3.355261528 | K73: 6.912916733 | L73: 14.76182185 | M73: 0.00193496849 | N73: 0.09646271629 | O73: 0.2866659209 | P73: 0.3119404793 | Q73: 3.376978964 | R73: 9.053164962 | S73: 0.5280655907 | T73: 6.647572759 | U73: 0 | V73: 0.8544770864 | W73: 1.222647525 | X73: 0.2745990986 | Y73: N/A | Z73: 1.870605472 | AA73: 19.31833442 | AB73: 5.648036243 | AC73: 0.5666756919 | AD73: 0 | AE73: N/A | AF73: 0.04252261758 | AG73: 0 | AH73: 0.1808863868 | AI73: 0.9625810441 | AJ73: N/A | AK73: 0.2364791131 | AL73: 0.3521273737 | AM73: 2.21106855 | AN73: 0.0768535715 | AO73: 0.6351023364 | AP73: 0.07469574393 | AQ73: 0 | AR73: 3.305549303 | AS73: 1.732561399 | AT73: 0.5945315867 | AU73: 0.09131523376
B74: Other | C74: 0.391806525 | D74: 0.7345669162 | E74: 0.718447365 | F74: 0.4321604052 | G74: 0.3531820807 | H74: 1.21429389 | I74: 0.8003927049 | J74: 0.3093435216 | K74: 0.7005807872 | L74: 0.1508628464 | M74: 0.3514147368 | N74: 0.4516715157 | O74: 0.5270546778 | P74: 0.620180253 | Q74: 0.205172783 | R74: 0.09417324952 | S74: 11.65007144 | T74: 0.04296028485 | U74: 0 | V74: 0 | W74: 0.1220618022 | X74: 0 | Y74: N/A | Z74: 0.168730431 | AA74: 0 | AB74: 0 | AC74: 0.454063917 | AD74: 0.1500159472 | AE74: N/A | AF74: 0.08127332876 | AG74: 0 | AH74: 0.1982542084 | AI74: 0.80708031 | AJ74: N/A | AK74: 1.66192856 | AL74: 0.3997041442 | AM74: 1.095566676 | AN74: 0.5312344089 | AO74: 0.06228834893 | AP74: 0.1171791349 | AQ74: 0 | AR74: 1.328426321 | AS74: 2.944077936 | AT74: 0.1629164248 | AU74: 0
A108: =A1026 -> Indonesia
A109: =A1034 -> 2003
A110: Use of sanitation facilities
A111: by wealth quintile and sub-national region
A112: Notes:
A113: WHO/UNICEF JMP customised wealth index excludes water,
A114: sanitation and hygiene assets.
A115: Survey used for analysis: | B115: =A1025 -> DHS03
A116: =B1030 -> Ratio of Improved latrines based on: | B116: 50% Rule
A117: =B1029 -> Ratio of Shared improved based on: | B117: DHS07 Shared among sanitation
A120: Use of sanitation facilities | C120: NATIONAL wealth index quintile | H120: URBAN wealth index quintile | M120: RURAL wealth index quintile | R120: REGIONS | BA120: Raw numbers of respondents: | BB120: Use of sanitation facilities | BC120: NATIONAL wealth index quintile | BH120: URBAN wealth index quintile | BM120: RURAL wealth index quintile | BR120: SUB-REGIONS:
A121: Weighted percentage (used in graphs) | C121: Poorest | D121: Poor | E121: Middle | F121: Rich | G121: Richest | H121: Poorest | I121: Poor | J121: Middle | K121: Rich | L121: Richest | M121: Poorest | N121: Poor | O121: Middle | P121: Rich | Q121: Richest | R121: Bali | S121: Bangka Belitung | T121: Banten | U121: Bengkulu | V121: Cenrtal Sulawesi | W121: Central Java | X121: Central Kalimantan | Y121: DI Aceh | Z121: DI Yogyakarta | AA121: DKI Jakarta | AB121: East Java | AC121: East Kalimantan | AD121: East Nusa Tenggara | AE121: East Timor | AF121: Gorontalo | AG121: Irian Jaya | AH121: Jambi | AI121: Lampung | AJ121: Maluku | AK121: North Sulawesi | AL121: North Sumatra | AM121: Riau | AN121: South Kalimantan | AO121: South Sulawesi | AP121: South Sumatra | AQ121: Southeast Sulawesi | AR121: West Java | AS121: West Kalimantan | AT121: West Nusa Tenggara | AU121: West Sumatra | BA121: Sanitation data, raw numbers (weighted) | BC121: Poorest | BD121: Poor | BE121: Middle | BF121: Rich | BG121: Richest | BH121: Poorest | BI121: Poor | BJ121: Middle | BK121: Rich | BL121: Richest | BM121: Poorest | BN121: Poor | BO121: Middle | BP121: Rich | BQ121: Richest
A122: Sanitation | B122: Improved | C122: =C153+C155+(C154+C157)*0.5 -> 31.72764835 | D122: =D153+D155+(D154+D157)*0.5 -> 50.6485143 | E122: 61.55240731 | F122: 75.65656867 | G122: 91.54566618 | H122: 65.15525563 | I122: 71.64675098 | J122: 79.16768997 | K122: 89.57383002 | L122: 96.01262108 | M122: 25.42537294 | N122: 36.64094341 | O122: 44.53265226 | P122: 53.28648992 | Q122: 71.25932857 | R122: N/A | S122: N/A | T122: N/A | U122: N/A | V122: N/A | W122: N/A | X122: N/A | Y122: N/A | Z122: N/A | AA122: N/A | AB122: N/A | AC122: N/A | AD122: N/A | AE122: N/A | AF122: N/A | AG122: N/A | AH122: N/A | AI122: N/A | AJ122: N/A | AK122: N/A | AL122: N/A | AM122: N/A | AN122: N/A | AO122: N/A | AP122: N/A | AQ122: N/A | AR122: N/A | AS122: N/A | AT122: N/A | AU122: N/A | BA122: Sanitation | BB122: Improved | BC122: N/A | BD122: N/A | BE122: N/A | BF122: N/A | BG122: N/A | BH122: N/A | BI122: N/A | BJ122: N/A | BK122: N/A | BL122: N/A | BM122: N/A | BN122: N/A | BO122: N/A | BP122: N/A | BQ122: N/A | BR122: N/A | BS122: N/A | BT122: N/A | BU122: N/A | BV122: N/A | BW122: N/A | BX122: N/A | BY122: N/A | BZ122: N/A | CA122: N/A | CB122: N/A | CC122: N/A | CD122: N/A | CE122: N/A | CF122: N/A | CG122: N/A | CH122: N/A | CI122: N/A | CJ122: N/A | CK122: N/A | CL122: N/A | CM122: N/A | CN122: N/A | CO122: N/A | CP122: N/A | CQ122: N/A | CR122: N/A | CS122: N/A | CT122: N/A | CU122: N/A | CV122: N/A | CW122: N/A | CX122: N/A | CY122: N/A | CZ122: N/A
B123: Not Improved | C123: =100-C122 -> 68.27235165 | D123: =100-D122 -> 49.3514857 | E123: 38.44759269 | F123: 24.34343133 | G123: 8.454333822 | H123: 34.84474437 | I123: 28.35324902 | J123: 20.83231003 | K123: 10.42616998 | L123: 3.98737892 | M123: 74.57462706 | N123: 63.35905659 | O123: 55.46734774 | P123: 46.71351008 | Q123: 28.74067143 | R123: N/A | S123: N/A | T123: N/A | U123: N/A | V123: N/A | W123: N/A | X123: N/A | Y123: N/A | Z123: N/A | AA123: N/A | AB123: N/A | AC123: N/A | AD123: N/A | AE123: N/A | AF123: N/A | AG123: N/A | AH123: N/A | AI123: N/A | AJ123: N/A | AK123: N/A | AL123: N/A | AM123: N/A | AN123: N/A | AO123: N/A | AP123: N/A | AQ123: N/A | AR123: N/A | AS123: N/A | AT123: N/A | AU123: N/A | BB123: Not Improved | BC123: N/A | BD123: N/A | BE123: N/A | BF123: N/A | BG123: N/A | BH123: N/A | BI123: N/A | BJ123: N/A | BK123: N/A | BL123: N/A | BM123: N/A | BN123: N/A | BO123: N/A | BP123: N/A | BQ123: N/A | BR123: N/A | BS123: N/A | BT123: N/A | BU123: N/A | BV123: N/A | BW123: N/A | BX123: N/A | BY123: N/A | BZ123: N/A | CA123: N/A | CB123: N/A | CC123: N/A | CD123: N/A | CE123: N/A | CF123: N/A | CG123: N/A | CH123: N/A | CI123: N/A | CJ123: N/A | CK123: N/A | CL123: N/A | CM123: N/A | CN123: N/A | CO123: N/A | CP123: N/A | CQ123: N/A | CR123: N/A | CS123: N/A | CT123: N/A | CU123: N/A | CV123: N/A | CW123: N/A | CX123: N/A | CY123: N/A | CZ123: N/A
A124: Sanitation ladder | B124: Basic | C124: =C122*'DHS07'!C165/('DHS07'!C164+'DHS07'!C165) -> 20.88068987 | D124: =D122*'DHS07'!D165/('DHS07'!D164+'DHS07'!D165) -> 40.95423822 | E124: =E122*'DHS07'!E165/('DHS07'!E164+'DHS07'!E165) -> 53.38057931 | F124: =F122*'DHS07'!F165/('DHS07'!F164+'DHS07'!F165) -> 68.71254979 | G124: =G122*'DHS07'!G165/('DHS07'!G164+'DHS07'!G165) -> 89.28874732 | H124: =H122*'DHS07'!H165/('DHS07'!H164+'DHS07'!H165) -> 49.08382831 | I124: =I122*'DHS07'!I165/('DHS07'!I164+'DHS07'!I165) -> 60.12458577 | J124: =J122*'DHS07'!J165/('DHS07'!J164+'DHS07'!J165) -> 72.40975983 | K124: =K122*'DHS07'!K165/('DHS07'!K164+'DHS07'!K165) -> 85.30487326 | L124: =L122*'DHS07'!L165/('DHS07'!L164+'DHS07'!L165) -> 95.25649952 | M124: =M122*'DHS07'!M165/('DHS07'!M164+'DHS07'!M165) -> 15.14361698 | N124: =N122*'DHS07'!N165/('DHS07'!N164+'DHS07'!N165) -> 28.06580516 | O124: =O122*'DHS07'!O165/('DHS07'!O164+'DHS07'!O165) -> 37.20072149 | P124: =P122*'DHS07'!P165/('DHS07'!P164+'DHS07'!P165) -> 47.58631614 | Q124: =Q122*'DHS07'!Q165/('DHS07'!Q164+'DHS07'!Q165) -> 67.94588288 | R124: N/A | S124: N/A | T124: N/A | U124: N/A | V124: N/A | W124: N/A | X124: N/A | Y124: N/A | Z124: N/A | AA124: N/A | AB124: N/A | AC124: N/A | AD124: N/A | AE124: N/A | AF124: N/A | AG124: N/A | AH124: N/A | AI124: N/A | AJ124: N/A | AK124: N/A | AL124: N/A | AM124: N/A | AN124: N/A | AO124: N/A | AP124: N/A | AQ124: N/A | AR124: N/A | AS124: N/A | AT124: N/A | AU124: N/A | BA124: Sanitation ladder | BB124: Basic | BC124: N/A | BD124: N/A | BE124: N/A | BF124: N/A | BG124: N/A | BH124: N/A | BI124: N/A | BJ124: N/A | BK124: N/A | BL124: N/A | BM124: N/A | BN124: N/A | BO124: N/A | BP124: N/A | BQ124: N/A | BR124: N/A | BS124: N/A | BT124: N/A | BU124: N/A | BV124: N/A | BW124: N/A | BX124: N/A | BY124: N/A | BZ124: N/A | CA124: N/A | CB124: N/A | CC124: N/A | CD124: N/A | CE124: N/A | CF124: N/A | CG124: N/A | CH124: N/A | CI124: N/A | CJ124: N/A | CK124: N/A | CL124: N/A | CM124: N/A | CN124: N/A | CO124: N/A | CP124: N/A | CQ124: N/A | CR124: N/A | CS124: N/A | CT124: N/A | CU124: N/A | CV124: N/A | CW124: N/A | CX124: N/A | CY124: N/A | CZ124: N/A
B125: Limited | C125: =C122*'DHS07'!C164/('DHS07'!C164+'DHS07'!C165) -> 10.84695848 | D125: =D122*'DHS07'!D164/('DHS07'!D164+'DHS07'!D165) -> 9.694276079 | E125: =E122*'DHS07'!E164/('DHS07'!E164+'DHS07'!E165) -> 8.171828 | F125: =F122*'DHS07'!F164/('DHS07'!F164+'DHS07'!F165) -> 6.944018872 | G125: =G122*'DHS07'!G164/('DHS07'!G164+'DHS07'!G165) -> 2.256918857 | H125: =H122*'DHS07'!H164/('DHS07'!H164+'DHS07'!H165) -> 16.07142732 | I125: =I122*'DHS07'!I164/('DHS07'!I164+'DHS07'!I165) -> 11.52216521 | J125: =J122*'DHS07'!J164/('DHS07'!J164+'DHS07'!J165) -> 6.757930134 | K125: =K122*'DHS07'!K164/('DHS07'!K164+'DHS07'!K165) -> 4.268956764 | L125: =L122*'DHS07'!L164/('DHS07'!L164+'DHS07'!L165) -> 0.7561215612 | M125: =M122*'DHS07'!M164/('DHS07'!M164+'DHS07'!M165) -> 10.28175596 | N125: =N122*'DHS07'!N164/('DHS07'!N164+'DHS07'!N165) -> 8.575138255 | O125: =O122*'DHS07'!O164/('DHS07'!O164+'DHS07'!O165) -> 7.331930773 | P125: =P122*'DHS07'!P164/('DHS07'!P164+'DHS07'!P165) -> 5.700173784 | Q125: =Q122*'DHS07'!Q164/('DHS07'!Q164+'DHS07'!Q165) -> 3.313445697 | R125: N/A | S125: N/A | T125: N/A | U125: N/A | V125: N/A | W125: N/A | X125: N/A | Y125: N/A | Z125: N/A | AA125: N/A | AB125: N/A | AC125: N/A | AD125: N/A | AE125: N/A | AF125: N/A | AG125: N/A | AH125: N/A | AI125: N/A | AJ125: N/A | AK125: N/A | AL125: N/A | AM125: N/A | AN125: N/A | AO125: N/A | AP125: N/A | AQ125: N/A | AR125: N/A | AS125: N/A | AT125: N/A | AU125: N/A | BB125: Limited | BC125: N/A | BD125: N/A | BE125: N/A | BF125: N/A | BG125: N/A | BH125: N/A | BI125: N/A | BJ125: N/A | BK125: N/A | BL125: N/A | BM125: N/A | BN125: N/A | BO125: N/A | BP125: N/A | BQ125: N/A | BR125: N/A | BS125: N/A | BT125: N/A | BU125: N/A | BV125: N/A | BW125: N/A | BX125: N/A | BY125: N/A | BZ125: N/A | CA125: N/A | CB125: N/A | CC125: N/A | CD125: N/A | CE125: N/A | CF125: N/A | CG125: N/A | CH125: N/A | CI125: N/A | CJ125: N/A | CK125: N/A | CL125: N/A | CM125: N/A | CN125: N/A | CO125: N/A | CP125: N/A | CQ125: N/A | CR125: N/A | CS125: N/A | CT125: N/A | CU125: N/A | CV125: N/A | CW125: N/A | CX125: N/A | CY125: N/A | CZ125: N/A
B126: Unimproved | C126: =100-(C124+C125+C127) -> 21.9936134 | D126: =100-(D124+D125+D127) -> 20.01146261 | E126: 16.14693179 | F126: 10.99153612 | G126: 4.91940883 | H126: 14.61244303 | I126: 10.61060505 | J126: 8.483993817 | K126: 5.240351637 | L126: 3.274752944 | M126: 22.07969184 | N126: 22.05663006 | O126: 23.40032713 | P126: 20.11611112 | Q126: 14.6120059 | R126: N/A | S126: N/A | T126: N/A | U126: N/A | V126: N/A | W126: N/A | X126: N/A | Y126: N/A | Z126: N/A | AA126: N/A | AB126: N/A | AC126: N/A | AD126: N/A | AE126: N/A | AF126: N/A | AG126: N/A | AH126: N/A | AI126: N/A | AJ126: N/A | AK126: N/A | AL126: N/A | AM126: N/A | AN126: N/A | AO126: N/A | AP126: N/A | AQ126: N/A | AR126: N/A | AS126: N/A | AT126: N/A | AU126: N/A | BB126: Unimproved | BC126: N/A | BD126: N/A | BE126: N/A | BF126: N/A | BG126: N/A | BH126: N/A | BI126: N/A | BJ126: N/A | BK126: N/A | BL126: N/A | BM126: N/A | BN126: N/A | BO126: N/A | BP126: N/A | BQ126: N/A | BR126: N/A | BS126: N/A | BT126: N/A | BU126: N/A | BV126: N/A | BW126: N/A | BX126: N/A | BY126: N/A | BZ126: N/A | CA126: N/A | CB126: N/A | CC126: N/A | CD126: N/A | CE126: N/A | CF126: N/A | CG126: N/A | CH126: N/A | CI126: N/A | CJ126: N/A | CK126: N/A | CL126: N/A | CM126: N/A | CN126: N/A | CO126: N/A | CP126: N/A | CQ126: N/A | CR126: N/A | CS126: N/A | CT126: N/A | CU126: N/A | CV126: N/A | CW126: N/A | CX126: N/A | CY126: N/A | CZ126: N/A
B127: Open defecation | C127: =C158+C156 -> 46.27873825 | D127: =D158+D156 -> 29.3400231 | E127: 22.3006609 | F127: 13.35189521 | G127: 3.534924991 | H127: 20.23230134 | I127: 17.74264396 | J127: 12.34831621 | K127: 5.18581834 | L127: 0.7126259759 | M127: 52.49493522 | N127: 41.30242653 | O127: 32.06702061 | P127: 26.59739895 | Q127: 14.12866553 | R127: N/A | S127: N/A | T127: N/A | U127: N/A | V127: N/A | W127: N/A | X127: N/A | Y127: N/A | Z127: N/A | AA127: N/A | AB127: N/A | AC127: N/A | AD127: N/A | AE127: N/A | AF127: N/A | AG127: N/A | AH127: N/A | AI127: N/A | AJ127: N/A | AK127: N/A | AL127: N/A | AM127: N/A | AN127: N/A | AO127: N/A | AP127: N/A | AQ127: N/A | AR127: N/A | AS127: N/A | AT127: N/A | AU127: N/A | BB127: Open defecation | BC127: N/A | BD127: N/A | BE127: N/A | BF127: N/A | BG127: N/A | BH127: N/A | BI127: N/A | BJ127: N/A | BK127: N/A | BL127: N/A | BM127: N/A | BN127: N/A | BO127: N/A | BP127: N/A | BQ127: N/A | BR127: N/A | BS127: N/A | BT127: N/A | BU127: N/A | BV127: N/A | BW127: N/A | BX127: N/A | BY127: N/A | BZ127: N/A | CA127: N/A | CB127: N/A | CC127: N/A | CD127: N/A | CE127: N/A | CF127: N/A | CG127: N/A | CH127: N/A | CI127: N/A | CJ127: N/A | CK127: N/A | CL127: N/A | CM127: N/A | CN127: N/A | CO127: N/A | CP127: N/A | CQ127: N/A | CR127: N/A | CS127: N/A | CT127: N/A | CU127: N/A | CV127: N/A | CW127: N/A | CX127: N/A | CY127: N/A | CZ127: N/A
A128: Shared among Improved Sanitation | B128: Yes | C128: N/A | D128: N/A | E128: N/A | F128: N/A | G128: N/A | H128: N/A | I128: N/A | J128: N/A | K128: N/A | L128: N/A | M128: N/A | N128: N/A | O128: N/A | P128: N/A | Q128: N/A | R128: N/A | S128: N/A | T128: N/A | U128: N/A | V128: N/A | W128: N/A | X128: N/A | Y128: N/A | Z128: N/A | AA128: N/A | AB128: N/A | AC128: N/A | AD128: N/A | AE128: N/A | AF128: N/A | AG128: N/A | AH128: N/A | AI128: N/A | AJ128: N/A | AK128: N/A | AL128: N/A | AM128: N/A | AN128: N/A | AO128: N/A | AP128: N/A | AQ128: N/A | AR128: N/A | AS128: N/A | AT128: N/A | AU128: N/A | BA128: Shared among improved sanitation facilities | BB128: Yes | BC128: N/A | BD128: N/A | BE128: N/A | BF128: N/A | BG128: N/A | BH128: N/A | BI128: N/A | BJ128: N/A | BK128: N/A | BL128: N/A | BM128: N/A | BN128: N/A | BO128: N/A | BP128: N/A | BQ128: N/A | BR128: N/A | BS128: N/A | BT128: N/A | BU128: N/A | BV128: N/A | BW128: N/A | BX128: N/A | BY128: N/A | BZ128: N/A | CA128: N/A | CB128: N/A | CC128: N/A | CD128: N/A | CE128: N/A | CF128: N/A | CG128: N/A | CH128: N/A | CI128: N/A | CJ128: N/A | CK128: N/A | CL128: N/A | CM128: N/A | CN128: N/A | CO128: N/A | CP128: N/A | CQ128: N/A | CR128: N/A | CS128: N/A | CT128: N/A | CU128: N/A | CV128: N/A | CW128: N/A | CX128: N/A | CY128: N/A | CZ128: N/A
B129: No | C129: N/A | D129: N/A | E129: N/A | F129: N/A | G129: N/A | H129: N/A | I129: N/A | J129: N/A | K129: N/A | L129: N/A | M129: N/A | N129: N/A | O129: N/A | P129: N/A | Q129: N/A | R129: N/A | S129: N/A | T129: N/A | U129: N/A | V129: N/A | W129: N/A | X129: N/A | Y129: N/A | Z129: N/A | AA129: N/A | AB129: N/A | AC129: N/A | AD129: N/A | AE129: N/A | AF129: N/A | AG129: N/A | AH129: N/A | AI129: N/A | AJ129: N/A | AK129: N/A | AL129: N/A | AM129: N/A | AN129: N/A | AO129: N/A | AP129: N/A | AQ129: N/A | AR129: N/A | AS129: N/A | AT129: N/A | AU129: N/A | BB129: No | BC129: N/A | BD129: N/A | BE129: N/A | BF129: N/A | BG129: N/A | BH129: N/A | BI129: N/A | BJ129: N/A | BK129: N/A | BL129: N/A | BM129: N/A | BN129: N/A | BO129: N/A | BP129: N/A | BQ129: N/A | BR129: N/A | BS129: N/A | BT129: N/A | BU129: N/A | BV129: N/A | BW129: N/A | BX129: N/A | BY129: N/A | BZ129: N/A | CA129: N/A | CB129: N/A | CC129: N/A | CD129: N/A | CE129: N/A | CF129: N/A | CG129: N/A | CH129: N/A | CI129: N/A | CJ129: N/A | CK129: N/A | CL129: N/A | CM129: N/A | CN129: N/A | CO129: N/A | CP129: N/A | CQ129: N/A | CR129: N/A | CS129: N/A | CT129: N/A | CU129: N/A | CV129: N/A | CW129: N/A | CX129: N/A | CY129: N/A | CZ129: N/A
A130: Manually calculated ratios | B130: Improved latrines
B131: Other
B132: Other
C133: NATIONAL wealth index quintile | H133: URBAN wealth index quintile | M133: RURAL wealth index quintile | R133: REGIONS | BA133: Raw numbers of respondents: | BB133: Use of sanitation facilities | BC133: NATIONAL wealth index quintile | BH133: URBAN wealth index quintile | BM133: RURAL wealth index quintile | BR133: SUB-REGIONS:
A134: Percentage based on weighted population | C134: Poorest | D134: Poor | E134: Middle | F134: Rich | G134: Richest | H134: Poorest | I134: Poor | J134: Middle | K134: Rich | L134: Richest | M134: Poorest | N134: Poor | O134: Middle | P134: Rich | Q134: Richest | R134: Bali | S134: Bangka Belitung | T134: Banten | U134: Bengkulu | V134: Cenrtal Sulawesi | W134: Central Java | X134: Central Kalimantan | Y134: DI Aceh | Z134: DI Yogyakarta | AA134: DKI Jakarta | AB134: East Java | AC134: East Kalimantan | AD134: East Nusa Tenggara | AE134: East Timor | AF134: Gorontalo | AG134: Irian Jaya | AH134: Jambi | AI134: Lampung | AJ134: Maluku | AK134: North Sulawesi | AL134: North Sumatra | AM134: Riau | AN134: South Kalimantan | AO134: South Sulawesi | AP134: South Sumatra | AQ134: Southeast Sulawesi | AR134: West Java | AS134: West Kalimantan | AT134: West Nusa Tenggara | AU134: West Sumatra | BA134: Sanitation data, raw numbers (weighted) | BC134: Poorest | BD134: Poor | BE134: Middle | BF134: Rich | BG134: Richest | BH134: Poorest | BI134: Poor | BJ134: Middle | BK134: Rich | BL134: Richest | BM134: Poorest | BN134: Poor | BO134: Middle | BP134: Rich | BQ134: Richest
A135: Sanitation type | B135: Sewer connection | C135: N/A | D135: N/A | E135: N/A | F135: N/A | G135: N/A | H135: N/A | I135: N/A | J135: N/A | K135: N/A | L135: N/A | M135: N/A | N135: N/A | O135: N/A | P135: N/A | Q135: N/A | R135: N/A | S135: N/A | T135: N/A | U135: N/A | V135: N/A | W135: N/A | X135: N/A | Y135: N/A | Z135: N/A | AA135: N/A | AB135: N/A | AC135: N/A | AD135: N/A | AE135: N/A | AF135: N/A | AG135: N/A | AH135: N/A | AI135: N/A | AJ135: N/A | AK135: N/A | AL135: N/A | AM135: N/A | AN135: N/A | AO135: N/A | AP135: N/A | AQ135: N/A | AR135: N/A | AS135: N/A | AT135: N/A | AU135: N/A | BA135: Sanitation type | BB135: Sewer connection | BC135: N/A | BD135: N/A | BE135: N/A | BF135: N/A | BG135: N/A | BH135: N/A | BI135: N/A | BJ135: N/A | BK135: N/A | BL135: N/A | BM135: N/A | BN135: N/A | BO135: N/A | BP135: N/A | BQ135: N/A | BR135: N/A | BS135: N/A | BT135: N/A | BU135: N/A | BV135: N/A | BW135: N/A | BX135: N/A | BY135: N/A | BZ135: N/A | CA135: N/A | CB135: N/A | CC135: N/A | CD135: N/A | CE135: N/A | CF135: N/A | CG135: N/A | CH135: N/A | CI135: N/A | CJ135: N/A | CK135: N/A | CL135: N/A | CM135: N/A | CN135: N/A | CO135: N/A | CP135: N/A | CQ135: N/A | CR135: N/A | CS135: N/A | CT135: N/A | CU135: N/A | CV135: N/A | CW135: N/A | CX135: N/A | CY135: N/A | CZ135: N/A
B136: Septic tank connection | C136: N/A | D136: N/A | E136: N/A | F136: N/A | G136: N/A | H136: N/A | I136: N/A | J136: N/A | K136: N/A | L136: N/A | M136: N/A | N136: N/A | O136: N/A | P136: N/A | Q136: N/A | R136: N/A | S136: N/A | T136: N/A | U136: N/A | V136: N/A | W136: N/A | X136: N/A | Y136: N/A | Z136: N/A | AA136: N/A | AB136: N/A | AC136: N/A | AD136: N/A | AE136: N/A | AF136: N/A | AG136: N/A | AH136: N/A | AI136: N/A | AJ136: N/A | AK136: N/A | AL136: N/A | AM136: N/A | AN136: N/A | AO136: N/A | AP136: N/A | AQ136: N/A | AR136: N/A | AS136: N/A | AT136: N/A | AU136: N/A | BB136: Septic tank connection | BC136: N/A | BD136: N/A | BE136: N/A | BF136: N/A | BG136: N/A | BH136: N/A | BI136: N/A | BJ136: N/A | BK136: N/A | BL136: N/A | BM136: N/A | BN136: N/A | BO136: N/A | BP136: N/A | BQ136: N/A | BR136: N/A | BS136: N/A | BT136: N/A | BU136: N/A | BV136: N/A | BW136: N/A | BX136: N/A | BY136: N/A | BZ136: N/A | CA136: N/A | CB136: N/A | CC136: N/A | CD136: N/A | CE136: N/A | CF136: N/A | CG136: N/A | CH136: N/A | CI136: N/A | CJ136: N/A | CK136: N/A | CL136: N/A | CM136: N/A | CN136: N/A | CO136: N/A | CP136: N/A | CQ136: N/A | CR136: N/A | CS136: N/A | CT136: N/A | CU136: N/A | CV136: N/A | CW136: N/A | CX136: N/A | CY136: N/A | CZ136: N/A
B137: Improved latrines | C137: N/A | D137: N/A | E137: N/A | F137: N/A | G137: N/A | H137: N/A | I137: N/A | J137: N/A | K137: N/A | L137: N/A | M137: N/A | N137: N/A | O137: N/A | P137: N/A | Q137: N/A | R137: N/A | S137: N/A | T137: N/A | U137: N/A | V137: N/A | W137: N/A | X137: N/A | Y137: N/A | Z137: N/A | AA137: N/A | AB137: N/A | AC137: N/A | AD137: N/A | AE137: N/A | AF137: N/A | AG137: N/A | AH137: N/A | AI137: N/A | AJ137: N/A | AK137: N/A | AL137: N/A | AM137: N/A | AN137: N/A | AO137: N/A | AP137: N/A | AQ137: N/A | AR137: N/A | AS137: N/A | AT137: N/A | AU137: N/A | BB137: Improved latrines | BC137: N/A | BD137: N/A | BE137: N/A | BF137: N/A | BG137: N/A | BH137: N/A | BI137: N/A | BJ137: N/A | BK137: N/A | BL137: N/A | BM137: N/A | BN137: N/A | BO137: N/A | BP137: N/A | BQ137: N/A | BR137: N/A | BS137: N/A | BT137: N/A | BU137: N/A | BV137: N/A | BW137: N/A | BX137: N/A | BY137: N/A | BZ137: N/A | CA137: N/A | CB137: N/A | CC137: N/A | CD137: N/A | CE137: N/A | CF137: N/A | CG137: N/A | CH137: N/A | CI137: N/A | CJ137: N/A | CK137: N/A | CL137: N/A | CM137: N/A | CN137: N/A | CO137: N/A | CP137: N/A | CQ137: N/A | CR137: N/A | CS137: N/A | CT137: N/A | CU137: N/A | CV137: N/A | CW137: N/A | CX137: N/A | CY137: N/A | CZ137: N/A
B138: Unimproved facilities | C138: N/A | D138: N/A | E138: N/A | F138: N/A | G138: N/A | H138: N/A | I138: N/A | J138: N/A | K138: N/A | L138: N/A | M138: N/A | N138: N/A | O138: N/A | P138: N/A | Q138: N/A | R138: N/A | S138: N/A | T138: N/A | U138: N/A | V138: N/A | W138: N/A | X138: N/A | Y138: N/A | Z138: N/A | AA138: N/A | AB138: N/A | AC138: N/A | AD138: N/A | AE138: N/A | AF138: N/A | AG138: N/A | AH138: N/A | AI138: N/A | AJ138: N/A | AK138: N/A | AL138: N/A | AM138: N/A | AN138: N/A | AO138: N/A | AP138: N/A | AQ138: N/A | AR138: N/A | AS138: N/A | AT138: N/A | AU138: N/A | BB138: Unimproved facilities | BC138: N/A | BD138: N/A | BE138: N/A | BF138: N/A | BG138: N/A | BH138: N/A | BI138: N/A | BJ138: N/A | BK138: N/A | BL138: N/A | BM138: N/A | BN138: N/A | BO138: N/A | BP138: N/A | BQ138: N/A | BR138: N/A | BS138: N/A | BT138: N/A | BU138: N/A | BV138: N/A | BW138: N/A | BX138: N/A | BY138: N/A | BZ138: N/A | CA138: N/A | CB138: N/A | CC138: N/A | CD138: N/A | CE138: N/A | CF138: N/A | CG138: N/A | CH138: N/A | CI138: N/A | CJ138: N/A | CK138: N/A | CL138: N/A | CM138: N/A | CN138: N/A | CO138: N/A | CP138: N/A | CQ138: N/A | CR138: N/A | CS138: N/A | CT138: N/A | CU138: N/A | CV138: N/A | CW138: N/A | CX138: N/A | CY138: N/A | CZ138: N/A
B139: Open defecation | C139: =C156+C158 -> 46.27873825 | D139: 0 | E139: 0 | F139: 0 | G139: 0 | H139: 0 | I139: 0 | J139: 0 | K139: 0 | L139: 0 | M139: 0 | N139: 0 | O139: 0 | P139: 0 | Q139: 0 | R139: 0 | S139: 0 | T139: 0 | U139: 0 | V139: 0 | W139: 0 | X139: 0 | Y139: 0 | Z139: 0 | AA139: 0 | AB139: 0 | AC139: 0 | AD139: 0 | AE139: 0 | AF139: 0 | AG139: 0 | AH139: 0 | AI139: 0 | AJ139: 0 | AK139: 0 | AL139: 0 | AM139: 0 | AN139: 0 | AO139: 0 | AP139: 0 | AQ139: 0 | AR139: 0 | AS139: 0 | AT139: 0 | AU139: 0 | BB139: Open defecation | BC139: N/A | BD139: N/A | BE139: N/A | BF139: N/A | BG139: N/A | BH139: N/A | BI139: N/A | BJ139: N/A | BK139: N/A | BL139: N/A | BM139: N/A | BN139: N/A | BO139: N/A | BP139: N/A | BQ139: N/A | BR139: N/A | BS139: N/A | BT139: N/A | BU139: N/A | BV139: N/A | BW139: N/A | BX139: N/A | BY139: N/A | BZ139: N/A | CA139: N/A | CB139: N/A | CC139: N/A | CD139: N/A | CE139: N/A | CF139: N/A | CG139: N/A | CH139: N/A | CI139: N/A | CJ139: N/A | CK139: N/A | CL139: N/A | CM139: N/A | CN139: N/A | CO139: N/A | CP139: N/A | CQ139: N/A | CR139: N/A | CS139: N/A | CT139: N/A | CU139: N/A | CV139: N/A | CW139: N/A | CX139: N/A | CY139: N/A | CZ139: N/A
A140: Septic tank emptying practices | B140: Not emptied/treated and disposed in situ | C140: N/A | D140: N/A | E140: N/A | F140: N/A | G140: N/A | H140: N/A | I140: N/A | J140: N/A | K140: N/A | L140: N/A | M140: N/A | N140: N/A | O140: N/A | P140: N/A | Q140: N/A | R140: N/A | S140: N/A | T140: N/A | U140: N/A | V140: N/A | W140: N/A | X140: N/A | Y140: N/A | Z140: N/A | AA140: N/A | AB140: N/A | AC140: N/A | AD140: N/A | AE140: N/A | AF140: N/A | AG140: N/A | AH140: N/A | AI140: N/A | AJ140: N/A | AK140: N/A | AL140: N/A | AM140: N/A | AN140: N/A | AO140: N/A | AP140: N/A | AQ140: N/A | AR140: N/A | AS140: N/A | AT140: N/A | AU140: N/A | AV140: N/A | AW140: N/A | AX140: N/A | AY140: N/A | BA140: Septic tank emptying practices | BB140: Not emptied/treated and disposed in situ | BC140: N/A | BD140: N/A | BE140: N/A | BF140: N/A | BG140: N/A | BH140: N/A | BI140: N/A | BJ140: N/A | BK140: N/A | BL140: N/A | BM140: N/A | BN140: N/A | BO140: N/A | BP140: N/A | BQ140: N/A | BR140: N/A | BS140: N/A | BT140: N/A | BU140: N/A | BV140: N/A | BW140: N/A | BX140: N/A | BY140: N/A | BZ140: N/A | CA140: N/A | CB140: N/A | CC140: N/A | CD140: N/A | CE140: N/A | CF140: N/A | CG140: N/A | CH140: N/A | CI140: N/A | CJ140: N/A | CK140: N/A | CL140: N/A | CM140: N/A | CN140: N/A | CO140: N/A | CP140: N/A | CQ140: N/A | CR140: N/A | CS140: N/A | CT140: N/A | CU140: N/A | CV140: N/A | CW140: N/A | CX140: N/A | CY140: N/A | CZ140: N/A
B141: Emptied and buried on site | C141: N/A | D141: N/A | E141: N/A | F141: N/A | G141: N/A | H141: N/A | I141: N/A | J141: N/A | K141: N/A | L141: N/A | M141: N/A | N141: N/A | O141: N/A | P141: N/A | Q141: N/A | R141: N/A | S141: N/A | T141: N/A | U141: N/A | V141: N/A | W141: N/A | X141: N/A | Y141: N/A | Z141: N/A | AA141: N/A | AB141: N/A | AC141: N/A | AD141: N/A | AE141: N/A | AF141: N/A | AG141: N/A | AH141: N/A | AI141: N/A | AJ141: N/A | AK141: N/A | AL141: N/A | AM141: N/A | AN141: N/A | AO141: N/A | AP141: N/A | AQ141: N/A | AR141: N/A | AS141: N/A | AT141: N/A | AU141: N/A | AV141: N/A | AW141: N/A | AX141: N/A | AY141: N/A | BB141: Emptied and buried on site | BC141: N/A | BD141: N/A | BE141: N/A | BF141: N/A | BG141: N/A | BH141: N/A | BI141: N/A | BJ141: N/A | BK141: N/A | BL141: N/A | BM141: N/A | BN141: N/A | BO141: N/A | BP141: N/A | BQ141: N/A | BR141: N/A | BS141: N/A | BT141: N/A | BU141: N/A | BV141: N/A | BW141: N/A | BX141: N/A | BY141: N/A | BZ141: N/A | CA141: N/A | CB141: N/A | CC141: N/A | CD141: N/A | CE141: N/A | CF141: N/A | CG141: N/A | CH141: N/A | CI141: N/A | CJ141: N/A | CK141: N/A | CL141: N/A | CM141: N/A | CN141: N/A | CO141: N/A | CP141: N/A | CQ141: N/A | CR141: N/A | CS141: N/A | CT141: N/A | CU141: N/A | CV141: N/A | CW141: N/A | CX141: N/A | CY141: N/A | CZ141: N/A
B142: Emptied and discharged locally | C142: N/A | D142: N/A | E142: N/A | F142: N/A | G142: N/A | H142: N/A | I142: N/A | J142: N/A | K142: N/A | L142: N/A | M142: N/A | N142: N/A | O142: N/A | P142: N/A | Q142: N/A | R142: N/A | S142: N/A | T142: N/A | U142: N/A | V142: N/A | W142: N/A | X142: N/A | Y142: N/A | Z142: N/A | AA142: N/A | AB142: N/A | AC142: N/A | AD142: N/A | AE142: N/A | AF142: N/A | AG142: N/A | AH142: N/A | AI142: N/A | AJ142: N/A | AK142: N/A | AL142: N/A | AM142: N/A | AN142: N/A | AO142: N/A | AP142: N/A | AQ142: N/A | AR142: N/A | AS142: N/A | AT142: N/A | AU142: N/A | AV142: N/A | AW142: N/A | AX142: N/A | AY142: N/A | BB142: Emptied and discharged locally | BC142: N/A | BD142: N/A | BE142: N/A | BF142: N/A | BG142: N/A | BH142: N/A | BI142: N/A | BJ142: N/A | BK142: N/A | BL142: N/A | BM142: N/A | BN142: N/A | BO142: N/A | BP142: N/A | BQ142: N/A | BR142: N/A | BS142: N/A | BT142: N/A | BU142: N/A | BV142: N/A | BW142: N/A | BX142: N/A | BY142: N/A | BZ142: N/A | CA142: N/A | CB142: N/A | CC142: N/A | CD142: N/A | CE142: N/A | CF142: N/A | CG142: N/A | CH142: N/A | CI142: N/A | CJ142: N/A | CK142: N/A | CL142: N/A | CM142: N/A | CN142: N/A | CO142: N/A | CP142: N/A | CQ142: N/A | CR142: N/A | CS142: N/A | CT142: N/A | CU142: N/A | CV142: N/A | CW142: N/A | CX142: N/A | CY142: N/A | CZ142: N/A
B143: Emptied and removed offsite | C143: N/A | D143: N/A | E143: N/A | F143: N/A | G143: N/A | H143: N/A | I143: N/A | J143: N/A | K143: N/A | L143: N/A | M143: N/A | N143: N/A | O143: N/A | P143: N/A | Q143: N/A | R143: N/A | S143: N/A | T143: N/A | U143: N/A | V143: N/A | W143: N/A | X143: N/A | Y143: N/A | Z143: N/A | AA143: N/A | AB143: N/A | AC143: N/A | AD143: N/A | AE143: N/A | AF143: N/A | AG143: N/A | AH143: N/A | AI143: N/A | AJ143: N/A | AK143: N/A | AL143: N/A | AM143: N/A | AN143: N/A | AO143: N/A | AP143: N/A | AQ143: N/A | AR143: N/A | AS143: N/A | AT143: N/A | AU143: N/A | AV143: N/A | AW143: N/A | AX143: N/A | AY143: N/A | BB143: Emptied and removed offsite | BC143: N/A | BD143: N/A | BE143: N/A | BF143: N/A | BG143: N/A | BH143: N/A | BI143: N/A | BJ143: N/A | BK143: N/A | BL143: N/A | BM143: N/A | BN143: N/A | BO143: N/A | BP143: N/A | BQ143: N/A | BR143: N/A | BS143: N/A | BT143: N/A | BU143: N/A | BV143: N/A | BW143: N/A | BX143: N/A | BY143: N/A | BZ143: N/A | CA143: N/A | CB143: N/A | CC143: N/A | CD143: N/A | CE143: N/A | CF143: N/A | CG143: N/A | CH143: N/A | CI143: N/A | CJ143: N/A | CK143: N/A | CL143: N/A | CM143: N/A | CN143: N/A | CO143: N/A | CP143: N/A | CQ143: N/A | CR143: N/A | CS143: N/A | CT143: N/A | CU143: N/A | CV143: N/A | CW143: N/A | CX143: N/A | CY143: N/A | CZ143: N/A
A144: Latrine emptying practices | B144: Not emptied/treated and disposed in situ | C144: N/A | D144: N/A | E144: N/A | F144: N/A | G144: N/A | H144: N/A | I144: N/A | J144: N/A | K144: N/A | L144: N/A | M144: N/A | N144: N/A | O144: N/A | P144: N/A | Q144: N/A | R144: N/A | S144: N/A | T144: N/A | U144: N/A | V144: N/A | W144: N/A | X144: N/A | Y144: N/A | Z144: N/A | AA144: N/A | AB144: N/A | AC144: N/A | AD144: N/A | AE144: N/A | AF144: N/A | AG144: N/A | AH144: N/A | AI144: N/A | AJ144: N/A | AK144: N/A | AL144: N/A | AM144: N/A | AN144: N/A | AO144: N/A | AP144: N/A | AQ144: N/A | AR144: N/A | AS144: N/A | AT144: N/A | AU144: N/A | AV144: N/A | AW144: N/A | AX144: N/A | AY144: N/A | BA144: Latrine emptying practices | BB144: Not emptied/treated and disposed in situ | BC144: N/A | BD144: N/A | BE144: N/A | BF144: N/A | BG144: N/A | BH144: N/A | BI144: N/A | BJ144: N/A | BK144: N/A | BL144: N/A | BM144: N/A | BN144: N/A | BO144: N/A | BP144: N/A | BQ144: N/A | BR144: N/A | BS144: N/A | BT144: N/A | BU144: N/A | BV144: N/A | BW144: N/A | BX144: N/A | BY144: N/A | BZ144: N/A | CA144: N/A | CB144: N/A | CC144: N/A | CD144: N/A | CE144: N/A | CF144: N/A | CG144: N/A | CH144: N/A | CI144: N/A | CJ144: N/A | CK144: N/A | CL144: N/A | CM144: N/A | CN144: N/A | CO144: N/A | CP144: N/A | CQ144: N/A | CR144: N/A | CS144: N/A | CT144: N/A | CU144: N/A | CV144: N/A | CW144: N/A | CX144: N/A | CY144: N/A | CZ144: N/A
B145: Emptied and buried on site | C145: N/A | D145: N/A | E145: N/A | F145: N/A | G145: N/A | H145: N/A | I145: N/A | J145: N/A | K145: N/A | L145: N/A | M145: N/A | N145: N/A | O145: N/A | P145: N/A | Q145: N/A | R145: N/A | S145: N/A | T145: N/A | U145: N/A | V145: N/A | W145: N/A | X145: N/A | Y145: N/A | Z145: N/A | AA145: N/A | AB145: N/A | AC145: N/A | AD145: N/A | AE145: N/A | AF145: N/A | AG145: N/A | AH145: N/A | AI145: N/A | AJ145: N/A | AK145: N/A | AL145: N/A | AM145: N/A | AN145: N/A | AO145: N/A | AP145: N/A | AQ145: N/A | AR145: N/A | AS145: N/A | AT145: N/A | AU145: N/A | AV145: N/A | AW145: N/A | AX145: N/A | AY145: N/A | BB145: Emptied and buried on site | BC145: N/A | BD145: N/A | BE145: N/A | BF145: N/A | BG145: N/A | BH145: N/A | BI145: N/A | BJ145: N/A | BK145: N/A | BL145: N/A | BM145: N/A | BN145: N/A | BO145: N/A | BP145: N/A | BQ145: N/A | BR145: N/A | BS145: N/A | BT145: N/A | BU145: N/A | BV145: N/A | BW145: N/A | BX145: N/A | BY145: N/A | BZ145: N/A | CA145: N/A | CB145: N/A | CC145: N/A | CD145: N/A | CE145: N/A | CF145: N/A | CG145: N/A | CH145: N/A | CI145: N/A | CJ145: N/A | CK145: N/A | CL145: N/A | CM145: N/A | CN145: N/A | CO145: N/A | CP145: N/A | CQ145: N/A | CR145: N/A | CS145: N/A | CT145: N/A | CU145: N/A | CV145: N/A | CW145: N/A | CX145: N/A | CY145: N/A | CZ145: N/A
B146: Emptied and discharged locally | C146: N/A | D146: N/A | E146: N/A | F146: N/A | G146: N/A | H146: N/A | I146: N/A | J146: N/A | K146: N/A | L146: N/A | M146: N/A | N146: N/A | O146: N/A | P146: N/A | Q146: N/A | R146: N/A | S146: N/A | T146: N/A | U146: N/A | V146: N/A | W146: N/A | X146: N/A | Y146: N/A | Z146: N/A | AA146: N/A | AB146: N/A | AC146: N/A | AD146: N/A | AE146: N/A | AF146: N/A | AG146: N/A | AH146: N/A | AI146: N/A | AJ146: N/A | AK146: N/A | AL146: N/A | AM146: N/A | AN146: N/A | AO146: N/A | AP146: N/A | AQ146: N/A | AR146: N/A | AS146: N/A | AT146: N/A | AU146: N/A | AV146: N/A | AW146: N/A | AX146: N/A | AY146: N/A | BB146: Emptied and discharged locally | BC146: N/A | BD146: N/A | BE146: N/A | BF146: N/A | BG146: N/A | BH146: N/A | BI146: N/A | BJ146: N/A | BK146: N/A | BL146: N/A | BM146: N/A | BN146: N/A | BO146: N/A | BP146: N/A | BQ146: N/A | BR146: N/A | BS146: N/A | BT146: N/A | BU146: N/A | BV146: N/A | BW146: N/A | BX146: N/A | BY146: N/A | BZ146: N/A | CA146: N/A | CB146: N/A | CC146: N/A | CD146: N/A | CE146: N/A | CF146: N/A | CG146: N/A | CH146: N/A | CI146: N/A | CJ146: N/A | CK146: N/A | CL146: N/A | CM146: N/A | CN146: N/A | CO146: N/A | CP146: N/A | CQ146: N/A | CR146: N/A | CS146: N/A | CT146: N/A | CU146: N/A | CV146: N/A | CW146: N/A | CX146: N/A | CY146: N/A | CZ146: N/A
B147: Emptied and removed offsite | C147: N/A | D147: N/A | E147: N/A | F147: N/A | G147: N/A | H147: N/A | I147: N/A | J147: N/A | K147: N/A | L147: N/A | M147: N/A | N147: N/A | O147: N/A | P147: N/A | Q147: N/A | R147: N/A | S147: N/A | T147: N/A | U147: N/A | V147: N/A | W147: N/A | X147: N/A | Y147: N/A | Z147: N/A | AA147: N/A | AB147: N/A | AC147: N/A | AD147: N/A | AE147: N/A | AF147: N/A | AG147: N/A | AH147: N/A | AI147: N/A | AJ147: N/A | AK147: N/A | AL147: N/A | AM147: N/A | AN147: N/A | AO147: N/A | AP147: N/A | AQ147: N/A | AR147: N/A | AS147: N/A | AT147: N/A | AU147: N/A | AV147: N/A | AW147: N/A | AX147: N/A | AY147: N/A | BB147: Emptied and removed offsite | BC147: N/A | BD147: N/A | BE147: N/A | BF147: N/A | BG147: N/A | BH147: N/A | BI147: N/A | BJ147: N/A | BK147: N/A | BL147: N/A | BM147: N/A | BN147: N/A | BO147: N/A | BP147: N/A | BQ147: N/A | BR147: N/A | BS147: N/A | BT147: N/A | BU147: N/A | BV147: N/A | BW147: N/A | BX147: N/A | BY147: N/A | BZ147: N/A | CA147: N/A | CB147: N/A | CC147: N/A | CD147: N/A | CE147: N/A | CF147: N/A | CG147: N/A | CH147: N/A | CI147: N/A | CJ147: N/A | CK147: N/A | CL147: N/A | CM147: N/A | CN147: N/A | CO147: N/A | CP147: N/A | CQ147: N/A | CR147: N/A | CS147: N/A | CT147: N/A | CU147: N/A | CV147: N/A | CW147: N/A | CX147: N/A | CY147: N/A | CZ147: N/A
A148: Shared among improved sanitation facilities | B148: Yes | C148: N/A | D148: N/A | E148: N/A | F148: N/A | G148: N/A | H148: N/A | I148: N/A | J148: N/A | K148: N/A | L148: N/A | M148: N/A | N148: N/A | O148: N/A | P148: N/A | Q148: N/A | R148: N/A | S148: N/A | T148: N/A | U148: N/A | V148: N/A | W148: N/A | X148: N/A | Y148: N/A | Z148: N/A | AA148: N/A | AB148: N/A | AC148: N/A | AD148: N/A | AE148: N/A | AF148: N/A | AG148: N/A | AH148: N/A | AI148: N/A | AJ148: N/A | AK148: N/A | AL148: N/A | AM148: N/A | AN148: N/A | AO148: N/A | AP148: N/A | AQ148: N/A | AR148: N/A | AS148: N/A | AT148: N/A | AU148: N/A | AV148: N/A | AW148: N/A | AX148: N/A | AY148: N/A | BA148: Shared among improved sanitation facilities | BB148: Yes | BC148: N/A | BD148: N/A | BE148: N/A | BF148: N/A | BG148: N/A | BH148: N/A | BI148: N/A | BJ148: N/A | BK148: N/A | BL148: N/A | BM148: N/A | BN148: N/A | BO148: N/A | BP148: N/A | BQ148: N/A | BR148: N/A | BS148: N/A | BT148: N/A | BU148: N/A | BV148: N/A | BW148: N/A | BX148: N/A | BY148: N/A | BZ148: N/A | CA148: N/A | CB148: N/A | CC148: N/A | CD148: N/A | CE148: N/A | CF148: N/A | CG148: N/A | CH148: N/A | CI148: N/A | CJ148: N/A | CK148: N/A | CL148: N/A | CM148: N/A | CN148: N/A | CO148: N/A | CP148: N/A | CQ148: N/A | CR148: N/A | CS148: N/A | CT148: N/A | CU148: N/A | CV148: N/A | CW148: N/A | CX148: N/A | CY148: N/A | CZ148: N/A
B149: No | C149: N/A | D149: N/A | E149: N/A | F149: N/A | G149: N/A | H149: N/A | I149: N/A | J149: N/A | K149: N/A | L149: N/A | M149: N/A | N149: N/A | O149: N/A | P149: N/A | Q149: N/A | R149: N/A | S149: N/A | T149: N/A | U149: N/A | V149: N/A | W149: N/A | X149: N/A | Y149: N/A | Z149: N/A | AA149: N/A | AB149: N/A | AC149: N/A | AD149: N/A | AE149: N/A | AF149: N/A | AG149: N/A | AH149: N/A | AI149: N/A | AJ149: N/A | AK149: N/A | AL149: N/A | AM149: N/A | AN149: N/A | AO149: N/A | AP149: N/A | AQ149: N/A | AR149: N/A | AS149: N/A | AT149: N/A | AU149: N/A | AV149: N/A | AW149: N/A | AX149: N/A | AY149: N/A | BB149: No | BC149: N/A | BD149: N/A | BE149: N/A | BF149: N/A | BG149: N/A | BH149: N/A | BI149: N/A | BJ149: N/A | BK149: N/A | BL149: N/A | BM149: N/A | BN149: N/A | BO149: N/A | BP149: N/A | BQ149: N/A | BR149: N/A | BS149: N/A | BT149: N/A | BU149: N/A | BV149: N/A | BW149: N/A | BX149: N/A | BY149: N/A | BZ149: N/A | CA149: N/A | CB149: N/A | CC149: N/A | CD149: N/A | CE149: N/A | CF149: N/A | CG149: N/A | CH149: N/A | CI149: N/A | CJ149: N/A | CK149: N/A | CL149: N/A | CM149: N/A | CN149: N/A | CO149: N/A | CP149: N/A | CQ149: N/A | CR149: N/A | CS149: N/A | CT149: N/A | CU149: N/A | CV149: N/A | CW149: N/A | CX149: N/A | CY149: N/A | CZ149: N/A
B150: DK/missing | C150: N/A | D150: N/A | E150: N/A | F150: N/A | G150: N/A | H150: N/A | I150: N/A | J150: N/A | K150: N/A | L150: N/A | M150: N/A | N150: N/A | O150: N/A | P150: N/A | Q150: N/A | R150: N/A | S150: N/A | T150: N/A | U150: N/A | V150: N/A | W150: N/A | X150: N/A | Y150: N/A | Z150: N/A | AA150: N/A | AB150: N/A | AC150: N/A | AD150: N/A | AE150: N/A | AF150: N/A | AG150: N/A | AH150: N/A | AI150: N/A | AJ150: N/A | AK150: N/A | AL150: N/A | AM150: N/A | AN150: N/A | AO150: N/A | AP150: N/A | AQ150: N/A | AR150: N/A | AS150: N/A | AT150: N/A | AU150: N/A | AV150: N/A | AW150: N/A | AX150: N/A | AY150: N/A | BB150: DK/missing | BC150: N/A | BD150: N/A | BE150: N/A | BF150: N/A | BG150: N/A | BH150: N/A | BI150: N/A | BJ150: N/A | BK150: N/A | BL150: N/A | BM150: N/A | BN150: N/A | BO150: N/A | BP150: N/A | BQ150: N/A | BR150: N/A | BS150: N/A | BT150: N/A | BU150: N/A | BV150: N/A | BW150: N/A | BX150: N/A | BY150: N/A | BZ150: N/A | CA150: N/A | CB150: N/A | CC150: N/A | CD150: N/A | CE150: N/A | CF150: N/A | CG150: N/A | CH150: N/A | CI150: N/A | CJ150: N/A | CK150: N/A | CL150: N/A | CM150: N/A | CN150: N/A | CO150: N/A | CP150: N/A | CQ150: N/A | CR150: N/A | CS150: N/A | CT150: N/A | CU150: N/A | CV150: N/A | CW150: N/A | CX150: N/A | CY150: N/A | CZ150: N/A
A151: Shared among all sanitation facilities | B151: Yes | C151: N/A | D151: N/A | E151: N/A | F151: N/A | G151: N/A | H151: N/A | I151: N/A | J151: N/A | K151: N/A | L151: N/A | M151: N/A | N151: N/A | O151: N/A | P151: N/A | Q151: N/A | R151: N/A | S151: N/A | T151: N/A | U151: N/A | V151: N/A | W151: N/A | X151: N/A | Y151: N/A | Z151: N/A | AA151: N/A | AB151: N/A | AC151: N/A | AD151: N/A | AE151: N/A | AF151: N/A | AG151: N/A | AH151: N/A | AI151: N/A | AJ151: N/A | AK151: N/A | AL151: N/A | AM151: N/A | AN151: N/A | AO151: N/A | AP151: N/A | AQ151: N/A | AR151: N/A | AS151: N/A | AT151: N/A | AU151: N/A | AV151: N/A | AW151: N/A | AX151: N/A | AY151: N/A | BA151: Shared among all sanitation facilities | BB151: Yes | BC151: N/A | BD151: N/A | BE151: N/A | BF151: N/A | BG151: N/A | BH151: N/A | BI151: N/A | BJ151: N/A | BK151: N/A | BL151: N/A | BM151: N/A | BN151: N/A | BO151: N/A | BP151: N/A | BQ151: N/A | BR151: N/A | BS151: N/A | BT151: N/A | BU151: N/A | BV151: N/A | BW151: N/A | BX151: N/A | BY151: N/A | BZ151: N/A | CA151: N/A | CB151: N/A | CC151: N/A | CD151: N/A | CE151: N/A | CF151: N/A | CG151: N/A | CH151: N/A | CI151: N/A | CJ151: N/A | CK151: N/A | CL151: N/A | CM151: N/A | CN151: N/A | CO151: N/A | CP151: N/A | CQ151: N/A | CR151: N/A | CS151: N/A | CT151: N/A | CU151: N/A | CV151: N/A | CW151: N/A | CX151: N/A | CY151: N/A | CZ151: N/A
B152: No | C152: N/A | D152: N/A | E152: N/A | F152: N/A | G152: N/A | H152: N/A | I152: N/A | J152: N/A | K152: N/A | L152: N/A | M152: N/A | N152: N/A | O152: N/A | P152: N/A | Q152: N/A | R152: N/A | S152: N/A | T152: N/A | U152: N/A | V152: N/A | W152: N/A | X152: N/A | Y152: N/A | Z152: N/A | AA152: N/A | AB152: N/A | AC152: N/A | AD152: N/A | AE152: N/A | AF152: N/A | AG152: N/A | AH152: N/A | AI152: N/A | AJ152: N/A | AK152: N/A | AL152: N/A | AM152: N/A | AN152: N/A | AO152: N/A | AP152: N/A | AQ152: N/A | AR152: N/A | AS152: N/A | AT152: N/A | AU152: N/A | AV152: N/A | AW152: N/A | AX152: N/A | AY152: N/A | BB152: No | BC152: N/A | BD152: N/A | BE152: N/A | BF152: N/A | BG152: N/A | BH152: N/A | BI152: N/A | BJ152: N/A | BK152: N/A | BL152: N/A | BM152: N/A | BN152: N/A | BO152: N/A | BP152: N/A | BQ152: N/A | BR152: N/A | BS152: N/A | BT152: N/A | BU152: N/A | BV152: N/A | BW152: N/A | BX152: N/A | BY152: N/A | BZ152: N/A | CA152: N/A | CB152: N/A | CC152: N/A | CD152: N/A | CE152: N/A | CF152: N/A | CG152: N/A | CH152: N/A | CI152: N/A | CJ152: N/A | CK152: N/A | CL152: N/A | CM152: N/A | CN152: N/A | CO152: N/A | CP152: N/A | CQ152: N/A | CR152: N/A | CS152: N/A | CT152: N/A | CU152: N/A | CV152: N/A | CW152: N/A | CX152: N/A | CY152: N/A | CZ152: N/A
A153: Type of toilet facility | B153: Private with septic tank | C153: 8.902263788 | D153: 27.17297059 | E153: 42.14821655 | F153: 62.32906462 | G153: 85.57078065 | H153: 40.07450386 | I153: 52.70045053 | J153: 65.2367355 | K153: 81.08928648 | L153: 93.01912678 | M153: 3.911411383 | N153: 12.7189361 | O153: 22.1106206 | P153: 34.63908891 | Q153: 59.05163472 | R153: 75.71187944 | S153: 50.37281728 | T153: 52.35776858 | U153: 46.33953024 | V153: 34.77605595 | W153: 45.53434983 | X153: 25.19333613 | Y153: 0 | Z153: 54.92753906 | AA153: 73.77619845 | AB153: 44.41357309 | AC153: 65.21370937 | AD153: 7.649690005 | AE153: 0 | AF153: 30.28466355 | AG153: 0 | AH153: 33.27218447 | AI153: 36.3278836 | AJ153: 0 | AK153: 62.75399629 | AL153: 45.01315026 | AM153: 45.76762165 | AN153: 18.18073305 | AO153: 56.99155878 | AP153: 36.14650687 | AQ153: 34.94304001 | AR153: 49.1143242 | AS153: 9.724548694 | AT153: 25.2001455 | AU153: 35.57286487 | BA153: Type of toilet facility | BB153: Private with septic tank | BC153: 2569.939958 | BD153: 7849.187332 | BE153: 12203.84532 | BF153: 17979.16021 | BG153: 24782.56127 | BH153: 5445.11084 | BI153: 7185.952632 | BJ153: 9104.223407 | BK153: 10740.05877 | BL153: 12661.85336 | BM153: 602.745438 | BN153: 1925.338079 | BO153: 3402.705984 | BP153: 5278.049536 | BQ153: 9038.65605 | BR153: 1587.120179 | BS153: 361.448345 | BT153: 3596.414866 | BU153: 365.234946 | BV153: 558.955178 | BW153: 9213.26904 | BX153: 341.154989 | BY153: 0 | BZ153: 1093.13141 | CA153: 3559.346751 | CB153: 10839.76081 | CC153: 1442.742647 | CD153: 206.681869 | CE153: 0 | CF153: 213.121966 | CG153: 0 | CH153: 568.37109 | CI153: 1791.41994 | CJ153: 0 | CK153: 885.05859 | CL153: 5062.567346 | CM153: 1481.718516 | CN153: 401.947159 | CO153: 3612.271796 | CP153: 1382.850439 | CQ153: 411.501167 | CR153: 14077.57005 | CS153: 249.784887 | CT153: 727.929677 | CU153: 1353.320445
B154: Private with no septic tank | C154: 9.414200937 | D154: 12.2744612 | E154: 11.30569087 | F154: 10.82952246 | G154: 6.287704748 | H154: 12.57853249 | I154: 11.53429365 | J154: 11.43859259 | K154: 7.373729606 | L154: 4.675325178 | M154: 9.268941131 | N154: 9.524769413 | O154: 12.13066853 | P154: 10.79115831 | Q154: 10.51317889 | R154: 3.082744885 | S154: 6.823325977 | T154: 3.808635849 | U154: 11.9537903 | V154: 9.068451459 | W154: 4.737717826 | X154: 16.42552406 | Y154: 0 | Z154: 6.255435618 | AA154: 4.90634746 | AB154: 7.169020696 | AC154: 10.19715256 | AD154: 28.28603377 | AE154: 0 | AF154: 8.300172132 | AG154: 0 | AH154: 18.76763956 | AI154: 10.27770967 | AJ154: 0 | AK154: 9.081722952 | AL154: 12.94482877 | AM154: 20.33960092 | AN154: 22.01942144 | AO154: 10.58053238 | AP154: 8.373502726 | AQ154: 5.265560428 | AR154: 11.12663618 | AS154: 42.56798152 | AT154: 4.553926154 | AU154: 13.20881591 | BB154: Private with no septic tank | BC154: 2717.727955 | BD154: 3545.60224 | BE154: 3273.516981 | BF154: 3123.835094 | BG154: 1821.012114 | BH154: 1709.104219 | BI154: 1572.754824 | BJ154: 1596.332213 | BK154: 976.630733 | BL154: 636.409778 | BM154: 1428.336586 | BN154: 1441.818805 | BO154: 1866.844858 | BP154: 1644.277315 | BQ154: 1609.185053 | BR154: 64.622443 | BS154: 48.960531 | BT154: 261.612268 | BU154: 94.216362 | BV154: 145.757124 | BW154: 958.614082 | BX154: 222.425861 | BY154: 0 | BZ154: 124.491526 | CA154: 236.707668 | CB154: 1749.700917 | CC154: 225.594695 | CD154: 764.241469 | CE154: 0 | CF154: 58.41072 | CG154: 0 | CH154: 320.597638 | CI154: 506.819892 | CJ154: 0 | CK154: 128.08518 | CL154: 1455.887158 | CM154: 658.49092 | CN154: 486.814468 | CO154: 670.621396 | CP154: 320.343594 | CQ154: 62.009037 | CR154: 3189.212164 | CS154: 1093.401739 | CT154: 131.544399 | CU154: 502.511133
B155: Shared/public | C155: 7.555930685 | D155: 9.650861901 | E155: 8.580954677 | F155: 6.149447286 | G155: 2.272239106 | H155: 14.86267856 | I155: 10.85086847 | J155: 7.584465151 | K155: 4.445812403 | L155: 0.6330891173 | M155: 6.050405363 | N155: 8.614743656 | O155: 6.479772928 | P155: 5.775651918 | Q155: 3.523615784 | R155: 4.00487542 | S155: 5.003143657 | T155: 7.35827088 | U155: 4.60088565 | V155: 6.313891747 | W155: 6.471688374 | X155: 5.726964595 | Y155: 0 | Z155: 6.896255511 | AA155: 20.17521242 | AB155: 5.108872611 | AC155: 6.106619725 | AD155: 4.536961504 | AE155: 0 | AF155: 7.466525396 | AG155: 0 | AH155: 5.163546692 | AI155: 2.202291923 | AJ155: 0 | AK155: 8.559684611 | AL155: 3.364200175 | AM155: 5.931124454 | AN155: 5.453771232 | AO155: 6.338668234 | AP155: 2.878727151 | AQ155: 6.742733897 | AR155: 10.30925502 | AS155: 2.720166388 | AT155: 4.199984133 | AU155: 8.460136412 | BB155: Shared/public | BC155: 2181.275308 | BD155: 2787.749051 | BE155: 2484.580657 | BF155: 1773.841765 | BG155: 658.073988 | BH155: 2019.461861 | BI155: 1479.566608 | BJ155: 1058.462914 | BK155: 588.835943 | BL155: 86.176702 | BM155: 932.362739 | BN155: 1304.063003 | BO155: 997.202318 | BP155: 880.051349 | BQ155: 539.337332 | BR155: 83.952725 | BS155: 35.899878 | BT155: 505.433969 | BU155: 36.262867 | BV155: 101.483115 | BW155: 1309.459921 | BX155: 77.551561 | BY155: 0 | BZ155: 137.244698 | CA155: 973.356967 | CB155: 1246.892633 | CC155: 135.098598 | CD155: 122.581135 | CE155: 0 | CF155: 52.544106 | CG155: 0 | CH155: 88.206131 | CI155: 108.600592 | CJ155: 0 | CK155: 120.722549 | CL155: 378.366985 | CM155: 192.019087 | CN155: 120.574228 | CO155: 401.76112 | CP155: 110.130949 | CQ155: 79.404736 | CR155: 2954.927346 | CS155: 69.87023 | CT155: 121.320454 | CU155: 321.854189
B156: River/stream/creek | C156: 33.29227824 | D156: 24.5452734 | E156: 20.11186216 | F156: 12.71870312 | G156: 3.352348932 | H156: 18.35809601 | I156: 17.19930398 | J156: 12.11703384 | K156: 5.144052188 | L156: 0.7126259759 | M156: 34.91577234 | N156: 33.11343629 | O156: 25.98995381 | P156: 23.33220733 | Q156: 12.45995097 | R156: 7.117291343 | S156: 4.469300422 | T156: 9.010766813 | U156: 16.62537085 | V156: 26.77782607 | W156: 29.04437939 | X156: 42.83415004 | Y156: 0 | Z156: 10.63093529 | AA156: 0.7588007965 | AB156: 26.78523811 | AC156: 13.75971473 | AD156: 0.3381645022 | AE156: 0 | AF156: 23.19059146 | AG156: 0 | AH156: 26.12805978 | AI156: 13.6640202 | AJ156: 0 | AK156: 7.230308291 | AL156: 11.17691579 | AM156: 7.879422139 | AN156: 37.56444602 | AO156: 5.243599154 | AP156: 37.13741803 | AQ156: 2.864662377 | AR156: 14.9991578 | AS156: 24.58647661 | AT156: 34.87408743 | AU156: 20.86343233 | BB156: River/stream/creek | BC156: 9610.943708 | BD156: 7090.150426 | BE156: 5823.308195 | BF156: 3668.779605 | BG156: 970.889738 | BH156: 2494.400627 | BI156: 2345.205448 | BJ156: 1691.013235 | BK156: 681.315932 | BL156: 97.003336 | BM156: 5380.493236 | BN156: 5012.570181 | BO156: 3999.714569 | BP156: 3555.190103 | BQ156: 1907.165005 | BR156: 149.197151 | BS156: 32.069305 | BT156: 618.942644 | BU156: 131.036426 | BV156: 430.399714 | BW156: 5876.743214 | BX156: 580.03767 | BY156: 0 | BZ156: 211.569815 | CA156: 36.608489 | CB156: 6537.316276 | CC156: 304.410337 | CD156: 9.136641 | CE156: 0 | CF156: 163.198922 | CG156: 0 | CH156: 446.331795 | CI156: 673.80744 | CJ156: 0 | CK156: 101.973529 | CL156: 1257.052407 | CM156: 255.094874 | CN156: 830.490295 | CO156: 332.352821 | CP156: 1420.75955 | CQ156: 33.735242 | CR156: 4299.187621 | CS156: 631.528565 | CT156: 1007.370501 | CU156: 793.720428
B157: Pit | C157: 21.12470681 | D157: 15.37490241 | E157: 10.34078129 | F157: 3.526591061 | G157: 1.117588098 | H157: 7.857613917 | I157: 4.65657031 | J157: 1.25438604 | K157: 0.7037326706 | L157: 0.0454851901 | M157: 21.65817126 | N157: 21.0897579 | O157: 19.75384894 | P157: 14.95233986 | Q157: 6.854977255 | R157: 0.5075572852 | S157: 3.830089788 | T157: 2.021796485 | U157: 7.93893286 | V157: 3.144297542 | W157: 11.67354775 | X157: 5.350352509 | Y157: 0 | Z157: 20.71198427 | AA157: 0.3137140476 | AB157: 14.37508779 | AC157: 3.235392259 | AD157: 40.46673299 | AE157: 0 | AF157: 1.612104045 | AG157: 0 | AH157: 14.43647806 | AI157: 31.32711672 | AJ157: 0 | AK157: 5.523910428 | AL157: 17.29853455 | AM157: 16.25316811 | AN157: 14.30590956 | AO157: 5.129506094 | AP157: 12.06913876 | AQ157: 18.0926954 | AR157: 3.456751607 | AS157: 10.31822615 | AT157: 0.5319052631 | AU157: 2.879987808 | BB157: Pit | BC157: 6098.362105 | BD157: 4441.196034 | BE157: 2994.131322 | BF157: 1017.264515 | BG157: 323.670011 | BH157: 1067.650865 | BI157: 634.945116 | BJ157: 175.057974 | BK157: 93.207507 | BL157: 6.191488 | BM157: 3337.507268 | BN157: 3192.477237 | BO157: 3040.011459 | BP157: 2278.327547 | BQ157: 1049.247526 | BR157: 10.639736 | BS157: 27.482672 | BT157: 138.875646 | BU157: 62.572402 | BV157: 50.538261 | BW157: 2361.986862 | BX157: 72.451677 | BY157: 0 | BZ157: 412.196158 | CA157: 15.135194 | CB157: 3508.443531 | CC157: 71.577563 | CD157: 1093.343652 | CE157: 0 | CF157: 11.344844 | CG157: 0 | CH157: 246.610702 | CI157: 1544.819461 | CJ157: 0 | CK157: 77.90714 | CL157: 1945.542483 | CM157: 526.193393 | CN157: 316.28096 | CO157: 325.121309 | CP157: 461.72688 | CQ157: 213.065757 | CR157: 990.803878 | CS157: 265.034094 | CT157: 15.364579 | CU157: 109.565153
B158: Bush/forest/yard/field/no facility | C158: 12.98646001 | D158: 4.7947497 | E158: 2.188798743 | F158: 0.6331920939 | G158: 0.1825760594 | H158: 1.874205333 | I158: 0.5433399829 | J158: 0.2312823707 | K158: 0.04176615241 | L158: 0 | M158: 17.57916288 | N158: 8.188990246 | O158: 6.077066796 | P158: 3.265191622 | Q158: 1.668714559 | R158: 9.328681523 | S158: 22.96690588 | T158: 11.60630993 | U158: 8.163715426 | V158: 14.34957372 | W158: 1.164171179 | X158: 2.036245338 | Y158: 0 | Z158: 0.09998665421 | AA158: 0 | AB158: 1.223380301 | AC158: 1.235703914 | AD158: 18.21806512 | AE158: 0 | AF158: 26.35257403 | AG158: 0 | AH158: 0.4529844361 | AI158: 1.471635512 | AJ158: 0 | AK158: 2.995116894 | AL158: 7.495268755 | AM158: 2.272161076 | AN158: 1.755548425 | AO158: 11.80245375 | AP158: 2.629278745 | AQ158: 17.90626399 | AR158: 0.90343989 | AS158: 9.415751805 | AT158: 20.94936789 | AU158: 1.015100248 | BB158: Bush/forest/yard/field/no facility | BC158: 3748.981527 | BD158: 1385.011936 | BE158: 633.757807 | BF158: 182.647729 | BG158: 52.876722 | BH158: 254.657071 | BI158: 74.086945 | BJ158: 32.277004 | BK158: 5.531815 | BL158: 0 | BM158: 2708.935265 | BN158: 1239.614275 | BO158: 935.228003 | BP158: 497.525878 | BQ158: 255.419465 | BR158: 195.553707 | BS158: 164.79821 | BT158: 797.228505 | BU158: 64.344074 | BV158: 230.640546 | BW158: 235.554528 | BX158: 27.57377 | BY158: 0 | BZ158: 1.989868 | CA158: 0 | CB158: 298.583269 | CC158: 27.337852 | CD158: 492.221743 | CE158: 0 | CF158: 185.450711 | CG158: 0 | CH158: 7.738093 | CI158: 72.570074 | CJ158: 0 | CK158: 42.241994 | CL158: 842.982609 | CM158: 73.560806 | CN158: 38.81239 | CO158: 748.06992 | CP158: 100.587846 | CQ158: 210.870277 | CR158: 258.951712 | CS158: 241.853126 | CT158: 605.142006 | CU158: 38.618085
B159: Other | C159: 6.724159528 | D159: 6.186780801 | E159: 5.323695709 | F159: 3.81347936 | G159: 1.216762407 | H159: 4.394369823 | I159: 2.515173075 | J159: 2.137504505 | K159: 1.201620498 | L159: 0.9143477597 | M159: 6.616135643 | N159: 6.749366398 | O159: 7.458068395 | P159: 7.244362038 | Q159: 5.927927825 | R159: 0.2469700983 | S159: 6.534417001 | T159: 13.83645146 | U159: 4.377774675 | V159: 5.569903512 | W159: 1.374145651 | X159: 2.433427335 | Y159: 0 | Z159: 0.4778635969 | AA159: 0.06972682589 | AB159: 0.9248274001 | AC159: 0.2517074426 | AD159: 0.5043521076 | AE159: 0 | AF159: 2.793369385 | AG159: 0 | AH159: 1.779107012 | AI159: 4.729342365 | AJ159: 0 | AK159: 3.855260531 | AL159: 2.707101711 | AM159: 1.556901657 | AN159: 0.7201702737 | AO159: 3.913681603 | AP159: 0.7654277151 | AQ159: 14.1850439 | AR159: 10.09043531 | AS159: 0.6668488335 | AT159: 9.690583629 | AU159: 17.99966241 | BB159: Other | BC159: 1941.156392 | BD159: 1787.114196 | BE159: 1541.454521 | BF159: 1100.019017 | BG159: 352.392355 | BH159: 597.083643 | BI159: 342.955599 | BJ159: 298.303071 | BK159: 159.151416 | BL159: 124.4619 | BM159: 1019.541333 | BN159: 1021.690182 | BO159: 1147.756746 | BP159: 1103.842592 | BQ159: 907.349999 | BR159: 5.177143 | BS159: 46.887475 | BT159: 950.415212 | BU159: 34.50437 | BV159: 89.525 | BW159: 278.040065 | BX159: 32.952201 | BY159: 0 | BZ159: 9.510124 | CA159: 3.363984 | CB159: 225.71721 | CC159: 5.5686 | CD159: 13.626753 | CE159: 0 | CF159: 19.657751 | CG159: 0 | CH159: 30.391542 | CI159: 233.215849 | CJ159: 0 | CK159: 54.373134 | CL159: 304.464021 | CM159: 50.404411 | CN159: 15.921822 | CO159: 248.059221 | CP159: 29.282831 | CQ159: 167.047919 | CR159: 2892.207358 | CS159: 17.128688 | CT159: 279.921535 | CU159: 684.772262
BB160: Total | BC160: 28868.38695 | BD160: 28886.01121 | BE160: 28954.5948 | BF160: 28845.54794 | BG160: 28961.4762 | BH160: 13587.46913 | BI160: 13635.46717 | BJ160: 13955.66982 | BK160: 13244.73211 | BL160: 13612.09657 | BM160: 15409.92186 | BN160: 15137.57176 | BO160: 15389.46394 | BP160: 15237.26432 | BQ160: 15306.36043 | BR160: 2096.263084 | BS160: 717.546416 | BT160: 6868.92311 | BU160: 788.171447 | BV160: 1607.298938 | BW160: 20233.66771 | BX160: 1354.147729 | BY160: 0 | BZ160: 1990.133599 | CA160: 4824.519053 | CB160: 24406.41464 | CC160: 2212.330292 | CD160: 2701.833262 | CE160: 0 | CF160: 703.72902 | CG160: 0 | CH160: 1708.246991 | CI160: 4931.253248 | CJ160: 0 | CK160: 1410.362116 | CL160: 11246.86301 | CM160: 3237.482007 | CN160: 2210.841322 | CO160: 6338.257583 | CP160: 3825.682089 | CQ160: 1177.634135 | CR160: 28662.86013 | CS160: 2568.601329 | CT160: 2888.593151 | CU160: 3804.361695
A208: =A1026 -> Indonesia
A209: =A1034 -> 2003
A210: Access to hygiene facilities
A211: by wealth quintile and sub-national region
A212: Notes:
A213: WHO/UNICEF JMP customised wealth index excludes water,
A214: sanitation and hygiene assets.
A215: Survey used for analysis: | B215: =A1025 -> DHS03
A220: Access to handwashing | C220: NATIONAL wealth index quintile | H220: URBAN wealth index quintile | M220: RURAL wealth index quintile | R220: REGIONS | BA220: Raw numbers of respondents: | BB220: Access to handwashing | BC220: NATIONAL wealth index quintile | BH220: URBAN wealth index quintile | BM220: RURAL wealth index quintile | BR220: SUB-REGIONS:
A221: Weighted percentage (used in graphs) | C221: Poorest | D221: Poor | E221: Middle | F221: Rich | G221: Richest | H221: Poorest | I221: Poor | J221: Middle | K221: Rich | L221: Richest | M221: Poorest | N221: Poor | O221: Middle | P221: Rich | Q221: Richest | R221: Bali | S221: Bangka Belitung | T221: Banten | U221: Bengkulu | V221: Cenrtal Sulawesi | W221: Central Java | X221: Central Kalimantan | Y221: DI Aceh | Z221: DI Yogyakarta | AA221: DKI Jakarta | AB221: East Java | AC221: East Kalimantan | AD221: East Nusa Tenggara | AE221: East Timor | AF221: Gorontalo | AG221: Irian Jaya | AH221: Jambi | AI221: Lampung | AJ221: Maluku | AK221: North Sulawesi | AL221: North Sumatra | AM221: Riau | AN221: South Kalimantan | AO221: South Sulawesi | AP221: South Sumatra | AQ221: Southeast Sulawesi | AR221: West Java | AS221: West Kalimantan | AT221: West Nusa Tenggara | AU221: West Sumatra | BA221: Hygiene data, raw numbers (weighted) | BC221: Poorest | BD221: Poor | BE221: Middle | BF221: Rich | BG221: Richest | BH221: Poorest | BI221: Poor | BJ221: Middle | BK221: Rich | BL221: Richest | BM221: Poorest | BN221: Poor | BO221: Middle | BP221: Rich | BQ221: Richest
A222: Hygiene ladder | B222: Basic | C222: N/A | D222: N/A | E222: N/A | F222: N/A | G222: N/A | H222: N/A | I222: N/A | J222: N/A | K222: N/A | L222: N/A | M222: N/A | N222: N/A | O222: N/A | P222: N/A | Q222: N/A | R222: N/A | S222: N/A | T222: N/A | U222: N/A | V222: N/A | W222: N/A | X222: N/A | Y222: N/A | Z222: N/A | AA222: N/A | AB222: N/A | AC222: N/A | AD222: N/A | AE222: N/A | AF222: N/A | AG222: N/A | AH222: N/A | AI222: N/A | AJ222: N/A | AK222: N/A | AL222: N/A | AM222: N/A | AN222: N/A | AO222: N/A | AP222: N/A | AQ222: N/A | AR222: N/A | AS222: N/A | AT222: N/A | AU222: N/A | BA222: Hygiene ladder | BB222: Basic | BC222: N/A | BD222: N/A | BE222: N/A | BF222: N/A | BG222: N/A | BH222: N/A | BI222: N/A | BJ222: N/A | BK222: N/A | BL222: N/A | BM222: N/A | BN222: N/A | BO222: N/A | BP222: N/A | BQ222: N/A | BR222: N/A | BS222: N/A | BT222: N/A | BU222: N/A | BV222: N/A | BW222: N/A | BX222: N/A | BY222: N/A | BZ222: N/A | CA222: N/A | CB222: N/A | CC222: N/A | CD222: N/A | CE222: N/A | CF222: N/A | CG222: N/A | CH222: N/A | CI222: N/A | CJ222: N/A | CK222: N/A | CL222: N/A | CM222: N/A | CN222: N/A | CO222: N/A | CP222: N/A | CQ222: N/A | CR222: N/A | CS222: N/A | CT222: N/A | CU222: N/A | CZ222: N/A
B223: Limited | C223: N/A | D223: N/A | E223: N/A | F223: N/A | G223: N/A | H223: N/A | I223: N/A | J223: N/A | K223: N/A | L223: N/A | M223: N/A | N223: N/A | O223: N/A | P223: N/A | Q223: N/A | R223: N/A | S223: N/A | T223: N/A | U223: N/A | V223: N/A | W223: N/A | X223: N/A | Y223: N/A | Z223: N/A | AA223: N/A | AB223: N/A | AC223: N/A | AD223: N/A | AE223: N/A | AF223: N/A | AG223: N/A | AH223: N/A | AI223: N/A | AJ223: N/A | AK223: N/A | AL223: N/A | AM223: N/A | AN223: N/A | AO223: N/A | AP223: N/A | AQ223: N/A | AR223: N/A | AS223: N/A | AT223: N/A | AU223: N/A | BB223: Limited | BC223: N/A | BD223: N/A | BE223: N/A | BF223: N/A | BG223: N/A | BH223: N/A | BI223: N/A | BJ223: N/A | BK223: N/A | BL223: N/A | BM223: N/A | BN223: N/A | BO223: N/A | BP223: N/A | BQ223: N/A | BR223: N/A | BS223: N/A | BT223: N/A | BU223: N/A | BV223: N/A | BW223: N/A | BX223: N/A | BY223: N/A | BZ223: N/A | CA223: N/A | CB223: N/A | CC223: N/A | CD223: N/A | CE223: N/A | CF223: N/A | CG223: N/A | CH223: N/A | CI223: N/A | CJ223: N/A | CK223: N/A | CL223: N/A | CM223: N/A | CN223: N/A | CO223: N/A | CP223: N/A | CQ223: N/A | CR223: N/A | CS223: N/A | CT223: N/A | CU223: N/A | CZ223: N/A
B224: No facility | C224: N/A | D224: N/A | E224: N/A | F224: N/A | G224: N/A | H224: N/A | I224: N/A | J224: N/A | K224: N/A | L224: N/A | M224: N/A | N224: N/A | O224: N/A | P224: N/A | Q224: N/A | R224: N/A | S224: N/A | T224: N/A | U224: N/A | V224: N/A | W224: N/A | X224: N/A | Y224: N/A | Z224: N/A | AA224: N/A | AB224: N/A | AC224: N/A | AD224: N/A | AE224: N/A | AF224: N/A | AG224: N/A | AH224: N/A | AI224: N/A | AJ224: N/A | AK224: N/A | AL224: N/A | AM224: N/A | AN224: N/A | AO224: N/A | AP224: N/A | AQ224: N/A | AR224: N/A | AS224: N/A | AT224: N/A | AU224: N/A | BB224: No facility | BC224: N/A | BD224: N/A | BE224: N/A | BF224: N/A | BG224: N/A | BH224: N/A | BI224: N/A | BJ224: N/A | BK224: N/A | BL224: N/A | BM224: N/A | BN224: N/A | BO224: N/A | BP224: N/A | BQ224: N/A | BR224: N/A | BS224: N/A | BT224: N/A | BU224: N/A | BV224: N/A | BW224: N/A | BX224: N/A | BY224: N/A | BZ224: N/A | CA224: N/A | CB224: N/A | CC224: N/A | CD224: N/A | CE224: N/A | CF224: N/A | CG224: N/A | CH224: N/A | CI224: N/A | CJ224: N/A | CK224: N/A | CL224: N/A | CM224: N/A | CN224: N/A | CO224: N/A | CP224: N/A | CQ224: N/A | CR224: N/A | CS224: N/A | CT224: N/A | CU224: N/A | CZ224: N/A
BA225: Observed handwashing place | BB225: Fixed | BC225: N/A | BD225: N/A | BE225: N/A | BF225: N/A | BG225: N/A | BH225: N/A | BI225: N/A | BJ225: N/A | BK225: N/A | BL225: N/A | BM225: N/A | BN225: N/A | BO225: N/A | BP225: N/A | BQ225: N/A | BR225: N/A | BS225: N/A | BT225: N/A | BU225: N/A | BV225: N/A | BW225: N/A | BX225: N/A | BY225: N/A | BZ225: N/A | CA225: N/A | CB225: N/A | CC225: N/A | CD225: N/A | CE225: N/A | CF225: N/A | CG225: N/A | CH225: N/A | CI225: N/A | CJ225: N/A | CK225: N/A | CL225: N/A | CM225: N/A | CN225: N/A | CO225: N/A | CP225: N/A | CQ225: N/A | CR225: N/A | CS225: N/A | CT225: N/A | CU225: N/A | CV225: N/A | CW225: N/A | CX225: N/A | CY225: N/A | CZ225: N/A
BB226: Mobile | BC226: N/A | BD226: N/A | BE226: N/A | BF226: N/A | BG226: N/A | BH226: N/A | BI226: N/A | BJ226: N/A | BK226: N/A | BL226: N/A | BM226: N/A | BN226: N/A | BO226: N/A | BP226: N/A | BQ226: N/A | BR226: N/A | BS226: N/A | BT226: N/A | BU226: N/A | BV226: N/A | BW226: N/A | BX226: N/A | BY226: N/A | BZ226: N/A | CA226: N/A | CB226: N/A | CC226: N/A | CD226: N/A | CE226: N/A | CF226: N/A | CG226: N/A | CH226: N/A | CI226: N/A | CJ226: N/A | CK226: N/A | CL226: N/A | CM226: N/A | CN226: N/A | CO226: N/A | CP226: N/A | CQ226: N/A | CR226: N/A | CS226: N/A | CT226: N/A | CU226: N/A | CV226: N/A | CW226: N/A | CX226: N/A | CY226: N/A | CZ226: N/A
BA227: Water / Soap | BB227: Water and soap | BC227: N/A | BD227: N/A | BE227: N/A | BF227: N/A | BG227: N/A | BH227: N/A | BI227: N/A | BJ227: N/A | BK227: N/A | BL227: N/A | BM227: N/A | BN227: N/A | BO227: N/A | BP227: N/A | BQ227: N/A | BR227: N/A | BS227: N/A | BT227: N/A | BU227: N/A | BV227: N/A | BW227: N/A | BX227: N/A | BY227: N/A | BZ227: N/A | CA227: N/A | CB227: N/A | CC227: N/A | CD227: N/A | CE227: N/A | CF227: N/A | CG227: N/A | CH227: N/A | CI227: N/A | CJ227: N/A | CK227: N/A | CL227: N/A | CM227: N/A | CN227: N/A | CO227: N/A | CP227: N/A | CQ227: N/A | CR227: N/A | CS227: N/A | CT227: N/A | CU227: N/A | CV227: N/A | CW227: N/A | CX227: N/A | CY227: N/A | CZ227: N/A
BB228: Water only | BC228: N/A | BD228: N/A | BE228: N/A | BF228: N/A | BG228: N/A | BH228: N/A | BI228: N/A | BJ228: N/A | BK228: N/A | BL228: N/A | BM228: N/A | BN228: N/A | BO228: N/A | BP228: N/A | BQ228: N/A | BR228: N/A | BS228: N/A | BT228: N/A | BU228: N/A | BV228: N/A | BW228: N/A | BX228: N/A | BY228: N/A | BZ228: N/A | CA228: N/A | CB228: N/A | CC228: N/A | CD228: N/A | CE228: N/A | CF228: N/A | CG228: N/A | CH228: N/A | CI228: N/A | CJ228: N/A | CK228: N/A | CL228: N/A | CM228: N/A | CN228: N/A | CO228: N/A | CP228: N/A | CQ228: N/A | CR228: N/A | CS228: N/A | CT228: N/A | CU228: N/A | CV228: N/A | CW228: N/A | CX228: N/A | CY228: N/A | CZ228: N/A
BB229: Soap only | BC229: N/A | BD229: N/A | BE229: N/A | BF229: N/A | BG229: N/A | BH229: N/A | BI229: N/A | BJ229: N/A | BK229: N/A | BL229: N/A | BM229: N/A | BN229: N/A | BO229: N/A | BP229: N/A | BQ229: N/A | BR229: N/A | BS229: N/A | BT229: N/A | BU229: N/A | BV229: N/A | BW229: N/A | BX229: N/A | BY229: N/A | BZ229: N/A | CA229: N/A | CB229: N/A | CC229: N/A | CD229: N/A | CE229: N/A | CF229: N/A | CG229: N/A | CH229: N/A | CI229: N/A | CJ229: N/A | CK229: N/A | CL229: N/A | CM229: N/A | CN229: N/A | CO229: N/A | CP229: N/A | CQ229: N/A | CR229: N/A | CS229: N/A | CT229: N/A | CU229: N/A | CV229: N/A | CW229: N/A | CX229: N/A | CY229: N/A | CZ229: N/A
BB230: Neither | BC230: N/A | BD230: N/A | BE230: N/A | BF230: N/A | BG230: N/A | BH230: N/A | BI230: N/A | BJ230: N/A | BK230: N/A | BL230: N/A | BM230: N/A | BN230: N/A | BO230: N/A | BP230: N/A | BQ230: N/A | BR230: N/A | BS230: N/A | BT230: N/A | BU230: N/A | BV230: N/A | BW230: N/A | BX230: N/A | BY230: N/A | BZ230: N/A | CA230: N/A | CB230: N/A | CC230: N/A | CD230: N/A | CE230: N/A | CF230: N/A | CG230: N/A | CH230: N/A | CI230: N/A | CJ230: N/A | CK230: N/A | CL230: N/A | CM230: N/A | CN230: N/A | CO230: N/A | CP230: N/A | CQ230: N/A | CR230: N/A | CS230: N/A | CT230: N/A | CU230: N/A | CV230: N/A | CW230: N/A | CX230: N/A | CY230: N/A | CZ230: N/A
BA259: Raw numbers of respondents: | BB259: Menstrual health and hygiene | BC259: NATIONAL wealth index quintile | BH259: URBAN wealth index quintile | BM259: RURAL wealth index quintile | BR259: SUB-REGIONS:
BA260: MHH data, raw numbers (weighted) | BC260: Poorest | BD260: Poor | BE260: Middle | BF260: Rich | BG260: Richest | BH260: Poorest | BI260: Poor | BJ260: Middle | BK260: Rich | BL260: Richest | BM260: Poorest | BN260: Poor | BO260: Middle | BP260: Rich | BQ260: Richest
BA261: Private place to wash and change | BB261: Yes | BC261: N/A | BD261: N/A | BE261: N/A | BF261: N/A | BG261: N/A | BH261: N/A | BI261: N/A | BJ261: N/A | BK261: N/A | BL261: N/A | BM261: N/A | BN261: N/A | BO261: N/A | BP261: N/A | BQ261: N/A | BR261: N/A | BS261: N/A | BT261: N/A | BU261: N/A | BV261: N/A | BW261: N/A | BX261: N/A | BY261: N/A | BZ261: N/A | CA261: N/A | CB261: N/A | CC261: N/A | CD261: N/A | CE261: N/A | CF261: N/A | CG261: N/A | CH261: N/A | CI261: N/A | CJ261: N/A | CK261: N/A | CL261: N/A | CM261: N/A | CN261: N/A | CO261: N/A | CP261: N/A | CQ261: N/A | CR261: N/A | CS261: N/A | CT261: N/A | CU261: N/A | CV261: N/A | CW261: N/A | CX261: N/A | CY261: N/A | CZ261: N/A
BB262: No | BC262: N/A | BD262: N/A | BE262: N/A | BF262: N/A | BG262: N/A | BH262: N/A | BI262: N/A | BJ262: N/A | BK262: N/A | BL262: N/A | BM262: N/A | BN262: N/A | BO262: N/A | BP262: N/A | BQ262: N/A | BR262: N/A | BS262: N/A | BT262: N/A | BU262: N/A | BV262: N/A | BW262: N/A | BX262: N/A | BY262: N/A | BZ262: N/A | CA262: N/A | CB262: N/A | CC262: N/A | CD262: N/A | CE262: N/A | CF262: N/A | CG262: N/A | CH262: N/A | CI262: N/A | CJ262: N/A | CK262: N/A | CL262: N/A | CM262: N/A | CN262: N/A | CO262: N/A | CP262: N/A | CQ262: N/A | CR262: N/A | CS262: N/A | CT262: N/A | CU262: N/A | CV262: N/A | CW262: N/A | CX262: N/A | CY262: N/A | CZ262: N/A
BB263: DK/not sure/missing | BC263: N/A | BD263: N/A | BE263: N/A | BF263: N/A | BG263: N/A | BH263: N/A | BI263: N/A | BJ263: N/A | BK263: N/A | BL263: N/A | BM263: N/A | BN263: N/A | BO263: N/A | BP263: N/A | BQ263: N/A | BR263: N/A | BS263: N/A | BT263: N/A | BU263: N/A | BV263: N/A | BW263: N/A | BX263: N/A | BY263: N/A | BZ263: N/A | CA263: N/A | CB263: N/A | CC263: N/A | CD263: N/A | CE263: N/A | CF263: N/A | CG263: N/A | CH263: N/A | CI263: N/A | CJ263: N/A | CK263: N/A | CL263: N/A | CM263: N/A | CN263: N/A | CO263: N/A | CP263: N/A | CQ263: N/A | CR263: N/A | CS263: N/A | CT263: N/A | CU263: N/A | CV263: N/A | CW263: N/A | CX263: N/A | CY263: N/A | CZ263: N/A
BA264: Use of menstrual materials | BB264: Materials reusable | BC264: N/A | BD264: N/A | BE264: N/A | BF264: N/A | BG264: N/A | BH264: N/A | BI264: N/A | BJ264: N/A | BK264: N/A | BL264: N/A | BM264: N/A | BN264: N/A | BO264: N/A | BP264: N/A | BQ264: N/A | BR264: N/A | BS264: N/A | BT264: N/A | BU264: N/A | BV264: N/A | BW264: N/A | BX264: N/A | BY264: N/A | BZ264: N/A | CA264: N/A | CB264: N/A | CC264: N/A | CD264: N/A | CE264: N/A | CF264: N/A | CG264: N/A | CH264: N/A | CI264: N/A | CJ264: N/A | CK264: N/A | CL264: N/A | CM264: N/A | CN264: N/A | CO264: N/A | CP264: N/A | CQ264: N/A | CR264: N/A | CS264: N/A | CT264: N/A | CU264: N/A | CV264: N/A | CW264: N/A | CX264: N/A | CY264: N/A | CZ264: N/A
BB265: Materials not reusable | BC265: N/A | BD265: N/A | BE265: N/A | BF265: N/A | BG265: N/A | BH265: N/A | BI265: N/A | BJ265: N/A | BK265: N/A | BL265: N/A | BM265: N/A | BN265: N/A | BO265: N/A | BP265: N/A | BQ265: N/A | BR265: N/A | BS265: N/A | BT265: N/A | BU265: N/A | BV265: N/A | BW265: N/A | BX265: N/A | BY265: N/A | BZ265: N/A | CA265: N/A | CB265: N/A | CC265: N/A | CD265: N/A | CE265: N/A | CF265: N/A | CG265: N/A | CH265: N/A | CI265: N/A | CJ265: N/A | CK265: N/A | CL265: N/A | CM265: N/A | CN265: N/A | CO265: N/A | CP265: N/A | CQ265: N/A | CR265: N/A | CS265: N/A | CT265: N/A | CU265: N/A | CV265: N/A | CW265: N/A | CX265: N/A | CY265: N/A | CZ265: N/A
BB266: No materials used | BC266: N/A | BD266: N/A | BE266: N/A | BF266: N/A | BG266: N/A | BH266: N/A | BI266: N/A | BJ266: N/A | BK266: N/A | BL266: N/A | BM266: N/A | BN266: N/A | BO266: N/A | BP266: N/A | BQ266: N/A | BR266: N/A | BS266: N/A | BT266: N/A | BU266: N/A | BV266: N/A | BW266: N/A | BX266: N/A | BY266: N/A | BZ266: N/A | CA266: N/A | CB266: N/A | CC266: N/A | CD266: N/A | CE266: N/A | CF266: N/A | CG266: N/A | CH266: N/A | CI266: N/A | CJ266: N/A | CK266: N/A | CL266: N/A | CM266: N/A | CN266: N/A | CO266: N/A | CP266: N/A | CQ266: N/A | CR266: N/A | CS266: N/A | CT266: N/A | CU266: N/A | CV266: N/A | CW266: N/A | CX266: N/A | CY266: N/A | CZ266: N/A
BB267: DK/not sure/missing | BC267: N/A | BD267: N/A | BE267: N/A | BF267: N/A | BG267: N/A | BH267: N/A | BI267: N/A | BJ267: N/A | BK267: N/A | BL267: N/A | BM267: N/A | BN267: N/A | BO267: N/A | BP267: N/A | BQ267: N/A | BR267: N/A | BS267: N/A | BT267: N/A | BU267: N/A | BV267: N/A | BW267: N/A | BX267: N/A | BY267: N/A | BZ267: N/A | CA267: N/A | CB267: N/A | CC267: N/A | CD267: N/A | CE267: N/A | CF267: N/A | CG267: N/A | CH267: N/A | CI267: N/A | CJ267: N/A | CK267: N/A | CL267: N/A | CM267: N/A | CN267: N/A | CO267: N/A | CP267: N/A | CQ267: N/A | CR267: N/A | CS267: N/A | CT267: N/A | CU267: N/A | CV267: N/A | CW267: N/A | CX267: N/A | CY267: N/A | CZ267: N/A
BA268: Use of menstrual materials with private place to wash and change | BB268: Materials reusable | BC268: N/A | BD268: N/A | BE268: N/A | BF268: N/A | BG268: N/A | BH268: N/A | BI268: N/A | BJ268: N/A | BK268: N/A | BL268: N/A | BM268: N/A | BN268: N/A | BO268: N/A | BP268: N/A | BQ268: N/A | BR268: N/A | BS268: N/A | BT268: N/A | BU268: N/A | BV268: N/A | BW268: N/A | BX268: N/A | BY268: N/A | BZ268: N/A | CA268: N/A | CB268: N/A | CC268: N/A | CD268: N/A | CE268: N/A | CF268: N/A | CG268: N/A | CH268: N/A | CI268: N/A | CJ268: N/A | CK268: N/A | CL268: N/A | CM268: N/A | CN268: N/A | CO268: N/A | CP268: N/A | CQ268: N/A | CR268: N/A | CS268: N/A | CT268: N/A | CU268: N/A | CV268: N/A | CW268: N/A | CX268: N/A | CY268: N/A | CZ268: N/A
BB269: Materials not reusable | BC269: N/A | BD269: N/A | BE269: N/A | BF269: N/A | BG269: N/A | BH269: N/A | BI269: N/A | BJ269: N/A | BK269: N/A | BL269: N/A | BM269: N/A | BN269: N/A | BO269: N/A | BP269: N/A | BQ269: N/A | BR269: N/A | BS269: N/A | BT269: N/A | BU269: N/A | BV269: N/A | BW269: N/A | BX269: N/A | BY269: N/A | BZ269: N/A | CA269: N/A | CB269: N/A | CC269: N/A | CD269: N/A | CE269: N/A | CF269: N/A | CG269: N/A | CH269: N/A | CI269: N/A | CJ269: N/A | CK269: N/A | CL269: N/A | CM269: N/A | CN269: N/A | CO269: N/A | CP269: N/A | CQ269: N/A | CR269: N/A | CS269: N/A | CT269: N/A | CU269: N/A | CV269: N/A | CW269: N/A | CX269: N/A | CY269: N/A | CZ269: N/A
BB270: No materials used | BC270: N/A | BD270: N/A | BE270: N/A | BF270: N/A | BG270: N/A | BH270: N/A | BI270: N/A | BJ270: N/A | BK270: N/A | BL270: N/A | BM270: N/A | BN270: N/A | BO270: N/A | BP270: N/A | BQ270: N/A | BR270: N/A | BS270: N/A | BT270: N/A | BU270: N/A | BV270: N/A | BW270: N/A | BX270: N/A | BY270: N/A | BZ270: N/A | CA270: N/A | CB270: N/A | CC270: N/A | CD270: N/A | CE270: N/A | CF270: N/A | CG270: N/A | CH270: N/A | CI270: N/A | CJ270: N/A | CK270: N/A | CL270: N/A | CM270: N/A | CN270: N/A | CO270: N/A | CP270: N/A | CQ270: N/A | CR270: N/A | CS270: N/A | CT270: N/A | CU270: N/A | CV270: N/A | CW270: N/A | CX270: N/A | CY270: N/A | CZ270: N/A
BA271: Awareness of menstruation before menarche | BB271: Yes | BC271: N/A | BD271: N/A | BE271: N/A | BF271: N/A | BG271: N/A | BH271: N/A | BI271: N/A | BJ271: N/A | BK271: N/A | BL271: N/A | BM271: N/A | BN271: N/A | BO271: N/A | BP271: N/A | BQ271: N/A | BR271: N/A | BS271: N/A | BT271: N/A | BU271: N/A | BV271: N/A | BW271: N/A | BX271: N/A | BY271: N/A | BZ271: N/A | CA271: N/A | CB271: N/A | CC271: N/A | CD271: N/A | CE271: N/A | CF271: N/A | CG271: N/A | CH271: N/A | CI271: N/A | CJ271: N/A | CK271: N/A | CL271: N/A | CM271: N/A | CN271: N/A | CO271: N/A | CP271: N/A | CQ271: N/A | CR271: N/A | CS271: N/A | CT271: N/A | CU271: N/A | CV271: N/A | CW271: N/A | CX271: N/A | CY271: N/A | CZ271: N/A
BB272: No | BC272: N/A | BD272: N/A | BE272: N/A | BF272: N/A | BG272: N/A | BH272: N/A | BI272: N/A | BJ272: N/A | BK272: N/A | BL272: N/A | BM272: N/A | BN272: N/A | BO272: N/A | BP272: N/A | BQ272: N/A | BR272: N/A | BS272: N/A | BT272: N/A | BU272: N/A | BV272: N/A | BW272: N/A | BX272: N/A | BY272: N/A | BZ272: N/A | CA272: N/A | CB272: N/A | CC272: N/A | CD272: N/A | CE272: N/A | CF272: N/A | CG272: N/A | CH272: N/A | CI272: N/A | CJ272: N/A | CK272: N/A | CL272: N/A | CM272: N/A | CN272: N/A | CO272: N/A | CP272: N/A | CQ272: N/A | CR272: N/A | CS272: N/A | CT272: N/A | CU272: N/A | CV272: N/A | CW272: N/A | CX272: N/A | CY272: N/A | CZ272: N/A
BB273: DK/not sure/missing | BC273: N/A | BD273: N/A | BE273: N/A | BF273: N/A | BG273: N/A | BH273: N/A | BI273: N/A | BJ273: N/A | BK273: N/A | BL273: N/A | BM273: N/A | BN273: N/A | BO273: N/A | BP273: N/A | BQ273: N/A | BR273: N/A | BS273: N/A | BT273: N/A | BU273: N/A | BV273: N/A | BW273: N/A | BX273: N/A | BY273: N/A | BZ273: N/A | CA273: N/A | CB273: N/A | CC273: N/A | CD273: N/A | CE273: N/A | CF273: N/A | CG273: N/A | CH273: N/A | CI273: N/A | CJ273: N/A | CK273: N/A | CL273: N/A | CM273: N/A | CN273: N/A | CO273: N/A | CP273: N/A | CQ273: N/A | CR273: N/A | CS273: N/A | CT273: N/A | CU273: N/A | CV273: N/A | CW273: N/A | CX273: N/A | CY273: N/A | CZ273: N/A
BA274: Participation in (all) activities during menstruation | BB274: Yes | BC274: N/A | BD274: N/A | BE274: N/A | BF274: N/A | BG274: N/A | BH274: N/A | BI274: N/A | BJ274: N/A | BK274: N/A | BL274: N/A | BM274: N/A | BN274: N/A | BO274: N/A | BP274: N/A | BQ274: N/A | BR274: N/A | BS274: N/A | BT274: N/A | BU274: N/A | BV274: N/A | BW274: N/A | BX274: N/A | BY274: N/A | BZ274: N/A | CA274: N/A | CB274: N/A | CC274: N/A | CD274: N/A | CE274: N/A | CF274: N/A | CG274: N/A | CH274: N/A | CI274: N/A | CJ274: N/A | CK274: N/A | CL274: N/A | CM274: N/A | CN274: N/A | CO274: N/A | CP274: N/A | CQ274: N/A | CR274: N/A | CS274: N/A | CT274: N/A | CU274: N/A | CV274: N/A | CW274: N/A | CX274: N/A | CY274: N/A | CZ274: N/A
BB275: No | BC275: N/A | BD275: N/A | BE275: N/A | BF275: N/A | BG275: N/A | BH275: N/A | BI275: N/A | BJ275: N/A | BK275: N/A | BL275: N/A | BM275: N/A | BN275: N/A | BO275: N/A | BP275: N/A | BQ275: N/A | BR275: N/A | BS275: N/A | BT275: N/A | BU275: N/A | BV275: N/A | BW275: N/A | BX275: N/A | BY275: N/A | BZ275: N/A | CA275: N/A | CB275: N/A | CC275: N/A | CD275: N/A | CE275: N/A | CF275: N/A | CG275: N/A | CH275: N/A | CI275: N/A | CJ275: N/A | CK275: N/A | CL275: N/A | CM275: N/A | CN275: N/A | CO275: N/A | CP275: N/A | CQ275: N/A | CR275: N/A | CS275: N/A | CT275: N/A | CU275: N/A | CV275: N/A | CW275: N/A | CX275: N/A | CY275: N/A | CZ275: N/A
BB276: DK/not sure/missing/no such activity | BC276: N/A | BD276: N/A | BE276: N/A | BF276: N/A | BG276: N/A | BH276: N/A | BI276: N/A | BJ276: N/A | BK276: N/A | BL276: N/A | BM276: N/A | BN276: N/A | BO276: N/A | BP276: N/A | BQ276: N/A | BR276: N/A | BS276: N/A | BT276: N/A | BU276: N/A | BV276: N/A | BW276: N/A | BX276: N/A | BY276: N/A | BZ276: N/A | CA276: N/A | CB276: N/A | CC276: N/A | CD276: N/A | CE276: N/A | CF276: N/A | CG276: N/A | CH276: N/A | CI276: N/A | CJ276: N/A | CK276: N/A | CL276: N/A | CM276: N/A | CN276: N/A | CO276: N/A | CP276: N/A | CQ276: N/A | CR276: N/A | CS276: N/A | CT276: N/A | CU276: N/A | CV276: N/A | CW276: N/A | CX276: N/A | CY276: N/A | CZ276: N/A
BA277: Participation in specific activities during menstruation | BB277: Did not go to school (amongst those usually attending school) | BC277: N/A | BD277: N/A | BE277: N/A | BF277: N/A | BG277: N/A | BH277: N/A | BI277: N/A | BJ277: N/A | BK277: N/A | BL277: N/A | BM277: N/A | BN277: N/A | BO277: N/A | BP277: N/A | BQ277: N/A | BR277: N/A | BS277: N/A | BT277: N/A | BU277: N/A | BV277: N/A | BW277: N/A | BX277: N/A | BY277: N/A | BZ277: N/A | CA277: N/A | CB277: N/A | CC277: N/A | CD277: N/A | CE277: N/A | CF277: N/A | CG277: N/A | CH277: N/A | CI277: N/A | CJ277: N/A | CK277: N/A | CL277: N/A | CM277: N/A | CN277: N/A | CO277: N/A | CP277: N/A | CQ277: N/A | CR277: N/A | CS277: N/A | CT277: N/A | CU277: N/A | CV277: N/A | CW277: N/A | CX277: N/A | CY277: N/A | CZ277: N/A
BB278: Did not go to work (amongst those who usually work) | BC278: N/A | BD278: N/A | BE278: N/A | BF278: N/A | BG278: N/A | BH278: N/A | BI278: N/A | BJ278: N/A | BK278: N/A | BL278: N/A | BM278: N/A | BN278: N/A | BO278: N/A | BP278: N/A | BQ278: N/A | BR278: N/A | BS278: N/A | BT278: N/A | BU278: N/A | BV278: N/A | BW278: N/A | BX278: N/A | BY278: N/A | BZ278: N/A | CA278: N/A | CB278: N/A | CC278: N/A | CD278: N/A | CE278: N/A | CF278: N/A | CG278: N/A | CH278: N/A | CI278: N/A | CJ278: N/A | CK278: N/A | CL278: N/A | CM278: N/A | CN278: N/A | CO278: N/A | CP278: N/A | CQ278: N/A | CR278: N/A | CS278: N/A | CT278: N/A | CU278: N/A | CV278: N/A | CW278: N/A | CX278: N/A | CY278: N/A | CZ278: N/A
BB279: Did not participate in social activities | BC279: N/A | BD279: N/A | BE279: N/A | BF279: N/A | BG279: N/A | BH279: N/A | BI279: N/A | BJ279: N/A | BK279: N/A | BL279: N/A | BM279: N/A | BN279: N/A | BO279: N/A | BP279: N/A | BQ279: N/A | BR279: N/A | BS279: N/A | BT279: N/A | BU279: N/A | BV279: N/A | BW279: N/A | BX279: N/A | BY279: N/A | BZ279: N/A | CA279: N/A | CB279: N/A | CC279: N/A | CD279: N/A | CE279: N/A | CF279: N/A | CG279: N/A | CH279: N/A | CI279: N/A | CJ279: N/A | CK279: N/A | CL279: N/A | CM279: N/A | CN279: N/A | CO279: N/A | CP279: N/A | CQ279: N/A | CR279: N/A | CS279: N/A | CT279: N/A | CU279: N/A | CV279: N/A | CW279: N/A | CX279: N/A | CY279: N/A | CZ279: N/A
BB280: Did not cook food | BC280: N/A | BD280: N/A | BE280: N/A | BF280: N/A | BG280: N/A | BH280: N/A | BI280: N/A | BJ280: N/A | BK280: N/A | BL280: N/A | BM280: N/A | BN280: N/A | BO280: N/A | BP280: N/A | BQ280: N/A | BR280: N/A | BS280: N/A | BT280: N/A | BU280: N/A | BV280: N/A | BW280: N/A | BX280: N/A | BY280: N/A | BZ280: N/A | CA280: N/A | CB280: N/A | CC280: N/A | CD280: N/A | CE280: N/A | CF280: N/A | CG280: N/A | CH280: N/A | CI280: N/A | CJ280: N/A | CK280: N/A | CL280: N/A | CM280: N/A | CN280: N/A | CO280: N/A | CP280: N/A | CQ280: N/A | CR280: N/A | CS280: N/A | CT280: N/A | CU280: N/A | CV280: N/A | CW280: N/A | CX280: N/A | CY280: N/A | CZ280: N/A
BB281: Did not eat with others | BC281: N/A | BD281: N/A | BE281: N/A | BF281: N/A | BG281: N/A | BH281: N/A | BI281: N/A | BJ281: N/A | BK281: N/A | BL281: N/A | BM281: N/A | BN281: N/A | BO281: N/A | BP281: N/A | BQ281: N/A | BR281: N/A | BS281: N/A | BT281: N/A | BU281: N/A | BV281: N/A | BW281: N/A | BX281: N/A | BY281: N/A | BZ281: N/A | CA281: N/A | CB281: N/A | CC281: N/A | CD281: N/A | CE281: N/A | CF281: N/A | CG281: N/A | CH281: N/A | CI281: N/A | CJ281: N/A | CK281: N/A | CL281: N/A | CM281: N/A | CN281: N/A | CO281: N/A | CP281: N/A | CQ281: N/A | CR281: N/A | CS281: N/A | CT281: N/A | CU281: N/A | CV281: N/A | CW281: N/A | CX281: N/A | CY281: N/A | CZ281: N/A
BB282: Did not bathe in regular place | BC282: N/A | BD282: N/A | BE282: N/A | BF282: N/A | BG282: N/A | BH282: N/A | BI282: N/A | BJ282: N/A | BK282: N/A | BL282: N/A | BM282: N/A | BN282: N/A | BO282: N/A | BP282: N/A | BQ282: N/A | BR282: N/A | BS282: N/A | BT282: N/A | BU282: N/A | BV282: N/A | BW282: N/A | BX282: N/A | BY282: N/A | BZ282: N/A | CA282: N/A | CB282: N/A | CC282: N/A | CD282: N/A | CE282: N/A | CF282: N/A | CG282: N/A | CH282: N/A | CI282: N/A | CJ282: N/A | CK282: N/A | CL282: N/A | CM282: N/A | CN282: N/A | CO282: N/A | CP282: N/A | CQ282: N/A | CR282: N/A | CS282: N/A | CT282: N/A | CU282: N/A | CV282: N/A | CW282: N/A | CX282: N/A | CY282: N/A | CZ282: N/A
BB283: Did not participate in other activities | BC283: N/A | BD283: N/A | BE283: N/A | BF283: N/A | BG283: N/A | BH283: N/A | BI283: N/A | BJ283: N/A | BK283: N/A | BL283: N/A | BM283: N/A | BN283: N/A | BO283: N/A | BP283: N/A | BQ283: N/A | BR283: N/A | BS283: N/A | BT283: N/A | BU283: N/A | BV283: N/A | BW283: N/A | BX283: N/A | BY283: N/A | BZ283: N/A | CA283: N/A | CB283: N/A | CC283: N/A | CD283: N/A | CE283: N/A | CF283: N/A | CG283: N/A | CH283: N/A | CI283: N/A | CJ283: N/A | CK283: N/A | CL283: N/A | CM283: N/A | CN283: N/A | CO283: N/A | CP283: N/A | CQ283: N/A | CR283: N/A | CS283: N/A | CT283: N/A | CU283: N/A | CV283: N/A | CW283: N/A | CX283: N/A | CY283: N/A | CZ283: N/A
BB284: DK/not sure/missing/no such activity | BC284: N/A | BD284: N/A | BE284: N/A | BF284: N/A | BG284: N/A | BH284: N/A | BI284: N/A | BJ284: N/A | BK284: N/A | BL284: N/A | BM284: N/A | BN284: N/A | BO284: N/A | BP284: N/A | BQ284: N/A | BR284: N/A | BS284: N/A | BT284: N/A | BU284: N/A | BV284: N/A | BW284: N/A | BX284: N/A | BY284: N/A | BZ284: N/A | CA284: N/A | CB284: N/A | CC284: N/A | CD284: N/A | CE284: N/A | CF284: N/A | CG284: N/A | CH284: N/A | CI284: N/A | CJ284: N/A | CK284: N/A | CL284: N/A | CM284: N/A | CN284: N/A | CO284: N/A | CP284: N/A | CQ284: N/A | CR284: N/A | CS284: N/A | CT284: N/A | CU284: N/A | CV284: N/A | CW284: N/A | CX284: N/A | CY284: N/A | CZ284: N/A
BA339: Raw numbers of respondents: | BB339: Basic water, sanitation and hygiene | BC339: NATIONAL wealth index quintile | BH339: URBAN wealth index quintile | BM339: RURAL wealth index quintile | BR339: SUB-REGIONS:
BA340: WatSan data, raw numbers (weighted) | BC340: Poorest | BD340: Poor | BE340: Middle | BF340: Rich | BG340: Richest | BH340: Poorest | BI340: Poor | BJ340: Middle | BK340: Rich | BL340: Richest | BM340: Poorest | BN340: Poor | BO340: Middle | BP340: Rich | BQ340: Richest
BA341: Use of Basic Water Sanitation and Hygiene | BB341: Yes | BC341: N/A | BD341: N/A | BE341: N/A | BF341: N/A | BG341: N/A | BH341: N/A | BI341: N/A | BJ341: N/A | BK341: N/A | BL341: N/A | BM341: N/A | BN341: N/A | BO341: N/A | BP341: N/A | BQ341: N/A | BR341: N/A | BS341: N/A | BT341: N/A | BU341: N/A | BV341: N/A | BW341: N/A | BX341: N/A | BY341: N/A | BZ341: N/A | CA341: N/A | CB341: N/A | CC341: N/A | CD341: N/A | CE341: N/A | CF341: N/A | CG341: N/A | CH341: N/A | CI341: N/A | CJ341: N/A | CK341: N/A | CL341: N/A | CM341: N/A | CN341: N/A | CO341: N/A | CP341: N/A | CQ341: N/A | CR341: N/A | CS341: N/A | CT341: N/A | CU341: N/A | CV341: N/A | CW341: N/A | CX341: N/A | CY341: N/A | CZ341: N/A
BB342: No | BC342: N/A | BD342: N/A | BE342: N/A | BF342: N/A | BG342: N/A | BH342: N/A | BI342: N/A | BJ342: N/A | BK342: N/A | BL342: N/A | BM342: N/A | BN342: N/A | BO342: N/A | BP342: N/A | BQ342: N/A | BR342: N/A | BS342: N/A | BT342: N/A | BU342: N/A | BV342: N/A | BW342: N/A | BX342: N/A | BY342: N/A | BZ342: N/A | CA342: N/A | CB342: N/A | CC342: N/A | CD342: N/A | CE342: N/A | CF342: N/A | CG342: N/A | CH342: N/A | CI342: N/A | CJ342: N/A | CK342: N/A | CL342: N/A | CM342: N/A | CN342: N/A | CO342: N/A | CP342: N/A | CQ342: N/A | CR342: N/A | CS342: N/A | CT342: N/A | CU342: N/A | CV342: N/A | CW342: N/A | CX342: N/A | CY342: N/A | CZ342: N/A
BA343: Use of Basic Water and Sanitation | BB343: Yes | BC343: N/A | BD343: N/A | BE343: N/A | BF343: N/A | BG343: N/A | BH343: N/A | BI343: N/A | BJ343: N/A | BK343: N/A | BL343: N/A | BM343: N/A | BN343: N/A | BO343: N/A | BP343: N/A | BQ343: N/A | BR343: N/A | BS343: N/A | BT343: N/A | BU343: N/A | BV343: N/A | BW343: N/A | BX343: N/A | BY343: N/A | BZ343: N/A | CA343: N/A | CB343: N/A | CC343: N/A | CD343: N/A | CE343: N/A | CF343: N/A | CG343: N/A | CH343: N/A | CI343: N/A | CJ343: N/A | CK343: N/A | CL343: N/A | CM343: N/A | CN343: N/A | CO343: N/A | CP343: N/A | CQ343: N/A | CR343: N/A | CS343: N/A | CT343: N/A | CU343: N/A | CV343: N/A | CW343: N/A | CX343: N/A | CY343: N/A | CZ343: N/A
BB344: No | BC344: N/A | BD344: N/A | BE344: N/A | BF344: N/A | BG344: N/A | BH344: N/A | BI344: N/A | BJ344: N/A | BK344: N/A | BL344: N/A | BM344: N/A | BN344: N/A | BO344: N/A | BP344: N/A | BQ344: N/A | BR344: N/A | BS344: N/A | BT344: N/A | BU344: N/A | BV344: N/A | BW344: N/A | BX344: N/A | BY344: N/A | BZ344: N/A | CA344: N/A | CB344: N/A | CC344: N/A | CD344: N/A | CE344: N/A | CF344: N/A | CG344: N/A | CH344: N/A | CI344: N/A | CJ344: N/A | CK344: N/A | CL344: N/A | CM344: N/A | CN344: N/A | CO344: N/A | CP344: N/A | CQ344: N/A | CR344: N/A | CS344: N/A | CT344: N/A | CU344: N/A | CV344: N/A | CW344: N/A | CX344: N/A | CY344: N/A | CZ344: N/A
BA345: Use of Basic Water and Hygiene | BB345: Yes | BC345: N/A | BD345: N/A | BE345: N/A | BF345: N/A | BG345: N/A | BH345: N/A | BI345: N/A | BJ345: N/A | BK345: N/A | BL345: N/A | BM345: N/A | BN345: N/A | BO345: N/A | BP345: N/A | BQ345: N/A | BR345: N/A | BS345: N/A | BT345: N/A | BU345: N/A | BV345: N/A | BW345: N/A | BX345: N/A | BY345: N/A | BZ345: N/A | CA345: N/A | CB345: N/A | CC345: N/A | CD345: N/A | CE345: N/A | CF345: N/A | CG345: N/A | CH345: N/A | CI345: N/A | CJ345: N/A | CK345: N/A | CL345: N/A | CM345: N/A | CN345: N/A | CO345: N/A | CP345: N/A | CQ345: N/A | CR345: N/A | CS345: N/A | CT345: N/A | CU345: N/A | CV345: N/A | CW345: N/A | CX345: N/A | CY345: N/A | CZ345: N/A
BB346: No | BC346: N/A | BD346: N/A | BE346: N/A | BF346: N/A | BG346: N/A | BH346: N/A | BI346: N/A | BJ346: N/A | BK346: N/A | BL346: N/A | BM346: N/A | BN346: N/A | BO346: N/A | BP346: N/A | BQ346: N/A | BR346: N/A | BS346: N/A | BT346: N/A | BU346: N/A | BV346: N/A | BW346: N/A | BX346: N/A | BY346: N/A | BZ346: N/A | CA346: N/A | CB346: N/A | CC346: N/A | CD346: N/A | CE346: N/A | CF346: N/A | CG346: N/A | CH346: N/A | CI346: N/A | CJ346: N/A | CK346: N/A | CL346: N/A | CM346: N/A | CN346: N/A | CO346: N/A | CP346: N/A | CQ346: N/A | CR346: N/A | CS346: N/A | CT346: N/A | CU346: N/A | CV346: N/A | CW346: N/A | CX346: N/A | CY346: N/A | CZ346: N/A
BA347: Use of Basic Sanitation and Hygiene | BB347: Yes | BC347: N/A | BD347: N/A | BE347: N/A | BF347: N/A | BG347: N/A | BH347: N/A | BI347: N/A | BJ347: N/A | BK347: N/A | BL347: N/A | BM347: N/A | BN347: N/A | BO347: N/A | BP347: N/A | BQ347: N/A | BR347: N/A | BS347: N/A | BT347: N/A | BU347: N/A | BV347: N/A | BW347: N/A | BX347: N/A | BY347: N/A | BZ347: N/A | CA347: N/A | CB347: N/A | CC347: N/A | CD347: N/A | CE347: N/A | CF347: N/A | CG347: N/A | CH347: N/A | CI347: N/A | CJ347: N/A | CK347: N/A | CL347: N/A | CM347: N/A | CN347: N/A | CO347: N/A | CP347: N/A | CQ347: N/A | CR347: N/A | CS347: N/A | CT347: N/A | CU347: N/A | CV347: N/A | CW347: N/A | CX347: N/A | CY347: N/A | CZ347: N/A
BB348: No | BC348: N/A | BD348: N/A | BE348: N/A | BF348: N/A | BG348: N/A | BH348: N/A | BI348: N/A | BJ348: N/A | BK348: N/A | BL348: N/A | BM348: N/A | BN348: N/A | BO348: N/A | BP348: N/A | BQ348: N/A | BR348: N/A | BS348: N/A | BT348: N/A | BU348: N/A | BV348: N/A | BW348: N/A | BX348: N/A | BY348: N/A | BZ348: N/A | CA348: N/A | CB348: N/A | CC348: N/A | CD348: N/A | CE348: N/A | CF348: N/A | CG348: N/A | CH348: N/A | CI348: N/A | CJ348: N/A | CK348: N/A | CL348: N/A | CM348: N/A | CN348: N/A | CO348: N/A | CP348: N/A | CQ348: N/A | CR348: N/A | CS348: N/A | CT348: N/A | CU348: N/A | CV348: N/A | CW348: N/A | CX348: N/A | CY348: N/A | CZ348: N/A
BA349: Use of Basic Water | BB349: Yes | BC349: N/A | BD349: N/A | BE349: N/A | BF349: N/A | BG349: N/A | BH349: N/A | BI349: N/A | BJ349: N/A | BK349: N/A | BL349: N/A | BM349: N/A | BN349: N/A | BO349: N/A | BP349: N/A | BQ349: N/A | BR349: N/A | BS349: N/A | BT349: N/A | BU349: N/A | BV349: N/A | BW349: N/A | BX349: N/A | BY349: N/A | BZ349: N/A | CA349: N/A | CB349: N/A | CC349: N/A | CD349: N/A | CE349: N/A | CF349: N/A | CG349: N/A | CH349: N/A | CI349: N/A | CJ349: N/A | CK349: N/A | CL349: N/A | CM349: N/A | CN349: N/A | CO349: N/A | CP349: N/A | CQ349: N/A | CR349: N/A | CS349: N/A | CT349: N/A | CU349: N/A | CV349: N/A | CW349: N/A | CX349: N/A | CY349: N/A | CZ349: N/A
BB350: No | BC350: N/A | BD350: N/A | BE350: N/A | BF350: N/A | BG350: N/A | BH350: N/A | BI350: N/A | BJ350: N/A | BK350: N/A | BL350: N/A | BM350: N/A | BN350: N/A | BO350: N/A | BP350: N/A | BQ350: N/A | BR350: N/A | BS350: N/A | BT350: N/A | BU350: N/A | BV350: N/A | BW350: N/A | BX350: N/A | BY350: N/A | BZ350: N/A | CA350: N/A | CB350: N/A | CC350: N/A | CD350: N/A | CE350: N/A | CF350: N/A | CG350: N/A | CH350: N/A | CI350: N/A | CJ350: N/A | CK350: N/A | CL350: N/A | CM350: N/A | CN350: N/A | CO350: N/A | CP350: N/A | CQ350: N/A | CR350: N/A | CS350: N/A | CT350: N/A | CU350: N/A | CV350: N/A | CW350: N/A | CX350: N/A | CY350: N/A | CZ350: N/A
BA351: Use of Basic Sanitation | BB351: Yes | BC351: N/A | BD351: N/A | BE351: N/A | BF351: N/A | BG351: N/A | BH351: N/A | BI351: N/A | BJ351: N/A | BK351: N/A | BL351: N/A | BM351: N/A | BN351: N/A | BO351: N/A | BP351: N/A | BQ351: N/A | BR351: N/A | BS351: N/A | BT351: N/A | BU351: N/A | BV351: N/A | BW351: N/A | BX351: N/A | BY351: N/A | BZ351: N/A | CA351: N/A | CB351: N/A | CC351: N/A | CD351: N/A | CE351: N/A | CF351: N/A | CG351: N/A | CH351: N/A | CI351: N/A | CJ351: N/A | CK351: N/A | CL351: N/A | CM351: N/A | CN351: N/A | CO351: N/A | CP351: N/A | CQ351: N/A | CR351: N/A | CS351: N/A | CT351: N/A | CU351: N/A | CV351: N/A | CW351: N/A | CX351: N/A | CY351: N/A | CZ351: N/A
BB352: No | BC352: N/A | BD352: N/A | BE352: N/A | BF352: N/A | BG352: N/A | BH352: N/A | BI352: N/A | BJ352: N/A | BK352: N/A | BL352: N/A | BM352: N/A | BN352: N/A | BO352: N/A | BP352: N/A | BQ352: N/A | BR352: N/A | BS352: N/A | BT352: N/A | BU352: N/A | BV352: N/A | BW352: N/A | BX352: N/A | BY352: N/A | BZ352: N/A | CA352: N/A | CB352: N/A | CC352: N/A | CD352: N/A | CE352: N/A | CF352: N/A | CG352: N/A | CH352: N/A | CI352: N/A | CJ352: N/A | CK352: N/A | CL352: N/A | CM352: N/A | CN352: N/A | CO352: N/A | CP352: N/A | CQ352: N/A | CR352: N/A | CS352: N/A | CT352: N/A | CU352: N/A | CV352: N/A | CW352: N/A | CX352: N/A | CY352: N/A | CZ352: N/A
BA353: Access to Basic Hygiene | BB353: Yes | BC353: N/A | BD353: N/A | BE353: N/A | BF353: N/A | BG353: N/A | BH353: N/A | BI353: N/A | BJ353: N/A | BK353: N/A | BL353: N/A | BM353: N/A | BN353: N/A | BO353: N/A | BP353: N/A | BQ353: N/A | BR353: N/A | BS353: N/A | BT353: N/A | BU353: N/A | BV353: N/A | BW353: N/A | BX353: N/A | BY353: N/A | BZ353: N/A | CA353: N/A | CB353: N/A | CC353: N/A | CD353: N/A | CE353: N/A | CF353: N/A | CG353: N/A | CH353: N/A | CI353: N/A | CJ353: N/A | CK353: N/A | CL353: N/A | CM353: N/A | CN353: N/A | CO353: N/A | CP353: N/A | CQ353: N/A | CR353: N/A | CS353: N/A | CT353: N/A | CU353: N/A | CV353: N/A | CW353: N/A | CX353: N/A | CY353: N/A | CZ353: N/A
BB354: No | BC354: N/A | BD354: N/A | BE354: N/A | BF354: N/A | BG354: N/A | BH354: N/A | BI354: N/A | BJ354: N/A | BK354: N/A | BL354: N/A | BM354: N/A | BN354: N/A | BO354: N/A | BP354: N/A | BQ354: N/A | BR354: N/A | BS354: N/A | BT354: N/A | BU354: N/A | BV354: N/A | BW354: N/A | BX354: N/A | BY354: N/A | BZ354: N/A | CA354: N/A | CB354: N/A | CC354: N/A | CD354: N/A | CE354: N/A | CF354: N/A | CG354: N/A | CH354: N/A | CI354: N/A | CJ354: N/A | CK354: N/A | CL354: N/A | CM354: N/A | CN354: N/A | CO354: N/A | CP354: N/A | CQ354: N/A | CR354: N/A | CS354: N/A | CT354: N/A | CU354: N/A | CV354: N/A | CW354: N/A | CX354: N/A | CY354: N/A | CZ354: N/A
C399: INITIAL (national) Wealth Index | H399: URBAN Wealth Index | M399: RURAL Wealth Index
C400: Component Matrix | H400: Component Matrix | M400: Component Matrix
E401: Component | J401: Component | O401: Component
B402: Note: The INITIAL (national) Wealth Index is based on the first component of the Principal Component Analysis (PCA) which has been obtained at national level. The final national-level (NATIONAL) Wealth Index is based on the URBAN and RURAL specific wealth indexes. Regression procedures are used to establish the relationships between the two sets of scores (urban and rural) and the initial (national) wealth factors. This allows best use of the available information for each area and a better precision of the FINAL (NATIONAL) Wealth Index. For dependency reasons, all WASH variables (contained in the generic MICS and DHS scripts) have been excluded from the sets of asset variables used in the PCAs. The PCA can extracts as many components as there are asset variables in the input. Only the first of the components is used to represent the Wealth Index. The scores represent the weights of the asset variables on the Wealth Index (correlations between the variables and the component). The communalities are the proportion of each variable's variance that can be explained by the component. Proportion of explained variance is the part of the model's total variance that is explained by the component. For more information on the procedure used: The DHS Wealth Index, DHS Comparative Reports No. 6, Shea Oscar Rutstein, Kiersten Johnson, ORC Macro International Inc., 2004. The DHS Wealth Index: Approaches for Rural and Urban Areas, Shea O. Rutstein, ORC Macro International Inc., 2008. MICS Methodological Paper No. 4, Review of options for reporting water, sanitation and hygiene coverage by wealth quintile, UNICEF, 2016. | E402: 1 | J402: 1 | O402: 1
C403: Has bricks wall | E403: 0.7065621254 | H403: Has refrigerator | J403: 0.6753723101 | M403: Has bricks wall | O403: 0.6703352393
C404: Has refrigerator | E404: 0.6686497418 | H404: Has bricks wall | J404: 0.6726314219 | M404: Has television | O404: 0.6514333836
C405: Has television | E405: 0.6665537006 | H405: Household fuel type: LPG, natural gas | J405: 0.6720490994 | M405: Household fuel type: wood, straw | O405: -0.6366676348
C406: Household fuel type: wood, straw | E406: -0.665999548 | H406: Has telephone | J406: 0.6650662274 | M406: Has electricity | O406: 0.5461230058
C407: Has telephone | E407: 0.6293002091 | H407: Has ceramic tile floor | J407: 0.5934414379 | M407: Household fuel type: kerosene | O407: 0.5179441756
C408: Household fuel type: LPG, natural gas | E408: 0.5604516887 | H408: Has reused wood wall | J408: -0.5758994805 | M408: Has refrigerator | O408: 0.5072092893
C409: Has ceramic tile floor | E409: 0.5493644043 | H409: Has car/truck | J409: 0.5310812246 | M409: Has motorcycle/scooter/motor boat | O409: 0.5050402893
C410: Has electricity | E410: 0.5296621254 | H410: Has television | J410: 0.4825815795 | M410: Has reused wood wall | O410: -0.437078678
C411: Has reused wood wall | E411: -0.5295695828 | H411: Has motorcycle/scooter/motor boat | J411: 0.4720799773 | M411: Has ceramic tile floor | O411: 0.4060646824
C412: Has motorcycle/scooter/motor boat | E412: 0.510524512 | H412: Has radio | J412: 0.4166313775 | M412: Has jute roof | O412: -0.4041388087
C413: Has car/truck | E413: 0.4629600216 | H413: Has wood floor | J413: -0.4034553456 | M413: Has telephone | O413: 0.3714904359
C414: Has radio | E414: 0.4258243619 | H414: Has tiles roof | J414: 0.4027993442 | M414: Has wood floor | O414: -0.3650363504
C415: Has wood floor | E415: -0.4161075422 | H415: Has cement floor | J415: -0.3629723934 | M415: Household fuel type: LPG, natural gas | O415: 0.3619771184
... 129 more rows

Sheet DHS07
A2: =A1026 -> Indonesia
A3: =A1034 -> 2007
A4: Use of drinking water sources
A5: by wealth quintile and sub-national region
A6: Notes:
A7: WHO/UNICEF JMP customised wealth index excludes water,
A8: sanitation and hygiene assets.
A9: Survey used for analysis: | B9: =A1025 -> DHS07
A10: Time to improved water based on: | B10: Water point at more than 30 min.
A11: Improved springs based on: | B11: 50% Rule
A14: Use of drinking water sources | C14: NATIONAL wealth index quintile | H14: URBAN wealth index quintile | M14: RURAL wealth index quintile | R14: REGIONS | BA14: Raw numbers of respondents: | BB14: Use of drinking water sources | BC14: NATIONAL wealth index quintile | BH14: URBAN wealth index quintile | BM14: RURAL wealth index quintile | BR14: SUB-REGIONS:
A15: Weighted percentage (used in graphs) | C15: Poorest | D15: Poor | E15: Middle | F15: Rich | G15: Richest | H15: Poorest | I15: Poor | J15: Middle | K15: Rich | L15: Richest | M15: Poorest | N15: Poor | O15: Middle | P15: Rich | Q15: Richest | R15: Bali | S15: Bangka Belitung | T15: Banten | U15: Bengkulu | V15: Cenrtal Sulawesi | W15: Central Java | X15: Central Kalimantan | Y15: DI Aceh | Z15: DI Yogyakarta | AA15: DKI Jakarta | AB15: East Java | AC15: East Kalimantan | AD15: East Nusa Tenggara | AE15: Gorontalo | AF15: Jambi | AG15: Kep Bangka Belitung | AH15: Lampung | AI15: Maluku | AJ15: Maluku Utara | AK15: North Sulawesi | AL15: North Sumatra | AM15: Papua | AN15: Papua Barat | AO15: Riau | AP15: South Kalimantan | AQ15: South Sulawesi | AR15: South Sumatra | AS15: Southeast Sulawesi | AT15: Sulawesi Barat | AU15: West Java | AV15: West Kalimantan | AW15: West Nusa Tenggara | AX15: West Sumatra | BA15: Water data, raw numbers (weighted) | BC15: Poorest | BD15: Poor | BE15: Middle | BF15: Rich | BG15: Richest | BH15: Poorest | BI15: Poor | BJ15: Middle | BK15: Rich | BL15: Richest | BM15: Poorest | BN15: Poor | BO15: Middle | BP15: Rich | BQ15: Richest
A16: Water | B16: Improved | C16: =C58+C59+C60+C64+C65+C66+C71+C72+C73+C67*0.5 -> 55.72639747 | D16: 70.04029399 | E16: 79.03752918 | F16: 86.49368066 | G16: 91.71101772 | H16: 81.49136267 | I16: 85.58869448 | J16: 91.3706586 | K16: 92.01945065 | L16: 93.75476217 | M16: 50.02021651 | N16: 61.61955091 | O16: 67.65485209 | P16: 75.54679337 | Q16: 82.56161514 | R16: 81.69346964 | S16: 70.63708835 | T16: 78.26151911 | U16: 60.67033916 | V16: 68.22347805 | W16: 80.83055223 | X16: 44.33532182 | Y16: 62.7294707 | Z16: 85.85990944 | AA16: 98.0086102 | AB16: 82.01973553 | AC16: 73.45542916 | AD16: 66.67478095 | AE16: 73.14014109 | AF16: 63.72295513 | AG16: 79.70749404 | AH16: 73.78865555 | AI16: 75.4938308 | AJ16: 63.04127737 | AK16: 75.11871355 | AL16: 66.92614954 | AM16: 57.00422477 | AN16: 81.55498325 | AO16: 71.81165072 | AP16: 64.92661369 | AQ16: 71.28195418 | AR16: 66.68556004 | AS16: 67.74771693 | AT16: 67.11476838 | AU16: 79.25426106 | AV16: 60.01612914 | AW16: 79.65932461 | AX16: 67.4781187 | BA16: Water | BB16: Improved | BC16: N/A | BD16: N/A | BE16: N/A | BF16: N/A | BG16: N/A | BH16: N/A | BI16: N/A | BJ16: N/A | BK16: N/A | BL16: N/A | BM16: N/A | BN16: N/A | BO16: N/A | BP16: N/A | BQ16: N/A | BR16: N/A | BS16: N/A | BT16: N/A | BU16: N/A | BV16: N/A | BW16: N/A | BX16: N/A | BY16: N/A | BZ16: N/A | CA16: N/A | CB16: N/A | CC16: N/A | CD16: N/A | CE16: N/A | CF16: N/A | CG16: N/A | CH16: N/A | CI16: N/A | CJ16: N/A | CK16: N/A | CL16: N/A | CM16: N/A | CN16: N/A | CO16: N/A | CP16: N/A | CQ16: N/A | CR16: N/A | CS16: N/A | CT16: N/A | CU16: N/A | CV16: N/A | CW16: N/A | CX16: N/A | CY16: N/A | CZ16: N/A
B17: Not Improved | C17: =100-C16 -> 44.27360253 | D17: =100-D16 -> 29.95970601 | E17: 20.96247082 | F17: 13.50631934 | G17: 8.288982278 | H17: 18.50863733 | I17: 14.41130552 | J17: 8.629341402 | K17: 7.980549349 | L17: 6.245237825 | M17: 49.97978349 | N17: 38.38044909 | O17: 32.34514791 | P17: 24.45320663 | Q17: 17.43838486 | R17: 18.30653036 | S17: 29.36291165 | T17: 21.73848089 | U17: 39.32966084 | V17: 31.77652195 | W17: 19.16944777 | X17: 55.66467818 | Y17: 37.2705293 | Z17: 14.14009056 | AA17: 1.991389802 | AB17: 17.98026447 | AC17: 26.54457084 | AD17: 33.32521905 | AE17: 26.85985891 | AF17: 36.27704487 | AG17: 20.29250596 | AH17: 26.21134445 | AI17: 24.5061692 | AJ17: 36.95872263 | AK17: 24.88128645 | AL17: 33.07385046 | AM17: 42.99577523 | AN17: 18.44501675 | AO17: 28.18834928 | AP17: 35.07338631 | AQ17: 28.71804582 | AR17: 33.31443996 | AS17: 32.25228307 | AT17: 32.88523162 | AU17: 20.74573894 | AV17: 39.98387086 | AW17: 20.34067539 | AX17: 32.5218813 | BB17: Not Improved | BC17: N/A | BD17: N/A | BE17: N/A | BF17: N/A | BG17: N/A | BH17: N/A | BI17: N/A | BJ17: N/A | BK17: N/A | BL17: N/A | BM17: N/A | BN17: N/A | BO17: N/A | BP17: N/A | BQ17: N/A | BR17: N/A | BS17: N/A | BT17: N/A | BU17: N/A | BV17: N/A | BW17: N/A | BX17: N/A | BY17: N/A | BZ17: N/A | CA17: N/A | CB17: N/A | CC17: N/A | CD17: N/A | CE17: N/A | CF17: N/A | CG17: N/A | CH17: N/A | CI17: N/A | CJ17: N/A | CK17: N/A | CL17: N/A | CM17: N/A | CN17: N/A | CO17: N/A | CP17: N/A | CQ17: N/A | CR17: N/A | CS17: N/A | CT17: N/A | CU17: N/A | CV17: N/A | CW17: N/A | CX17: N/A | CY17: N/A | CZ17: N/A
A18: Water ladder | B18: Basic | C18: =C16*C42/100 -> 52.70849812 | D18: 68.2501426 | E18: 78.24813963 | F18: 86.04925356 | G18: 91.22110606 | H18: 80.31578658 | I18: 85.23296611 | J18: 91.01477352 | K18: 91.33556281 | L18: 93.36262165 | M18: 46.56612621 | N18: 59.50990272 | O18: 65.63246686 | P18: 74.71938029 | Q18: 82.12193006 | R18: 79.03859905 | S18: 69.71955824 | T18: 76.59100615 | U18: 60.4427334 | V18: 67.32926756 | W18: 80.19610615 | X18: 42.92982353 | Y18: 60.49570577 | Z18: 85.67543086 | AA18: 97.63884356 | AB18: 79.70686706 | AC18: 72.82933494 | AD18: 54.6770972 | AE18: 70.19836067 | AF18: 63.28051254 | AG18: 77.48401163 | AH18: 73.77076897 | AI18: 70.33529877 | AJ18: 61.64521066 | AK18: 72.61004018 | AL18: 64.86541287 | AM18: 47.20662496 | AN18: 77.12700678 | AO18: 71.36744214 | AP18: 64.8429637 | AQ18: 70.52388112 | AR18: 65.71331666 | AS18: 65.72949889 | AT18: 64.85643409 | AU18: 78.78974544 | AV18: 59.52869001 | AW18: 79.07815752 | AX18: 66.55179471 | BA18: Water ladder | BB18: Basic | BC18: N/A | BD18: N/A | BE18: N/A | BF18: N/A | BG18: N/A | BH18: N/A | BI18: N/A | BJ18: N/A | BK18: N/A | BL18: N/A | BM18: N/A | BN18: N/A | BO18: N/A | BP18: N/A | BQ18: N/A | BR18: N/A | BS18: N/A | BT18: N/A | BU18: N/A | BV18: N/A | BW18: N/A | BX18: N/A | BY18: N/A | BZ18: N/A | CA18: N/A | CB18: N/A | CC18: N/A | CD18: N/A | CE18: N/A | CF18: N/A | CG18: N/A | CH18: N/A | CI18: N/A | CJ18: N/A | CK18: N/A | CL18: N/A | CM18: N/A | CN18: N/A | CO18: N/A | CP18: N/A | CQ18: N/A | CR18: N/A | CS18: N/A | CT18: N/A | CU18: N/A | CV18: N/A | CW18: N/A | CX18: N/A | CY18: N/A | CZ18: N/A
B19: Limited | C19: =C16*C41/100 -> 3.017899346 | D19: 1.790151393 | E19: 0.7893895542 | F19: 0.4444270946 | G19: 0.4899116621 | H19: 1.175576094 | I19: 0.3557283684 | J19: 0.3558850794 | K19: 0.6838878376 | L19: 0.3921405241 | M19: 3.454090303 | N19: 2.109648192 | O19: 2.022385231 | P19: 0.8274130779 | Q19: 0.4396850823 | R19: 2.654870587 | S19: 0.9175301157 | T19: 1.670512959 | U19: 0.2276057509 | V19: 0.8942104866 | W19: 0.6344460751 | X19: 1.405498294 | Y19: 2.23376493 | Z19: 0.184478585 | AA19: 0.3697666353 | AB19: 2.312868471 | AC19: 0.6260942183 | AD19: 11.99768376 | AE19: 2.941780415 | AF19: 0.4424425888 | AG19: 2.223482412 | AH19: 0.01788657702 | AI19: 5.15853203 | AJ19: 1.396066709 | AK19: 2.508673377 | AL19: 2.060736673 | AM19: 9.79759981 | AN19: 4.427976469 | AO19: 0.444208587 | AP19: 0.08364999338 | AQ19: 0.7580730678 | AR19: 0.9722433797 | AS19: 2.018218042 | AT19: 2.258334291 | AU19: 0.4645156144 | AV19: 0.4874391324 | AW19: 0.5811670982 | AX19: 0.9263239858 | BB19: Limited | BC19: N/A | BD19: N/A | BE19: N/A | BF19: N/A | BG19: N/A | BH19: N/A | BI19: N/A | BJ19: N/A | BK19: N/A | BL19: N/A | BM19: N/A | BN19: N/A | BO19: N/A | BP19: N/A | BQ19: N/A | BR19: N/A | BS19: N/A | BT19: N/A | BU19: N/A | BV19: N/A | BW19: N/A | BX19: N/A | BY19: N/A | BZ19: N/A | CA19: N/A | CB19: N/A | CC19: N/A | CD19: N/A | CE19: N/A | CF19: N/A | CG19: N/A | CH19: N/A | CI19: N/A | CJ19: N/A | CK19: N/A | CL19: N/A | CM19: N/A | CN19: N/A | CO19: N/A | CP19: N/A | CQ19: N/A | CR19: N/A | CS19: N/A | CT19: N/A | CU19: N/A | CV19: N/A | CW19: N/A | CX19: N/A | CY19: N/A | CZ19: N/A
B20: Unimproved | C20: =100-(C18+C19+C21) -> 33.22401118 | D20: =100-(D18+D19+D21) -> 26.07918548 | E20: 19.41357343 | F20: 12.73583246 | G20: 7.946864887 | H20: 15.77621508 | I20: 13.28511016 | J20: 8.188767318 | K20: 7.540603195 | L20: 6.245237825 | M20: 35.74516736 | N20: 31.87574626 | O20: 28.71441493 | P20: 22.8607891 | Q20: 16.22548173 | R20: 17.04792139 | S20: 27.5652498 | T20: 19.59217304 | U20: 37.22078401 | V20: 29.37541623 | W20: 17.22194768 | X20: 24.91003381 | Y20: 30.31585298 | Z20: 14.04099702 | AA20: 1.953759268 | AB20: 17.45150873 | AC20: 15.80927082 | AD20: 25.55523474 | AE20: 21.23059573 | AF20: 30.78853116 | AG20: 20.11085177 | AH20: 25.81999202 | AI20: 21.91769254 | AJ20: 30.87428484 | AK20: 24.47216421 | AL20: 23.0782874 | AM20: 22.85317313 | AN20: 10.93167781 | AO20: 27.17128156 | AP20: 15.73719615 | AQ20: 26.74855198 | AR20: 23.38832759 | AS20: 30.45594518 | AT20: 24.49205727 | AU20: 20.53009525 | AV20: 12.70684405 | AW20: 19.6463545 | AX20: 28.57290665 | BB20: Unimproved | BC20: N/A | BD20: N/A | BE20: N/A | BF20: N/A | BG20: N/A | BH20: N/A | BI20: N/A | BJ20: N/A | BK20: N/A | BL20: N/A | BM20: N/A | BN20: N/A | BO20: N/A | BP20: N/A | BQ20: N/A | BR20: N/A | BS20: N/A | BT20: N/A | BU20: N/A | BV20: N/A | BW20: N/A | BX20: N/A | BY20: N/A | BZ20: N/A | CA20: N/A | CB20: N/A | CC20: N/A | CD20: N/A | CE20: N/A | CF20: N/A | CG20: N/A | CH20: N/A | CI20: N/A | CJ20: N/A | CK20: N/A | CL20: N/A | CM20: N/A | CN20: N/A | CO20: N/A | CP20: N/A | CQ20: N/A | CR20: N/A | CS20: N/A | CT20: N/A | CU20: N/A | CV20: N/A | CW20: N/A | CX20: N/A | CY20: N/A | CZ20: N/A
B21: Surface water | C21: =C68+C69+C70 -> 11.04959135 | D21: 3.880520533 | E21: 1.548897382 | F21: 0.7704868837 | G21: 0.3421173918 | H21: 2.73242225 | I21: 1.126195361 | J21: 0.4405740835 | K21: 0.4399461542 | L21: 0 | M21: 14.23461612 | N21: 6.504702822 | O21: 3.63073298 | P21: 1.592417535 | Q21: 1.212903131 | R21: 1.258608976 | S21: 1.797661851 | T21: 2.146307852 | U21: 2.108876839 | V21: 2.401105727 | W21: 1.947500093 | X21: 30.75464436 | Y21: 6.954676315 | Z21: 0.09909353741 | AA21: 0.03763053441 | AB21: 0.5287557384 | AC21: 10.73530002 | AD21: 7.769984307 | AE21: 5.629263188 | AF21: 5.488513712 | AG21: 0.1816541868 | AH21: 0.391352428 | AI21: 2.588476657 | AJ21: 6.084437787 | AK21: 0.4091222355 | AL21: 9.99556306 | AM21: 20.1426021 | AN21: 7.513338933 | AO21: 1.017067718 | AP21: 19.33619015 | AQ21: 1.969493839 | AR21: 9.926112367 | AS21: 1.79633789 | AT21: 8.39317435 | AU21: 0.2156436948 | AV21: 27.27702681 | AW21: 0.6943208871 | AX21: 3.948974656 | BB21: Surface water | BC21: N/A | BD21: N/A | BE21: N/A | BF21: N/A | BG21: N/A | BH21: N/A | BI21: N/A | BJ21: N/A | BK21: N/A | BL21: N/A | BM21: N/A | BN21: N/A | BO21: N/A | BP21: N/A | BQ21: N/A | BR21: N/A | BS21: N/A | BT21: N/A | BU21: N/A | BV21: N/A | BW21: N/A | BX21: N/A | BY21: N/A | BZ21: N/A | CA21: N/A | CB21: N/A | CC21: N/A | CD21: N/A | CE21: N/A | CF21: N/A | CG21: N/A | CH21: N/A | CI21: N/A | CJ21: N/A | CK21: N/A | CL21: N/A | CM21: N/A | CN21: N/A | CO21: N/A | CP21: N/A | CQ21: N/A | CR21: N/A | CS21: N/A | CT21: N/A | CU21: N/A | CV21: N/A | CW21: N/A | CX21: N/A | CY21: N/A | CZ21: N/A
A22: Water point at more than 30 minutes | B22: Yes | C22: =C41 -> 5.415565125 | D22: 2.555887891 | E22: 0.9987528233 | F22: 0.5138260867 | G22: 0.5341906287 | H22: 1.442577538 | I22: 0.4156254171 | J22: 0.3894960208 | K22: 0.7431992179 | L22: 0.4182619794 | M22: 6.905388548 | N22: 3.423666938 | O22: 2.989268572 | P22: 1.095232558 | Q22: 0.5325538769 | R22: 3.249795362 | S22: 1.298935357 | T22: 2.134526621 | U22: 0.3751516046 | V22: 1.310707856 | W22: 0.7849087475 | X22: 3.170154712 | Y22: 3.560949749 | Z22: 0.2148599809 | AA22: 0.3772797457 | AB22: 2.819892623 | AC22: 0.852345736 | AD22: 17.99433547 | AE22: 4.022114767 | AF22: 0.6943221449 | AG22: 2.789552524 | AH22: 0.02424028041 | AI22: 6.833051093 | AJ22: 2.214527953 | AK22: 3.33961174 | AL22: 3.079120325 | AM22: 17.18749768 | AN22: 5.429437041 | AO22: 0.6185745384 | AP22: 0.1288377579 | AQ22: 1.063485249 | AR22: 1.457951885 | AS22: 2.979020008 | AT22: 3.364884281 | AU22: 0.5861080631 | AV22: 0.8121802246 | AW22: 0.7295656862 | AX22: 1.37277684 | BA22: Improved water point at more than 30 minutes | BB22: Yes | BC22: N/A | BD22: N/A | BE22: N/A | BF22: N/A | BG22: N/A | BH22: N/A | BI22: N/A | BJ22: N/A | BK22: N/A | BL22: N/A | BM22: N/A | BN22: N/A | BO22: N/A | BP22: N/A | BQ22: N/A | BR22: N/A | BS22: N/A | BT22: N/A | BU22: N/A | BV22: N/A | BW22: N/A | BX22: N/A | BY22: N/A | BZ22: N/A | CA22: N/A | CB22: N/A | CC22: N/A | CD22: N/A | CE22: N/A | CF22: N/A | CG22: N/A | CH22: N/A | CI22: N/A | CJ22: N/A | CK22: N/A | CL22: N/A | CM22: N/A | CN22: N/A | CO22: N/A | CP22: N/A | CQ22: N/A | CR22: N/A | CS22: N/A | CT22: N/A | CU22: N/A | CV22: N/A | CW22: N/A | CX22: N/A | CY22: N/A | CZ22: N/A
B23: No | C23: =C42 -> 94.58443488 | D23: 97.44411211 | E23: 99.00124718 | F23: 99.48617391 | G23: 99.46580937 | H23: 98.55742246 | I23: 99.58437458 | J23: 99.61050398 | K23: 99.25680078 | L23: 99.58173802 | M23: 93.09461145 | N23: 96.57633306 | O23: 97.01073143 | P23: 98.90476744 | Q23: 99.46744612 | R23: 96.75020464 | S23: 98.70106464 | T23: 97.86547338 | U23: 99.6248484 | V23: 98.68929214 | W23: 99.21509125 | X23: 96.82984529 | Y23: 96.43905025 | Z23: 99.78514002 | AA23: 99.62272025 | AB23: 97.18010738 | AC23: 99.14765426 | AD23: 82.00566453 | AE23: 95.97788523 | AF23: 99.30567786 | AG23: 97.21044748 | AH23: 99.97575972 | AI23: 93.16694891 | AJ23: 97.78547205 | AK23: 96.66038826 | AL23: 96.92087968 | AM23: 82.81250232 | AN23: 94.57056296 | AO23: 99.38142546 | AP23: 99.87116224 | AQ23: 98.93651475 | AR23: 98.54204811 | AS23: 97.02097999 | AT23: 96.63511572 | AU23: 99.41389194 | AV23: 99.18781978 | AW23: 99.27043431 | AX23: 98.62722316 | BB23: No | BC23: N/A | BD23: N/A | BE23: N/A | BF23: N/A | BG23: N/A | BH23: N/A | BI23: N/A | BJ23: N/A | BK23: N/A | BL23: N/A | BM23: N/A | BN23: N/A | BO23: N/A | BP23: N/A | BQ23: N/A | BR23: N/A | BS23: N/A | BT23: N/A | BU23: N/A | BV23: N/A | BW23: N/A | BX23: N/A | BY23: N/A | BZ23: N/A | CA23: N/A | CB23: N/A | CC23: N/A | CD23: N/A | CE23: N/A | CF23: N/A | CG23: N/A | CH23: N/A | CI23: N/A | CJ23: N/A | CK23: N/A | CL23: N/A | CM23: N/A | CN23: N/A | CO23: N/A | CP23: N/A | CQ23: N/A | CR23: N/A | CS23: N/A | CT23: N/A | CU23: N/A | CV23: N/A | CW23: N/A | CX23: N/A | CY23: N/A | CZ23: N/A
A24: Manually calculated ratios | B24: Improved wells
B25: Improved springs
B26: Other
C27: NATIONAL wealth index quintile | H27: URBAN wealth index quintile | M27: RURAL wealth index quintile | R27: REGIONS | BA27: Raw numbers of respondents: | BB27: Use of drinking water sources | BC27: NATIONAL wealth index quintile | BH27: URBAN wealth index quintile | BM27: RURAL wealth index quintile | BR27: SUB-REGIONS:
A28: Percentage based on weighted population | C28: Poorest | D28: Poor | E28: Middle | F28: Rich | G28: Richest | H28: Poorest | I28: Poor | J28: Middle | K28: Rich | L28: Richest | M28: Poorest | N28: Poor | O28: Middle | P28: Rich | Q28: Richest | R28: Bali | S28: Bangka Belitung | T28: Banten | U28: Bengkulu | V28: Cenrtal Sulawesi | W28: Central Java | X28: Central Kalimantan | Y28: DI Aceh | Z28: DI Yogyakarta | AA28: DKI Jakarta | AB28: East Java | AC28: East Kalimantan | AD28: East Nusa Tenggara | AE28: Gorontalo | AF28: Jambi | AG28: Kep Bangka Belitung | AH28: Lampung | AI28: Maluku | AJ28: Maluku Utara | AK28: North Sulawesi | AL28: North Sumatra | AM28: Papua | AN28: Papua Barat | AO28: Riau | AP28: South Kalimantan | AQ28: South Sulawesi | AR28: South Sumatra | AS28: Southeast Sulawesi | AT28: Sulawesi Barat | AU28: West Java | AV28: West Kalimantan | AW28: West Nusa Tenggara | AX28: West Sumatra | BA28: Water data, raw numbers (weighted) | BC28: Poorest | BD28: Poor | BE28: Middle | BF28: Rich | BG28: Richest | BH28: Poorest | BI28: Poor | BJ28: Middle | BK28: Rich | BL28: Richest | BM28: Poorest | BN28: Poor | BO28: Middle | BP28: Rich | BQ28: Richest
A29: Piped water | B29: Yes | C29: 8.503165738 | D29: 14.56024253 | E29: 16.98514189 | F29: 25.19085896 | G29: 35.75364641 | H29: 29.59866772 | I29: 28.77884292 | J29: 32.22032073 | K29: 39.61861338 | L29: 43.22312083 | M29: 5.943761106 | N29: 8.919665779 | O29: 9.085984852 | P29: 9.396588693 | Q29: 13.67762607 | R29: 41.69589995 | S29: 4.367025378 | T29: 16.01390774 | U29: 10.76976757 | V29: 29.76475714 | W29: 19.19002032 | X29: 16.18121595 | Y29: 14.89681917 | Z29: 14.00241756 | AA29: 51.85192181 | AB29: 13.61664577 | AC29: 43.55842925 | AD29: 21.55035428 | AE29: 26.41474142 | AF29: 15.33854349 | AG29: 37.76481747 | AH29: 3.295404453 | AI29: 30.30000622 | AJ29: 22.24347476 | AK29: 31.71396547 | AL29: 28.74502176 | AM29: 13.38406127 | AN29: 26.91350211 | AO29: 5.031790108 | AP29: 29.41177118 | AQ29: 24.87901477 | AR29: 14.30279663 | AS29: 23.98112417 | AT29: 14.5552661 | AU29: 17.63750912 | AV29: 14.58891517 | AW29: 19.42237731 | AX29: 23.55355782 | BA29: Piped water | BB29: Yes | BC29: N/A | BD29: N/A | BE29: N/A | BF29: N/A | BG29: N/A | BH29: N/A | BI29: N/A | BJ29: N/A | BK29: N/A | BL29: N/A | BM29: N/A | BN29: N/A | BO29: N/A | BP29: N/A | BQ29: N/A | BR29: N/A | BS29: N/A | BT29: N/A | BU29: N/A | BV29: N/A | BW29: N/A | BX29: N/A | BY29: N/A | BZ29: N/A | CA29: N/A | CB29: N/A | CC29: N/A | CD29: N/A | CE29: N/A | CF29: N/A | CG29: N/A | CH29: N/A | CI29: N/A | CJ29: N/A | CK29: N/A | CL29: N/A | CM29: N/A | CN29: N/A | CO29: N/A | CP29: N/A | CQ29: N/A | CR29: N/A | CS29: N/A | CT29: N/A | CU29: N/A | CV29: N/A | CW29: N/A | CX29: N/A | CY29: N/A | CZ29: N/A
B30: No | C30: 91.49683426 | D30: 85.43975747 | E30: 83.01485811 | F30: 74.80914104 | G30: 64.24635359 | H30: 70.40133228 | I30: 71.22115708 | J30: 67.77967927 | K30: 60.38138662 | L30: 56.77687917 | M30: 94.05623889 | N30: 91.08033422 | O30: 90.91401515 | P30: 90.60341131 | Q30: 86.32237393 | R30: 58.30410005 | S30: 95.63297462 | T30: 83.98609226 | U30: 89.23023243 | V30: 70.23524286 | W30: 80.80997968 | X30: 83.81878405 | Y30: 85.10318083 | Z30: 85.99758244 | AA30: 48.14807819 | AB30: 86.38335423 | AC30: 56.44157075 | AD30: 78.44964572 | AE30: 73.58525858 | AF30: 84.66145651 | AG30: 62.23518253 | AH30: 96.70459555 | AI30: 69.69999378 | AJ30: 77.75652524 | AK30: 68.28603453 | AL30: 71.25497824 | AM30: 86.61593873 | AN30: 73.08649789 | AO30: 94.96820989 | AP30: 70.58822882 | AQ30: 75.12098523 | AR30: 85.69720337 | AS30: 76.01887583 | AT30: 85.4447339 | AU30: 82.36249088 | AV30: 85.41108483 | AW30: 80.57762269 | AX30: 76.44644218 | BB30: No | BC30: N/A | BD30: N/A | BE30: N/A | BF30: N/A | BG30: N/A | BH30: N/A | BI30: N/A | BJ30: N/A | BK30: N/A | BL30: N/A | BM30: N/A | BN30: N/A | BO30: N/A | BP30: N/A | BQ30: N/A | BR30: N/A | BS30: N/A | BT30: N/A | BU30: N/A | BV30: N/A | BW30: N/A | BX30: N/A | BY30: N/A | BZ30: N/A | CA30: N/A | CB30: N/A | CC30: N/A | CD30: N/A | CE30: N/A | CF30: N/A | CG30: N/A | CH30: N/A | CI30: N/A | CJ30: N/A | CK30: N/A | CL30: N/A | CM30: N/A | CN30: N/A | CO30: N/A | CP30: N/A | CQ30: N/A | CR30: N/A | CS30: N/A | CT30: N/A | CU30: N/A | CV30: N/A | CW30: N/A | CX30: N/A | CY30: N/A | CZ30: N/A
A31: Piped water on premises | B31: Yes | C31: 5.277604138 | D31: 11.07885917 | E31: 13.86171344 | F31: 21.20313801 | G31: 34.28339714 | H31: 22.19233081 | I31: 24.17711953 | J31: 27.26750965 | K31: 37.01937338 | L31: 42.12532152 | M31: 3.215837957 | N31: 6.513243898 | O31: 6.556463307 | P31: 7.316641555 | Q31: 12.15026979 | R31: 41.06530452 | S31: 4.054594772 | T31: 14.132006 | U31: 10.27818818 | V31: 25.79991288 | W31: 14.09634286 | X31: 15.57558001 | Y31: 12.94179362 | Z31: 13.19698979 | AA31: 49.4344155 | AB31: 12.80278097 | AC31: 40.67010915 | AD31: 13.60220253 | AE31: 19.88270177 | AF31: 14.86154329 | AG31: 36.03461001 | AH31: 3.020327001 | AI31: 17.41820992 | AJ31: 21.58684542 | AK31: 28.07091371 | AL31: 26.5875303 | AM31: 9.831647873 | AN31: 24.166635 | AO31: 4.746028737 | AP31: 25.37709865 | AQ31: 21.03014249 | AR31: 11.21133934 | AS31: 21.82270743 | AT31: 12.85454253 | AU31: 13.11590035 | AV31: 14.17970022 | AW31: 12.38854455 | AX31: 20.97510745 | BA31: Piped water on premises | BB31: Yes | BC31: N/A | BD31: N/A | BE31: N/A | BF31: N/A | BG31: N/A | BH31: N/A | BI31: N/A | BJ31: N/A | BK31: N/A | BL31: N/A | BM31: N/A | BN31: N/A | BO31: N/A | BP31: N/A | BQ31: N/A | BR31: N/A | BS31: N/A | BT31: N/A | BU31: N/A | BV31: N/A | BW31: N/A | BX31: N/A | BY31: N/A | BZ31: N/A | CA31: N/A | CB31: N/A | CC31: N/A | CD31: N/A | CE31: N/A | CF31: N/A | CG31: N/A | CH31: N/A | CI31: N/A | CJ31: N/A | CK31: N/A | CL31: N/A | CM31: N/A | CN31: N/A | CO31: N/A | CP31: N/A | CQ31: N/A | CR31: N/A | CS31: N/A | CT31: N/A | CU31: N/A | CV31: N/A | CW31: N/A | CX31: N/A | CY31: N/A | CZ31: N/A
B32: No | C32: 94.72239586 | D32: 88.92114083 | E32: 86.13828656 | F32: 78.79686199 | G32: 65.71660286 | H32: 77.80766919 | I32: 75.82288047 | J32: 72.73249035 | K32: 62.98062662 | L32: 57.87467848 | M32: 96.78416204 | N32: 93.4867561 | O32: 93.44353669 | P32: 92.68335844 | Q32: 87.84973021 | R32: 58.93469548 | S32: 95.94540523 | T32: 85.867994 | U32: 89.72181182 | V32: 74.20008712 | W32: 85.90365714 | X32: 84.42441999 | Y32: 87.05820638 | Z32: 86.80301021 | AA32: 50.5655845 | AB32: 87.19721903 | AC32: 59.32989085 | AD32: 86.39779747 | AE32: 80.11729823 | AF32: 85.13845671 | AG32: 63.96538999 | AH32: 96.979673 | AI32: 82.58179008 | AJ32: 78.41315458 | AK32: 71.92908629 | AL32: 73.4124697 | AM32: 90.16835213 | AN32: 75.833365 | AO32: 95.25397126 | AP32: 74.62290135 | AQ32: 78.96985751 | AR32: 88.78866066 | AS32: 78.17729257 | AT32: 87.14545747 | AU32: 86.88409965 | AV32: 85.82029978 | AW32: 87.61145545 | AX32: 79.02489255 | BB32: No | BC32: N/A | BD32: N/A | BE32: N/A | BF32: N/A | BG32: N/A | BH32: N/A | BI32: N/A | BJ32: N/A | BK32: N/A | BL32: N/A | BM32: N/A | BN32: N/A | BO32: N/A | BP32: N/A | BQ32: N/A | BR32: N/A | BS32: N/A | BT32: N/A | BU32: N/A | BV32: N/A | BW32: N/A | BX32: N/A | BY32: N/A | BZ32: N/A | CA32: N/A | CB32: N/A | CC32: N/A | CD32: N/A | CE32: N/A | CF32: N/A | CG32: N/A | CH32: N/A | CI32: N/A | CJ32: N/A | CK32: N/A | CL32: N/A | CM32: N/A | CN32: N/A | CO32: N/A | CP32: N/A | CQ32: N/A | CR32: N/A | CS32: N/A | CT32: N/A | CU32: N/A | CV32: N/A | CW32: N/A | CX32: N/A | CY32: N/A | CZ32: N/A
A33: Piped water into dwelling | B33: Yes | C33: N/A | D33: N/A | E33: N/A | F33: N/A | G33: N/A | H33: N/A | I33: N/A | J33: N/A | K33: N/A | L33: N/A | M33: N/A | N33: N/A | O33: N/A | P33: N/A | Q33: N/A | R33: N/A | S33: N/A | T33: N/A | U33: N/A | V33: N/A | W33: N/A | X33: N/A | Y33: N/A | Z33: N/A | AA33: N/A | AB33: N/A | AC33: N/A | AD33: N/A | AE33: N/A | AF33: N/A | AG33: N/A | AH33: N/A | AI33: N/A | AJ33: N/A | AK33: N/A | AL33: N/A | AM33: N/A | AN33: N/A | AO33: N/A | AP33: N/A | AQ33: N/A | AR33: N/A | AS33: N/A | AT33: N/A | AU33: N/A | AV33: N/A | AW33: N/A | AX33: N/A | AY33: N/A | BA33: Piped water into dwelling | BB33: Yes | BC33: N/A | BD33: N/A | BE33: N/A | BF33: N/A | BG33: N/A | BH33: N/A | BI33: N/A | BJ33: N/A | BK33: N/A | BL33: N/A | BM33: N/A | BN33: N/A | BO33: N/A | BP33: N/A | BQ33: N/A | BR33: N/A | BS33: N/A | BT33: N/A | BU33: N/A | BV33: N/A | BW33: N/A | BX33: N/A | BY33: N/A | BZ33: N/A | CA33: N/A | CB33: N/A | CC33: N/A | CD33: N/A | CE33: N/A | CF33: N/A | CG33: N/A | CH33: N/A | CI33: N/A | CJ33: N/A | CK33: N/A | CL33: N/A | CM33: N/A | CN33: N/A | CO33: N/A | CP33: N/A | CQ33: N/A | CR33: N/A | CS33: N/A | CT33: N/A | CU33: N/A | CV33: N/A | CW33: N/A | CX33: N/A | CY33: N/A | CZ33: N/A
B34: No | C34: N/A | D34: N/A | E34: N/A | F34: N/A | G34: N/A | H34: N/A | I34: N/A | J34: N/A | K34: N/A | L34: N/A | M34: N/A | N34: N/A | O34: N/A | P34: N/A | Q34: N/A | R34: N/A | S34: N/A | T34: N/A | U34: N/A | V34: N/A | W34: N/A | X34: N/A | Y34: N/A | Z34: N/A | AA34: N/A | AB34: N/A | AC34: N/A | AD34: N/A | AE34: N/A | AF34: N/A | AG34: N/A | AH34: N/A | AI34: N/A | AJ34: N/A | AK34: N/A | AL34: N/A | AM34: N/A | AN34: N/A | AO34: N/A | AP34: N/A | AQ34: N/A | AR34: N/A | AS34: N/A | AT34: N/A | AU34: N/A | AV34: N/A | AW34: N/A | AX34: N/A | AY34: N/A | BB34: No | BC34: N/A | BD34: N/A | BE34: N/A | BF34: N/A | BG34: N/A | BH34: N/A | BI34: N/A | BJ34: N/A | BK34: N/A | BL34: N/A | BM34: N/A | BN34: N/A | BO34: N/A | BP34: N/A | BQ34: N/A | BR34: N/A | BS34: N/A | BT34: N/A | BU34: N/A | BV34: N/A | BW34: N/A | BX34: N/A | BY34: N/A | BZ34: N/A | CA34: N/A | CB34: N/A | CC34: N/A | CD34: N/A | CE34: N/A | CF34: N/A | CG34: N/A | CH34: N/A | CI34: N/A | CJ34: N/A | CK34: N/A | CL34: N/A | CM34: N/A | CN34: N/A | CO34: N/A | CP34: N/A | CQ34: N/A | CR34: N/A | CS34: N/A | CT34: N/A | CU34: N/A | CV34: N/A | CW34: N/A | CX34: N/A | CY34: N/A | CZ34: N/A
A35: Water source on premises | B35: Yes | C35: 51.87378581 | D35: 70.7908748 | E35: 82.78852355 | F35: 89.10688596 | G35: 96.53049806 | H35: 72.96794237 | I35: 86.3112758 | J35: 90.20217212 | K35: 94.66053463 | L35: 98.51955947 | M35: 44.74312231 | N35: 62.90186428 | O35: 72.46939836 | P35: 82.44014444 | Q35: 90.14773941 | R35: 84.81452 | S35: 77.97788413 | T35: 85.36015751 | U35: 83.58058865 | V35: 71.43214653 | W35: 80.81870644 | X35: 60.52360934 | Y35: 78.71498954 | Z35: 81.99443428 | AA35: 92.48373783 | AB35: 81.49171373 | AC35: 82.0519245 | AD35: 33.8639454 | AE35: 62.50501974 | AF35: 87.20490839 | AG35: 74.05554664 | AH35: 83.80140192 | AI35: 39.72173838 | AJ35: 59.97726042 | AK35: 77.82494398 | AL35: 70.32893303 | AM35: 46.14810965 | AN35: 77.71751032 | AO35: 91.0881451 | AP35: 79.58814753 | AQ35: 79.70821253 | AR35: 73.83766854 | AS35: 67.97189751 | AT35: 68.30351243 | AU35: 81.92637511 | AV35: 71.27953159 | AW35: 56.37920003 | AX35: 71.3746954 | BA35: Water source on premises | BB35: Yes | BC35: N/A | BD35: N/A | BE35: N/A | BF35: N/A | BG35: N/A | BH35: N/A | BI35: N/A | BJ35: N/A | BK35: N/A | BL35: N/A | BM35: N/A | BN35: N/A | BO35: N/A | BP35: N/A | BQ35: N/A | BR35: N/A | BS35: N/A | BT35: N/A | BU35: N/A | BV35: N/A | BW35: N/A | BX35: N/A | BY35: N/A | BZ35: N/A | CA35: N/A | CB35: N/A | CC35: N/A | CD35: N/A | CE35: N/A | CF35: N/A | CG35: N/A | CH35: N/A | CI35: N/A | CJ35: N/A | CK35: N/A | CL35: N/A | CM35: N/A | CN35: N/A | CO35: N/A | CP35: N/A | CQ35: N/A | CR35: N/A | CS35: N/A | CT35: N/A | CU35: N/A | CV35: N/A | CW35: N/A | CX35: N/A | CY35: N/A | CZ35: N/A
B36: No | C36: 48.12621419 | D36: 29.2091252 | E36: 17.21147645 | F36: 10.89311404 | G36: 3.469501944 | H36: 27.03205763 | I36: 13.6887242 | J36: 9.797827879 | K36: 5.33946537 | L36: 1.480440531 | M36: 55.25687769 | N36: 37.09813572 | O36: 27.53060164 | P36: 17.55985556 | Q36: 9.85226059 | R36: 15.18548 | S36: 22.02211587 | T36: 14.63984249 | U36: 16.41941135 | V36: 28.56785347 | W36: 19.18129356 | X36: 39.47639066 | Y36: 21.28501046 | Z36: 18.00556572 | AA36: 7.516262174 | AB36: 18.50828627 | AC36: 17.9480755 | AD36: 66.1360546 | AE36: 37.49498026 | AF36: 12.79509161 | AG36: 25.94445336 | AH36: 16.19859808 | AI36: 60.27826162 | AJ36: 40.02273958 | AK36: 22.17505602 | AL36: 29.67106697 | AM36: 53.85189035 | AN36: 22.28248968 | AO36: 8.911854903 | AP36: 20.41185247 | AQ36: 20.29178747 | AR36: 26.16233146 | AS36: 32.02810249 | AT36: 31.69648757 | AU36: 18.07362489 | AV36: 28.72046841 | AW36: 43.62079997 | AX36: 28.6253046 | BB36: No | BC36: N/A | BD36: N/A | BE36: N/A | BF36: N/A | BG36: N/A | BH36: N/A | BI36: N/A | BJ36: N/A | BK36: N/A | BL36: N/A | BM36: N/A | BN36: N/A | BO36: N/A | BP36: N/A | BQ36: N/A | BR36: N/A | BS36: N/A | BT36: N/A | BU36: N/A | BV36: N/A | BW36: N/A | BX36: N/A | BY36: N/A | BZ36: N/A | CA36: N/A | CB36: N/A | CC36: N/A | CD36: N/A | CE36: N/A | CF36: N/A | CG36: N/A | CH36: N/A | CI36: N/A | CJ36: N/A | CK36: N/A | CL36: N/A | CM36: N/A | CN36: N/A | CO36: N/A | CP36: N/A | CQ36: N/A | CR36: N/A | CS36: N/A | CT36: N/A | CU36: N/A | CV36: N/A | CW36: N/A | CX36: N/A | CY36: N/A | CZ36: N/A
A37: Improved Water source on premises | B37: Yes | C37: N/A | D37: N/A | E37: N/A | F37: N/A | G37: N/A | H37: N/A | I37: N/A | J37: N/A | K37: N/A | L37: N/A | M37: N/A | N37: N/A | O37: N/A | P37: N/A | Q37: N/A | R37: N/A | S37: N/A | T37: N/A | U37: N/A | V37: N/A | W37: N/A | X37: N/A | Y37: N/A | Z37: N/A | AA37: N/A | AB37: N/A | AC37: N/A | AD37: N/A | AE37: N/A | AF37: N/A | AG37: N/A | AH37: N/A | AI37: N/A | AJ37: N/A | AK37: N/A | AL37: N/A | AM37: N/A | AN37: N/A | AO37: N/A | AP37: N/A | AQ37: N/A | AR37: N/A | AS37: N/A | AT37: N/A | AU37: N/A | AV37: N/A | AW37: N/A | AX37: N/A | BA37: Improved water source on premises | BB37: Yes | BC37: N/A | BD37: N/A | BE37: N/A | BF37: N/A | BG37: N/A | BH37: N/A | BI37: N/A | BJ37: N/A | BK37: N/A | BL37: N/A | BM37: N/A | BN37: N/A | BO37: N/A | BP37: N/A | BQ37: N/A | BR37: N/A | BS37: N/A | BT37: N/A | BU37: N/A | BV37: N/A | BW37: N/A | BX37: N/A | BY37: N/A | BZ37: N/A | CA37: N/A | CB37: N/A | CC37: N/A | CD37: N/A | CE37: N/A | CF37: N/A | CG37: N/A | CH37: N/A | CI37: N/A | CJ37: N/A | CK37: N/A | CL37: N/A | CM37: N/A | CN37: N/A | CO37: N/A | CP37: N/A | CQ37: N/A | CR37: N/A | CS37: N/A | CT37: N/A | CU37: N/A | CV37: N/A | CW37: N/A | CX37: N/A | CY37: N/A | CZ37: N/A
B38: No | C38: N/A | D38: N/A | E38: N/A | F38: N/A | G38: N/A | H38: N/A | I38: N/A | J38: N/A | K38: N/A | L38: N/A | M38: N/A | N38: N/A | O38: N/A | P38: N/A | Q38: N/A | R38: N/A | S38: N/A | T38: N/A | U38: N/A | V38: N/A | W38: N/A | X38: N/A | Y38: N/A | Z38: N/A | AA38: N/A | AB38: N/A | AC38: N/A | AD38: N/A | AE38: N/A | AF38: N/A | AG38: N/A | AH38: N/A | AI38: N/A | AJ38: N/A | AK38: N/A | AL38: N/A | AM38: N/A | AN38: N/A | AO38: N/A | AP38: N/A | AQ38: N/A | AR38: N/A | AS38: N/A | AT38: N/A | AU38: N/A | AV38: N/A | AW38: N/A | AX38: N/A | BB38: No | BC38: N/A | BD38: N/A | BE38: N/A | BF38: N/A | BG38: N/A | BH38: N/A | BI38: N/A | BJ38: N/A | BK38: N/A | BL38: N/A | BM38: N/A | BN38: N/A | BO38: N/A | BP38: N/A | BQ38: N/A | BR38: N/A | BS38: N/A | BT38: N/A | BU38: N/A | BV38: N/A | BW38: N/A | BX38: N/A | BY38: N/A | BZ38: N/A | CA38: N/A | CB38: N/A | CC38: N/A | CD38: N/A | CE38: N/A | CF38: N/A | CG38: N/A | CH38: N/A | CI38: N/A | CJ38: N/A | CK38: N/A | CL38: N/A | CM38: N/A | CN38: N/A | CO38: N/A | CP38: N/A | CQ38: N/A | CR38: N/A | CS38: N/A | CT38: N/A | CU38: N/A | CV38: N/A | CW38: N/A | CX38: N/A | CY38: N/A | CZ38: N/A
A39: Piped water on premises available when needed | B39: Yes | C39: N/A | D39: N/A | E39: N/A | F39: N/A | G39: N/A | H39: N/A | I39: N/A | J39: N/A | K39: N/A | L39: N/A | M39: N/A | N39: N/A | O39: N/A | P39: N/A | Q39: N/A | R39: N/A | S39: N/A | T39: N/A | U39: N/A | V39: N/A | W39: N/A | X39: N/A | Y39: N/A | Z39: N/A | AA39: N/A | AB39: N/A | AC39: N/A | AD39: N/A | AE39: N/A | AF39: N/A | AG39: N/A | AH39: N/A | AI39: N/A | AJ39: N/A | AK39: N/A | AL39: N/A | AM39: N/A | AN39: N/A | AO39: N/A | AP39: N/A | AQ39: N/A | AR39: N/A | AS39: N/A | AT39: N/A | AU39: N/A | AV39: N/A | AW39: N/A | AX39: N/A | AY39: N/A | BA39: Piped water on premises available when needed | BB39: Yes | BC39: N/A | BD39: N/A | BE39: N/A | BF39: N/A | BG39: N/A | BH39: N/A | BI39: N/A | BJ39: N/A | BK39: N/A | BL39: N/A | BM39: N/A | BN39: N/A | BO39: N/A | BP39: N/A | BQ39: N/A | BR39: N/A | BS39: N/A | BT39: N/A | BU39: N/A | BV39: N/A | BW39: N/A | BX39: N/A | BY39: N/A | BZ39: N/A | CA39: N/A | CB39: N/A | CC39: N/A | CD39: N/A | CE39: N/A | CF39: N/A | CG39: N/A | CH39: N/A | CI39: N/A | CJ39: N/A | CK39: N/A | CL39: N/A | CM39: N/A | CN39: N/A | CO39: N/A | CP39: N/A | CQ39: N/A | CR39: N/A | CS39: N/A | CT39: N/A | CU39: N/A | CV39: N/A | CW39: N/A | CX39: N/A | CY39: N/A | CZ39: N/A
B40: No | C40: N/A | D40: N/A | E40: N/A | F40: N/A | G40: N/A | H40: N/A | I40: N/A | J40: N/A | K40: N/A | L40: N/A | M40: N/A | N40: N/A | O40: N/A | P40: N/A | Q40: N/A | R40: N/A | S40: N/A | T40: N/A | U40: N/A | V40: N/A | W40: N/A | X40: N/A | Y40: N/A | Z40: N/A | AA40: N/A | AB40: N/A | AC40: N/A | AD40: N/A | AE40: N/A | AF40: N/A | AG40: N/A | AH40: N/A | AI40: N/A | AJ40: N/A | AK40: N/A | AL40: N/A | AM40: N/A | AN40: N/A | AO40: N/A | AP40: N/A | AQ40: N/A | AR40: N/A | AS40: N/A | AT40: N/A | AU40: N/A | AV40: N/A | AW40: N/A | AX40: N/A | AY40: N/A | BB40: No | BC40: N/A | BD40: N/A | BE40: N/A | BF40: N/A | BG40: N/A | BH40: N/A | BI40: N/A | BJ40: N/A | BK40: N/A | BL40: N/A | BM40: N/A | BN40: N/A | BO40: N/A | BP40: N/A | BQ40: N/A | BR40: N/A | BS40: N/A | BT40: N/A | BU40: N/A | BV40: N/A | BW40: N/A | BX40: N/A | BY40: N/A | BZ40: N/A | CA40: N/A | CB40: N/A | CC40: N/A | CD40: N/A | CE40: N/A | CF40: N/A | CG40: N/A | CH40: N/A | CI40: N/A | CJ40: N/A | CK40: N/A | CL40: N/A | CM40: N/A | CN40: N/A | CO40: N/A | CP40: N/A | CQ40: N/A | CR40: N/A | CS40: N/A | CT40: N/A | CU40: N/A | CV40: N/A | CW40: N/A | CX40: N/A | CY40: N/A | CZ40: N/A
A41: Water point at more than 30 minutes | B41: Yes | C41: 5.415565125 | D41: 2.555887891 | E41: 0.9987528233 | F41: 0.5138260867 | G41: 0.5341906287 | H41: 1.442577538 | I41: 0.4156254171 | J41: 0.3894960208 | K41: 0.7431992179 | L41: 0.4182619794 | M41: 6.905388548 | N41: 3.423666938 | O41: 2.989268572 | P41: 1.095232558 | Q41: 0.5325538769 | R41: 3.249795362 | S41: 1.298935357 | T41: 2.134526621 | U41: 0.3751516046 | V41: 1.310707856 | W41: 0.7849087475 | X41: 3.170154712 | Y41: 3.560949749 | Z41: 0.2148599809 | AA41: 0.3772797457 | AB41: 2.819892623 | AC41: 0.852345736 | AD41: 17.99433547 | AE41: 4.022114767 | AF41: 0.6943221449 | AG41: 2.789552524 | AH41: 0.02424028041 | AI41: 6.833051093 | AJ41: 2.214527953 | AK41: 3.33961174 | AL41: 3.079120325 | AM41: 17.18749768 | AN41: 5.429437041 | AO41: 0.6185745384 | AP41: 0.1288377579 | AQ41: 1.063485249 | AR41: 1.457951885 | AS41: 2.979020008 | AT41: 3.364884281 | AU41: 0.5861080631 | AV41: 0.8121802246 | AW41: 0.7295656862 | AX41: 1.37277684 | BA41: Water point at more than 30 minutes | BB41: Yes | BC41: N/A | BD41: N/A | BE41: N/A | BF41: N/A | BG41: N/A | BH41: N/A | BI41: N/A | BJ41: N/A | BK41: N/A | BL41: N/A | BM41: N/A | BN41: N/A | BO41: N/A | BP41: N/A | BQ41: N/A | BR41: N/A | BS41: N/A | BT41: N/A | BU41: N/A | BV41: N/A | BW41: N/A | BX41: N/A | BY41: N/A | BZ41: N/A | CA41: N/A | CB41: N/A | CC41: N/A | CD41: N/A | CE41: N/A | CF41: N/A | CG41: N/A | CH41: N/A | CI41: N/A | CJ41: N/A | CK41: N/A | CL41: N/A | CM41: N/A | CN41: N/A | CO41: N/A | CP41: N/A | CQ41: N/A | CR41: N/A | CS41: N/A | CT41: N/A | CU41: N/A | CV41: N/A | CW41: N/A | CX41: N/A | CY41: N/A | CZ41: N/A
B42: No | C42: 94.58443488 | D42: 97.44411211 | E42: 99.00124718 | F42: 99.48617391 | G42: 99.46580937 | H42: 98.55742246 | I42: 99.58437458 | J42: 99.61050398 | K42: 99.25680078 | L42: 99.58173802 | M42: 93.09461145 | N42: 96.57633306 | O42: 97.01073143 | P42: 98.90476744 | Q42: 99.46744612 | R42: 96.75020464 | S42: 98.70106464 | T42: 97.86547338 | U42: 99.6248484 | V42: 98.68929214 | W42: 99.21509125 | X42: 96.82984529 | Y42: 96.43905025 | Z42: 99.78514002 | AA42: 99.62272025 | AB42: 97.18010738 | AC42: 99.14765426 | AD42: 82.00566453 | AE42: 95.97788523 | AF42: 99.30567786 | AG42: 97.21044748 | AH42: 99.97575972 | AI42: 93.16694891 | AJ42: 97.78547205 | AK42: 96.66038826 | AL42: 96.92087968 | AM42: 82.81250232 | AN42: 94.57056296 | AO42: 99.38142546 | AP42: 99.87116224 | AQ42: 98.93651475 | AR42: 98.54204811 | AS42: 97.02097999 | AT42: 96.63511572 | AU42: 99.41389194 | AV42: 99.18781978 | AW42: 99.27043431 | AX42: 98.62722316 | BB42: No | BC42: N/A | BD42: N/A | BE42: N/A | BF42: N/A | BG42: N/A | BH42: N/A | BI42: N/A | BJ42: N/A | BK42: N/A | BL42: N/A | BM42: N/A | BN42: N/A | BO42: N/A | BP42: N/A | BQ42: N/A | BR42: N/A | BS42: N/A | BT42: N/A | BU42: N/A | BV42: N/A | BW42: N/A | BX42: N/A | BY42: N/A | BZ42: N/A | CA42: N/A | CB42: N/A | CC42: N/A | CD42: N/A | CE42: N/A | CF42: N/A | CG42: N/A | CH42: N/A | CI42: N/A | CJ42: N/A | CK42: N/A | CL42: N/A | CM42: N/A | CN42: N/A | CO42: N/A | CP42: N/A | CQ42: N/A | CR42: N/A | CS42: N/A | CT42: N/A | CU42: N/A | CV42: N/A | CW42: N/A | CX42: N/A | CY42: N/A | CZ42: N/A
